Workbook

Sheet COVER PAGE
B2: REGION | D2: =VLOOKUP($A$3,Lookup!$A:$D,4,FALSE) -> NORTH
A3: 1 | B3: CCG:
A4: =VLOOKUP($A$3,Lookup!$A:$D,3,FALSE) -> 03L | G4: FALSE
B5: LAST REFRESH DATE | D5: 2014-05-27T13:11:22
B7: DELIVERY DASHBOARD
O15: Red
O17: Amber-Red
O19: Amber-Green
O21: Green
A31: Please select CCG patch
A32: NCEL
A33: NWL
A34: SL

Sheet QUALITY SECTION
E5: =VLOOKUP('COVER PAGE'!$A$3,Lookup!$A:$C,2,FALSE) -> NHS Rotherham CCG
B8: Please note that this Section will be pre-populated through the self-certification carried out by the CCG | G8: 2013-14 | H8: March
C9: PROV1 | D9: PROV2 | E9: PROV3 | F9: PROV4 | G9: PROV5 | H9: PROV6 | I9: PROV7 | J9: PROV8 | K9: PROV9 | L9: PROV10
B10: INDICATOR | C10: =IFERROR(VLOOKUP($G$8&"_"&$H$8&"_"&'COVER PAGE'!$A$4&"_"&C9,CCG_PROV_SELFCERT!$A:$Q,4,FALSE),"No Provider") -> THE ROTHERHAM NHS FOUNDATION TRUST | D10: =IFERROR(VLOOKUP($G$8&"_"&$H$8&"_"&'COVER PAGE'!$A$4&"_"&D9,CCG_PROV_SELFCERT!$A:$Q,4,FALSE),"No Provider") -> ROTHERHAM DONCASTER AND SOUTH HUMBER NHS FOUNDATION TRUST | E10: =IFERROR(VLOOKUP($G$8&"_"&$H$8&"_"&'COVER PAGE'!$A$4&"_"&E9,CCG_PROV_SELFCERT!$A:$Q,4,FALSE),"No Provider") -> No Provider | F10: =IFERROR(VLOOKUP($G$8&"_"&$H$8&"_"&'COVER PAGE'!$A$4&"_"&F9,CCG_PROV_SELFCERT!$A:$Q,4,FALSE),"No Provider") -> No Provider | G10: =IFERROR(VLOOKUP($G$8&"_"&$H$8&"_"&'COVER PAGE'!$A$4&"_"&G9,CCG_PROV_SELFCERT!$A:$Q,4,FALSE),"No Provider") -> No Provider | H10: =IFERROR(VLOOKUP($G$8&"_"&$H$8&"_"&'COVER PAGE'!$A$4&"_"&H9,CCG_PROV_SELFCERT!$A:$Q,4,FALSE),"No Provider") -> No Provider | I10: =IFERROR(VLOOKUP($G$8&"_"&$H$8&"_"&'COVER PAGE'!$A$4&"_"&I9,CCG_PROV_SELFCERT!$A:$Q,4,FALSE),"No Provider") -> No Provider | J10: =IFERROR(VLOOKUP($G$8&"_"&$H$8&"_"&'COVER PAGE'!$A$4&"_"&J9,CCG_PROV_SELFCERT!$A:$Q,4,FALSE),"No Provider") -> No Provider | K10: =IFERROR(VLOOKUP($G$8&"_"&$H$8&"_"&'COVER PAGE'!$A$4&"_"&K9,CCG_PROV_SELFCERT!$A:$Q,4,FALSE),"No Provider") -> No Provider | L10: =IFERROR(VLOOKUP($G$8&"_"&$H$8&"_"&'COVER PAGE'!$A$4&"_"&L9,CCG_PROV_SELFCERT!$A:$Q,4,FALSE),"No Provider") -> No Provider
B11: PROVIDER CODE | C11: =IFERROR(VLOOKUP($G$8&"_"&$H$8&"_"&'COVER PAGE'!$A$4&"_"&C9,CCG_PROV_SELFCERT!$A:$Q,3,FALSE),"No Provider") -> RFR | D11: =IFERROR(VLOOKUP($G$8&"_"&$H$8&"_"&'COVER PAGE'!$A$4&"_"&D9,CCG_PROV_SELFCERT!$A:$Q,3,FALSE),"No Provider") -> RXE | E11: =IFERROR(VLOOKUP($G$8&"_"&$H$8&"_"&'COVER PAGE'!$A$4&"_"&E9,CCG_PROV_SELFCERT!$A:$Q,3,FALSE),"No Provider") -> No Provider | F11: =IFERROR(VLOOKUP($G$8&"_"&$H$8&"_"&'COVER PAGE'!$A$4&"_"&F9,CCG_PROV_SELFCERT!$A:$Q,3,FALSE),"No Provider") -> No Provider | G11: =IFERROR(VLOOKUP($G$8&"_"&$H$8&"_"&'COVER PAGE'!$A$4&"_"&G9,CCG_PROV_SELFCERT!$A:$Q,3,FALSE),"No Provider") -> No Provider | H11: =IFERROR(VLOOKUP($G$8&"_"&$H$8&"_"&'COVER PAGE'!$A$4&"_"&H9,CCG_PROV_SELFCERT!$A:$Q,3,FALSE),"No Provider") -> No Provider | I11: =IFERROR(VLOOKUP($G$8&"_"&$H$8&"_"&'COVER PAGE'!$A$4&"_"&I9,CCG_PROV_SELFCERT!$A:$Q,3,FALSE),"No Provider") -> No Provider | J11: =IFERROR(VLOOKUP($G$8&"_"&$H$8&"_"&'COVER PAGE'!$A$4&"_"&J9,CCG_PROV_SELFCERT!$A:$Q,3,FALSE),"No Provider") -> No Provider | K11: =IFERROR(VLOOKUP($G$8&"_"&$H$8&"_"&'COVER PAGE'!$A$4&"_"&K9,CCG_PROV_SELFCERT!$A:$Q,3,FALSE),"No Provider") -> No Provider | L11: =IFERROR(VLOOKUP($G$8&"_"&$H$8&"_"&'COVER PAGE'!$A$4&"_"&L9,CCG_PROV_SELFCERT!$A:$Q,3,FALSE),"No Provider") -> No Provider
B12: PLEASE IDENTIFY THE PERCENTAGE OF PROVIDER INCOME FOR CCG | C12: =IFERROR(VLOOKUP($G$8&"_"&$H$8&"_"&'COVER PAGE'!$A$4&"_"&C9,CCG_PROV_SELFCERT!$A:$Q,5,FALSE),"No Provider") -> 67 | D12: =IFERROR(VLOOKUP($G$8&"_"&$H$8&"_"&'COVER PAGE'!$A$4&"_"&D9,CCG_PROV_SELFCERT!$A:$Q,5,FALSE),"No Provider") -> 17 | E12: =IFERROR(VLOOKUP($G$8&"_"&$H$8&"_"&'COVER PAGE'!$A$4&"_"&E9,CCG_PROV_SELFCERT!$A:$Q,5,FALSE),"No Provider") -> No Provider | F12: =IFERROR(VLOOKUP($G$8&"_"&$H$8&"_"&'COVER PAGE'!$A$4&"_"&F9,CCG_PROV_SELFCERT!$A:$Q,5,FALSE),"No Provider") -> No Provider | G12: =IFERROR(VLOOKUP($G$8&"_"&$H$8&"_"&'COVER PAGE'!$A$4&"_"&G9,CCG_PROV_SELFCERT!$A:$Q,5,FALSE),"No Provider") -> No Provider | H12: =IFERROR(VLOOKUP($G$8&"_"&$H$8&"_"&'COVER PAGE'!$A$4&"_"&H9,CCG_PROV_SELFCERT!$A:$Q,5,FALSE),"No Provider") -> No Provider | I12: =IFERROR(VLOOKUP($G$8&"_"&$H$8&"_"&'COVER PAGE'!$A$4&"_"&I9,CCG_PROV_SELFCERT!$A:$Q,5,FALSE),"No Provider") -> No Provider | J12: =IFERROR(VLOOKUP($G$8&"_"&$H$8&"_"&'COVER PAGE'!$A$4&"_"&J9,CCG_PROV_SELFCERT!$A:$Q,5,FALSE),"No Provider") -> No Provider | K12: =IFERROR(VLOOKUP($G$8&"_"&$H$8&"_"&'COVER PAGE'!$A$4&"_"&K9,CCG_PROV_SELFCERT!$A:$Q,5,FALSE),"No Provider") -> No Provider | L12: =IFERROR(VLOOKUP($G$8&"_"&$H$8&"_"&'COVER PAGE'!$A$4&"_"&L9,CCG_PROV_SELFCERT!$A:$Q,5,FALSE),"No Provider") -> No Provider
B13: WHAT TYPE OF SERVICE IS COMMISSIONED FROM THIS PROVIDER? | C13: =IFERROR(VLOOKUP($G$8&"_"&$H$8&"_"&'COVER PAGE'!$A$4&"_"&C9,CCG_PROV_SELFCERT!$A:$Q,6,FALSE),"No Provider") -> Acute | D13: =IFERROR(VLOOKUP($G$8&"_"&$H$8&"_"&'COVER PAGE'!$A$4&"_"&D9,CCG_PROV_SELFCERT!$A:$Q,6,FALSE),"No Provider") -> MH | E13: =IFERROR(VLOOKUP($G$8&"_"&$H$8&"_"&'COVER PAGE'!$A$4&"_"&E9,CCG_PROV_SELFCERT!$A:$Q,6,FALSE),"No Provider") -> No Provider | F13: =IFERROR(VLOOKUP($G$8&"_"&$H$8&"_"&'COVER PAGE'!$A$4&"_"&F9,CCG_PROV_SELFCERT!$A:$Q,6,FALSE),"No Provider") -> No Provider | G13: =IFERROR(VLOOKUP($G$8&"_"&$H$8&"_"&'COVER PAGE'!$A$4&"_"&G9,CCG_PROV_SELFCERT!$A:$Q,6,FALSE),"No Provider") -> No Provider | H13: =IFERROR(VLOOKUP($G$8&"_"&$H$8&"_"&'COVER PAGE'!$A$4&"_"&H9,CCG_PROV_SELFCERT!$A:$Q,6,FALSE),"No Provider") -> No Provider | I13: =IFERROR(VLOOKUP($G$8&"_"&$H$8&"_"&'COVER PAGE'!$A$4&"_"&I9,CCG_PROV_SELFCERT!$A:$Q,6,FALSE),"No Provider") -> No Provider | J13: =IFERROR(VLOOKUP($G$8&"_"&$H$8&"_"&'COVER PAGE'!$A$4&"_"&J9,CCG_PROV_SELFCERT!$A:$Q,6,FALSE),"No Provider") -> No Provider | K13: =IFERROR(VLOOKUP($G$8&"_"&$H$8&"_"&'COVER PAGE'!$A$4&"_"&K9,CCG_PROV_SELFCERT!$A:$Q,6,FALSE),"No Provider") -> No Provider | L13: =IFERROR(VLOOKUP($G$8&"_"&$H$8&"_"&'COVER PAGE'!$A$4&"_"&L9,CCG_PROV_SELFCERT!$A:$Q,6,FALSE),"No Provider") -> No Provider
A14: Has local provider been subject to local enforcement action by the CQC? | B14: Has local provider been subject to local enforcement action by the CQC? | C14: =IFERROR(VLOOKUP($G$8&"_"&$H$8&"_"&'COVER PAGE'!$A$4&"_"&C9,CCG_PROV_SELFCERT!$A:$Q,7,FALSE),"No Provider") -> No | D14: =IFERROR(VLOOKUP($G$8&"_"&$H$8&"_"&'COVER PAGE'!$A$4&"_"&D9,CCG_PROV_SELFCERT!$A:$Q,7,FALSE),"No Provider") -> No | E14: =IFERROR(VLOOKUP($G$8&"_"&$H$8&"_"&'COVER PAGE'!$A$4&"_"&E9,CCG_PROV_SELFCERT!$A:$Q,7,FALSE),"No Provider") -> No Provider | F14: =IFERROR(VLOOKUP($G$8&"_"&$H$8&"_"&'COVER PAGE'!$A$4&"_"&F9,CCG_PROV_SELFCERT!$A:$Q,7,FALSE),"No Provider") -> No Provider | G14: =IFERROR(VLOOKUP($G$8&"_"&$H$8&"_"&'COVER PAGE'!$A$4&"_"&G9,CCG_PROV_SELFCERT!$A:$Q,7,FALSE),"No Provider") -> No Provider | H14: =IFERROR(VLOOKUP($G$8&"_"&$H$8&"_"&'COVER PAGE'!$A$4&"_"&H9,CCG_PROV_SELFCERT!$A:$Q,7,FALSE),"No Provider") -> No Provider | I14: =IFERROR(VLOOKUP($G$8&"_"&$H$8&"_"&'COVER PAGE'!$A$4&"_"&I9,CCG_PROV_SELFCERT!$A:$Q,7,FALSE),"No Provider") -> No Provider | J14: =IFERROR(VLOOKUP($G$8&"_"&$H$8&"_"&'COVER PAGE'!$A$4&"_"&J9,CCG_PROV_SELFCERT!$A:$Q,7,FALSE),"No Provider") -> No Provider | K14: =IFERROR(VLOOKUP($G$8&"_"&$H$8&"_"&'COVER PAGE'!$A$4&"_"&K9,CCG_PROV_SELFCERT!$A:$Q,7,FALSE),"No Provider") -> No Provider | L14: =IFERROR(VLOOKUP($G$8&"_"&$H$8&"_"&'COVER PAGE'!$A$4&"_"&L9,CCG_PROV_SELFCERT!$A:$Q,7,FALSE),"No Provider") -> No Provider
A15: Has local provider been flagged as a 'quality compliance risk' by Monitor and/or are requirements in place around breaches of provider licence conditions? | B15: Has local provider been flagged as a 'quality compliance risk' by Monitor and/or are requirements in place around breaches of provider licence conditions? | C15: =IFERROR(VLOOKUP($G$8&"_"&$H$8&"_"&'COVER PAGE'!$A$4&"_"&C9,CCG_PROV_SELFCERT!$A:$Q,8,FALSE),"No Provider") -> Yes - Action plan in place | D15: =IFERROR(VLOOKUP($G$8&"_"&$H$8&"_"&'COVER PAGE'!$A$4&"_"&D9,CCG_PROV_SELFCERT!$A:$Q,8,FALSE),"No Provider") -> No | E15: =IFERROR(VLOOKUP($G$8&"_"&$H$8&"_"&'COVER PAGE'!$A$4&"_"&E9,CCG_PROV_SELFCERT!$A:$Q,8,FALSE),"No Provider") -> No Provider | F15: =IFERROR(VLOOKUP($G$8&"_"&$H$8&"_"&'COVER PAGE'!$A$4&"_"&F9,CCG_PROV_SELFCERT!$A:$Q,8,FALSE),"No Provider") -> No Provider | G15: =IFERROR(VLOOKUP($G$8&"_"&$H$8&"_"&'COVER PAGE'!$A$4&"_"&G9,CCG_PROV_SELFCERT!$A:$Q,8,FALSE),"No Provider") -> No Provider | H15: =IFERROR(VLOOKUP($G$8&"_"&$H$8&"_"&'COVER PAGE'!$A$4&"_"&H9,CCG_PROV_SELFCERT!$A:$Q,8,FALSE),"No Provider") -> No Provider | I15: =IFERROR(VLOOKUP($G$8&"_"&$H$8&"_"&'COVER PAGE'!$A$4&"_"&I9,CCG_PROV_SELFCERT!$A:$Q,8,FALSE),"No Provider") -> No Provider | J15: =IFERROR(VLOOKUP($G$8&"_"&$H$8&"_"&'COVER PAGE'!$A$4&"_"&J9,CCG_PROV_SELFCERT!$A:$Q,8,FALSE),"No Provider") -> No Provider | K15: =IFERROR(VLOOKUP($G$8&"_"&$H$8&"_"&'COVER PAGE'!$A$4&"_"&K9,CCG_PROV_SELFCERT!$A:$Q,8,FALSE),"No Provider") -> No Provider | L15: =IFERROR(VLOOKUP($G$8&"_"&$H$8&"_"&'COVER PAGE'!$A$4&"_"&L9,CCG_PROV_SELFCERT!$A:$Q,8,FALSE),"No Provider") -> No Provider
A16: Has local provider been subject to enforcement action by the NHS TDA based on 'quality' risk? | B16: Has local provider been subject to enforcement action by the NHS TDA based on 'quality' risk? | C16: =IFERROR(VLOOKUP($G$8&"_"&$H$8&"_"&'COVER PAGE'!$A$4&"_"&C9,CCG_PROV_SELFCERT!$A:$Q,9,FALSE),"No Provider") -> No | D16: =IFERROR(VLOOKUP($G$8&"_"&$H$8&"_"&'COVER PAGE'!$A$4&"_"&D9,CCG_PROV_SELFCERT!$A:$Q,9,FALSE),"No Provider") -> No | E16: =IFERROR(VLOOKUP($G$8&"_"&$H$8&"_"&'COVER PAGE'!$A$4&"_"&E9,CCG_PROV_SELFCERT!$A:$Q,9,FALSE),"No Provider") -> No Provider | F16: =IFERROR(VLOOKUP($G$8&"_"&$H$8&"_"&'COVER PAGE'!$A$4&"_"&F9,CCG_PROV_SELFCERT!$A:$Q,9,FALSE),"No Provider") -> No Provider | G16: =IFERROR(VLOOKUP($G$8&"_"&$H$8&"_"&'COVER PAGE'!$A$4&"_"&G9,CCG_PROV_SELFCERT!$A:$Q,9,FALSE),"No Provider") -> No Provider | H16: =IFERROR(VLOOKUP($G$8&"_"&$H$8&"_"&'COVER PAGE'!$A$4&"_"&H9,CCG_PROV_SELFCERT!$A:$Q,9,FALSE),"No Provider") -> No Provider | I16: =IFERROR(VLOOKUP($G$8&"_"&$H$8&"_"&'COVER PAGE'!$A$4&"_"&I9,CCG_PROV_SELFCERT!$A:$Q,9,FALSE),"No Provider") -> No Provider | J16: =IFERROR(VLOOKUP($G$8&"_"&$H$8&"_"&'COVER PAGE'!$A$4&"_"&J9,CCG_PROV_SELFCERT!$A:$Q,9,FALSE),"No Provider") -> No Provider | K16: =IFERROR(VLOOKUP($G$8&"_"&$H$8&"_"&'COVER PAGE'!$A$4&"_"&K9,CCG_PROV_SELFCERT!$A:$Q,9,FALSE),"No Provider") -> No Provider | L16: =IFERROR(VLOOKUP($G$8&"_"&$H$8&"_"&'COVER PAGE'!$A$4&"_"&L9,CCG_PROV_SELFCERT!$A:$Q,9,FALSE),"No Provider") -> No Provider
A17: Does feedback from the Friends and Family test (or any other patient feedback) indicate any causes for concern? | B17: Does feedback from the Friends and Family test (or any other patient feedback) indicate any causes for concern? | C17: =IFERROR(VLOOKUP($G$8&"_"&$H$8&"_"&'COVER PAGE'!$A$4&"_"&C9,CCG_PROV_SELFCERT!$A:$Q,10,FALSE),"No Provider") -> No | D17: =IFERROR(VLOOKUP($G$8&"_"&$H$8&"_"&'COVER PAGE'!$A$4&"_"&D9,CCG_PROV_SELFCERT!$A:$Q,10,FALSE),"No Provider") -> No | E17: =IFERROR(VLOOKUP($G$8&"_"&$H$8&"_"&'COVER PAGE'!$A$4&"_"&E9,CCG_PROV_SELFCERT!$A:$Q,10,FALSE),"No Provider") -> No Provider | F17: =IFERROR(VLOOKUP($G$8&"_"&$H$8&"_"&'COVER PAGE'!$A$4&"_"&F9,CCG_PROV_SELFCERT!$A:$Q,10,FALSE),"No Provider") -> No Provider | G17: =IFERROR(VLOOKUP($G$8&"_"&$H$8&"_"&'COVER PAGE'!$A$4&"_"&G9,CCG_PROV_SELFCERT!$A:$Q,10,FALSE),"No Provider") -> No Provider | H17: =IFERROR(VLOOKUP($G$8&"_"&$H$8&"_"&'COVER PAGE'!$A$4&"_"&H9,CCG_PROV_SELFCERT!$A:$Q,10,FALSE),"No Provider") -> No Provider | I17: =IFERROR(VLOOKUP($G$8&"_"&$H$8&"_"&'COVER PAGE'!$A$4&"_"&I9,CCG_PROV_SELFCERT!$A:$Q,10,FALSE),"No Provider") -> No Provider | J17: =IFERROR(VLOOKUP($G$8&"_"&$H$8&"_"&'COVER PAGE'!$A$4&"_"&J9,CCG_PROV_SELFCERT!$A:$Q,10,FALSE),"No Provider") -> No Provider | K17: =IFERROR(VLOOKUP($G$8&"_"&$H$8&"_"&'COVER PAGE'!$A$4&"_"&K9,CCG_PROV_SELFCERT!$A:$Q,10,FALSE),"No Provider") -> No Provider | L17: =IFERROR(VLOOKUP($G$8&"_"&$H$8&"_"&'COVER PAGE'!$A$4&"_"&L9,CCG_PROV_SELFCERT!$A:$Q,10,FALSE),"No Provider") -> No Provider
A18: Has the provider been identified as a 'negative outlier' on SMHI or HSMR? | B18: Has the provider been identified as a 'negative outlier' on SMHI or HSMR? | C18: =IFERROR(VLOOKUP($G$8&"_"&$H$8&"_"&'COVER PAGE'!$A$4&"_"&C9,CCG_PROV_SELFCERT!$A:$Q,11,FALSE),"No Provider") -> No | D18: =IFERROR(VLOOKUP($G$8&"_"&$H$8&"_"&'COVER PAGE'!$A$4&"_"&D9,CCG_PROV_SELFCERT!$A:$Q,11,FALSE),"No Provider") -> No | E18: =IFERROR(VLOOKUP($G$8&"_"&$H$8&"_"&'COVER PAGE'!$A$4&"_"&E9,CCG_PROV_SELFCERT!$A:$Q,11,FALSE),"No Provider") -> No Provider | F18: =IFERROR(VLOOKUP($G$8&"_"&$H$8&"_"&'COVER PAGE'!$A$4&"_"&F9,CCG_PROV_SELFCERT!$A:$Q,11,FALSE),"No Provider") -> No Provider | G18: =IFERROR(VLOOKUP($G$8&"_"&$H$8&"_"&'COVER PAGE'!$A$4&"_"&G9,CCG_PROV_SELFCERT!$A:$Q,11,FALSE),"No Provider") -> No Provider | H18: =IFERROR(VLOOKUP($G$8&"_"&$H$8&"_"&'COVER PAGE'!$A$4&"_"&H9,CCG_PROV_SELFCERT!$A:$Q,11,FALSE),"No Provider") -> No Provider | I18: =IFERROR(VLOOKUP($G$8&"_"&$H$8&"_"&'COVER PAGE'!$A$4&"_"&I9,CCG_PROV_SELFCERT!$A:$Q,11,FALSE),"No Provider") -> No Provider | J18: =IFERROR(VLOOKUP($G$8&"_"&$H$8&"_"&'COVER PAGE'!$A$4&"_"&J9,CCG_PROV_SELFCERT!$A:$Q,11,FALSE),"No Provider") -> No Provider | K18: =IFERROR(VLOOKUP($G$8&"_"&$H$8&"_"&'COVER PAGE'!$A$4&"_"&K9,CCG_PROV_SELFCERT!$A:$Q,11,FALSE),"No Provider") -> No Provider | L18: =IFERROR(VLOOKUP($G$8&"_"&$H$8&"_"&'COVER PAGE'!$A$4&"_"&L9,CCG_PROV_SELFCERT!$A:$Q,11,FALSE),"No Provider") -> No Provider
A19: Do provider level indicators from the National Quality Dashboard show that MRSA cases are above zero? | B19: Do provider level indicators from the National Quality Dashboard show that MRSA cases are above zero? | C19: =IFERROR(VLOOKUP($G$8&"_"&$H$8&"_"&'COVER PAGE'!$A$4&"_"&C9,CCG_PROV_SELFCERT!$A:$Q,12,FALSE),"No Provider") -> No | D19: =IFERROR(VLOOKUP($G$8&"_"&$H$8&"_"&'COVER PAGE'!$A$4&"_"&D9,CCG_PROV_SELFCERT!$A:$Q,12,FALSE),"No Provider") -> No | E19: =IFERROR(VLOOKUP($G$8&"_"&$H$8&"_"&'COVER PAGE'!$A$4&"_"&E9,CCG_PROV_SELFCERT!$A:$Q,12,FALSE),"No Provider") -> No Provider | F19: =IFERROR(VLOOKUP($G$8&"_"&$H$8&"_"&'COVER PAGE'!$A$4&"_"&F9,CCG_PROV_SELFCERT!$A:$Q,12,FALSE),"No Provider") -> No Provider | G19: =IFERROR(VLOOKUP($G$8&"_"&$H$8&"_"&'COVER PAGE'!$A$4&"_"&G9,CCG_PROV_SELFCERT!$A:$Q,12,FALSE),"No Provider") -> No Provider | H19: =IFERROR(VLOOKUP($G$8&"_"&$H$8&"_"&'COVER PAGE'!$A$4&"_"&H9,CCG_PROV_SELFCERT!$A:$Q,12,FALSE),"No Provider") -> No Provider | I19: =IFERROR(VLOOKUP($G$8&"_"&$H$8&"_"&'COVER PAGE'!$A$4&"_"&I9,CCG_PROV_SELFCERT!$A:$Q,12,FALSE),"No Provider") -> No Provider | J19: =IFERROR(VLOOKUP($G$8&"_"&$H$8&"_"&'COVER PAGE'!$A$4&"_"&J9,CCG_PROV_SELFCERT!$A:$Q,12,FALSE),"No Provider") -> No Provider | K19: =IFERROR(VLOOKUP($G$8&"_"&$H$8&"_"&'COVER PAGE'!$A$4&"_"&K9,CCG_PROV_SELFCERT!$A:$Q,12,FALSE),"No Provider") -> No Provider | L19: =IFERROR(VLOOKUP($G$8&"_"&$H$8&"_"&'COVER PAGE'!$A$4&"_"&L9,CCG_PROV_SELFCERT!$A:$Q,12,FALSE),"No Provider") -> No Provider
A20: Do provider level indicators from the National Quality Dashboard show that the provider has reported more C difficile cases than trajectory? | B20: Do provider level indicators from the National Quality Dashboard show that the provider has reported more C difficile cases than trajectory? | C20: =IFERROR(VLOOKUP($G$8&"_"&$H$8&"_"&'COVER PAGE'!$A$4&"_"&C9,CCG_PROV_SELFCERT!$A:$Q,13,FALSE),"No Provider") -> Yes - Action plan in place | D20: =IFERROR(VLOOKUP($G$8&"_"&$H$8&"_"&'COVER PAGE'!$A$4&"_"&D9,CCG_PROV_SELFCERT!$A:$Q,13,FALSE),"No Provider") -> No | E20: =IFERROR(VLOOKUP($G$8&"_"&$H$8&"_"&'COVER PAGE'!$A$4&"_"&E9,CCG_PROV_SELFCERT!$A:$Q,13,FALSE),"No Provider") -> No Provider | F20: =IFERROR(VLOOKUP($G$8&"_"&$H$8&"_"&'COVER PAGE'!$A$4&"_"&F9,CCG_PROV_SELFCERT!$A:$Q,13,FALSE),"No Provider") -> No Provider | G20: =IFERROR(VLOOKUP($G$8&"_"&$H$8&"_"&'COVER PAGE'!$A$4&"_"&G9,CCG_PROV_SELFCERT!$A:$Q,13,FALSE),"No Provider") -> No Provider | H20: =IFERROR(VLOOKUP($G$8&"_"&$H$8&"_"&'COVER PAGE'!$A$4&"_"&H9,CCG_PROV_SELFCERT!$A:$Q,13,FALSE),"No Provider") -> No Provider | I20: =IFERROR(VLOOKUP($G$8&"_"&$H$8&"_"&'COVER PAGE'!$A$4&"_"&I9,CCG_PROV_SELFCERT!$A:$Q,13,FALSE),"No Provider") -> No Provider | J20: =IFERROR(VLOOKUP($G$8&"_"&$H$8&"_"&'COVER PAGE'!$A$4&"_"&J9,CCG_PROV_SELFCERT!$A:$Q,13,FALSE),"No Provider") -> No Provider | K20: =IFERROR(VLOOKUP($G$8&"_"&$H$8&"_"&'COVER PAGE'!$A$4&"_"&K9,CCG_PROV_SELFCERT!$A:$Q,13,FALSE),"No Provider") -> No Provider | L20: =IFERROR(VLOOKUP($G$8&"_"&$H$8&"_"&'COVER PAGE'!$A$4&"_"&L9,CCG_PROV_SELFCERT!$A:$Q,13,FALSE),"No Provider") -> No Provider
A21: Do provider level indicators from the National Quality Dashboard show that MSA breaches are above zero? | B21: Do provider level indicators from the National Quality Dashboard show that MSA breaches are above zero? | C21: =IFERROR(VLOOKUP($G$8&"_"&$H$8&"_"&'COVER PAGE'!$A$4&"_"&C9,CCG_PROV_SELFCERT!$A:$Q,14,FALSE),"No Provider") -> No | D21: =IFERROR(VLOOKUP($G$8&"_"&$H$8&"_"&'COVER PAGE'!$A$4&"_"&D9,CCG_PROV_SELFCERT!$A:$Q,14,FALSE),"No Provider") -> No | E21: =IFERROR(VLOOKUP($G$8&"_"&$H$8&"_"&'COVER PAGE'!$A$4&"_"&E9,CCG_PROV_SELFCERT!$A:$Q,14,FALSE),"No Provider") -> No Provider | F21: =IFERROR(VLOOKUP($G$8&"_"&$H$8&"_"&'COVER PAGE'!$A$4&"_"&F9,CCG_PROV_SELFCERT!$A:$Q,14,FALSE),"No Provider") -> No Provider | G21: =IFERROR(VLOOKUP($G$8&"_"&$H$8&"_"&'COVER PAGE'!$A$4&"_"&G9,CCG_PROV_SELFCERT!$A:$Q,14,FALSE),"No Provider") -> No Provider | H21: =IFERROR(VLOOKUP($G$8&"_"&$H$8&"_"&'COVER PAGE'!$A$4&"_"&H9,CCG_PROV_SELFCERT!$A:$Q,14,FALSE),"No Provider") -> No Provider | I21: =IFERROR(VLOOKUP($G$8&"_"&$H$8&"_"&'COVER PAGE'!$A$4&"_"&I9,CCG_PROV_SELFCERT!$A:$Q,14,FALSE),"No Provider") -> No Provider | J21: =IFERROR(VLOOKUP($G$8&"_"&$H$8&"_"&'COVER PAGE'!$A$4&"_"&J9,CCG_PROV_SELFCERT!$A:$Q,14,FALSE),"No Provider") -> No Provider | K21: =IFERROR(VLOOKUP($G$8&"_"&$H$8&"_"&'COVER PAGE'!$A$4&"_"&K9,CCG_PROV_SELFCERT!$A:$Q,14,FALSE),"No Provider") -> No Provider | L21: =IFERROR(VLOOKUP($G$8&"_"&$H$8&"_"&'COVER PAGE'!$A$4&"_"&L9,CCG_PROV_SELFCERT!$A:$Q,14,FALSE),"No Provider") -> No Provider
A22: Does provider currently have any unclosed Serious Untoward Incidents (SUIs)? | B22: Does provider currently have any unclosed Serious Incidents (SIs)? | C22: =IFERROR(VLOOKUP($G$8&"_"&$H$8&"_"&'COVER PAGE'!$A$4&"_"&C9,CCG_PROV_SELFCERT!$A:$Q,15,FALSE),"No Provider") -> Yes - Action plan in place | D22: =IFERROR(VLOOKUP($G$8&"_"&$H$8&"_"&'COVER PAGE'!$A$4&"_"&D9,CCG_PROV_SELFCERT!$A:$Q,15,FALSE),"No Provider") -> Yes - Action plan in place | E22: =IFERROR(VLOOKUP($G$8&"_"&$H$8&"_"&'COVER PAGE'!$A$4&"_"&E9,CCG_PROV_SELFCERT!$A:$Q,15,FALSE),"No Provider") -> No Provider | F22: =IFERROR(VLOOKUP($G$8&"_"&$H$8&"_"&'COVER PAGE'!$A$4&"_"&F9,CCG_PROV_SELFCERT!$A:$Q,15,FALSE),"No Provider") -> No Provider | G22: =IFERROR(VLOOKUP($G$8&"_"&$H$8&"_"&'COVER PAGE'!$A$4&"_"&G9,CCG_PROV_SELFCERT!$A:$Q,15,FALSE),"No Provider") -> No Provider | H22: =IFERROR(VLOOKUP($G$8&"_"&$H$8&"_"&'COVER PAGE'!$A$4&"_"&H9,CCG_PROV_SELFCERT!$A:$Q,15,FALSE),"No Provider") -> No Provider | I22: =IFERROR(VLOOKUP($G$8&"_"&$H$8&"_"&'COVER PAGE'!$A$4&"_"&I9,CCG_PROV_SELFCERT!$A:$Q,15,FALSE),"No Provider") -> No Provider | J22: =IFERROR(VLOOKUP($G$8&"_"&$H$8&"_"&'COVER PAGE'!$A$4&"_"&J9,CCG_PROV_SELFCERT!$A:$Q,15,FALSE),"No Provider") -> No Provider | K22: =IFERROR(VLOOKUP($G$8&"_"&$H$8&"_"&'COVER PAGE'!$A$4&"_"&K9,CCG_PROV_SELFCERT!$A:$Q,15,FALSE),"No Provider") -> No Provider | L22: =IFERROR(VLOOKUP($G$8&"_"&$H$8&"_"&'COVER PAGE'!$A$4&"_"&L9,CCG_PROV_SELFCERT!$A:$Q,15,FALSE),"No Provider") -> No Provider
A23: Has the provider experienced any 'Never Events' during the last quarter? | B23: Has the provider experienced any 'Never Events' during the last quarter? | C23: =IFERROR(VLOOKUP($G$8&"_"&$H$8&"_"&'COVER PAGE'!$A$4&"_"&C9,CCG_PROV_SELFCERT!$A:$Q,16,FALSE),"No Provider") -> No | D23: =IFERROR(VLOOKUP($G$8&"_"&$H$8&"_"&'COVER PAGE'!$A$4&"_"&D9,CCG_PROV_SELFCERT!$A:$Q,16,FALSE),"No Provider") -> No | E23: =IFERROR(VLOOKUP($G$8&"_"&$H$8&"_"&'COVER PAGE'!$A$4&"_"&E9,CCG_PROV_SELFCERT!$A:$Q,16,FALSE),"No Provider") -> No Provider | F23: =IFERROR(VLOOKUP($G$8&"_"&$H$8&"_"&'COVER PAGE'!$A$4&"_"&F9,CCG_PROV_SELFCERT!$A:$Q,16,FALSE),"No Provider") -> No Provider | G23: =IFERROR(VLOOKUP($G$8&"_"&$H$8&"_"&'COVER PAGE'!$A$4&"_"&G9,CCG_PROV_SELFCERT!$A:$Q,16,FALSE),"No Provider") -> No Provider | H23: =IFERROR(VLOOKUP($G$8&"_"&$H$8&"_"&'COVER PAGE'!$A$4&"_"&H9,CCG_PROV_SELFCERT!$A:$Q,16,FALSE),"No Provider") -> No Provider | I23: =IFERROR(VLOOKUP($G$8&"_"&$H$8&"_"&'COVER PAGE'!$A$4&"_"&I9,CCG_PROV_SELFCERT!$A:$Q,16,FALSE),"No Provider") -> No Provider | J23: =IFERROR(VLOOKUP($G$8&"_"&$H$8&"_"&'COVER PAGE'!$A$4&"_"&J9,CCG_PROV_SELFCERT!$A:$Q,16,FALSE),"No Provider") -> No Provider | K23: =IFERROR(VLOOKUP($G$8&"_"&$H$8&"_"&'COVER PAGE'!$A$4&"_"&K9,CCG_PROV_SELFCERT!$A:$Q,16,FALSE),"No Provider") -> No Provider | L23: =IFERROR(VLOOKUP($G$8&"_"&$H$8&"_"&'COVER PAGE'!$A$4&"_"&L9,CCG_PROV_SELFCERT!$A:$Q,16,FALSE),"No Provider") -> No Provider
A28: 13
A29: Does the CCG have any outstanding conditions of authorisation in place on clinical governance?
A31: Has the CCG self assessed and identified any risks associated with concerns around quality issues discussed regularly by the CCG governing body?
A32: Has the CCG self assessed and identified any risks associated with concerns around the arrangements in place to proactively identify early warnings of a failing service?
A33: Has the CCG self assessed and identified any risks associated with concerns around the arrangements in place to deal with and learn from serious untoward incidents and never events?
A34: 19
A35: If there was an emergency event in the last quarter, has the CCG self assessed and identified any areas of concern on the arrangements in place for dealing with such an event?
A36: 21
A37: Has the CCG self assessed and identified any risk to progress against its Winterbourne View action plan?
B46: rr
F62: TOTAL
B63: Yes – Action plan in place | C63: Yes – No action plan in place | D63: Yes – Enforcement Action | E63: No
B64: =SUMPRODUCT(--ISNUMBER(SEARCH($B$63,C14:L21)))+SUMPRODUCT(--ISNUMBER(SEARCH($B$63,C23:L37))) -> 0 | C64: =SUMPRODUCT(--ISNUMBER(SEARCH($C$63,C14:L21)))+SUMPRODUCT(--ISNUMBER(SEARCH($C$63,C23:L37))) -> 0 | D64: =SUMPRODUCT(--ISNUMBER(SEARCH($D$63,C14:L14))) -> 0 | E64: =COUNTIF(C14:L21,"No")+COUNTIF(C23:L37,"No") -> 16 | F64: =SUM(B64:E64) -> 16
B65: =IF(B64>=1, "AMBER GREEN", "") ->  | C65: =IF(C64>=1, "AMBER RED", "") ->  | D65: =IF(D64>=1, "RED", "") ->  | E65: =IF(E64>=0, "GREEN", "") -> GREEN
B67: TOTAL | C67: =IF($D$64>=1, "RED", IF($C$64>=1, "AMBER-RED", IF($B$64>=1, "AMBER GREEN", IF($E$64>=0, "GREEN")))) -> GREEN | D67: =SUM(B64+C64+D64) -> 0
A69: Provider 1 | B69: =SUMPRODUCT(--ISNUMBER(SEARCH($B$63,C14:C23))) -> 0 | C69: =SUMPRODUCT(--ISNUMBER(SEARCH($C$63,$C$14:$C$23))) -> 0 | D69: =SUMPRODUCT(--ISNUMBER(SEARCH($D$63,$C$14:$C$23))) -> 0 | E69: =COUNTIF($C$14:$C$23,"No") -> 7
A70: Provider 2 | B70: =SUMPRODUCT(--ISNUMBER(SEARCH($B$63,$D$14:$D$26))) -> 0 | C70: =SUMPRODUCT(--ISNUMBER(SEARCH($C$63,$D$14:$D$26))) -> 0 | D70: =SUMPRODUCT(--ISNUMBER(SEARCH($D$63,$D$14:$D$26))) -> 0 | E70: =COUNTIF($D$14:$D$26,"No") -> 9
A71: Provider 3 | B71: =SUMPRODUCT(--ISNUMBER(SEARCH($B$63,$E$14:$E$26))) -> 0 | C71: =SUMPRODUCT(--ISNUMBER(SEARCH($C$63,$E$14:$E$26))) -> 0 | D71: =SUMPRODUCT(--ISNUMBER(SEARCH($D$63,$E$14:$E$26))) -> 0 | E71: =COUNTIF($E$14:$E$26,"No") -> 0
A72: Provider 4 | B72: =SUMPRODUCT(--ISNUMBER(SEARCH($B$63,$F$14:$F$26))) -> 0 | C72: =SUMPRODUCT(--ISNUMBER(SEARCH($C$63,$F$14:$F$26))) -> 0 | D72: =SUMPRODUCT(--ISNUMBER(SEARCH($D$63,$F$14:$F$26))) -> 0 | E72: =COUNTIF($F$14:$F$26,"No") -> 0
A73: Provider 5 | B73: =SUMPRODUCT(--ISNUMBER(SEARCH($B$63,$G$14:$G$26))) -> 0 | C73: =SUMPRODUCT(--ISNUMBER(SEARCH($C$63,$G$14:$G$26))) -> 0 | D73: =SUMPRODUCT(--ISNUMBER(SEARCH($D$63,$G$14:$G$26))) -> 0 | E73: =COUNTIF($G$14:$G$26,"No") -> 0
A74: Provider 6 | B74: =SUMPRODUCT(--ISNUMBER(SEARCH($B$63,$H$14:$H$26))) -> 0 | C74: =SUMPRODUCT(--ISNUMBER(SEARCH($C$63,$H$14:$H$26))) -> 0 | D74: =SUMPRODUCT(--ISNUMBER(SEARCH($D$63,$H$14:$H$26))) -> 0 | E74: =COUNTIF($H$14:$H$26,"No") -> 0
A75: Provider 7 | B75: =SUMPRODUCT(--ISNUMBER(SEARCH($B$63,$I$14:$I$26))) -> 0 | C75: =SUMPRODUCT(--ISNUMBER(SEARCH($C$63,$I$14:$I$26))) -> 0 | D75: =SUMPRODUCT(--ISNUMBER(SEARCH($D$63,$I$14:$I$26))) -> 0 | E75: =COUNTIF($I$14:$I$26,"No") -> 0
A76: Provider 8 | B76: =SUMPRODUCT(--ISNUMBER(SEARCH($B$63,$J$14:$J$26))) -> 0 | C76: =SUMPRODUCT(--ISNUMBER(SEARCH($C$63,$J$14:$J$26))) -> 0 | D76: =SUMPRODUCT(--ISNUMBER(SEARCH($D$63,$J$14:$J$26))) -> 0 | E76: =COUNTIF($J$14:$J$26,"No") -> 0
A77: Provider 9 | B77: =SUMPRODUCT(--ISNUMBER(SEARCH($B$63,$K$14:$K$26))) -> 0 | C77: =SUMPRODUCT(--ISNUMBER(SEARCH($C$63,$K$14:$K$26))) -> 0 | D77: =SUMPRODUCT(--ISNUMBER(SEARCH($D$63,$K$14:$K$26))) -> 0 | E77: =COUNTIF($K$14:$K$26,"No") -> 0
A78: Provider 10 | B78: =SUMPRODUCT(--ISNUMBER(SEARCH($B$63,$L$14:$L$26))) -> 0 | C78: =SUMPRODUCT(--ISNUMBER(SEARCH($C$63,$L$14:$L$26))) -> 0 | D78: =SUMPRODUCT(--ISNUMBER(SEARCH($D$63,$L$14:$L$26))) -> 0 | E78: =COUNTIF($L$14:$L$26,"No") -> 0
A79: CCG | B79: =SUMPRODUCT(--ISNUMBER(SEARCH($B$63,$C$29:$C$37))) -> 0 | C79: =SUMPRODUCT(--ISNUMBER(SEARCH($C$63,$C$29:$C$37))) -> 0 | D79: =SUMPRODUCT(--ISNUMBER(SEARCH($D$63,$C$29:$C$37))) -> 0 | E79: =COUNTIF($C$29:$C$37,"No") -> 0
A80: TOTAL | B80: =SUM(B69:B79) -> 0 | C80: =SUM(C69:C79) -> 0 | D80: =SUM(D69:D79) -> 0 | E80: =SUM(E69:E79) -> 16
B81: =IF(B80>=1, "AMBER GREEN", "") ->  | C81: =IF(C80>=1, "AMBER RED", "") ->  | D81: =IF(D80>=1, "RED", "") ->  | E81: =IF(E80>=0, "GREEN", "") -> GREEN
C82: =IF($D$80>=1, "RED", IF($C$80>=1, "AMBER-RED", IF($B$80>=1, "AMBER GREEN", IF($E$80>=0, "GREEN")))) -> GREEN

Sheet NHS CONSTITUTION SECTION
C4: FALSE | D4: =VLOOKUP('COVER PAGE'!$A$3,Lookup!$A:$C,2,FALSE) -> NHS Rotherham CCG | F4: =VLOOKUP('COVER PAGE'!$A$3,Lookup!$A:$H,7,FALSE) -> Yrkshr Amblnce | G4: =VLOOKUP('COVER PAGE'!$A$3,Lookup!$A:$H,8,FALSE) -> YORKSHIRE AMBULANCE SERVICE NHS TRUST
A5: 2013-14 | D5: 13-14 Q1 | E5: 13-14 Q2 | F5: 13-14 Q3 | G5: 13-14 Q4 | I5: September | R5: =IF(AND(R8="AMBER",S8="AMBER",T8="AMBER"),"RED",IF(AND(R8="AMBER",S8="AMBER",T8="RED"),"RED",IF(AND(R8="AMBER",S8="RED",T8="AMBER"),"RED",IF(AND(R8="AMBER",S8="RED",T8="RED"),"RED",IF(AND(R8="RED",S8="AMBER",T8="AMBER"),"RED",IF(AND(R8="RED",S8="AMBER",T8="RED"),"RED",IF(AND(R8="RED",S8="RED",T8="AMBER"),"RED",IF(F8>=B8,"GREEN",IF(F8=0%,"NA",IF(AND(F8<B8,F8>=C8),"AMBER",IF(F8<C8,"RED"))))))))))) -> GREEN | T5: =IF(AND(R8="AMBER",S8="AMBER",T8="AMBER",U8="AMBER"),"RED",IF(AND(R8="AMBER",S8="AMBER",T8="AMBER",U8="RED"),"RED",IF(AND(R8="AMBER",S8="AMBER",T8="RED",U8="AMBER"),"RED",IF(AND(R8="AMBER",S8="AMBER",T8="RED",U8="RED"),"RED",IF(AND(R8="AMBER",S8="RED",T8="AMBER",U8="AMBER"),"RED",IF(AND(R8="AMBER",S8="RED",T8="AMBER",U8="RED"),"RED",IF(AND(R8="AMBER",S8="RED",T8="RED",U8="AMBER"),"RED",IF(AND(R8="AMBER",S8="RED",T8="RED",U8="RED"),"RED",IF(AND(R8="RED",S8="AMBER",T8="AMBER",U8="AMBER"),"RED",IF(AND(R8="RED",S8="AMBER",T8="AMBER",U8="RED"),"RED",IF(AND(R8="RED",S8="AMBER",T8="RED",U8="AMBER"),"RED",IF(AND(R8="RED",S8="AMBER",T8="RED",U8="RED"),"RED",IF(AND(R8="RED",S8="RED",T8="AMBER",U8="AMBER"),"RED",IF(AND(R8="RED",S8="RED",T8="AMBER",U8="RED"),"RED",IF(AND(R8="RED",S8="RED",T8="RED",U8="AMBER"),"RED",IF(AND(R8="RED",S8="RED",T8="RED",U8="RED"),"RED",IF(F8>=B8,"GREEN",IF(F8=0%,"NA",IF(AND(F8<B8,F8>=C8),"AMBER",IF(F8<C8,"RED")))))))))))))))))))) -> GREEN
A6: INDICATOR | B6: OPERATIONAL STANDARD | C6: LOWER THRESHOLD | D6: QUARTER 1 PERFORMANCE | E6: QUARTER 2 PERFORMANCE | F6: QUARTER 3 PERFORMANCE | G6: QUARTER 4 PERFORMANCE | H6: YTD Performance | I6: Jun-13 | J6: Sep-13 | K6: Dec-13 | L6: Mar-14 | R6: Q1 | S6: Q2 | T6: Q3 | U6: Q4 | V6: Q3 RAG CRITERIA AMBER IN 2 &3 = RED | W6: Q4 RAG CRITERIA AMBER IN 3 &4 = RED | X6: YTD | Z6: Q3RAG | AA6: Q4 RAG
A7: Referral to Treatment waiting times for non urgent consultant led treatment | I7: 2013-14 Q1 | J7: 2013-14 Q2 | K7: 2013-14 Q3 | L7: 2013-14 Q4
A8: Admitted patients to start treatment within a maximum of 18 weeks from referral | B8: 0.9 | C8: 0.85 | D8: =CUBEVALUE("PROD_CUBE","[Commissioners].[Org Name].[All].["&D4&"]","[Date].[Fiscal Q Hierarchy].[All].["&$A5&"].["&$D5&"]","[Measures].[RTT % Within 18 Weeks]","[RTT Pathway Type].[RTT Pathways].[All].[Admitted].[Adjusted Admitted]",CUBESET("PROD_CUBE","[Dim Data Status].[Data Status Hierarchy].[All].[PUBLIC]","Public data only")) -> 0.9471432167 | E8: =CUBEVALUE("PROD_CUBE","[Commissioners].[Org Name].[All].["&D4&"]","[Date].[Fiscal Q Hierarchy].[All].["&$A5&"].["&$E5&"]","[Measures].[RTT % Within 18 Weeks]","[RTT Pathway Type].[RTT Pathways].[All].[Admitted].[Adjusted Admitted]",CUBESET("PROD_CUBE","[Dim Data Status].[Data Status Hierarchy].[All].[PUBLIC]","Public data only")) -> 0.9519349273 | F8: =CUBEVALUE("PROD_CUBE","[Commissioners].[Org Name].[All].["&D4&"]","[Date].[Fiscal Q Hierarchy].[All].["&$A5&"].["&$F5&"]","[Measures].[RTT % Within 18 Weeks]","[RTT Pathway Type].[RTT Pathways].[All].[Admitted].[Adjusted Admitted]",CUBESET("PROD_CUBE","[Dim Data Status].[Data Status Hierarchy].[All].[PUBLIC]","Public data only")) -> 0.9550058893 | G8: =CUBEVALUE("PROD_CUBE","[Commissioners].[Org Name].[All].["&D4&"]","[Date].[Fiscal Q Hierarchy].[All].["&$A5&"].["&$G5&"]","[Measures].[RTT % Within 18 Weeks]","[RTT Pathway Type].[RTT Pathways].[All].[Admitted].[Adjusted Admitted]",CUBESET("PROD_CUBE","[Dim Data Status].[Data Status Hierarchy].[All].[PUBLIC]","Public data only")) -> 0.9479452055 | I8: =VLOOKUP('COVER PAGE'!$A$3,Lookup!$A:$F,6,FALSE) -> S Yorkshire & Bassetlaw | J8: =VLOOKUP('COVER PAGE'!$A$3,Lookup!$A:$F,3,FALSE) -> 03L | K8: =VLOOKUP('COVER PAGE'!$A$3,Lookup!$A:$F,4,FALSE) -> NORTH | R8: =IF(D8>=B8,"GREEN",IF(D8=0%,"NA",IF(AND(D8<B8,D8>=C8),"AMBER",IF(D8<C8,"RED")))) -> GREEN | S8: =IF(E8>=B8,"GREEN",IF(E8=0%,"NA",IF(AND(E8<B8,E8>=C8),"AMBER",IF(E8<C8,"RED")))) -> GREEN | T8: =IF(F8>=B8,"GREEN",IF(F8="","NA",IF(AND(F8<B8,F8>=C8),"AMBER",IF(F8<C8,"RED")))) -> GREEN | U8: =IF(G8="","NA",IF(G8>=B8,"GREEN",IF(AND(G8<B8,G8>=C8),"AMBER",IF(G8<C8,"RED")))) -> GREEN | V8: =IF(AND(R8="AMBER",S8="AMBER",T8="AMBER"),"RED",IF(AND(R8="AMBER",S8="AMBER",T8="RED"),"RED",IF(AND(R8="AMBER",S8="RED",T8="AMBER"),"RED",IF(AND(R8="AMBER",S8="RED",T8="RED"),"RED",IF(AND(R8="RED",S8="AMBER",T8="AMBER"),"RED",IF(AND(R8="RED",S8="AMBER",T8="RED"),"RED",IF(AND(R8="RED",S8="RED",T8="AMBER"),"RED",IF(F8>=B8,"GREEN",IF(F8="","NA",IF(AND(F8<B8,F8>=C8),"AMBER",IF(F8<C8,"RED"))))))))))) -> GREEN | W8: =IF(G8="","NA",IF(AND(R8="AMBER",S8="AMBER",T8="AMBER",U8="AMBER"),"RED",IF(AND(R8="AMBER",S8="AMBER",T8="AMBER",U8="RED"),"RED",IF(AND(R8="AMBER",S8="AMBER",T8="RED",U8="AMBER"),"RED",IF(AND(R8="AMBER",S8="AMBER",T8="RED",U8="RED"),"RED",IF(AND(R8="AMBER",S8="RED",T8="AMBER",U8="AMBER"),"RED",IF(AND(R8="AMBER",S8="RED",T8="AMBER",U8="RED"),"RED",IF(AND(R8="AMBER",S8="RED",T8="RED",U8="AMBER"),"RED",IF(AND(R8="AMBER",S8="RED",T8="RED",U8="RED"),"RED",IF(AND(R8="RED",S8="AMBER",T8="AMBER",U8="AMBER"),"RED",IF(AND(R8="RED",S8="AMBER",T8="AMBER",U8="RED"),"RED",IF(AND(R8="RED",S8="AMBER",T8="RED",U8="AMBER"),"RED",IF(AND(R8="RED",S8="AMBER",T8="RED",U8="RED"),"RED",IF(AND(R8="RED",S8="RED",T8="AMBER",U8="AMBER"),"RED",IF(AND(R8="RED",S8="RED",T8="AMBER",U8="RED"),"RED",IF(AND(R8="RED",S8="RED",T8="RED",U8="AMBER"),"RED",IF(AND(R8="RED",S8="RED",T8="RED",U8="RED"),"RED",IF(AND(S8="AMBER",T8="AMBER",U8="AMBER"),"RED",IF(AND(S8="AMBER",T8="AMBER",U8="RED"),"RED",IF(AND(S8="AMBER",T8="RED",U8="AMBER"),"RED",IF(AND(S8="AMBER",T8="RED",U8="RED"),"RED",IF(AND(S8="RED",T8="AMBER",U8="AMBER"),"RED",IF(AND(S8="RED",T8="AMBER",U8="RED"),"RED",IF(AND(S8="RED",T8="RED",U8="AMBER"),"RED",IF(AND(S8="RED",T8="RED",U8="RED"),"RED",IF(AND(S8="AMBER",T8="AMBER",U8="AMBER"),"RED",IF(AND(S8="AMBER",T8="AMBER",U8="RED"),"RED",IF(AND(S8="AMBER",T8="RED",U8="AMBER"),"RED",IF(AND(S8="AMBER",T8="RED",U8="RED"),"RED",IF(AND(S8="RED",T8="AMBER",U8="AMBER"),"RED",IF(AND(S8="RED",T8="AMBER",U8="RED"),"RED",IF(AND(S8="RED",T8="RED",U8="AMBER"),"RED",IF(AND(S8="RED",T8="RED",U8="RED"),"RED",IF(G8>=B8,"GREEN",IF(G8="","NA",IF(AND(G8<B8,G8>=C8),"AMBER",IF(G8<C8,"RED"))))))))))))))))))))))))))))))))))))) -> GREEN | Z8: =IF(V8 ="GREEN",1,IF(V8 ="AMBER",2,IF(V8 ="RED",3))) -> 1 | AA8: =IF(W8 ="GREEN",1,IF(W8 ="AMBER",2,IF(W8 ="RED",3,IF(W8 =" "," ")))) -> 1
A9: Non-admitted patients to start treatment within a maximum of 18 weeks from referral | B9: 0.95 | C9: 0.9 | D9: =CUBEVALUE("PROD_CUBE","[Commissioners].[Org Name].[All].["&D4&"]","[Date].[Fiscal Q Hierarchy].[All].["&$A5&"].["&$D5&"]","[Measures].[RTT % Within 18 Weeks]","[RTT Pathway Type].[RTT Pathways].[All].[Non-Admitted including Audiology].[Non-Admitted]",CUBESET("PROD_CUBE","[Dim Data Status].[Data Status Hierarchy].[All].[PUBLIC]","Public data only")) -> 0.9777195282 | E9: =CUBEVALUE("PROD_CUBE","[Commissioners].[Org Name].[All].["&D4&"]","[Date].[Fiscal Q Hierarchy].[All].["&$A5&"].["&$E5&"]","[Measures].[RTT % Within 18 Weeks]","[RTT Pathway Type].[RTT Pathways].[All].[Non-Admitted including Audiology].[Non-Admitted]",CUBESET("PROD_CUBE","[Dim Data Status].[Data Status Hierarchy].[All].[PUBLIC]","Public data only")) -> 0.9788046939 | F9: =CUBEVALUE("PROD_CUBE","[Commissioners].[Org Name].[All].["&D4&"]","[Date].[Fiscal Q Hierarchy].[All].["&$A5&"].["&$F5&"]","[Measures].[RTT % Within 18 Weeks]","[RTT Pathway Type].[RTT Pathways].[All].[Non-Admitted including Audiology].[Non-Admitted]",CUBESET("PROD_CUBE","[Dim Data Status].[Data Status Hierarchy].[All].[PUBLIC]","Public data only")) -> 0.9807898499 | G9: =CUBEVALUE("PROD_CUBE","[Commissioners].[Org Name].[All].["&D4&"]","[Date].[Fiscal Q Hierarchy].[All].["&$A5&"].["&$G5&"]","[Measures].[RTT % Within 18 Weeks]","[RTT Pathway Type].[RTT Pathways].[All].[Non-Admitted including Audiology].[Non-Admitted]",CUBESET("PROD_CUBE","[Dim Data Status].[Data Status Hierarchy].[All].[PUBLIC]","Public data only")) -> 0.9825592069 | J9: 13-14 Q2 | R9: =IF(D9>=B9,"GREEN",IF(D9=0%,"NA",IF(AND(D9<B9,D9>=C9),"AMBER",IF(D9<C9,"RED")))) -> GREEN | S9: =IF(E9>=B9,"GREEN",IF(E9=0%,"NA",IF(AND(E9<B9,E9>=C9),"AMBER",IF(E9<C9,"RED")))) -> GREEN | T9: =IF(F9="","NA",IF(F9>=B9,"GREEN",IF(AND(F9<B9,F9>=C9),"AMBER",IF(F9<C9,"RED")))) -> GREEN | U9: =IF(G9="","NA",IF(G9>=B9,"GREEN",IF(AND(G9<B9,G9>=C9),"AMBER",IF(G9<C9,"RED")))) -> GREEN | V9: =IF(F9="","NA",IF(AND(R9="AMBER",S9="AMBER",T9="AMBER"),"RED",IF(AND(R9="AMBER",S9="AMBER",T9="RED"),"RED",IF(AND(R9="AMBER",S9="RED",T9="AMBER"),"RED",IF(AND(R9="AMBER",S9="RED",T9="RED"),"RED",IF(AND(R9="RED",S9="AMBER",T9="AMBER"),"RED",IF(AND(R9="RED",S9="AMBER",T9="RED"),"RED",IF(AND(R9="RED",S9="RED",T9="AMBER"),"RED",IF(F9>=B9,"GREEN",IF(F9="","NA",IF(AND(F9<B9,F9>=C9),"AMBER",IF(F9<C9,"RED")))))))))))) -> GREEN | W9: =IF(G9="","NA",IF(AND(R9="AMBER",S9="AMBER",T9="AMBER",U9="AMBER"),"RED",IF(AND(R9="AMBER",S9="AMBER",T9="AMBER",U9="RED"),"RED",IF(AND(R9="AMBER",S9="AMBER",T9="RED",U9="AMBER"),"RED",IF(AND(R9="AMBER",S9="AMBER",T9="RED",U9="RED"),"RED",IF(AND(R9="AMBER",S9="RED",T9="AMBER",U9="AMBER"),"RED",IF(AND(R9="AMBER",S9="RED",T9="AMBER",U9="RED"),"RED",IF(AND(R9="AMBER",S9="RED",T9="RED",U9="AMBER"),"RED",IF(AND(R9="AMBER",S9="RED",T9="RED",U9="RED"),"RED",IF(AND(R9="RED",S9="AMBER",T9="AMBER",U9="AMBER"),"RED",IF(AND(R9="RED",S9="AMBER",T9="AMBER",U9="RED"),"RED",IF(AND(R9="RED",S9="AMBER",T9="RED",U9="AMBER"),"RED",IF(AND(R9="RED",S9="AMBER",T9="RED",U9="RED"),"RED",IF(AND(R9="RED",S9="RED",T9="AMBER",U9="AMBER"),"RED",IF(AND(R9="RED",S9="RED",T9="AMBER",U9="RED"),"RED",IF(AND(R9="RED",S9="RED",T9="RED",U9="AMBER"),"RED",IF(AND(R9="RED",S9="RED",T9="RED",U9="RED"),"RED",IF(AND(S9="AMBER",T9="AMBER",U9="AMBER"),"RED",IF(AND(S9="AMBER",T9="AMBER",U9="RED"),"RED",IF(AND(S9="AMBER",T9="RED",U9="AMBER"),"RED",IF(AND(S9="AMBER",T9="RED",U9="RED"),"RED",IF(AND(S9="RED",T9="AMBER",U9="AMBER"),"RED",IF(AND(S9="RED",T9="AMBER",U9="RED"),"RED",IF(AND(S9="RED",T9="RED",U9="AMBER"),"RED",IF(AND(S9="RED",T9="RED",U9="RED"),"RED",IF(AND(S9="AMBER",T9="AMBER",U9="AMBER"),"RED",IF(AND(S9="AMBER",T9="AMBER",U9="RED"),"RED",IF(AND(S9="AMBER",T9="RED",U9="AMBER"),"RED",IF(AND(S9="AMBER",T9="RED",U9="RED"),"RED",IF(AND(S9="RED",T9="AMBER",U9="AMBER"),"RED",IF(AND(S9="RED",T9="AMBER",U9="RED"),"RED",IF(AND(S9="RED",T9="RED",U9="AMBER"),"RED",IF(AND(S9="RED",T9="RED",U9="RED"),"RED",IF(G9>=B9,"GREEN",IF(G9="","NA",IF(AND(G9<B9,G9>=C9),"AMBER",IF(G9<C9,"RED"))))))))))))))))))))))))))))))))))))) -> GREEN | Z9: =IF(V9 ="GREEN",1,IF(V9 ="AMBER",2,IF(V9 ="RED",3))) -> 1 | AA9: =IF(W9 ="GREEN",1,IF(W9 ="AMBER",2,IF(W9 ="RED",3,IF(W9 =" "," ")))) -> 1
A10: Patients on incomplete non emergency pathways (yet to start treatment) should have been waiting no more than 18 weeks from referral | B10: 0.92 | C10: 0.87 | D10: =CUBEVALUE("PROD_CUBE","[Commissioners].[Org Name].[All].["&$D4&"]","[Date].[Fiscal Q Hierarchy].["&$D5&"].["&$I$6&"]", "[Measures].[RTT % Within 18 Weeks]","[RTT Pathway Type].[RTT Pathways].[All].[Incomplete including Audiology].[Incomplete]",CUBESET("PROD_CUBE","[Dim Data Status].[Data Status Hierarchy].[All].[PUBLIC]","Public data only")) -> 0.9647023927 | E10: =CUBEVALUE("PROD_CUBE","[Commissioners].[Org Name].[All].["&$D4&"]","[Date].[Fiscal Q Hierarchy].["&$E5&"].["&$J$6&"]", "[Measures].[RTT % Within 18 Weeks]","[RTT Pathway Type].[RTT Pathways].[All].[Incomplete including Audiology].[Incomplete]",CUBESET("PROD_CUBE","[Dim Data Status].[Data Status Hierarchy].[All].[PUBLIC]","Public data only")) -> 0.9621993127 | F10: =CUBEVALUE("PROD_CUBE","[Commissioners].[Org Name].[All].["&$D4&"]","[Date].[Fiscal Q Hierarchy].["&$F5&"].["&$K$6&"]", "[Measures].[RTT % Within 18 Weeks]","[RTT Pathway Type].[RTT Pathways].[All].[Incomplete including Audiology].[Incomplete]",CUBESET("PROD_CUBE","[Dim Data Status].[Data Status Hierarchy].[All].[PUBLIC]","Public data only")) -> 0.9532561351 | G10: =CUBEVALUE("PROD_CUBE","[Commissioners].[Org Name].[All].["&$D4&"]","[Date].[Fiscal Q Hierarchy].["&$G5&"].["&$L$6&"]", "[Measures].[RTT % Within 18 Weeks]","[RTT Pathway Type].[RTT Pathways].[All].[Incomplete including Audiology].[Incomplete]",CUBESET("PROD_CUBE","[Dim Data Status].[Data Status Hierarchy].[All].[PUBLIC]","Public data only")) -> 0.9487349569 | J10: 13-14 Q3 | R10: =IF(D10>=B10,"GREEN",IF(D10=0%,"NA",IF(AND(D10<B10,D10>=C10),"AMBER",IF(D10<C10,"RED")))) -> GREEN | S10: =IF(E10>=B10,"GREEN",IF(E10=0%,"NA",IF(AND(E10<B10,E10>=C10),"AMBER",IF(E10<C10,"RED")))) -> GREEN | T10: =IF(F10="","NA",IF(F10>=B10,"GREEN",IF(AND(F10<B10,F10>=C10),"AMBER",IF(F10<C10,"RED")))) -> GREEN | U10: =IF(G10="","NA",IF(G10>=B10,"GREEN",IF(AND(G10<B10,G10>=C10),"AMBER",IF(G10<C10,"RED")))) -> GREEN | V10: =IF(F10="","NA",IF(AND(R10="AMBER",S10="AMBER",T10="AMBER"),"RED",IF(AND(R10="AMBER",S10="AMBER",T10="RED"),"RED",IF(AND(R10="AMBER",S10="RED",T10="AMBER"),"RED",IF(AND(R10="AMBER",S10="RED",T10="RED"),"RED",IF(AND(R10="RED",S10="AMBER",T10="AMBER"),"RED",IF(AND(R10="RED",S10="AMBER",T10="RED"),"RED",IF(AND(R10="RED",S10="RED",T10="AMBER"),"RED",IF(F10>=B10,"GREEN",IF(F10="","NA",IF(AND(F10<B10,F10>=C10),"AMBER",IF(F10<C10,"RED")))))))))))) -> GREEN | W10: =IF(G10="","NA",IF(AND(R10="AMBER",S10="AMBER",T10="AMBER",U10="AMBER"),"RED",IF(AND(R10="AMBER",S10="AMBER",T10="AMBER",U10="RED"),"RED",IF(AND(R10="AMBER",S10="AMBER",T10="RED",U10="AMBER"),"RED",IF(AND(R10="AMBER",S10="AMBER",T10="RED",U10="RED"),"RED",IF(AND(R10="AMBER",S10="RED",T10="AMBER",U10="AMBER"),"RED",IF(AND(R10="AMBER",S10="RED",T10="AMBER",U10="RED"),"RED",IF(AND(R10="AMBER",S10="RED",T10="RED",U10="AMBER"),"RED",IF(AND(R10="AMBER",S10="RED",T10="RED",U10="RED"),"RED",IF(AND(R10="RED",S10="AMBER",T10="AMBER",U10="AMBER"),"RED",IF(AND(R10="RED",S10="AMBER",T10="AMBER",U10="RED"),"RED",IF(AND(R10="RED",S10="AMBER",T10="RED",U10="AMBER"),"RED",IF(AND(R10="RED",S10="AMBER",T10="RED",U10="RED"),"RED",IF(AND(R10="RED",S10="RED",T10="AMBER",U10="AMBER"),"RED",IF(AND(R10="RED",S10="RED",T10="AMBER",U10="RED"),"RED",IF(AND(R10="RED",S10="RED",T10="RED",U10="AMBER"),"RED",IF(AND(R10="RED",S10="RED",T10="RED",U10="RED"),"RED",IF(AND(S10="AMBER",T10="AMBER",U10="AMBER"),"RED",IF(AND(S10="AMBER",T10="AMBER",U10="RED"),"RED",IF(AND(S10="AMBER",T10="RED",U10="AMBER"),"RED",IF(AND(S10="AMBER",T10="RED",U10="RED"),"RED",IF(AND(S10="RED",T10="AMBER",U10="AMBER"),"RED",IF(AND(S10="RED",T10="AMBER",U10="RED"),"RED",IF(AND(S10="RED",T10="RED",U10="AMBER"),"RED",IF(AND(S10="RED",T10="RED",U10="RED"),"RED",IF(AND(S10="AMBER",T10="AMBER",U10="AMBER"),"RED",IF(AND(S10="AMBER",T10="AMBER",U10="RED"),"RED",IF(AND(S10="AMBER",T10="RED",U10="AMBER"),"RED",IF(AND(S10="AMBER",T10="RED",U10="RED"),"RED",IF(AND(S10="RED",T10="AMBER",U10="AMBER"),"RED",IF(AND(S10="RED",T10="AMBER",U10="RED"),"RED",IF(AND(S10="RED",T10="RED",U10="AMBER"),"RED",IF(AND(S10="RED",T10="RED",U10="RED"),"RED",IF(G10>=B10,"GREEN",IF(G10="","NA",IF(AND(G10<B10,G10>=C10),"AMBER",IF(G10<C10,"RED"))))))))))))))))))))))))))))))))))))) -> GREEN | Z10: 1 | AA10: 1
A11: Number of patients waiting more than 52 weeks | B11: 0 | C11: 10 | D11: =CUBEVALUE("PROD_CUBE","[Commissioners].[Org Name].[All].["&$D4&"]","[Date].[Fiscal Q Hierarchy].["&$D5&"].["&$I$6&"]", "[Measures].[Gt52 Weeks - RTT]","[RTT Pathway Type].[RTT Pathways].[All].[Incomplete including Audiology].[Incomplete]",CUBESET("PROD_CUBE","[Dim Data Status].[Data Status Hierarchy].[All].[PUBLIC]","Public data only")) -> 1 | E11: =CUBEVALUE("PROD_CUBE","[Commissioners].[Org Name].[All].["&$D4&"]","[Date].[Fiscal Q Hierarchy].["&$E5&"].["&$J$6&"]", "[Measures].[Gt52 Weeks - RTT]","[RTT Pathway Type].[RTT Pathways].[All].[Incomplete including Audiology].[Incomplete]",CUBESET("PROD_CUBE","[Dim Data Status].[Data Status Hierarchy].[All].[PUBLIC]","Public data only")) -> 0 | F11: =CUBEVALUE("PROD_CUBE","[Commissioners].[Org Name].[All].["&$D4&"]","[Date].[Fiscal Q Hierarchy].["&$F5&"].["&$K$6&"]", "[Measures].[Gt52 Weeks - RTT]","[RTT Pathway Type].[RTT Pathways].[All].[Incomplete including Audiology].[Incomplete]",CUBESET("PROD_CUBE","[Dim Data Status].[Data Status Hierarchy].[All].[PUBLIC]","Public data only")) -> 0 | G11: =CUBEVALUE("PROD_CUBE","[Commissioners].[Org Name].[All].["&$D4&"]","[Date].[Fiscal Q Hierarchy].["&$G5&"].["&$L$6&"]", "[Measures].[Gt52 Weeks - RTT]","[RTT Pathway Type].[RTT Pathways].[All].[Incomplete including Audiology].[Incomplete]",CUBESET("PROD_CUBE","[Dim Data Status].[Data Status Hierarchy].[All].[PUBLIC]","Public data only")) -> 0 | J11: 13-14 Q4 | R11: =IF(D11=B11,"GREEN",IF(D11="NO DATA","NA",IF(AND(D11>B11,D11<=C11),"AMBER",IF(D11>=C11,"RED")))) -> AMBER | S11: =IF(E11=B11,"GREEN",IF(E11="NO DATA","NA",IF(AND(E11>B11,E11<=C11),"AMBER",IF(E11>=C11,"RED")))) -> GREEN | T11: =IF(F11=B11,"GREEN",IF(F11="","NA",IF(AND(F11>B11,F11<=C11),"AMBER",IF(F11>=C11,"RED")))) -> GREEN | U11: =IF(G11=B11,"GREEN",IF(G11="","NA",IF(AND(G11>B11,G11<=C11),"AMBER",IF(G11>=C11,"RED")))) -> GREEN | V11: =IF(AND(R11="AMBER",S11="AMBER",T11="AMBER"),"RED",IF(AND(R11="AMBER",S11="AMBER",T11="RED"),"RED",IF(AND(R11="AMBER",S11="RED",T11="AMBER"),"RED",IF(AND(R11="AMBER",S11="RED",T11="RED"),"RED",IF(AND(R11="RED",S11="AMBER",T11="AMBER"),"RED",IF(AND(R11="RED",S11="AMBER",T11="RED"),"RED",IF(AND(R11="RED",S11="RED",T11="AMBER"),"RED",IF(F11=B11,"GREEN",IF(F11="","NA",IF(AND(F11>B11,F11<=C11),"AMBER",IF(F11>=C11,"RED"))))))))))) -> GREEN | W11: =IF(AND(R11="AMBER",S11="AMBER",T11="AMBER",U11="AMBER"),"RED",IF(AND(R11="AMBER",S11="AMBER",T11="AMBER",U11="RED"),"RED",IF(AND(R11="AMBER",S11="AMBER",T11="RED",U11="AMBER"),"RED",IF(AND(R11="AMBER",S11="AMBER",T11="RED",U11="RED"),"RED",IF(AND(R11="AMBER",S11="RED",T11="AMBER",U11="AMBER"),"RED",IF(AND(R11="AMBER",S11="RED",T11="AMBER",U11="RED"),"RED",IF(AND(R11="AMBER",S11="RED",T11="RED",U11="AMBER"),"RED",IF(AND(R11="AMBER",S11="RED",T11="RED",U11="RED"),"RED",IF(AND(R11="RED",S11="AMBER",T11="AMBER",U11="AMBER"),"RED",IF(AND(R11="RED",S11="AMBER",T11="AMBER",U11="RED"),"RED",IF(AND(R11="RED",S11="AMBER",T11="RED",U11="AMBER"),"RED",IF(AND(R11="RED",S11="AMBER",T11="RED",U11="RED"),"RED",IF(AND(R11="RED",S11="RED",T11="AMBER",U11="AMBER"),"RED",IF(AND(R11="RED",S11="RED",T11="AMBER",U11="RED"),"RED",IF(AND(R11="RED",S11="RED",T11="RED",U11="AMBER"),"RED",IF(AND(R11="RED",S11="RED",T11="RED",U11="RED"),"RED",IF(G11=B11,"GREEN",IF(AND(S11="AMBER",T11="AMBER",U11="AMBER"),"RED",IF(AND(S11="AMBER",T11="AMBER",U11="RED"),"RED",IF(AND(S11="AMBER",T11="RED",U11="AMBER"),"RED",IF(AND(S11="AMBER",T11="RED",U11="RED"),"RED",IF(AND(S11="RED",T11="AMBER",U11="AMBER"),"RED",IF(AND(S11="RED",T11="AMBER",U11="RED"),"RED",IF(AND(S11="RED",T11="RED",U11="AMBER"),"RED",IF(AND(S11="RED",T11="RED",U11="RED"),"RED",IF(AND(S11="AMBER",T11="AMBER",U11="AMBER"),"RED",IF(AND(S11="AMBER",T11="AMBER",U11="RED"),"RED",IF(AND(S11="AMBER",T11="RED",U11="AMBER"),"RED",IF(AND(S11="AMBER",T11="RED",U11="RED"),"RED",IF(AND(S11="RED",T11="AMBER",U11="AMBER"),"RED",IF(AND(S11="RED",T11="AMBER",U11="RED"),"RED",IF(AND(S11="RED",T11="RED",U11="AMBER"),"RED",IF(AND(S11="RED",T11="RED",U11="RED"),"RED",IF(G11="","NA",IF(AND(G11>B11,G11<=C11),"AMBER",IF(G11>=C11,"RED")))))))))))))))))))))))))))))))))))) -> GREEN | Z11: 1 | AA11: 1
A12: Diagnostic test waiting times | Z12: FALSE | AA12: FALSE
A13: Percentage of Patients waiting 6 weeks or more for a diagnostic test | B13: 0.01 | C13: 0.06 | D13: =CUBEVALUE("PROD_CUBE","[Commissioners].[Org Name].[All].["&D4&"]","[Date].[Fiscal Q Hierarchy].[All].["&$A5&"].["&$D5&"]","[Measures].[Actual Current Percentage Diagnostic Waits Over 6 weeks]",CUBESET("PROD_CUBE","[Dim Data Status].[Data Status Hierarchy].[All].[PUBLIC]","Public data only")) -> 0.004062038405 | E13: =CUBEVALUE("PROD_CUBE","[Commissioners].[Org Name].[All].["&D4&"]","[Date].[Fiscal Q Hierarchy].[All].["&$A5&"].["&$E5&"]","[Measures].[Actual Current Percentage Diagnostic Waits Over 6 weeks]",CUBESET("PROD_CUBE","[Dim Data Status].[Data Status Hierarchy].[All].[PUBLIC]","Public data only")) -> 0.003299120235 | F13: =CUBEVALUE("PROD_CUBE","[Commissioners].[Org Name].[All].["&D4&"]","[Date].[Fiscal Q Hierarchy].[All].["&$A5&"].["&$F5&"]","[Measures].[Actual Current Percentage Diagnostic Waits Over 6 weeks]",CUBESET("PROD_CUBE","[Dim Data Status].[Data Status Hierarchy].[All].[PUBLIC]","Public data only")) -> 0.005423445974 | G13: =CUBEVALUE("PROD_CUBE","[Commissioners].[Org Name].[All].["&D4&"]","[Date].[Fiscal Q Hierarchy].[All].["&$A5&"].["&$G5&"]","[Measures].[Actual Current Percentage Diagnostic Waits Over 6 weeks]",CUBESET("PROD_CUBE","[Dim Data Status].[Data Status Hierarchy].[All].[PUBLIC]","Public data only")) -> 0.004146249529 | R13: =IF(D13>C13,"RED",IF(D13="NO DATA","NA",IF(D13<=B13,"GREEN",IF(AND(D13>B13,D13<C13),"AMBER")))) -> GREEN | S13: =IF(E13>C13,"RED",IF(E13="NO DATA","NA",IF(E13<=B13,"GREEN",IF(AND(E13>B13,E13<C13),"AMBER")))) -> GREEN | T13: =IF(F13="","NA",IF(F13>C13,"RED",IF(F13<=B13,"GREEN",IF(AND(F13>B13,F13<C13),"AMBER")))) -> GREEN | U13: =IF(G13="","NA",IF(G13>C13,"RED",IF(G13<=B13,"GREEN",IF(AND(G13>B13,G13<C13),"AMBER")))) -> GREEN | V13: =IF(AND(R13="AMBER",S13="AMBER",T13="AMBER"),"RED",IF(AND(R13="AMBER",S13="AMBER",T13="RED"),"RED",IF(AND(R13="AMBER",S13="RED",T13="AMBER"),"RED",IF(AND(R13="AMBER",S13="RED",T13="RED"),"RED",IF(AND(R13="RED",S13="AMBER",T13="AMBER"),"RED",IF(AND(R13="RED",S13="AMBER",T13="RED"),"RED",IF(AND(R13="RED",S13="RED",T13="AMBER"),"RED",IF(F13>C13,"RED",IF(F13<=B13,"GREEN",IF(AND(F13>B13,F13<C13),"AMBER")))))))))) -> GREEN | W13: =IF(G13="","NA",IF(AND(R13="AMBER",S13="AMBER",T13="AMBER",U13="AMBER"),"RED",IF(AND(R13="AMBER",S13="AMBER",T13="AMBER",U13="RED"),"RED",IF(AND(R13="AMBER",S13="AMBER",T13="RED",U13="AMBER"),"RED",IF(AND(R13="AMBER",S13="AMBER",T13="RED",U13="RED"),"RED",IF(AND(R13="AMBER",S13="RED",T13="AMBER",U13="AMBER"),"RED",IF(AND(R13="AMBER",S13="RED",T13="AMBER",U13="RED"),"RED",IF(AND(R13="AMBER",S13="RED",T13="RED",U13="AMBER"),"RED",IF(AND(R13="AMBER",S13="RED",T13="RED",U13="RED"),"RED",IF(AND(R13="RED",S13="AMBER",T13="AMBER",U13="AMBER"),"RED",IF(AND(R13="RED",S13="AMBER",T13="AMBER",U13="RED"),"RED",IF(AND(R13="RED",S13="AMBER",T13="RED",U13="AMBER"),"RED",IF(AND(R13="RED",S13="AMBER",T13="RED",U13="RED"),"RED",IF(AND(R13="RED",S13="RED",T13="AMBER",U13="AMBER"),"RED",IF(AND(R13="RED",S13="RED",T13="AMBER",U13="RED"),"RED",IF(AND(R13="RED",S13="RED",T13="RED",U13="AMBER"),"RED",IF(AND(R13="RED",S13="RED",T13="RED",U13="RED"),"RED",IF(AND(S13="AMBER",T13="AMBER",U13="AMBER"),"RED",IF(AND(S13="AMBER",T13="AMBER",U13="RED"),"RED",IF(AND(S13="AMBER",T13="RED",U13="AMBER"),"RED",IF(AND(S13="AMBER",T13="RED",U13="RED"),"RED",IF(AND(S13="RED",T13="AMBER",U13="AMBER"),"RED",IF(AND(S13="RED",T13="AMBER",U13="RED"),"RED",IF(AND(S13="RED",T13="RED",U13="AMBER"),"RED",IF(AND(S13="RED",T13="RED",U13="RED"),"RED",IF(AND(S13="AMBER",T13="AMBER",U13="AMBER"),"RED",IF(AND(S13="AMBER",T13="AMBER",U13="RED"),"RED",IF(AND(S13="AMBER",T13="RED",U13="AMBER"),"RED",IF(AND(S13="AMBER",T13="RED",U13="RED"),"RED",IF(AND(S13="RED",T13="AMBER",U13="AMBER"),"RED",IF(AND(S13="RED",T13="AMBER",U13="RED"),"RED",IF(AND(S13="RED",T13="RED",U13="AMBER"),"RED",IF(AND(S13="RED",T13="RED",U13="RED"),"RED",IF(G13>C13,"RED",IF(G13<=B13,"GREEN",IF(AND(G13>B13,G13<C13),"AMBER")))))))))))))))))))))))))))))))))))) -> GREEN | Z13: 1 | AA13: 1
A14: A & E waits | Z14: FALSE | AA14: FALSE
A15: [Provider 1]Patients should be admitted, transferred or discharged within 4 hours of their arrival at an A&E department | B15: 0.95 | C15: 0.9 | D15: =IFERROR(CUBEVALUE("PROD_CUBE","[Providers].[Org Name].["&I15&"]","[Date].[Sitrep Qtr Hierarchy].[All].["&$A5&"].["&I7&"]","[Measures].[Actual Current A+E All Types Percentage within 4 Hrs] "),"") -> 0.9417779191 | E15: =CUBEVALUE("PROD_CUBE","[Providers].[Org Name].["&I15&"]","[Date].[Sitrep Qtr Hierarchy].[All].["&$A5&"].["&J7&"]","[Measures].[Actual Current A+E All Types Percentage within 4 Hrs] ") -> 0.9430018999 | F15: =CUBEVALUE("PROD_CUBE","[Providers].[Org Name].["&I15&"]","[Date].[Sitrep Qtr Hierarchy].[All].["&$A5&"].["&K7&"]","[Measures].[Actual Current A+E All Types Percentage within 4 Hrs] ") -> 0.9622344611 | G15: =CUBEVALUE("PROD_CUBE","[Providers].[Org Name].["&I15&"]","[Date].[Sitrep Qtr Hierarchy].[All].["&$A5&"].["&L7&"]","[Measures].[Actual Current A+E All Types Percentage within 4 Hrs] ") -> 0.9572059933 | I15: ='QUALITY SECTION'!C10 -> THE ROTHERHAM NHS FOUNDATION TRUST | R15: =IF(D15="","NA",IF(D15>=B15,"GREEN",IF(AND(D15<B15,D15>=C15),"AMBER",IF(D15<C15,"RED")))) -> AMBER | S15: =IF(E15="","NA",IF(E15>=B15,"GREEN",IF(AND(E15<B15,E15>=C15),"AMBER",IF(E15<C15,"RED")))) -> AMBER | T15: =IF(F15="","NA",IF(F15>=B15,"GREEN",IF(AND(F15<B15,F15>=C15),"AMBER",IF(F15<C15,"RED")))) -> GREEN | U15: =IF(G15="","NA",IF(G15>=B15,"GREEN",IF(AND(G15<B15,G15>=C15),"AMBER",IF(G15<C15,"RED")))) -> GREEN | V15: =IF(F15="","NA",IF(AND(R15="AMBER",S15="AMBER",T15="AMBER"),"RED",IF(AND(R15="AMBER",S15="AMBER",T15="RED"),"RED",IF(AND(R15="AMBER",S15="RED",T15="AMBER"),"RED",IF(AND(R15="AMBER",S15="RED",T15="RED"),"RED",IF(AND(R15="RED",S15="AMBER",T15="AMBER"),"RED",IF(AND(R15="RED",S15="AMBER",T15="RED"),"RED",IF(AND(R15="RED",S15="RED",T15="AMBER"),"RED",IF(F15>=B15,"GREEN",IF(AND(F15<B15,F15>=C15),"AMBER",IF(F15<C15,"RED"))))))))))) -> GREEN | W15: =IF(G15="","NA",IF(AND(R15="AMBER",S15="AMBER",T15="AMBER",U15="AMBER"),"RED",IF(AND(R15="AMBER",S15="AMBER",T15="AMBER",U15="RED"),"RED",IF(AND(R15="AMBER",S15="AMBER",T15="RED",U15="AMBER"),"RED",IF(AND(R15="AMBER",S15="AMBER",T15="RED",U15="RED"),"RED",IF(AND(R15="AMBER",S15="RED",T15="AMBER",U15="AMBER"),"RED",IF(AND(R15="AMBER",S15="RED",T15="AMBER",U15="RED"),"RED",IF(AND(R15="AMBER",S15="RED",T15="RED",U15="AMBER"),"RED",IF(AND(R15="AMBER",S15="RED",T15="RED",U15="RED"),"RED",IF(AND(R15="RED",S15="AMBER",T15="AMBER",U15="AMBER"),"RED",IF(AND(R15="RED",S15="AMBER",T15="AMBER",U15="RED"),"RED",IF(AND(R15="RED",S15="AMBER",T15="RED",U15="AMBER"),"RED",IF(AND(R15="RED",S15="AMBER",T15="RED",U15="RED"),"RED",IF(AND(R15="RED",S15="RED",T15="AMBER",U15="AMBER"),"RED",IF(AND(R15="RED",S15="RED",T15="AMBER",U15="RED"),"RED",IF(AND(R15="RED",S15="RED",T15="RED",U15="AMBER"),"RED",IF(AND(R15="RED",S15="RED",T15="RED",U15="RED"),"RED",IF(AND(S15="AMBER",T15="AMBER",U15="AMBER"),"RED",IF(AND(S15="AMBER",T15="AMBER",U15="RED"),"RED",IF(AND(S15="AMBER",T15="RED",U15="AMBER"),"RED",IF(AND(S15="AMBER",T15="RED",U15="RED"),"RED",IF(AND(S15="RED",T15="AMBER",U15="AMBER"),"RED",IF(AND(S15="RED",T15="AMBER",U15="RED"),"RED",IF(AND(S15="RED",T15="RED",U15="AMBER"),"RED",IF(AND(S15="RED",T15="RED",U15="RED"),"RED",IF(AND(S15="AMBER",T15="AMBER",U15="AMBER"),"RED",IF(AND(S15="AMBER",T15="AMBER",U15="RED"),"RED",IF(AND(S15="AMBER",T15="RED",U15="AMBER"),"RED",IF(AND(S15="AMBER",T15="RED",U15="RED"),"RED",IF(AND(S15="RED",T15="AMBER",U15="AMBER"),"RED",IF(AND(S15="RED",T15="AMBER",U15="RED"),"RED",IF(AND(S15="RED",T15="RED",U15="AMBER"),"RED",IF(AND(S15="RED",T15="RED",U15="RED"),"RED",IF(G15>=B15,"GREEN",IF(AND(G15<B15,G15>=C15),"AMBER",IF(G15<C15,"RED")))))))))))))))))))))))))))))))))))) -> GREEN | Z15: =IF(V15 ="GREEN",1,IF(V15 ="AMBER",2,IF(V15 ="RED",3))) -> 1 | AA15: 1
A16: [Provider 2]Patients should be admitted, transferred or discharged within 4 hours of their arrival at an A&E department | B16: 0.95 | C16: 0.9 | D16: =IFERROR(CUBEVALUE("PROD_CUBE","[Providers].[Org Name].["&I16&"]","[Date].[Sitrep Qtr Hierarchy].[All].["&$A5&"].["&I7&"]","[Measures].[Actual Current A+E All Types Percentage within 4 Hrs] "),"") ->  | E16: =IFERROR(CUBEVALUE("PROD_CUBE","[Providers].[Org Name].["&I16&"]","[Date].[Sitrep Qtr Hierarchy].[All].["&$A5&"].["&J7&"]","[Measures].[Actual Current A+E All Types Percentage within 4 Hrs] "),"") ->  | F16: =IFERROR(CUBEVALUE("PROD_CUBE","[Providers].[Org Name].["&I16&"]","[Date].[Sitrep Qtr Hierarchy].[All].["&$A5&"].["&K7&"]","[Measures].[Actual Current A+E All Types Percentage within 4 Hrs] "),"") ->  | G16: =IFERROR(CUBEVALUE("PROD_CUBE","[Providers].[Org Name].["&I16&"]","[Date].[Sitrep Qtr Hierarchy].[All].["&$A5&"].["&L7&"]","[Measures].[Actual Current A+E All Types Percentage within 4 Hrs] "),"") ->  | I16: ='QUALITY SECTION'!D10 -> ROTHERHAM DONCASTER AND SOUTH HUMBER NHS FOUNDATION TRUST | R16: =IF(D16="","NA",IF(D16>=B16,"GREEN",IF(AND(D16<B16,D16>=C16),"AMBER",IF(D16<C16,"RED")))) -> NA | S16: =IF(E16="","NA",IF(E16>=B16,"GREEN",IF(AND(E16<B16,E16>=C16),"AMBER",IF(E16<C16,"RED")))) -> NA | T16: =IF(F16="","NA",IF(F16>=B16,"GREEN",IF(AND(F16<B16,F16>=C16),"AMBER",IF(F16<C16,"RED")))) -> NA | U16: =IF(G16="","NA",IF(G16>=B16,"GREEN",IF(AND(G16<B16,G16>=C16),"AMBER",IF(G16<C16,"RED")))) -> NA | V16: =IF(F16="","NA",IF(AND(R16="AMBER",S16="AMBER",T16="AMBER"),"RED",IF(AND(R16="AMBER",S16="AMBER",T16="RED"),"RED",IF(AND(R16="AMBER",S16="RED",T16="AMBER"),"RED",IF(AND(R16="AMBER",S16="RED",T16="RED"),"RED",IF(AND(R16="RED",S16="AMBER",T16="AMBER"),"RED",IF(AND(R16="RED",S16="AMBER",T16="RED"),"RED",IF(AND(R16="RED",S16="RED",T16="AMBER"),"RED",IF(F16>=B16,"GREEN",IF(AND(F16<B16,F16>=C16),"AMBER",IF(F16<C16,"RED"))))))))))) -> NA | W16: =IF(G16="","NA",IF(AND(R16="AMBER",S16="AMBER",T16="AMBER",U16="AMBER"),"RED",IF(AND(R16="AMBER",S16="AMBER",T16="AMBER",U16="RED"),"RED",IF(AND(R16="AMBER",S16="AMBER",T16="RED",U16="AMBER"),"RED",IF(AND(R16="AMBER",S16="AMBER",T16="RED",U16="RED"),"RED",IF(AND(R16="AMBER",S16="RED",T16="AMBER",U16="AMBER"),"RED",IF(AND(R16="AMBER",S16="RED",T16="AMBER",U16="RED"),"RED",IF(AND(R16="AMBER",S16="RED",T16="RED",U16="AMBER"),"RED",IF(AND(R16="AMBER",S16="RED",T16="RED",U16="RED"),"RED",IF(AND(R16="RED",S16="AMBER",T16="AMBER",U16="AMBER"),"RED",IF(AND(R16="RED",S16="AMBER",T16="AMBER",U16="RED"),"RED",IF(AND(R16="RED",S16="AMBER",T16="RED",U16="AMBER"),"RED",IF(AND(R16="RED",S16="AMBER",T16="RED",U16="RED"),"RED",IF(AND(R16="RED",S16="RED",T16="AMBER",U16="AMBER"),"RED",IF(AND(R16="RED",S16="RED",T16="AMBER",U16="RED"),"RED",IF(AND(R16="RED",S16="RED",T16="RED",U16="AMBER"),"RED",IF(AND(R16="RED",S16="RED",T16="RED",U16="RED"),"RED",IF(AND(S16="AMBER",T16="AMBER",U16="AMBER"),"RED",IF(AND(S16="AMBER",T16="AMBER",U16="RED"),"RED",IF(AND(S16="AMBER",T16="RED",U16="AMBER"),"RED",IF(AND(S16="AMBER",T16="RED",U16="RED"),"RED",IF(AND(S16="RED",T16="AMBER",U16="AMBER"),"RED",IF(AND(S16="RED",T16="AMBER",U16="RED"),"RED",IF(AND(S16="RED",T16="RED",U16="AMBER"),"RED",IF(AND(S16="RED",T16="RED",U16="RED"),"RED",IF(AND(S16="AMBER",T16="AMBER",U16="AMBER"),"RED",IF(AND(S16="AMBER",T16="AMBER",U16="RED"),"RED",IF(AND(S16="AMBER",T16="RED",U16="AMBER"),"RED",IF(AND(S16="AMBER",T16="RED",U16="RED"),"RED",IF(AND(S16="RED",T16="AMBER",U16="AMBER"),"RED",IF(AND(S16="RED",T16="AMBER",U16="RED"),"RED",IF(AND(S16="RED",T16="RED",U16="AMBER"),"RED",IF(AND(S16="RED",T16="RED",U16="RED"),"RED",IF(G16>=B16,"GREEN",IF(AND(G16<B16,G16>=C16),"AMBER",IF(G16<C16,"RED")))))))))))))))))))))))))))))))))))) -> NA | Z16: FALSE | AA16: FALSE
A17: [Provider 3]Patients should be admitted, transferred or discharged within 4 hours of their arrival at an A&E department | B17: 0.95 | C17: 0.9 | D17: =IFERROR(CUBEVALUE("PROD_CUBE","[Providers].[Org Name].["&I17&"]","[Date].[Sitrep Qtr Hierarchy].[All].["&$A5&"].["&I7&"]","[Measures].[Actual Current A+E All Types Percentage within 4 Hrs] "),"") ->  | E17: =IFERROR(CUBEVALUE("PROD_CUBE","[Providers].[Org Name].["&I17&"]","[Date].[Sitrep Qtr Hierarchy].[All].["&$A5&"].["&J7&"]","[Measures].[Actual Current A+E All Types Percentage within 4 Hrs] "),"") ->  | F17: =IFERROR(CUBEVALUE("PROD_CUBE","[Providers].[Org Name].["&I17&"]","[Date].[Sitrep Qtr Hierarchy].[All].["&$A5&"].["&K7&"]","[Measures].[Actual Current A+E All Types Percentage within 4 Hrs] "),"") ->  | G17: =IFERROR(CUBEVALUE("PROD_CUBE","[Providers].[Org Name].["&I17&"]","[Date].[Sitrep Qtr Hierarchy].[All].["&$A5&"].["&L7&"]","[Measures].[Actual Current A+E All Types Percentage within 4 Hrs] "),"") ->  | I17: ='QUALITY SECTION'!E10 -> No Provider | R17: =IF(D17="NA","NA",IF(D17="","NA",IF(D17>=B17,"GREEN",IF(AND(D17<B17,D17>=C17),"AMBER",IF(D17<C17,"RED"))))) -> NA | S17: =IF(E17="","NA",IF(E17>=B17,"GREEN",IF(AND(E17<B17,E17>=C17),"AMBER",IF(E17<C17,"RED")))) -> NA | T17: =IF(F17="","NA",IF(F17>=B17,"GREEN",IF(AND(F17<B17,F17>=C17),"AMBER",IF(F17<C17,"RED")))) -> NA | U17: =IF(G17="","NA",IF(G17>=B17,"GREEN",IF(AND(G17<B17,G17>=C17),"AMBER",IF(G17<C17,"RED")))) -> NA | V17: =IF(F17="","NA",IF(AND(R17="AMBER",S17="AMBER",T17="AMBER"),"RED",IF(AND(R17="AMBER",S17="AMBER",T17="RED"),"RED",IF(AND(R17="AMBER",S17="RED",T17="AMBER"),"RED",IF(AND(R17="AMBER",S17="RED",T17="RED"),"RED",IF(AND(R17="RED",S17="AMBER",T17="AMBER"),"RED",IF(AND(R17="RED",S17="AMBER",T17="RED"),"RED",IF(AND(R17="RED",S17="RED",T17="AMBER"),"RED",IF(F17>=B17,"GREEN",IF(AND(F17<B17,F17>=C17),"AMBER",IF(F17<C17,"RED"))))))))))) -> NA | W17: =IF(G17="","NA",IF(AND(R17="AMBER",S17="AMBER",T17="AMBER",U17="AMBER"),"RED",IF(AND(R17="AMBER",S17="AMBER",T17="AMBER",U17="RED"),"RED",IF(AND(R17="AMBER",S17="AMBER",T17="RED",U17="AMBER"),"RED",IF(AND(R17="AMBER",S17="AMBER",T17="RED",U17="RED"),"RED",IF(AND(R17="AMBER",S17="RED",T17="AMBER",U17="AMBER"),"RED",IF(AND(R17="AMBER",S17="RED",T17="AMBER",U17="RED"),"RED",IF(AND(R17="AMBER",S17="RED",T17="RED",U17="AMBER"),"RED",IF(AND(R17="AMBER",S17="RED",T17="RED",U17="RED"),"RED",IF(AND(R17="RED",S17="AMBER",T17="AMBER",U17="AMBER"),"RED",IF(AND(R17="RED",S17="AMBER",T17="AMBER",U17="RED"),"RED",IF(AND(R17="RED",S17="AMBER",T17="RED",U17="AMBER"),"RED",IF(AND(R17="RED",S17="AMBER",T17="RED",U17="RED"),"RED",IF(AND(R17="RED",S17="RED",T17="AMBER",U17="AMBER"),"RED",IF(AND(R17="RED",S17="RED",T17="AMBER",U17="RED"),"RED",IF(AND(R17="RED",S17="RED",T17="RED",U17="AMBER"),"RED",IF(AND(R17="RED",S17="RED",T17="RED",U17="RED"),"RED",IF(AND(S17="AMBER",T17="AMBER",U17="AMBER"),"RED",IF(AND(S17="AMBER",T17="AMBER",U17="RED"),"RED",IF(AND(S17="AMBER",T17="RED",U17="AMBER"),"RED",IF(AND(S17="AMBER",T17="RED",U17="RED"),"RED",IF(AND(S17="RED",T17="AMBER",U17="AMBER"),"RED",IF(AND(S17="RED",T17="AMBER",U17="RED"),"RED",IF(AND(S17="RED",T17="RED",U17="AMBER"),"RED",IF(AND(S17="RED",T17="RED",U17="RED"),"RED",IF(AND(S17="AMBER",T17="AMBER",U17="AMBER"),"RED",IF(AND(S17="AMBER",T17="AMBER",U17="RED"),"RED",IF(AND(S17="AMBER",T17="RED",U17="AMBER"),"RED",IF(AND(S17="AMBER",T17="RED",U17="RED"),"RED",IF(AND(S17="RED",T17="AMBER",U17="AMBER"),"RED",IF(AND(S17="RED",T17="AMBER",U17="RED"),"RED",IF(AND(S17="RED",T17="RED",U17="AMBER"),"RED",IF(AND(S17="RED",T17="RED",U17="RED"),"RED",IF(G17>=B17,"GREEN",IF(AND(G17<B17,G17>=C17),"AMBER",IF(G17<C17,"RED")))))))))))))))))))))))))))))))))))) -> NA | Z17: FALSE | AA17: FALSE
A18: Cancer patients - 2 week wait | Z18: FALSE | AA18: FALSE
A19: Maximum two-week wait for first outpatient appointment for patients referred urgently with suspected cancer by a GP | B19: 0.93 | C19: 0.88 | D19: =CUBEVALUE("PROD_CUBE","[Commissioners].[Commissioners by Area Team].[Org Name].["&$D4&"]","[Date].[Fiscal Q Hierarchy].[All].["&$A5&"].["&$D5&"]","[Cancer Selections].[Cancer Hierarchy].[Cancer Record Description].&[Seen within 2 weeks of referral]","[Measures].[Actual Current Comm Cancer Percentage Treated within Target - Qtrly]") -> 0.954787234 | E19: =CUBEVALUE("PROD_CUBE","[Commissioners].[Commissioners by Area Team].[Org Name].["&$D4&"]","[Date].[Fiscal Q Hierarchy].[All].["&$A5&"].["&$E5&"]","[Cancer Selections].[Cancer Hierarchy].[Cancer Record Description].&[Seen within 2 weeks of referral]","[Measures].[Actual Current Comm Cancer Percentage Treated within Target - Qtrly]") -> 0.9514116875 | F19: =CUBEVALUE("PROD_CUBE","[Commissioners].[Commissioners by Area Team].[Org Name].["&$D4&"]","[Date].[Fiscal Q Hierarchy].[All].["&$A5&"].["&$F5&"]","[Cancer Selections].[Cancer Hierarchy].[Cancer Record Description].&[Seen within 2 weeks of referral]","[Measures].[Actual Current Comm Cancer Percentage Treated within Target - Qtrly]") -> 0.9392076503 | G19: =CUBEVALUE("PROD_CUBE","[Commissioners].[Commissioners by Area Team].[Org Name].["&$D4&"]","[Date].[Fiscal Q Hierarchy].[All].["&$A5&"].["&$G5&"]","[Cancer Selections].[Cancer Hierarchy].[Cancer Record Description].&[Seen within 2 weeks of referral]","[Measures].[Actual Current Comm Cancer Percentage Treated within Target - Qtrly]") -> 0.9495569189 | R19: =IF(D19="","NA",IF(D19>=B19,"GREEN",IF(AND(D19<B19,D19>=C19),"AMBER",IF(D19<C19,"RED")))) -> GREEN | S19: =IF(E19="","NA",IF(E19>=B19,"GREEN",IF(AND(E19<B19,E19>=C19),"AMBER",IF(E19<C19,"RED")))) -> GREEN | T19: =IF(F19="","NA",IF(F19>=B19,"GREEN",IF(AND(F19<B19,F19>=C19),"AMBER",IF(F19<C19,"RED")))) -> GREEN | U19: =IF(G19="","NA",IF(G19>=B19,"GREEN",IF(AND(G19<B19,G19>=C19),"AMBER",IF(G19<C19,"RED")))) -> GREEN | V19: =IF(AND(R19="AMBER",S19="AMBER",T19="AMBER"),"RED",IF(AND(R19="AMBER",S19="AMBER",T19="RED"),"RED",IF(AND(R19="AMBER",S19="RED",T19="AMBER"),"RED",IF(AND(R19="AMBER",S19="RED",T19="RED"),"RED",IF(AND(R19="RED",S19="AMBER",T19="AMBER"),"RED",IF(AND(R19="RED",S19="AMBER",T19="RED"),"RED",IF(AND(R19="RED",S19="RED",T19="AMBER"),"RED",IF(F19>=B19,"GREEN",IF(F19="","NA",IF(AND(F19<B19,F19>=C19),"AMBER",IF(F19<C19,"RED"))))))))))) -> GREEN | W19: =IF(G19="","NA",IF(AND(R19="AMBER",S19="AMBER",T19="AMBER",U19="AMBER"),"RED",IF(AND(R19="AMBER",S19="AMBER",T19="AMBER",U19="RED"),"RED",IF(AND(R19="AMBER",S19="AMBER",T19="RED",U19="AMBER"),"RED",IF(AND(R19="AMBER",S19="AMBER",T19="RED",U19="RED"),"RED",IF(AND(R19="AMBER",S19="RED",T19="AMBER",U19="AMBER"),"RED",IF(AND(R19="AMBER",S19="RED",T19="AMBER",U19="RED"),"RED",IF(AND(R19="AMBER",S19="RED",T19="RED",U19="AMBER"),"RED",IF(AND(R19="AMBER",S19="RED",T19="RED",U19="RED"),"RED",IF(AND(R19="RED",S19="AMBER",T19="AMBER",U19="AMBER"),"RED",IF(AND(R19="RED",S19="AMBER",T19="AMBER",U19="RED"),"RED",IF(AND(R19="RED",S19="AMBER",T19="RED",U19="AMBER"),"RED",IF(AND(R19="RED",S19="AMBER",T19="RED",U19="RED"),"RED",IF(AND(R19="RED",S19="RED",T19="AMBER",U19="AMBER"),"RED",IF(AND(R19="RED",S19="RED",T19="AMBER",U19="RED"),"RED",IF(AND(R19="RED",S19="RED",T19="RED",U19="AMBER"),"RED",IF(AND(R19="RED",S19="RED",T19="RED",U19="RED"),"RED",IF(AND(S19="AMBER",T19="AMBER",U19="AMBER"),"RED",IF(AND(S19="AMBER",T19="AMBER",U19="RED"),"RED",IF(AND(S19="AMBER",T19="RED",U19="AMBER"),"RED",IF(AND(S19="AMBER",T19="RED",U19="RED"),"RED",IF(AND(S19="RED",T19="AMBER",U19="AMBER"),"RED",IF(AND(S19="RED",T19="AMBER",U19="RED"),"RED",IF(AND(S19="RED",T19="RED",U19="AMBER"),"RED",IF(AND(S19="RED",T19="RED",U19="RED"),"RED",IF(AND(S19="AMBER",T19="AMBER",U19="AMBER"),"RED",IF(AND(S19="AMBER",T19="AMBER",U19="RED"),"RED",IF(AND(S19="AMBER",T19="RED",U19="AMBER"),"RED",IF(AND(S19="AMBER",T19="RED",U19="RED"),"RED",IF(AND(S19="RED",T19="AMBER",U19="AMBER"),"RED",IF(AND(S19="RED",T19="AMBER",U19="RED"),"RED",IF(AND(S19="RED",T19="RED",U19="AMBER"),"RED",IF(AND(S19="RED",T19="RED",U19="RED"),"RED",IF(G19>=B19,"GREEN",IF(G19="","NA",IF(AND(G19<B19,G19>=C19),"AMBER",IF(G19<C19,"RED"))))))))))))))))))))))))))))))))))))) -> GREEN | Z19: 1 | AA19: 1
A20: Maximum two week wait for first out patient appointment for patients referred urgently with breast symptoms (where cancer was not initially suspected) | B20: 0.93 | C20: 0.88 | D20: =CUBEVALUE("PROD_CUBE","[Commissioners].[Commissioners by Area Team].[Org Name].["&$D4&"]","[Date].[Fiscal Q Hierarchy].[All].["&$A5&"].["&$D5&"]","[Cancer Selections].[Cancer Hierarchy].[Cancer Record Description].&[Seen within 2 weeks of referral - Breast Symptoms]","[Measures].[Actual Current Comm Cancer Percentage Treated within Target - Qtrly]") -> 0.9272727273 | E20: =CUBEVALUE("PROD_CUBE","[Commissioners].[Commissioners by Area Team].[Org Name].["&$D4&"]","[Date].[Fiscal Q Hierarchy].[All].["&$A5&"].["&$E5&"]","[Cancer Selections].[Cancer Hierarchy].[Cancer Record Description].&[Seen within 2 weeks of referral - Breast Symptoms]","[Measures].[Actual Current Comm Cancer Percentage Treated within Target - Qtrly]") -> 0.9536423841 | F20: =CUBEVALUE("PROD_CUBE","[Commissioners].[Commissioners by Area Team].[Org Name].["&$D4&"]","[Date].[Fiscal Q Hierarchy].[All].["&$A5&"].["&$F5&"]","[Cancer Selections].[Cancer Hierarchy].[Cancer Record Description].&[Seen within 2 weeks of referral - Breast Symptoms]","[Measures].[Actual Current Comm Cancer Percentage Treated within Target - Qtrly]") -> 0.935483871 | G20: =CUBEVALUE("PROD_CUBE","[Commissioners].[Commissioners by Area Team].[Org Name].["&$D4&"]","[Date].[Fiscal Q Hierarchy].[All].["&$A5&"].["&$G5&"]","[Cancer Selections].[Cancer Hierarchy].[Cancer Record Description].&[Seen within 2 weeks of referral - Breast Symptoms]","[Measures].[Actual Current Comm Cancer Percentage Treated within Target - Qtrly]") -> 0.9283387622 | R20: =IF(D20="","NA",IF(D20>=B20,"GREEN",IF(AND(D20<B20,D20>=C20),"AMBER",IF(D20<C20,"RED")))) -> AMBER | S20: =IF(E20="","NA",IF(E20>=B20,"GREEN",IF(AND(E20<B20,E20>=C20),"AMBER",IF(E20<C20,"RED")))) -> GREEN | T20: =IF(F20="","NA",IF(F20>=B20,"GREEN",IF(AND(F20<B20,F20>=C20),"AMBER",IF(F20<C20,"RED")))) -> GREEN | U20: =IF(G20="","NA",IF(G20>=B20,"GREEN",IF(AND(G20<B20,G20>=C20),"AMBER",IF(G20<C20,"RED")))) -> AMBER | V20: =IF(F20="","NA",IF(AND(R20="AMBER",S20="AMBER",T20="AMBER"),"RED",IF(AND(R20="AMBER",S20="AMBER",T20="RED"),"RED",IF(AND(R20="AMBER",S20="RED",T20="AMBER"),"RED",IF(AND(R20="AMBER",S20="RED",T20="RED"),"RED",IF(AND(R20="RED",S20="AMBER",T20="AMBER"),"RED",IF(AND(R20="RED",S20="AMBER",T20="RED"),"RED",IF(AND(R20="RED",S20="RED",T20="AMBER"),"RED",IF(F20>=B20,"GREEN",IF(F20="","NA",IF(AND(F20<B20,F20>=C20),"AMBER",IF(F20<C20,"RED")))))))))))) -> GREEN | W20: =IF(G20="","NA",IF(AND(R20="AMBER",S20="AMBER",T20="AMBER",U20="AMBER"),"RED",IF(AND(R20="AMBER",S20="AMBER",T20="AMBER",U20="RED"),"RED",IF(AND(R20="AMBER",S20="AMBER",T20="RED",U20="AMBER"),"RED",IF(AND(R20="AMBER",S20="AMBER",T20="RED",U20="RED"),"RED",IF(AND(R20="AMBER",S20="RED",T20="AMBER",U20="AMBER"),"RED",IF(AND(R20="AMBER",S20="RED",T20="AMBER",U20="RED"),"RED",IF(AND(R20="AMBER",S20="RED",T20="RED",U20="AMBER"),"RED",IF(AND(R20="AMBER",S20="RED",T20="RED",U20="RED"),"RED",IF(AND(R20="RED",S20="AMBER",T20="AMBER",U20="AMBER"),"RED",IF(AND(R20="RED",S20="AMBER",T20="AMBER",U20="RED"),"RED",IF(AND(R20="RED",S20="AMBER",T20="RED",U20="AMBER"),"RED",IF(AND(R20="RED",S20="AMBER",T20="RED",U20="RED"),"RED",IF(AND(R20="RED",S20="RED",T20="AMBER",U20="AMBER"),"RED",IF(AND(R20="RED",S20="RED",T20="AMBER",U20="RED"),"RED",IF(AND(R20="RED",S20="RED",T20="RED",U20="AMBER"),"RED",IF(AND(R20="RED",S20="RED",T20="RED",U20="RED"),"RED",IF(AND(S20="AMBER",T20="AMBER",U20="AMBER"),"RED",IF(AND(S20="AMBER",T20="AMBER",U20="RED"),"RED",IF(AND(S20="AMBER",T20="RED",U20="AMBER"),"RED",IF(AND(S20="AMBER",T20="RED",U20="RED"),"RED",IF(AND(S20="RED",T20="AMBER",U20="AMBER"),"RED",IF(AND(S20="RED",T20="AMBER",U20="RED"),"RED",IF(AND(S20="RED",T20="RED",U20="AMBER"),"RED",IF(AND(S20="RED",T20="RED",U20="RED"),"RED",IF(AND(S20="AMBER",T20="AMBER",U20="AMBER"),"RED",IF(AND(S20="AMBER",T20="AMBER",U20="RED"),"RED",IF(AND(S20="AMBER",T20="RED",U20="AMBER"),"RED",IF(AND(S20="AMBER",T20="RED",U20="RED"),"RED",IF(AND(S20="RED",T20="AMBER",U20="AMBER"),"RED",IF(AND(S20="RED",T20="AMBER",U20="RED"),"RED",IF(AND(S20="RED",T20="RED",U20="AMBER"),"RED",IF(AND(S20="RED",T20="RED",U20="RED"),"RED",IF(G20>=B20,"GREEN",IF(G20="","NA",IF(AND(G20<B20,G20>=C20),"AMBER",IF(G20<C20,"RED"))))))))))))))))))))))))))))))))))))) -> AMBER | Z20: 1 | AA20: 2
A21: Cancer waits - 31 days | Z21: FALSE | AA21: FALSE
A22: Maximum (31 day) wait from diagnosis to first definitive treatment for all cancers | B22: 0.96 | C22: 0.91 | D22: =CUBEVALUE("PROD_CUBE","[Commissioners].[Commissioners by Area Team].[Org Name].["&$D4&"]","[Date].[Fiscal Q Hierarchy].[All].["&$A5&"].["&$D5&"]","[Cancer Selections].[Cancer Hierarchy].[All].[Treated < 31 Days by Treatment Type]","[Measures].[Actual Current Comm Cancer Percentage Treated within Target - Qtrly]") -> 0.9965397924 | E22: =CUBEVALUE("PROD_CUBE","[Commissioners].[Commissioners by Area Team].[Org Name].["&$D4&"]","[Date].[Fiscal Q Hierarchy].[All].["&$A5&"].["&$E5&"]","[Cancer Selections].[Cancer Hierarchy].[All].[Treated < 31 Days by Treatment Type]","[Measures].[Actual Current Comm Cancer Percentage Treated within Target - Qtrly]") -> 0.9857549858 | F22: =CUBEVALUE("PROD_CUBE","[Commissioners].[Commissioners by Area Team].[Org Name].["&$D4&"]","[Date].[Fiscal Q Hierarchy].[All].["&$A5&"].["&$F5&"]","[Cancer Selections].[Cancer Hierarchy].[All].[Treated < 31 Days by Treatment Type]","[Measures].[Actual Current Comm Cancer Percentage Treated within Target - Qtrly]") -> 0.9706744868 | G22: =CUBEVALUE("PROD_CUBE","[Commissioners].[Commissioners by Area Team].[Org Name].["&$D4&"]","[Date].[Fiscal Q Hierarchy].[All].["&$A5&"].["&$G5&"]","[Cancer Selections].[Cancer Hierarchy].[All].[Treated < 31 Days by Treatment Type]","[Measures].[Actual Current Comm Cancer Percentage Treated within Target - Qtrly]") -> 0.9902597403 | R22: =IF(D22>=B22,"GREEN",IF(D22="","NA",IF(AND(D22<B22,D22>=C22),"AMBER",IF(D22<C22,"RED")))) -> GREEN | S22: =IF(E22>=B22,"GREEN",IF(E22="","NA",IF(AND(E22<B22,E22>=C22),"AMBER",IF(E22<C22,"RED")))) -> GREEN | T22: =IF(F22="","NA",IF(F22>=B22,"GREEN",IF(AND(F22<B22,F22>=C22),"AMBER",IF(F22<C22,"RED")))) -> GREEN | U22: =IF(G22="","NA",IF(G22>=B22,"GREEN",IF(AND(G22<B22,G22>=C22),"AMBER",IF(G22<C22,"RED")))) -> GREEN | V22: =IF(F22="","NA",IF(AND(R22="AMBER",S22="AMBER",T22="AMBER"),"RED",IF(AND(R22="AMBER",S22="AMBER",T22="RED"),"RED",IF(AND(R22="AMBER",S22="RED",T22="AMBER"),"RED",IF(AND(R22="AMBER",S22="RED",T22="RED"),"RED",IF(AND(R22="RED",S22="AMBER",T22="AMBER"),"RED",IF(AND(R22="RED",S22="AMBER",T22="RED"),"RED",IF(AND(R22="RED",S22="RED",T22="AMBER"),"RED",IF(F22>=B22,"GREEN",IF(F22="","NA",IF(AND(F22<B22,F22>=C22),"AMBER",IF(F22<C22,"RED")))))))))))) -> GREEN | W22: =IF(G22="","NA",IF(AND(R22="AMBER",S22="AMBER",T22="AMBER",U22="AMBER"),"RED",IF(AND(R22="AMBER",S22="AMBER",T22="AMBER",U22="RED"),"RED",IF(AND(R22="AMBER",S22="AMBER",T22="RED",U22="AMBER"),"RED",IF(AND(R22="AMBER",S22="AMBER",T22="RED",U22="RED"),"RED",IF(AND(R22="AMBER",S22="RED",T22="AMBER",U22="AMBER"),"RED",IF(AND(R22="AMBER",S22="RED",T22="AMBER",U22="RED"),"RED",IF(AND(R22="AMBER",S22="RED",T22="RED",U22="AMBER"),"RED",IF(AND(R22="AMBER",S22="RED",T22="RED",U22="RED"),"RED",IF(AND(R22="RED",S22="AMBER",T22="AMBER",U22="AMBER"),"RED",IF(AND(R22="RED",S22="AMBER",T22="AMBER",U22="RED"),"RED",IF(AND(R22="RED",S22="AMBER",T22="RED",U22="AMBER"),"RED",IF(AND(R22="RED",S22="AMBER",T22="RED",U22="RED"),"RED",IF(AND(R22="RED",S22="RED",T22="AMBER",U22="AMBER"),"RED",IF(AND(R22="RED",S22="RED",T22="AMBER",U22="RED"),"RED",IF(AND(R22="RED",S22="RED",T22="RED",U22="AMBER"),"RED",IF(AND(R22="RED",S22="RED",T22="RED",U22="RED"),"RED",IF(AND(S22="AMBER",T22="AMBER",U22="AMBER"),"RED",IF(AND(S22="AMBER",T22="AMBER",U22="RED"),"RED",IF(AND(S22="AMBER",T22="RED",U22="AMBER"),"RED",IF(AND(S22="AMBER",T22="RED",U22="RED"),"RED",IF(AND(S22="RED",T22="AMBER",U22="AMBER"),"RED",IF(AND(S22="RED",T22="AMBER",U22="RED"),"RED",IF(AND(S22="RED",T22="RED",U22="AMBER"),"RED",IF(AND(S22="RED",T22="RED",U22="RED"),"RED",IF(AND(S22="AMBER",T22="AMBER",U22="AMBER"),"RED",IF(AND(S22="AMBER",T22="AMBER",U22="RED"),"RED",IF(AND(S22="AMBER",T22="RED",U22="AMBER"),"RED",IF(AND(S22="AMBER",T22="RED",U22="RED"),"RED",IF(AND(S22="RED",T22="AMBER",U22="AMBER"),"RED",IF(AND(S22="RED",T22="AMBER",U22="RED"),"RED",IF(AND(S22="RED",T22="RED",U22="AMBER"),"RED",IF(AND(S22="RED",T22="RED",U22="RED"),"RED",IF(G22>=B22,"GREEN",IF(G22="","NA",IF(AND(G22<B22,G22>=C22),"AMBER",IF(G22<C22,"RED"))))))))))))))))))))))))))))))))))))) -> GREEN | Z22: 1 | AA22: 1
A23: Maximum 31 day wait for subsequent treatment where that treatment is surgery | B23: 0.94 | C23: 0.89 | D23: =CUBEVALUE("PROD_CUBE","[Commissioners].[Commissioners by Area Team].[Org Name].["&$D4&"]","[Date].[Fiscal Q Hierarchy].[All].["&$A5&"].["&$D5&"]","[Cancer Selections].[Cancer Hierarchy].[Selection Key].&[405]","[Measures].[Actual Current Comm Cancer Percentage Treated within Target - Qtrly]") -> 1 | E23: =CUBEVALUE("PROD_CUBE","[Commissioners].[Commissioners by Area Team].[Org Name].["&$D4&"]","[Date].[Fiscal Q Hierarchy].[All].["&$A5&"].["&$E5&"]","[Cancer Selections].[Cancer Hierarchy].[Selection Key].&[405]","[Measures].[Actual Current Comm Cancer Percentage Treated within Target - Qtrly]") -> 0.9583333333 | F23: =CUBEVALUE("PROD_CUBE","[Commissioners].[Commissioners by Area Team].[Org Name].["&$D4&"]","[Date].[Fiscal Q Hierarchy].[All].["&$A5&"].["&$F5&"]","[Cancer Selections].[Cancer Hierarchy].[Selection Key].&[405]","[Measures].[Actual Current Comm Cancer Percentage Treated within Target - Qtrly]") -> 0.9879518072 | G23: =CUBEVALUE("PROD_CUBE","[Commissioners].[Commissioners by Area Team].[Org Name].["&$D4&"]","[Date].[Fiscal Q Hierarchy].[All].["&$A5&"].["&$G5&"]","[Cancer Selections].[Cancer Hierarchy].[Selection Key].&[405]","[Measures].[Actual Current Comm Cancer Percentage Treated within Target - Qtrly]") -> 0.9818181818 | R23: =IF(D23>=B23,"GREEN",IF(D23="","NA",IF(AND(D23<B23,D23>=C23),"AMBER",IF(D23<C23,"RED")))) -> GREEN | S23: =IF(E23>=B23,"GREEN",IF(E23="","NA",IF(AND(E23<B23,E23>=C23),"AMBER",IF(E23<C23,"RED")))) -> GREEN | T23: =IF(F23="","NA",IF(F23>=B23,"GREEN",IF(AND(F23<B23,F23>=C23),"AMBER",IF(F23<C23,"RED")))) -> GREEN | U23: =IF(G23="","NA",IF(G23>=B23,"GREEN",IF(AND(G23<B23,G23>=C23),"AMBER",IF(G23<C23,"RED")))) -> GREEN | V23: =IF(F23="","NA",IF(AND(R23="AMBER",S23="AMBER",T23="AMBER"),"RED",IF(AND(R23="AMBER",S23="AMBER",T23="RED"),"RED",IF(AND(R23="AMBER",S23="RED",T23="AMBER"),"RED",IF(AND(R23="AMBER",S23="RED",T23="RED"),"RED",IF(AND(R23="RED",S23="AMBER",T23="AMBER"),"RED",IF(AND(R23="RED",S23="AMBER",T23="RED"),"RED",IF(AND(R23="RED",S23="RED",T23="AMBER"),"RED",IF(F23>=B23,"GREEN",IF(F23="","NA",IF(AND(F23<B23,F23>=C23),"AMBER",IF(F23<C23,"RED")))))))))))) -> GREEN | W23: =IF(G23="","NA",IF(AND(R23="AMBER",S23="AMBER",T23="AMBER",U23="AMBER"),"RED",IF(AND(R23="AMBER",S23="AMBER",T23="AMBER",U23="RED"),"RED",IF(AND(R23="AMBER",S23="AMBER",T23="RED",U23="AMBER"),"RED",IF(AND(R23="AMBER",S23="AMBER",T23="RED",U23="RED"),"RED",IF(AND(R23="AMBER",S23="RED",T23="AMBER",U23="AMBER"),"RED",IF(AND(R23="AMBER",S23="RED",T23="AMBER",U23="RED"),"RED",IF(AND(R23="AMBER",S23="RED",T23="RED",U23="AMBER"),"RED",IF(AND(R23="AMBER",S23="RED",T23="RED",U23="RED"),"RED",IF(AND(R23="RED",S23="AMBER",T23="AMBER",U23="AMBER"),"RED",IF(AND(R23="RED",S23="AMBER",T23="AMBER",U23="RED"),"RED",IF(AND(R23="RED",S23="AMBER",T23="RED",U23="AMBER"),"RED",IF(AND(R23="RED",S23="AMBER",T23="RED",U23="RED"),"RED",IF(AND(R23="RED",S23="RED",T23="AMBER",U23="AMBER"),"RED",IF(AND(R23="RED",S23="RED",T23="AMBER",U23="RED"),"RED",IF(AND(R23="RED",S23="RED",T23="RED",U23="AMBER"),"RED",IF(AND(R23="RED",S23="RED",T23="RED",U23="RED"),"RED",IF(AND(S23="AMBER",T23="AMBER",U23="AMBER"),"RED",IF(AND(S23="AMBER",T23="AMBER",U23="RED"),"RED",IF(AND(S23="AMBER",T23="RED",U23="AMBER"),"RED",IF(AND(S23="AMBER",T23="RED",U23="RED"),"RED",IF(AND(S23="RED",T23="AMBER",U23="AMBER"),"RED",IF(AND(S23="RED",T23="AMBER",U23="RED"),"RED",IF(AND(S23="RED",T23="RED",U23="AMBER"),"RED",IF(AND(S23="RED",T23="RED",U23="RED"),"RED",IF(AND(S23="AMBER",T23="AMBER",U23="AMBER"),"RED",IF(AND(S23="AMBER",T23="AMBER",U23="RED"),"RED",IF(AND(S23="AMBER",T23="RED",U23="AMBER"),"RED",IF(AND(S23="AMBER",T23="RED",U23="RED"),"RED",IF(AND(S23="RED",T23="AMBER",U23="AMBER"),"RED",IF(AND(S23="RED",T23="AMBER",U23="RED"),"RED",IF(AND(S23="RED",T23="RED",U23="AMBER"),"RED",IF(AND(S23="RED",T23="RED",U23="RED"),"RED",IF(G23>=B23,"GREEN",IF(G23="","NA",IF(AND(G23<B23,G23>=C23),"AMBER",IF(G23<C23,"RED"))))))))))))))))))))))))))))))))))))) -> GREEN | Z23: 1 | AA23: 1
A24: Maximum 31 day wait for subsequent treatment where the treatment is an anti-cancer drug regime | B24: 0.98 | C24: 0.93 | D24: =CUBEVALUE("PROD_CUBE","[Commissioners].[Commissioners by Area Team].[Org Name].["&$D4&"]","[Date].[Fiscal Q Hierarchy].[All].["&$A5&"].["&$D5&"]","[Cancer Selections].[Cancer Hierarchy].[All].[Treated < 31 Days Subsequent Treatment].[ Drug Treatments]","[Measures].[Actual Current Comm Cancer Percentage Treated within Target - Qtrly]") -> 1 | E24: =CUBEVALUE("PROD_CUBE","[Commissioners].[Commissioners by Area Team].[Org Name].["&$D4&"]","[Date].[Fiscal Q Hierarchy].[All].["&$A5&"].["&$E5&"]","[Cancer Selections].[Cancer Hierarchy].[All].[Treated < 31 Days Subsequent Treatment].[ Drug Treatments]","[Measures].[Actual Current Comm Cancer Percentage Treated within Target - Qtrly]") -> 1 | F24: =CUBEVALUE("PROD_CUBE","[Commissioners].[Commissioners by Area Team].[Org Name].["&$D4&"]","[Date].[Fiscal Q Hierarchy].[All].["&$A5&"].["&$F5&"]","[Cancer Selections].[Cancer Hierarchy].[All].[Treated < 31 Days Subsequent Treatment].[ Drug Treatments]","[Measures].[Actual Current Comm Cancer Percentage Treated within Target - Qtrly]") -> 1 | G24: =CUBEVALUE("PROD_CUBE","[Commissioners].[Commissioners by Area Team].[Org Name].["&$D4&"]","[Date].[Fiscal Q Hierarchy].[All].["&$A5&"].["&$G5&"]","[Cancer Selections].[Cancer Hierarchy].[All].[Treated < 31 Days Subsequent Treatment].[ Drug Treatments]","[Measures].[Actual Current Comm Cancer Percentage Treated within Target - Qtrly]") -> 1 | R24: =IF(D24>=B24,"GREEN",IF(D24="","NA",IF(AND(D24<B24,D24>=C24),"AMBER",IF(D24<C24,"RED")))) -> GREEN | S24: =IF(E24>=B24,"GREEN",IF(E24="","NA",IF(AND(E24<B24,E24>=C24),"AMBER",IF(E24<C24,"RED")))) -> GREEN | T24: =IF(F24="","NA",IF(F24>=B24,"GREEN",IF(AND(F24<B24,F24>=C24),"AMBER",IF(F24<C24,"RED")))) -> GREEN | U24: =IF(G24="","NA",IF(G24>=B24,"GREEN",IF(AND(G24<B24,G24>=C24),"AMBER",IF(G24<C24,"RED")))) -> GREEN | V24: =IF(F24="","NA",IF(AND(R24="AMBER",S24="AMBER",T24="AMBER"),"RED",IF(AND(R24="AMBER",S24="AMBER",T24="RED"),"RED",IF(AND(R24="AMBER",S24="RED",T24="AMBER"),"RED",IF(AND(R24="AMBER",S24="RED",T24="RED"),"RED",IF(AND(R24="RED",S24="AMBER",T24="AMBER"),"RED",IF(AND(R24="RED",S24="AMBER",T24="RED"),"RED",IF(AND(R24="RED",S24="RED",T24="AMBER"),"RED",IF(F24>=B24,"GREEN",IF(F24="","NA",IF(AND(F24<B24,F24>=C24),"AMBER",IF(F24<C24,"RED")))))))))))) -> GREEN | W24: =IF(G24="","NA",IF(AND(R24="AMBER",S24="AMBER",T24="AMBER",U24="AMBER"),"RED",IF(AND(R24="AMBER",S24="AMBER",T24="AMBER",U24="RED"),"RED",IF(AND(R24="AMBER",S24="AMBER",T24="RED",U24="AMBER"),"RED",IF(AND(R24="AMBER",S24="AMBER",T24="RED",U24="RED"),"RED",IF(AND(R24="AMBER",S24="RED",T24="AMBER",U24="AMBER"),"RED",IF(AND(R24="AMBER",S24="RED",T24="AMBER",U24="RED"),"RED",IF(AND(R24="AMBER",S24="RED",T24="RED",U24="AMBER"),"RED",IF(AND(R24="AMBER",S24="RED",T24="RED",U24="RED"),"RED",IF(AND(R24="RED",S24="AMBER",T24="AMBER",U24="AMBER"),"RED",IF(AND(R24="RED",S24="AMBER",T24="AMBER",U24="RED"),"RED",IF(AND(R24="RED",S24="AMBER",T24="RED",U24="AMBER"),"RED",IF(AND(R24="RED",S24="AMBER",T24="RED",U24="RED"),"RED",IF(AND(R24="RED",S24="RED",T24="AMBER",U24="AMBER"),"RED",IF(AND(R24="RED",S24="RED",T24="AMBER",U24="RED"),"RED",IF(AND(R24="RED",S24="RED",T24="RED",U24="AMBER"),"RED",IF(AND(R24="RED",S24="RED",T24="RED",U24="RED"),"RED",IF(AND(S24="AMBER",T24="AMBER",U24="AMBER"),"RED",IF(AND(S24="AMBER",T24="AMBER",U24="RED"),"RED",IF(AND(S24="AMBER",T24="RED",U24="AMBER"),"RED",IF(AND(S24="AMBER",T24="RED",U24="RED"),"RED",IF(AND(S24="RED",T24="AMBER",U24="AMBER"),"RED",IF(AND(S24="RED",T24="AMBER",U24="RED"),"RED",IF(AND(S24="RED",T24="RED",U24="AMBER"),"RED",IF(AND(S24="RED",T24="RED",U24="RED"),"RED",IF(AND(S24="AMBER",T24="AMBER",U24="AMBER"),"RED",IF(AND(S24="AMBER",T24="AMBER",U24="RED"),"RED",IF(AND(S24="AMBER",T24="RED",U24="AMBER"),"RED",IF(AND(S24="AMBER",T24="RED",U24="RED"),"RED",IF(AND(S24="RED",T24="AMBER",U24="AMBER"),"RED",IF(AND(S24="RED",T24="AMBER",U24="RED"),"RED",IF(AND(S24="RED",T24="RED",U24="AMBER"),"RED",IF(AND(S24="RED",T24="RED",U24="RED"),"RED",IF(G24>=B24,"GREEN",IF(G24="","NA",IF(AND(G24<B24,G24>=C24),"AMBER",IF(G24<C24,"RED"))))))))))))))))))))))))))))))))))))) -> GREEN | Z24: 1 | AA24: 1
A25: Maximum 31 day wait for subsequent treatment where the treatment is a course of radiotherapy | B25: 0.94 | C25: 0.89 | D25: =CUBEVALUE("PROD_CUBE","[Commissioners].[Commissioners by Area Team].[Org Name].["&$D4&"]","[Date].[Fiscal Q Hierarchy].[All].["&$A5&"].["&$D5&"]","[Cancer Selections].[Cancer Hierarchy].[Selection Key].&[404]","[Measures].[Actual Current Comm Cancer Percentage Treated within Target - Qtrly]") -> 0.9836065574 | E25: =CUBEVALUE("PROD_CUBE","[Commissioners].[Commissioners by Area Team].[Org Name].["&$D4&"]","[Date].[Fiscal Q Hierarchy].[All].["&$A5&"].["&$E5&"]","[Cancer Selections].[Cancer Hierarchy].[Selection Key].&[404]","[Measures].[Actual Current Comm Cancer Percentage Treated within Target - Qtrly]") -> 0.9915966387 | F25: =CUBEVALUE("PROD_CUBE","[Commissioners].[Commissioners by Area Team].[Org Name].["&$D4&"]","[Date].[Fiscal Q Hierarchy].[All].["&$A5&"].["&$F5&"]","[Cancer Selections].[Cancer Hierarchy].[Selection Key].&[404]","[Measures].[Actual Current Comm Cancer Percentage Treated within Target - Qtrly]") -> 1 | G25: =CUBEVALUE("PROD_CUBE","[Commissioners].[Commissioners by Area Team].[Org Name].["&$D4&"]","[Date].[Fiscal Q Hierarchy].[All].["&$A5&"].["&$G5&"]","[Cancer Selections].[Cancer Hierarchy].[Selection Key].&[404]","[Measures].[Actual Current Comm Cancer Percentage Treated within Target - Qtrly]") -> 1 | R25: =IF(D25>=B25,"GREEN",IF(D25="","NA",IF(AND(D25<B25,D25>=C25),"AMBER",IF(D25<C25,"RED")))) -> GREEN | S25: =IF(E25>=B25,"GREEN",IF(E25="","NA",IF(AND(E25<B25,E25>=C25),"AMBER",IF(E25<C25,"RED")))) -> GREEN | T25: =IF(F25="","NA",IF(F25>=B25,"GREEN",IF(AND(F25<B25,F25>=C25),"AMBER",IF(F25<C25,"RED")))) -> GREEN | U25: =IF(G25="","NA",IF(G25>=B25,"GREEN",IF(AND(G25<B25,G25>=C25),"AMBER",IF(G25<C25,"RED")))) -> GREEN | V25: =IF(F25="","NA",IF(AND(R25="AMBER",S25="AMBER",T25="AMBER"),"RED",IF(AND(R25="AMBER",S25="AMBER",T25="RED"),"RED",IF(AND(R25="AMBER",S25="RED",T25="AMBER"),"RED",IF(AND(R25="AMBER",S25="RED",T25="RED"),"RED",IF(AND(R25="RED",S25="AMBER",T25="AMBER"),"RED",IF(AND(R25="RED",S25="AMBER",T25="RED"),"RED",IF(AND(R25="RED",S25="RED",T25="AMBER"),"RED",IF(F25>=B25,"GREEN",IF(F25="","NA",IF(AND(F25<B25,F25>=C25),"AMBER",IF(F25<C25,"RED")))))))))))) -> GREEN | W25: =IF(G25="","NA",IF(AND(R25="AMBER",S25="AMBER",T25="AMBER",U25="AMBER"),"RED",IF(AND(R25="AMBER",S25="AMBER",T25="AMBER",U25="RED"),"RED",IF(AND(R25="AMBER",S25="AMBER",T25="RED",U25="AMBER"),"RED",IF(AND(R25="AMBER",S25="AMBER",T25="RED",U25="RED"),"RED",IF(AND(R25="AMBER",S25="RED",T25="AMBER",U25="AMBER"),"RED",IF(AND(R25="AMBER",S25="RED",T25="AMBER",U25="RED"),"RED",IF(AND(R25="AMBER",S25="RED",T25="RED",U25="AMBER"),"RED",IF(AND(R25="AMBER",S25="RED",T25="RED",U25="RED"),"RED",IF(AND(R25="RED",S25="AMBER",T25="AMBER",U25="AMBER"),"RED",IF(AND(R25="RED",S25="AMBER",T25="AMBER",U25="RED"),"RED",IF(AND(R25="RED",S25="AMBER",T25="RED",U25="AMBER"),"RED",IF(AND(R25="RED",S25="AMBER",T25="RED",U25="RED"),"RED",IF(AND(R25="RED",S25="RED",T25="AMBER",U25="AMBER"),"RED",IF(AND(R25="RED",S25="RED",T25="AMBER",U25="RED"),"RED",IF(AND(R25="RED",S25="RED",T25="RED",U25="AMBER"),"RED",IF(AND(R25="RED",S25="RED",T25="RED",U25="RED"),"RED",IF(AND(S25="AMBER",T25="AMBER",U25="AMBER"),"RED",IF(AND(S25="AMBER",T25="AMBER",U25="RED"),"RED",IF(AND(S25="AMBER",T25="RED",U25="AMBER"),"RED",IF(AND(S25="AMBER",T25="RED",U25="RED"),"RED",IF(AND(S25="RED",T25="AMBER",U25="AMBER"),"RED",IF(AND(S25="RED",T25="AMBER",U25="RED"),"RED",IF(AND(S25="RED",T25="RED",U25="AMBER"),"RED",IF(AND(S25="RED",T25="RED",U25="RED"),"RED",IF(AND(S25="AMBER",T25="AMBER",U25="AMBER"),"RED",IF(AND(S25="AMBER",T25="AMBER",U25="RED"),"RED",IF(AND(S25="AMBER",T25="RED",U25="AMBER"),"RED",IF(AND(S25="AMBER",T25="RED",U25="RED"),"RED",IF(AND(S25="RED",T25="AMBER",U25="AMBER"),"RED",IF(AND(S25="RED",T25="AMBER",U25="RED"),"RED",IF(AND(S25="RED",T25="RED",U25="AMBER"),"RED",IF(AND(S25="RED",T25="RED",U25="RED"),"RED",IF(G25>=B25,"GREEN",IF(G25="","NA",IF(AND(G25<B25,G25>=C25),"AMBER",IF(G25<C25,"RED"))))))))))))))))))))))))))))))))))))) -> GREEN | Z25: 1 | AA25: 1
A26: Cancer waits - 62 days | Z26: FALSE | AA26: FALSE
A27: Maximum (62 day) wait from urgent GP referral to first definitive treatment for cancer | B27: 0.85 | C27: 0.8 | D27: =CUBEVALUE("PROD_CUBE","[Commissioners].[Commissioners by Area Team].[Org Name].["&$D4&"]","[Date].[Fiscal Q Hierarchy].[All].["&$A5&"].["&$D5&"]","[Cancer Selections].[Cancer Hierarchy].[Cancer Record Description].&[Treated < 62 Days - including rare cancers]","[Measures].[Actual Current Comm Cancer Percentage Treated within Target - Qtrly]") -> 0.9365079365 | E27: =CUBEVALUE("PROD_CUBE","[Commissioners].[Commissioners by Area Team].[Org Name].["&$D4&"]","[Date].[Fiscal Q Hierarchy].[All].["&$A5&"].["&$E5&"]","[Cancer Selections].[Cancer Hierarchy].[Cancer Record Description].&[Treated < 62 Days - including rare cancers]","[Measures].[Actual Current Comm Cancer Percentage Treated within Target - Qtrly]") -> 0.896 | F27: =CUBEVALUE("PROD_CUBE","[Commissioners].[Commissioners by Area Team].[Org Name].["&$D4&"]","[Date].[Fiscal Q Hierarchy].[All].["&$A5&"].["&$F5&"]","[Cancer Selections].[Cancer Hierarchy].[Cancer Record Description].&[Treated < 62 Days - including rare cancers]","[Measures].[Actual Current Comm Cancer Percentage Treated within Target - Qtrly]") -> 0.8785714286 | G27: =CUBEVALUE("PROD_CUBE","[Commissioners].[Commissioners by Area Team].[Org Name].["&$D4&"]","[Date].[Fiscal Q Hierarchy].[All].["&$A5&"].["&$G5&"]","[Cancer Selections].[Cancer Hierarchy].[Cancer Record Description].&[Treated < 62 Days - including rare cancers]","[Measures].[Actual Current Comm Cancer Percentage Treated within Target - Qtrly]") -> 0.8524590164 | I27: =IF(AND($D$27="",$E$27="",$F$27="",$G$27=""),"Cancer Low Volume In Q1 ,Q2,Q3,Q4",IF(AND($E$27="",$F$27="",$G$27=""),"Cancer Low Volume In Q2,Q3,Q4",IF(AND($D$27="",$E$27="",$F$27=""),"Cancer Low Volume In Q1 ,Q2,Q3",IF(AND($E$27="",$F$27=""),"Cancer Low Volume In Q2,Q3",IF(AND($D$27="",$F$27="",$G$27=""),"Cancer Low Volume In Q1,Q3,Q4",IF(AND($D$27="",$F$27=""),"Cancer Low Volume In Q1 ,Q3",IF(AND($D$27="",$E$27="",$G$27=""),"Cancer Low Volume In Q1 ,Q2,Q4",IF(AND($D$27="",$E$27=""),"Cancer Low Volume In Q1 ,Q2",IF(AND($D$27="",$G$27=""),"Cancer Low Volume In Q1 ,Q4",IF($D$27="","Cancer Low Volume In Q1",IF(AND($E$27="",$G$27=""),"Cancer Low Volume In Q2 ,Q4",IF(AND($F$27="",$G$27=""),"Cancer Low Volume In Q3 ,Q4",IF($G$27="","Cancer Low Volume In Q4",IF($F$27="","Cancer Low Volume In Q3",IF(OR($D$27="",$F$27="",$G$27=""),"Cancer Low Volume In Q1 ,Q3,Q4",IF(AND($D$27="",$F$27="",),"Cancer Low Volume In Q1 ,Q3",IF($E$27="","Cancer Low Volume In Q2",IF(AND($D$27="",$E$27="",$F$27="",$G$27=""),"Cancer Low Volume In Q1 ,Q2,Q3,Q4","Cancer Waits 62 days")))))))))))))))))) -> Cancer Waits 62 days | R27: =IF(D27="","NA",IF(D27>=$B$27,"GREEN",IF(AND(D27<$B$27,D27>=$C$27),"AMBER",IF(D27<C27,"RED")))) -> GREEN | S27: =IF(E27="","NA",IF(E27>=$B$27,"GREEN",IF(AND(E27<$B$27,E27>=$C$27),"AMBER",IF(E27<C27,"RED")))) -> GREEN | T27: =IF(F27="","NA",IF(F27>=$B$27,"GREEN",IF(AND(F27<$B$27,F27>=$C$27),"AMBER",IF(F27<C27,"RED")))) -> GREEN | U27: =IF(G27="","NA",IF(G27>=$B$27,"GREEN",IF(AND(G27<$B$27,G27>=$C$27),"AMBER",IF(G27<C27,"RED")))) -> GREEN | V27: =IF(F27="","NA",IF(AND(R27="AMBER",S27="AMBER",T27="AMBER"),"RED",IF(AND(R27="AMBER",S27="AMBER",T27="RED"),"RED",IF(AND(R27="AMBER",S27="RED",T27="AMBER"),"RED",IF(AND(R27="AMBER",S27="RED",T27="RED"),"RED",IF(AND(R27="RED",S27="AMBER",T27="AMBER"),"RED",IF(AND(R27="RED",S27="AMBER",T27="RED"),"RED",IF(AND(R27="RED",S27="RED",T27="AMBER"),"RED",IF(F27>=B27,"GREEN",IF(F27="","NA",IF(AND(F27<B27,F27>=C27),"AMBER",IF(F27<C27,"RED")))))))))))) -> GREEN | W27: =IF(G27="","NA",IF(AND(R27="AMBER",S27="AMBER",T27="AMBER",U27="AMBER"),"RED",IF(AND(R27="AMBER",S27="AMBER",T27="AMBER",U27="RED"),"RED",IF(AND(R27="AMBER",S27="AMBER",T27="RED",U27="AMBER"),"RED",IF(AND(R27="AMBER",S27="AMBER",T27="RED",U27="RED"),"RED",IF(AND(R27="AMBER",S27="RED",T27="AMBER",U27="AMBER"),"RED",IF(AND(R27="AMBER",S27="RED",T27="AMBER",U27="RED"),"RED",IF(AND(R27="AMBER",S27="RED",T27="RED",U27="AMBER"),"RED",IF(AND(R27="AMBER",S27="RED",T27="RED",U27="RED"),"RED",IF(AND(R27="RED",S27="AMBER",T27="AMBER",U27="AMBER"),"RED",IF(AND(R27="RED",S27="AMBER",T27="AMBER",U27="RED"),"RED",IF(AND(R27="RED",S27="AMBER",T27="RED",U27="AMBER"),"RED",IF(AND(R27="RED",S27="AMBER",T27="RED",U27="RED"),"RED",IF(AND(R27="RED",S27="RED",T27="AMBER",U27="AMBER"),"RED",IF(AND(R27="RED",S27="RED",T27="AMBER",U27="RED"),"RED",IF(AND(R27="RED",S27="RED",T27="RED",U27="AMBER"),"RED",IF(AND(R27="RED",S27="RED",T27="RED",U27="RED"),"RED",IF(AND(S27="AMBER",27="AMBER",27="AMBER"),"RED",IF(AND(S27="AMBER",T27="AMBER",U27="RED"),"RED",IF(AND(S27="AMBER",T27="RED",U27="AMBER"),"RED",IF(AND(S27="AMBER",T27="RED",U27="RED"),"RED",IF(AND(S27="RED",T27="AMBER",U27="AMBER"),"RED",IF(AND(S27="RED",T27="AMBER",U27="RED"),"RED",IF(AND(S27="RED",T27="RED",U27="AMBER"),"RED",IF(AND(S27="RED",T27="RED",U27="RED"),"RED",IF(AND(S27="AMBER",T27="AMBER",U27="AMBER"),"RED",IF(AND(S27="AMBER",T27="AMBER",U27="RED"),"RED",IF(AND(S27="AMBER",T27="RED",U27="AMBER"),"RED",IF(AND(S27="AMBER",T27="RED",U27="RED"),"RED",IF(AND(S27="RED",T27="AMBER",U27="AMBER"),"RED",IF(AND(S27="RED",T27="AMBER",U27="RED"),"RED",IF(AND(S27="RED",T27="RED",U27="AMBER"),"RED",IF(AND(S27="RED",T27="RED",U27="RED"),"RED",IF(G27>=$B$27,"GREEN",IF(G27="","NA",IF(AND(G27<$B$27,G27>=$C$27),"AMBER",IF(G27<C27,"RED"))))))))))))))))))))))))))))))))))))) -> GREEN | Z27: 1 | AA27: 1
A28: Maximum 62 day wait from referral from an NHS screening service to first definitive treatment for all cancers | B28: 0.9 | C28: 0.85 | D28: =CUBEVALUE("PROD_CUBE","[Commissioners].[Commissioners by Area Team].[Org Name].["&$D4&"]","[Date].[Fiscal Q Hierarchy].[All].["&$A5&"].["&$D5&"]","[Cancer Selections].[Cancer Hierarchy].[Cancer Record Description].&[Treated <62 Days - Screening]","[Measures].[Actual Current Comm Cancer Percentage Treated within Target - Qtrly]") -> 1 | E28: =CUBEVALUE("PROD_CUBE","[Commissioners].[Commissioners by Area Team].[Org Name].["&$D4&"]","[Date].[Fiscal Q Hierarchy].[All].["&$A5&"].["&$E5&"]","[Cancer Selections].[Cancer Hierarchy].[Cancer Record Description].&[Treated <62 Days - Screening]","[Measures].[Actual Current Comm Cancer Percentage Treated within Target - Qtrly]") -> 0.9642857143 | F28: =CUBEVALUE("PROD_CUBE","[Commissioners].[Commissioners by Area Team].[Org Name].["&$D4&"]","[Date].[Fiscal Q Hierarchy].[All].["&$A5&"].["&$F5&"]","[Cancer Selections].[Cancer Hierarchy].[Cancer Record Description].&[Treated <62 Days - Screening]","[Measures].[Actual Current Comm Cancer Percentage Treated within Target - Qtrly]") -> 0.9032258065 | G28: =CUBEVALUE("PROD_CUBE","[Commissioners].[Commissioners by Area Team].[Org Name].["&$D4&"]","[Date].[Fiscal Q Hierarchy].[All].["&$A5&"].["&$G5&"]","[Cancer Selections].[Cancer Hierarchy].[Cancer Record Description].&[Treated <62 Days - Screening]","[Measures].[Actual Current Comm Cancer Percentage Treated within Target - Qtrly]") -> 0.8823529412 | I28: =IF(AND($D$28="",$E$28="",$F$28="",$G$28=""),"Cancer Low Volume In Q1 ,Q2,Q3,Q4",IF(AND($E$28="",$F$28="",$G$28=""),"Cancer Low Volume In Q2,Q3,Q4",IF(AND($D$28="",$E$28="",$F$28=""),"Cancer Low Volume In Q1 ,Q2,Q3",IF(AND($E$28="",$F$28=""),"Cancer Low Volume In Q2,Q3",IF(AND($D$28="",$F$28="",$G$28=""),"Cancer Low Volume In Q1,Q3,Q4",IF(AND($D$28="",$F$28=""),"Cancer Low Volume In Q1 ,Q3",IF(AND($D$28="",$E$28="",$G$28=""),"Cancer Low Volume In Q1 ,Q2,Q4",IF(AND($D$28="",$E$28=""),"Cancer Low Volume In Q1 ,Q2",IF(AND($D$28="",$G$28=""),"Cancer Low Volume In Q1 ,Q4",IF($D$28="","Cancer Low Volume In Q1",IF(AND($E$28="",$G$28=""),"Cancer Low Volume In Q2 ,Q4",IF(AND($F$28="",$G$28=""),"Cancer Low Volume In Q3 ,Q4",IF($G$28="","Cancer Low Volume In Q4",IF($F$28="","Cancer Low Volume In Q3",IF(OR($D$28="",$F$28="",$G$28=""),"Cancer Low Volume In Q1 ,Q3,Q4",IF(AND($D$28="",$F$27="",),"Cancer Low Volume In Q1 ,Q3",IF($E$28="","Cancer Low Volume In Q2",IF(AND($D$28="",$E$28="",$F$28="",$G$28=""),"Cancer Low Volume In Q1 ,Q2,Q3,Q4","Cancer Waits 62 days")))))))))))))))))) -> Cancer Waits 62 days | R28: =IF(D28="","NA",IF(D28>=B28,"GREEN",IF(AND(D28<B28,D28>=C28),"AMBER",IF(D28<C28,"RED")))) -> GREEN | S28: =IF(E28="","NA",IF(E28>=B28,"GREEN",IF(AND(E28<B28,E28>=C28),"AMBER",IF(E28<C28,"RED")))) -> GREEN | T28: =IF(F28="","NA",IF(F28>=B28,"GREEN",IF(AND(F28<B28,F28>=C28),"AMBER",IF(F28<C28,"RED")))) -> GREEN | U28: =IF(G28="","NA",IF(G28>=B28,"GREEN",IF(AND(G28<B28,G28>=C28),"AMBER",IF(G28<C28,"RED")))) -> AMBER | V28: =IF(F28="","NA",IF(AND(R28="AMBER",S28="AMBER",T28="AMBER"),"RED",IF(AND(R28="AMBER",S28="AMBER",T28="RED"),"RED",IF(AND(R28="AMBER",S28="RED",T28="AMBER"),"RED",IF(AND(R28="AMBER",S28="RED",T28="RED"),"RED",IF(AND(R28="RED",S28="AMBER",T28="AMBER"),"RED",IF(AND(R28="RED",S28="AMBER",T28="RED"),"RED",IF(AND(R28="RED",S28="RED",T28="AMBER"),"RED",IF(F28>=B28,"GREEN",IF(F28="","NA",IF(AND(F28<B28,F28>=C28),"AMBER",IF(F28<C28,"RED")))))))))))) -> GREEN | W28: =IF(G28="","NA",IF(AND(R28="AMBER",S28="AMBER",T28="AMBER",U28="AMBER"),"RED",IF(AND(R28="AMBER",S28="AMBER",T28="AMBER",U28="RED"),"RED",IF(AND(R28="AMBER",S28="AMBER",T28="RED",U28="AMBER"),"RED",IF(AND(R28="AMBER",S28="AMBER",T28="RED",U28="RED"),"RED",IF(AND(R28="AMBER",S28="RED",T28="AMBER",U28="AMBER"),"RED",IF(AND(R28="AMBER",S28="RED",T28="AMBER",U28="RED"),"RED",IF(AND(R28="AMBER",S28="RED",T28="RED",U28="AMBER"),"RED",IF(AND(R28="AMBER",S28="RED",T28="RED",U28="RED"),"RED",IF(AND(R28="RED",S28="AMBER",T28="AMBER",U28="AMBER"),"RED",IF(AND(R28="RED",S28="AMBER",T28="AMBER",U28="RED"),"RED",IF(AND(R28="RED",S28="AMBER",T28="RED",U28="AMBER"),"RED",IF(AND(R28="RED",S28="AMBER",T28="RED",U28="RED"),"RED",IF(AND(R28="RED",S28="RED",T28="AMBER",U28="AMBER"),"RED",IF(AND(R28="RED",S28="RED",T28="AMBER",U28="RED"),"RED",IF(AND(R28="RED",S28="RED",T28="RED",U28="AMBER"),"RED",IF(AND(R28="RED",S28="RED",T28="RED",U28="RED"),"RED",IF(AND(S28="AMBER",T28="AMBER",U28="AMBER"),"RED",IF(AND(S28="AMBER",T28="AMBER",U28="RED"),"RED",IF(AND(S28="AMBER",T28="RED",U28="AMBER"),"RED",IF(AND(S28="AMBER",T28="RED",U28="RED"),"RED",IF(AND(S28="RED",T28="AMBER",U28="AMBER"),"RED",IF(AND(S28="RED",T28="AMBER",U28="RED"),"RED",IF(AND(S28="RED",T28="RED",U28="AMBER"),"RED",IF(AND(S28="RED",T28="RED",U28="RED"),"RED",IF(AND(S28="AMBER",T28="AMBER",U28="AMBER"),"RED",IF(AND(S28="AMBER",T28="AMBER",U28="RED"),"RED",IF(AND(S28="AMBER",T28="RED",U28="AMBER"),"RED",IF(AND(S28="AMBER",T28="RED",U28="RED"),"RED",IF(AND(S28="RED",T28="AMBER",U28="AMBER"),"RED",IF(AND(S28="RED",T28="AMBER",U28="RED"),"RED",IF(AND(S28="RED",T28="RED",U28="AMBER"),"RED",IF(AND(S28="RED",T28="RED",U28="RED"),"RED",IF(G28>=B28,"GREEN",IF(G28="","NA",IF(AND(G28<B28,G28>=C28),"AMBER",IF(G28<C28,"RED"))))))))))))))))))))))))))))))))))))) -> AMBER | Z28: 1 | AA28: 2
A29: Maximum 62 day wait for first definitive treatment following a consultants decision to upgrade the priority of the patients (all cancers) | B29: No operational | C29: No operational | D29: =IFERROR(CUBEVALUE("PROD_CUBE","[Commissioners].[Commissioners by Area Team].[Org Name].["&$D4&"]","[Date].[Fiscal Q Hierarchy].[All].["&$A5&"].["&$D5&"]","[Cancer Selections].[Cancer Hierarchy].[Cancer Record Description].&[Treated <62 Days - Consultant Upgrade]","[Measures].[Actual Current Comm Cancer Percentage Treated within Target - Qtrly]"),"") -> 0.956043956 | E29: =IFERROR(CUBEVALUE("PROD_CUBE","[Commissioners].[Commissioners by Area Team].[Org Name].["&$D4&"]","[Date].[Fiscal Q Hierarchy].[All].["&$A5&"].["&$E5&"]","[Cancer Selections].[Cancer Hierarchy].[Cancer Record Description].&[Treated <62 Days - Consultant Upgrade]","[Measures].[Actual Current Comm Cancer Percentage Treated within Target - Qtrly]"),"") -> 0.9710144928 | F29: =IFERROR(CUBEVALUE("PROD_CUBE","[Commissioners].[Commissioners by Area Team].[Org Name].["&$D4&"]","[Date].[Fiscal Q Hierarchy].[All].["&$A5&"].["&$F5&"]","[Cancer Selections].[Cancer Hierarchy].[Cancer Record Description].&[Treated <62 Days - Consultant Upgrade]","[Measures].[Actual Current Comm Cancer Percentage Treated within Target - Qtrly]"),"") -> 0.9407407407 | G29: =IFERROR(CUBEVALUE("PROD_CUBE","[Commissioners].[Commissioners by Area Team].[Org Name].["&$D4&"]","[Date].[Fiscal Q Hierarchy].[All].["&$A5&"].["&$G5&"]","[Cancer Selections].[Cancer Hierarchy].[Cancer Record Description].&[Treated <62 Days - Consultant Upgrade]","[Measures].[Actual Current Comm Cancer Percentage Treated within Target - Qtrly]"),"") -> 0.953125 | Z29: FALSE | AA29: FALSE
A30: Category A ambulance calls | D30: =G4 -> YORKSHIRE AMBULANCE SERVICE NHS TRUST | Z30: FALSE | AA30: FALSE
A31: Category A calls resulting in an emergency response arriving within 8 minutes (Red 1) | B31: 0.75 | C31: 0.7 | D31: =CUBEVALUE("PROD_CUBE","[Providers].[Org Short Name].["&F4&"]","[Date].[Fiscal Q Hierarchy].[All].["&$A5&"].["&$D5&"]", "[Measures].[Percentage Red1 Responded To Within 8 Minutes]",CUBESET("PROD_CUBE","[Dim Data Status].[Data Status Hierarchy].[All].[PUBLIC]","Public data only")) -> 0.7592228234 | E31: =CUBEVALUE("PROD_CUBE","[Providers].[Org Short Name].["&F4&"]","[Date].[Fiscal Q Hierarchy].[All].["&$A5&"].["&$E5&"]", "[Measures].[Percentage Red1 Responded To Within 8 Minutes]",CUBESET("PROD_CUBE","[Dim Data Status].[Data Status Hierarchy].[All].[PUBLIC]","Public data only")) -> 0.818884685 | F31: =CUBEVALUE("PROD_CUBE","[Providers].[Org Short Name].["&F4&"]","[Date].[Fiscal Q Hierarchy].[All].["&$A5&"].["&$F5&"]", "[Measures].[Percentage Red1 Responded To Within 8 Minutes]",CUBESET("PROD_CUBE","[Dim Data Status].[Data Status Hierarchy].[All].[PUBLIC]","Public data only")) -> 0.7617307692 | G31: =CUBEVALUE("PROD_CUBE","[Providers].[Org Short Name].["&F4&"]","[Date].[Fiscal Q Hierarchy].[All].["&$A5&"].["&$G5&"]", "[Measures].[Percentage Red1 Responded To Within 8 Minutes]",CUBESET("PROD_CUBE","[Dim Data Status].[Data Status Hierarchy].[All].[PUBLIC]","Public data only")) -> 0.7391304348 | R31: =IF(D31>=B31,"GREEN",IF(D31="","NA",IF(AND(D31<B31,D31>=C31),"AMBER",IF(D31<C31,"RED")))) -> GREEN | S31: =IF(E31="","NA",IF(E31>=B31,"GREEN",IF(AND(E31<B31,E31>=C31),"AMBER",IF(E31<C31,"RED")))) -> GREEN | T31: =IF(F31="","NA",IF(F31>=B31,"GREEN",IF(AND(F31<B31,F31>=C31),"AMBER",IF(F31<C31,"RED")))) -> GREEN | U31: =IF(G31="","NA",IF(G31>=B31,"GREEN",IF(AND(G31<B31,G31>=C31),"AMBER",IF(G31<C31,"RED")))) -> AMBER | V31: =IF(F31="","NA",IF(AND(R31="AMBER",S31="AMBER",T31="AMBER"),"RED",IF(AND(R31="AMBER",S31="AMBER",T31="RED"),"RED",IF(AND(R31="AMBER",S31="RED",T31="AMBER"),"RED",IF(AND(R31="AMBER",S31="RED",T31="RED"),"RED",IF(AND(R31="RED",S31="AMBER",T31="AMBER"),"RED",IF(AND(R31="RED",S31="AMBER",T31="RED"),"RED",IF(AND(R31="RED",S31="RED",T31="AMBER"),"RED",IF(F31>=B31,"GREEN",IF(F31="","NA",IF(AND(F31<B31,F31>=C31),"AMBER",IF(F31<C31,"RED")))))))))))) -> GREEN | W31: =IF(G31="","NA",IF(AND(R31="AMBER",S31="AMBER",T31="AMBER",U31="AMBER"),"RED",IF(AND(R31="AMBER",S31="AMBER",T31="AMBER",U31="RED"),"RED",IF(AND(R31="AMBER",S31="AMBER",T31="RED",U31="AMBER"),"RED",IF(AND(R31="AMBER",S31="AMBER",T31="RED",U31="RED"),"RED",IF(AND(R31="AMBER",S31="RED",T31="AMBER",U31="AMBER"),"RED",IF(AND(R31="AMBER",S31="RED",T31="AMBER",U31="RED"),"RED",IF(AND(R31="AMBER",S31="RED",T31="RED",U31="AMBER"),"RED",IF(AND(R31="AMBER",S31="RED",T31="RED",U31="RED"),"RED",IF(AND(R31="RED",S31="AMBER",T31="AMBER",U31="AMBER"),"RED",IF(AND(R31="RED",S31="AMBER",T31="AMBER",U31="RED"),"RED",IF(AND(R31="RED",S31="AMBER",T31="RED",U31="AMBER"),"RED",IF(AND(R31="RED",S31="AMBER",T31="RED",U31="RED"),"RED",IF(AND(R31="RED",S31="RED",T31="AMBER",U31="AMBER"),"RED",IF(AND(R31="RED",S31="RED",T31="AMBER",U31="RED"),"RED",IF(AND(R31="RED",S31="RED",T31="RED",U31="AMBER"),"RED",IF(AND(R31="RED",S31="RED",T31="RED",U31="RED"),"RED",IF(AND(S31="AMBER",T31="AMBER",U31="AMBER"),"RED",IF(AND(S31="AMBER",T31="AMBER",U31="RED"),"RED",IF(AND(S31="AMBER",T31="RED",U31="AMBER"),"RED",IF(AND(S31="AMBER",T31="RED",U31="RED"),"RED",IF(AND(S31="RED",T31="AMBER",U31="AMBER"),"RED",IF(AND(S31="RED",T31="AMBER",U31="RED"),"RED",IF(AND(S31="RED",T31="RED",U31="AMBER"),"RED",IF(AND(S31="RED",T31="RED",U31="RED"),"RED",IF(AND(S31="AMBER",T31="AMBER",U31="AMBER"),"RED",IF(AND(S31="AMBER",T31="AMBER",U31="RED"),"RED",IF(AND(S31="AMBER",T31="RED",U31="AMBER"),"RED",IF(AND(S31="AMBER",T31="RED",U31="RED"),"RED",IF(AND(S31="RED",T31="AMBER",U31="AMBER"),"RED",IF(AND(S31="RED",T31="AMBER",U31="RED"),"RED",IF(AND(S31="RED",T31="RED",U31="AMBER"),"RED",IF(AND(S31="RED",T31="RED",U31="RED"),"RED",IF(G31>=B31,"GREEN",IF(G31="","NA",IF(AND(G31<B31,G31>=C31),"AMBER",IF(G31<C31,"RED"))))))))))))))))))))))))))))))))))))) -> AMBER | Z31: 1 | AA31: 2
A32: Category A calls resulting in an emergency response arriving within 8 minutes (Red 2) | B32: 0.75 | C32: 0.7 | D32: =CUBEVALUE("PROD_CUBE","[Providers].[Org Short Name].["&F4&"]","[Date].[Fiscal Q Hierarchy].[All].["&$A5&"].["&$D5&"]","[Measures].[Percentage Red2 Responded To Within 8 Minutes]",CUBESET("PROD_CUBE","[Dim Data Status].[Data Status Hierarchy].[All].[PUBLIC]","Public data only")) -> 0.7845022249 | E32: =CUBEVALUE("PROD_CUBE","[Providers].[Org Short Name].["&F4&"]","[Date].[Fiscal Q Hierarchy].[All].["&$A5&"].["&$E5&"]","[Measures].[Percentage Red2 Responded To Within 8 Minutes]",CUBESET("PROD_CUBE","[Dim Data Status].[Data Status Hierarchy].[All].[PUBLIC]","Public data only")) -> 0.7475972848 | F32: =CUBEVALUE("PROD_CUBE","[Providers].[Org Short Name].["&F4&"]","[Date].[Fiscal Q Hierarchy].[All].["&$A5&"].["&$F5&"]","[Measures].[Percentage Red2 Responded To Within 8 Minutes]",CUBESET("PROD_CUBE","[Dim Data Status].[Data Status Hierarchy].[All].[PUBLIC]","Public data only")) -> 0.7321936436 | G32: =CUBEVALUE("PROD_CUBE","[Providers].[Org Short Name].["&F4&"]","[Date].[Fiscal Q Hierarchy].[All].["&$A5&"].["&$G5&"]","[Measures].[Percentage Red2 Responded To Within 8 Minutes]",CUBESET("PROD_CUBE","[Dim Data Status].[Data Status Hierarchy].[All].[PUBLIC]","Public data only")) -> 0.7411645015 | R32: =IF(D32>=B32,"GREEN",IF(D32="","NA",IF(AND(D32<B32,D32>=C32),"AMBER",IF(D32<C32,"RED")))) -> GREEN | S32: =IF(E32="","NA",IF(E32>=B32,"GREEN",IF(AND(E32<B32,E32>=C32),"AMBER",IF(E32<C32,"RED")))) -> AMBER | T32: =IF(F32="","NA",IF(F32>=B32,"GREEN",IF(AND(F32<B32,F32>=C32),"AMBER",IF(F32<C32,"RED")))) -> AMBER | U32: =IF(G32="","NA",IF(G32>=B32,"GREEN",IF(AND(G32<B32,G32>=C32),"AMBER",IF(G32<C32,"RED")))) -> AMBER | V32: =IF(F32="","NA",IF(AND(R32="AMBER",S32="AMBER",T32="AMBER"),"RED",IF(AND(R32="AMBER",S32="AMBER",T32="RED"),"RED",IF(AND(R32="AMBER",S32="RED",T32="AMBER"),"RED",IF(AND(R32="AMBER",S32="RED",T32="RED"),"RED",IF(AND(R32="RED",S32="AMBER",T32="AMBER"),"RED",IF(AND(R32="RED",S32="AMBER",T32="RED"),"RED",IF(AND(R32="RED",S32="RED",T32="AMBER"),"RED",IF(F32>=B32,"GREEN",IF(F32="","NA",IF(AND(F32<B32,F32>=C32),"AMBER",IF(F32<C32,"RED")))))))))))) -> AMBER | W32: =IF(G32="","NA",IF(AND(R32="AMBER",S32="AMBER",T32="AMBER",U32="AMBER"),"RED",IF(AND(R32="AMBER",S32="AMBER",T32="AMBER",U32="RED"),"RED",IF(AND(R32="AMBER",S32="AMBER",T32="RED",U32="AMBER"),"RED",IF(AND(R32="AMBER",S32="AMBER",T32="RED",U32="RED"),"RED",IF(AND(R32="AMBER",S32="RED",T32="AMBER",U32="AMBER"),"RED",IF(AND(R32="AMBER",S32="RED",T32="AMBER",U32="RED"),"RED",IF(AND(R32="AMBER",S32="RED",T32="RED",U32="AMBER"),"RED",IF(AND(R32="AMBER",S32="RED",T32="RED",U32="RED"),"RED",IF(AND(R32="RED",S32="AMBER",T32="AMBER",U32="AMBER"),"RED",IF(AND(R32="RED",S32="AMBER",T32="AMBER",U32="RED"),"RED",IF(AND(R32="RED",S32="AMBER",T32="RED",U32="AMBER"),"RED",IF(AND(R32="RED",S32="AMBER",T32="RED",U32="RED"),"RED",IF(AND(R32="RED",S32="RED",T32="AMBER",U32="AMBER"),"RED",IF(AND(R32="RED",S32="RED",T32="AMBER",U32="RED"),"RED",IF(AND(R32="RED",S32="RED",T32="RED",U32="AMBER"),"RED",IF(AND(R32="RED",S32="RED",T32="RED",U32="RED"),"RED",IF(AND(S32="AMBER",T32="AMBER",U32="AMBER"),"RED",IF(AND(S32="AMBER",T32="AMBER",U32="RED"),"RED",IF(AND(S32="AMBER",T32="RED",U32="AMBER"),"RED",IF(AND(S32="AMBER",T32="RED",U32="RED"),"RED",IF(AND(S32="RED",T32="AMBER",U32="AMBER"),"RED",IF(AND(S32="RED",T32="AMBER",U32="RED"),"RED",IF(AND(S32="RED",T32="RED",U32="AMBER"),"RED",IF(AND(S32="RED",T32="RED",U32="RED"),"RED",IF(AND(S32="AMBER",T32="AMBER",U32="AMBER"),"RED",IF(AND(S32="AMBER",T32="AMBER",U32="RED"),"RED",IF(AND(S32="AMBER",T32="RED",U32="AMBER"),"RED",IF(AND(S32="AMBER",T32="RED",U32="RED"),"RED",IF(AND(S32="RED",T32="AMBER",U32="AMBER"),"RED",IF(AND(S32="RED",T32="AMBER",U32="RED"),"RED",IF(AND(S32="RED",T32="RED",U32="AMBER"),"RED",IF(AND(S32="RED",T32="RED",U32="RED"),"RED",IF(G32>=B32,"GREEN",IF(G32="","NA",IF(AND(G32<B32,G32>=C32),"AMBER",IF(G32<C32,"RED"))))))))))))))))))))))))))))))))))))) -> RED | Z32: 2 | AA32: 3
A33: Category A calls resulting in an ambulance arriving at the scene within 19 minutes | B33: 0.95 | C33: 0.9 | D33: =CUBEVALUE("PROD_CUBE","[Providers].[Org Short Name].["&F4&"]","[Date].[Fiscal Q Hierarchy].[All].["&$A5&"].["&$D5&"]","[Measures].[Percentage Responded To Within 19 Minutes]",CUBESET("PROD_CUBE","[Dim Data Status].[Data Status Hierarchy].[All].[PUBLIC]","Public data only")) -> 0.9767833476 | E33: =CUBEVALUE("PROD_CUBE","[Providers].[Org Short Name].["&F4&"]","[Date].[Fiscal Q Hierarchy].[All].["&$A5&"].["&$E5&"]","[Measures].[Percentage Responded To Within 19 Minutes]",CUBESET("PROD_CUBE","[Dim Data Status].[Data Status Hierarchy].[All].[PUBLIC]","Public data only")) -> 0.9726637194 | F33: =CUBEVALUE("PROD_CUBE","[Providers].[Org Short Name].["&F4&"]","[Date].[Fiscal Q Hierarchy].[All].["&$A5&"].["&$F5&"]","[Measures].[Percentage Responded To Within 19 Minutes]",CUBESET("PROD_CUBE","[Dim Data Status].[Data Status Hierarchy].[All].[PUBLIC]","Public data only")) -> 0.9707362078 | G33: =CUBEVALUE("PROD_CUBE","[Providers].[Org Short Name].["&F4&"]","[Date].[Fiscal Q Hierarchy].[All].["&$A5&"].["&$G5&"]","[Measures].[Percentage Responded To Within 19 Minutes]",CUBESET("PROD_CUBE","[Dim Data Status].[Data Status Hierarchy].[All].[PUBLIC]","Public data only")) -> 0.9715972508 | R33: =IF(D33="","NA",IF(D33>=B33,"GREEN",IF(AND(D33<B33,D33>=C33),"AMBER",IF(D33<C33,"RED")))) -> GREEN | S33: =IF(E33="","NA",IF(E33>=B33,"GREEN",IF(AND(E33<B33,E33>=C33),"AMBER",IF(E33<C33,"RED")))) -> GREEN | T33: =IF(F33="","NA",IF(F33>=B33,"GREEN",IF(AND(F33<B33,F33>=C33),"AMBER",IF(F33<C33,"RED")))) -> GREEN | U33: =IF(G33="","NA",IF(G33>=B33,"GREEN",IF(AND(G33<B33,G33>=C33),"AMBER",IF(G33<C33,"RED")))) -> GREEN | V33: =IF(F33="","NA",IF(AND(R33="AMBER",S33="AMBER",T33="AMBER"),"RED",IF(AND(R33="AMBER",S33="AMBER",T33="RED"),"RED",IF(AND(R33="AMBER",S33="RED",T33="AMBER"),"RED",IF(AND(R33="AMBER",S33="RED",T33="RED"),"RED",IF(AND(R33="RED",S33="AMBER",T33="AMBER"),"RED",IF(AND(R33="RED",S33="AMBER",T33="RED"),"RED",IF(AND(R33="RED",S33="RED",T33="AMBER"),"RED",IF(F33>=B33,"GREEN",IF(F33="","NA",IF(AND(F33<B33,F33>=C33),"AMBER",IF(F33<C33,"RED")))))))))))) -> GREEN | W33: =IF(G33="","NA",IF(AND(R33="AMBER",S33="AMBER",T33="AMBER",U33="AMBER"),"RED",IF(AND(R33="AMBER",S33="AMBER",T33="AMBER",U33="RED"),"RED",IF(AND(R33="AMBER",S33="AMBER",T33="RED",U33="AMBER"),"RED",IF(AND(R33="AMBER",S33="AMBER",T33="RED",U33="RED"),"RED",IF(AND(R33="AMBER",S33="RED",T33="AMBER",U33="AMBER"),"RED",IF(AND(R33="AMBER",S33="RED",T33="AMBER",U33="RED"),"RED",IF(AND(R33="AMBER",S33="RED",T33="RED",U33="AMBER"),"RED",IF(AND(R33="AMBER",S33="RED",T33="RED",U33="RED"),"RED",IF(AND(R33="RED",S33="AMBER",T33="AMBER",U33="AMBER"),"RED",IF(AND(R33="RED",S33="AMBER",T33="AMBER",U33="RED"),"RED",IF(AND(R33="RED",S33="AMBER",T33="RED",U33="AMBER"),"RED",IF(AND(R33="RED",S33="AMBER",T33="RED",U33="RED"),"RED",IF(AND(R33="RED",S33="RED",T33="AMBER",U33="AMBER"),"RED",IF(AND(R33="RED",S33="RED",T33="AMBER",U33="RED"),"RED",IF(AND(R33="RED",S33="RED",T33="RED",U33="AMBER"),"RED",IF(AND(R33="RED",S33="RED",T33="RED",U33="RED"),"RED",IF(AND(S33="AMBER",T33="AMBER",U33="AMBER"),"RED",IF(AND(S33="AMBER",T33="AMBER",U33="RED"),"RED",IF(AND(S33="AMBER",T33="RED",U33="AMBER"),"RED",IF(AND(S33="AMBER",T33="RED",U33="RED"),"RED",IF(AND(S33="RED",T33="AMBER",U33="AMBER"),"RED",IF(AND(S33="RED",T33="AMBER",U33="RED"),"RED",IF(AND(S33="RED",T33="RED",U33="AMBER"),"RED",IF(AND(S33="RED",T33="RED",U33="RED"),"RED",IF(AND(S33="AMBER",T33="AMBER",U33="AMBER"),"RED",IF(AND(S33="AMBER",T33="AMBER",U33="RED"),"RED",IF(AND(S33="AMBER",T33="RED",U33="AMBER"),"RED",IF(AND(S33="AMBER",T33="RED",U33="RED"),"RED",IF(AND(S33="RED",T33="AMBER",U33="AMBER"),"RED",IF(AND(S33="RED",T33="AMBER",U33="RED"),"RED",IF(AND(S33="RED",T33="RED",U33="AMBER"),"RED",IF(AND(S33="RED",T33="RED",U33="RED"),"RED",IF(G33="","NA",IF(AND(T33="AMBER",U33="AMBER"),"RED",IF(G33>=B33,"GREEN",IF(G33="","NA",IF(AND(G33<B33,G33>=C33),"AMBER",IF(G33<C33,"RED"))))))))))))))))))))))))))))))))))))))) -> GREEN | Z33: 1 | AA33: 1
A34: Mixed sex accommodation breaches | Z34: FALSE | AA34: FALSE
A35: Breaches of Same Sex Accommodation | B35: 0 | C35: 10 | D35: =IF(CUBEVALUE("PROD_CUBE","[Commissioners].[Org Name].[All].["&D4&"]","[Date].[Fiscal Q Hierarchy].[All].["&$A5&"].["&$D5&"]","[Measures].[Mixed Sex Breaches]","[Dim Data Status].[Data Status Hierarchy].[All].[PUBLIC]")="","0",CUBEVALUE("PROD_CUBE","[Commissioners].[Org Name].[All].["&D4&"]","[Date].[Fiscal Q Hierarchy].[All].["&$A5&"].["&$D5&"]","[Measures].[Mixed Sex Breaches]","[Dim Data Status].[Data Status Hierarchy].[All].[PUBLIC]")) -> 0 | E35: =IF(CUBEVALUE("PROD_CUBE","[Commissioners].[Org Name].[All].["&D4&"]","[Date].[Fiscal Q Hierarchy].[All].["&$A5&"].["&$E5&"]","[Measures].[Mixed Sex Breaches]","[Dim Data Status].[Data Status Hierarchy].[All].[PUBLIC]")="","0",CUBEVALUE("PROD_CUBE","[Commissioners].[Org Name].[All].["&D4&"]","[Date].[Fiscal Q Hierarchy].[All].["&$A5&"].["&$E5&"]","[Measures].[Mixed Sex Breaches]","[Dim Data Status].[Data Status Hierarchy].[All].[PUBLIC]")) -> 0 | F35: =IF(CUBEVALUE("PROD_CUBE","[Commissioners].[Org Name].[All].["&D4&"]","[Date].[Fiscal Q Hierarchy].[All].["&$A5&"].["&$F5&"]","[Measures].[Mixed Sex Breaches]","[Dim Data Status].[Data Status Hierarchy].[All].[PUBLIC]")="","0",CUBEVALUE("PROD_CUBE","[Commissioners].[Org Name].[All].["&D4&"]","[Date].[Fiscal Q Hierarchy].[All].["&$A5&"].["&$F5&"]","[Measures].[Mixed Sex Breaches]","[Dim Data Status].[Data Status Hierarchy].[All].[PUBLIC]")) -> 0 | G35: =IF(CUBEVALUE("PROD_CUBE","[Commissioners].[Org Name].[All].["&D4&"]","[Date].[Fiscal Q Hierarchy].[All].["&$A5&"].["&$G5&"]","[Measures].[Mixed Sex Breaches]","[Dim Data Status].[Data Status Hierarchy].[All].[PUBLIC]")="","0",CUBEVALUE("PROD_CUBE","[Commissioners].[Org Name].[All].["&D4&"]","[Date].[Fiscal Q Hierarchy].[All].["&$A5&"].["&$G5&"]","[Measures].[Mixed Sex Breaches]","[Dim Data Status].[Data Status Hierarchy].[All].[PUBLIC]")) -> 0 | R35: =IF(D35="0","GREEN",IF(D35=B35,"GREEN",IF(AND(D35>B35,D35<=C35),"AMBER",IF(D35>C35,"RED")))) -> GREEN | S35: =IF(E35="0","GREEN",IF(E35=B35,"GREEN",IF(AND(E35>B35,E35<=C35),"AMBER",IF(E35>C35,"RED")))) -> GREEN | T35: =IF(F35="0","GREEN",IF(F35=B35,"GREEN",IF(AND(F35>B35,F35<=C35),"AMBER",IF(F35>C35,"RED")))) -> GREEN | U35: =IF(G35="0","GREEN",IF(G35=B35,"GREEN",IF(AND(G35>B35,G35<=C35),"AMBER",IF(G35>C35,"RED")))) -> GREEN | V35: =IF(F35="0","GREEN",IF(AND(R35="AMBER",S35="AMBER",T35="AMBER"),"RED",IF(AND(R35="AMBER",S35="AMBER",T35="RED"),"RED",IF(AND(R35="AMBER",S35="RED",T35="AMBER"),"RED",IF(AND(R35="AMBER",S35="RED",T35="RED"),"RED",IF(AND(R35="RED",S35="AMBER",T35="AMBER"),"RED",IF(AND(R35="RED",S35="AMBER",T35="RED"),"RED",IF(AND(R35="RED",S35="RED",T35="AMBER"),"RED",IF(F35=B35,"GREEN",IF(F35="","NA",IF(AND(F35>B35,F35<=C35),"AMBER",IF(F35>C35,"RED")))))))))))) -> GREEN | W35: =IF(G35="0","GREEN",IF(AND(R35="AMBER",S35="AMBER",T35="AMBER",U35="AMBER"),"RED",IF(AND(R35="AMBER",S35="AMBER",T35="AMBER",U35="RED"),"RED",IF(AND(R35="AMBER",S35="AMBER",T35="RED",U35="AMBER"),"RED",IF(AND(R35="AMBER",S35="AMBER",T35="RED",U35="RED"),"RED",IF(AND(R35="AMBER",S35="RED",T35="AMBER",U35="AMBER"),"RED",IF(AND(R35="AMBER",S35="RED",T35="AMBER",U35="RED"),"RED",IF(AND(R35="AMBER",S35="RED",T35="RED",U35="AMBER"),"RED",IF(AND(R35="AMBER",S35="RED",T35="RED",U35="RED"),"RED",IF(AND(R35="RED",S35="AMBER",T35="AMBER",U35="AMBER"),"RED",IF(AND(R35="RED",S35="AMBER",T35="AMBER",U35="RED"),"RED",IF(AND(R35="RED",S35="AMBER",T35="RED",U35="AMBER"),"RED",IF(AND(R35="RED",S35="AMBER",T35="RED",U35="RED"),"RED",IF(AND(R35="RED",S35="RED",T35="AMBER",U35="AMBER"),"RED",IF(AND(R35="RED",S35="RED",T35="AMBER",U35="RED"),"RED",IF(AND(R35="RED",S35="RED",T35="RED",U35="AMBER"),"RED",IF(AND(R35="RED",S35="RED",T35="RED",U35="RED"),"RED",IF(AND(S35="AMBER",T35="AMBER",U35="AMBER"),"RED",IF(AND(S35="AMBER",T35="AMBER",U35="RED"),"RED",IF(AND(S35="AMBER",T35="RED",U35="AMBER"),"RED",IF(AND(S35="AMBER",T35="RED",U35="RED"),"RED",IF(AND(S35="RED",T35="AMBER",U35="AMBER"),"RED",IF(AND(S35="RED",T35="AMBER",U35="RED"),"RED",IF(AND(S35="RED",T35="RED",U35="AMBER"),"RED",IF(AND(S35="RED",T35="RED",U35="RED"),"RED",IF(AND(S35="AMBER",T35="AMBER",U35="AMBER"),"RED",IF(AND(S35="AMBER",T35="AMBER",U35="RED"),"RED",IF(AND(S35="AMBER",T35="RED",U35="AMBER"),"RED",IF(AND(S35="AMBER",T35="RED",U35="RED"),"RED",IF(AND(S35="RED",T35="AMBER",U35="AMBER"),"RED",IF(AND(S35="RED",T35="AMBER",U35="RED"),"RED",IF(AND(S35="RED",T35="RED",U35="AMBER"),"RED",IF(AND(S35="RED",T35="RED",U35="RED"),"RED",IF(G35=B35,"GREEN",IF(G35="","NA",IF(AND(G35>B35,G35<=C35),"AMBER",IF(G35>C35,"RED"))))))))))))))))))))))))))))))))))))) -> GREEN | Z35: 1 | AA35: 1
A36: Cancelled Operations | Z36: FALSE | AA36: FALSE
A37: All patients who have operations cancelled, on or after the day of admission (including the day of surgery), for non-clinical reasons to be offered another binding data within 28 days, or the patient's treatment to be funded at the time and hospital of the patient's choice | B37: Not Rated | C37: Not Rated | D37: DATA NOT AVAILABLE BY CCG | E37: DATA NOT AVAILABLE BY CCG | F37: DATA NOT AVAILABLE BY CCG | G37: DATA NOT AVAILABLE BY CCG | Z37: FALSE | AA37: FALSE
A38: Mental Health | Z38: FALSE | AA38: FALSE
A39: Care Programme Approach (CPA): The proportion of people under adult mental illness specialities on CPA who were followed up within 7 days of discharge from psychiatric inpatient care during the period | B39: 0.95 | C39: 0.9 | D39: =IFERROR(CUBEVALUE("PROD_CUBE","[Commissioners].[Org Name].["&D4&"]","[Date].[Fiscal Q Hierarchy].[All].["&$A5&"].["&$D5&"]", "[Measures].[CPA Percentage Follow up in 7 days]",CUBESET("PROD_CUBE","[Dim Data Status].[Data Status Hierarchy].[All].[PUBLIC]")),"") -> 0.9615384615 | E39: =CUBEVALUE("PROD_CUBE","[Commissioners].[Org Name].["&D4&"]","[Date].[Fiscal Q Hierarchy].[All].["&$A5&"].["&$E5&"]", "[Measures].[CPA Percentage Follow up in 7 days]",CUBESET("PROD_CUBE","[Dim Data Status].[Data Status Hierarchy].[All].[PUBLIC]","")) -> 0.9661016949 | F39: =CUBEVALUE("PROD_CUBE","[Commissioners].[Org Name].["&D4&"]","[Date].[Fiscal Q Hierarchy].[All].["&$A5&"].["&$F5&"]", "[Measures].[CPA Percentage Follow up in 7 days]",CUBESET("PROD_CUBE","[Dim Data Status].[Data Status Hierarchy].[All].[PUBLIC]","")) -> 0.9672131148 | G39: =CUBEVALUE("PROD_CUBE","[Commissioners].[Org Name].["&D4&"]","[Date].[Fiscal Q Hierarchy].[All].["&$A5&"].["&$G5&"]", "[Measures].[CPA Percentage Follow up in 7 days]",CUBESET("PROD_CUBE","[Dim Data Status].[Data Status Hierarchy].[All].[PUBLIC]","")) -> 1 | R39: =IF(D39="","NA",IF(D39>=B39,"GREEN",IF(AND(D39<B39,D39>=C39),"AMBER",IF(D39<C39,"RED")))) -> GREEN | S39: =IF(E39="","NA",IF(E39>=B39,"GREEN",IF(AND(E39<B39,E39>=C39),"AMBER",IF(E39<C39,"RED")))) -> GREEN | T39: =IF(F39="","NA",IF(F39>=B39,"GREEN",IF(AND(F39<B39,F39>=C39),"AMBER",IF(F39<C39,"RED")))) -> GREEN | U39: =IF(G39="","NA",IF(G39>=B39,"GREEN",IF(AND(G39<B39,G39>=C39),"AMBER",IF(G39<C39,"RED")))) -> GREEN | V39: =IF(F39="","NA",IF(AND(R39="AMBER",S39="AMBER",T39="AMBER"),"RED",IF(AND(R39="AMBER",S39="AMBER",T39="RED"),"RED",IF(AND(R39="AMBER",S39="RED",T39="AMBER"),"RED",IF(AND(R39="AMBER",S39="RED",T39="RED"),"RED",IF(AND(R39="RED",S39="AMBER",T39="AMBER"),"RED",IF(AND(R39="RED",S39="AMBER",T39="RED"),"RED",IF(AND(R39="RED",S39="RED",T39="AMBER"),"RED",IF(F39>=B39,"GREEN",IF(F39="","NA",IF(AND(F39<B39,F39>=C39),"AMBER",IF(F39<C39,"RED")))))))))))) -> GREEN | W39: =IF(G39="","NA",IF(AND(R39="AMBER",S39="AMBER",T39="AMBER",U39="AMBER"),"RED",IF(AND(R39="AMBER",S39="AMBER",T39="AMBER",U39="RED"),"RED",IF(AND(R39="AMBER",S39="AMBER",T39="RED",U39="AMBER"),"RED",IF(AND(R39="AMBER",S39="AMBER",T39="RED",U39="RED"),"RED",IF(AND(R39="AMBER",S39="RED",39="AMBER",U39="AMBER"),"RED",IF(AND(R39="AMBER",S39="RED",T39="AMBER",U39="RED"),"RED",IF(AND(R39="AMBER",S39="RED",T39="RED",U39="AMBER"),"RED",IF(AND(R39="AMBER",S39="RED",T39="RED",U39="RED"),"RED",IF(AND(R39="RED",S39="AMBER",T39="AMBER",U39="AMBER"),"RED",IF(AND(R39="RED",S39="AMBER",T39="AMBER",U39="RED"),"RED",IF(AND(R39="RED",S39="AMBER",T39="RED",U39="AMBER"),"RED",IF(AND(R39="RED",S39="AMBER",T39="RED",U39="RED"),"RED",IF(AND(R39="RED",S39="RED",T39="AMBER",U39="AMBER"),"RED",IF(AND(R39="RED",S39="RED",T39="AMBER",U39="RED"),"RED",IF(AND(R39="RED",S39="RED",T39="RED",U39="AMBER"),"RED",IF(AND(R39="RED",S39="RED",T39="RED",U39="RED"),"RED",IF(AND(S39="AMBER",T39="AMBER",U39="AMBER"),"RED",IF(AND(S39="AMBER",T39="AMBER",U39="RED"),"RED",IF(AND(S39="AMBER",T39="RED",U39="AMBER"),"RED",IF(AND(S39="AMBER",T39="RED",U39="RED"),"RED",IF(AND(S39="RED",T39="AMBER",U39="AMBER"),"RED",IF(AND(S39="RED",T39="AMBER",U39="RED"),"RED",IF(AND(S39="RED",T39="RED",U39="AMBER"),"RED",IF(AND(S39="RED",T39="RED",U39="RED"),"RED",IF(AND(S39="AMBER",T39="AMBER",U39="AMBER"),"RED",IF(AND(S39="AMBER",T39="AMBER",U39="RED"),"RED",IF(AND(S39="AMBER",T39="RED",U39="AMBER"),"RED",IF(AND(S39="AMBER",T39="RED",U39="RED"),"RED",IF(AND(S39="RED",T39="AMBER",U39="AMBER"),"RED",IF(AND(S39="RED",T39="AMBER",U39="RED"),"RED",IF(AND(S39="RED",T39="RED",U39="AMBER"),"RED",IF(AND(S39="RED",T39="RED",U39="RED"),"RED",IF(G39>=B39,"GREEN",IF(G39="","NA",IF(AND(G39<B39,G39>=C39),"AMBER",IF(G39<C39,"RED"))))))))))))))))))))))))))))))))))))) -> GREEN | Z39: 1 | AA39: 1
A41: Future Concerns Please select "Y" or "N" from drop down box | R41: RED | S41: AMBER | T41: GREEN
A42: Do you have any future concerns on any of the above measures? | C42: =IFERROR(VLOOKUP('COVER PAGE'!$A$4&"_"&'NHS CONSTITUTION SECTION'!$A$5&"_"&'NHS CONSTITUTION SECTION'!$F$42,CCG_SELFCERT_DOMAIN1!$A:$P,14,FALSE),"No Data") -> No | D42: June | E42: September | F42: March | G42: March | Q42: Q1 | R42: =COUNTIF($R$8:$R$39,"RED") -> 0 | S42: =COUNTIF($R$8:$R$39,"AMBER") -> 3 | T42: =COUNTIF($R$8:$R$39,"GREEN") -> 16
A43: Do you have any future concerns on any of the above measures? | B43: =VLOOKUP($B$42,#REF!,2,FALSE) ->  | Q43: Q2 | R43: =COUNTIF($S$8:$S$39,"RED") -> 0 | S43: =COUNTIF($S$8:$S$39,"AMBER") -> 2 | T43: =COUNTIF($S$8:$S$39,"GREEN") -> 17
Q44: Q3 | R44: =COUNTIF($V$8:$V$39,"RED") -> 0 | S44: =COUNTIF($V$8:$V$39,"AMBER") -> 1 | T44: =COUNTIF($V$8:$V$39,"GREEN") -> 18
D45: INDICATOR RAG CRITERIA | Q45: Q4 | R45: =COUNTIF($W$8:$W$39,"RED") -> 1 | S45: =COUNTIF($W$8:$W$39,"AMBER") -> 3 | T45: =COUNTIF($W$8:$W$39,"GREEN") -> 15
D46: Green - Performance at or above the standard Amber - Performance between the standard and the lower threshold Red - Performance below the lower threshold OR same indicator has Red/Amber performance for three consecutive quarters
R47: Q1 | W47: Q2
R48: RED | S48: =R42 -> 0 | T48: =S48&R48 -> 0RED | W48: RED | X48: =R43 -> 0 | Y48: =X48&W48 -> 0RED
R49: AMBER | S49: =S42 -> 3 | T49: =S49&R49 -> 3AMBER | W49: AMBER | X49: =S43 -> 2 | Y49: =X49&W49 -> 2AMBER
R50: GREEN | S50: =T42 -> 16 | T50: =S50&R50 -> 16GREEN | W50: GREEN | X50: =T43 -> 17 | Y50: =X50&W50 -> 17GREEN
R51: TOTAL TRIGGER | T51: =T48&"_"&T49&"_"&T50 -> 0RED_3AMBER_16GREEN | W51: TOTAL TRIGGER | Y51: =Y48&"_"&Y49&"_"&Y50 -> 0RED_2AMBER_17GREEN
R55: Q3 | W55: Q4
R56: RED | S56: =R44 -> 0 | T56: =S56&R56 -> 0RED | W56: RED | X56: =R45 -> 1 | Y56: =X56&W56 -> 1RED
R57: AMBER | S57: =S44 -> 1 | T57: =S57&R57 -> 1AMBER | W57: AMBER | X57: =S45 -> 3 | Y57: =X57&W57 -> 3AMBER
R58: GREEN | S58: =T44 -> 18 | T58: =S58&R58 -> 18GREEN | W58: GREEN | X58: =T45 -> 15 | Y58: =X58&W58 -> 15GREEN
R59: TOTAL TRIGGER | T59: =T56&"_"&T57&"_"&T58 -> 0RED_1AMBER_18GREEN | W59: TOTAL TRIGGER | Y59: =Y56&"_"&Y57&"_"&Y58 -> 1RED_3AMBER_15GREEN
A71: INDICATOR RED | B71: INDICATOR AMBER | C71: TOTAL INDICATOR
A72: =IF(ISERROR(INDEX(A8:G8,MATCH("RED",W8,FALSE),1)),"",INDEX(A8:G8,MATCH("RED",W8,FALSE),1)) ->  | C72: =A72 -> 
A73: =IF(ISERROR(INDEX(A9:G9,MATCH("RED",W9,FALSE),1)),"",INDEX(A9:G9,MATCH("RED",W9,FALSE),1)) ->  | C73: =A73 -> 
A74: =IF(ISERROR(INDEX(A10:G10,MATCH("RED",W10,FALSE),1)),"",INDEX(A10:G10,MATCH("RED",W10,FALSE),1)) -> 
A75: =IF(ISERROR(INDEX(A11:G11,MATCH("RED",W11,FALSE),1)),"",INDEX(A11:G11,MATCH("RED",W11,FALSE),1)) -> 
A76: =IF(ISERROR(INDEX(A13:G13,MATCH("RED",W13,FALSE),1)),"",INDEX(A13:G13,MATCH("RED",W13,FALSE),1)) -> 
A77: =IF(ISERROR(INDEX(A15:G15,MATCH("RED",W15,FALSE),1)),"",INDEX(A15:G15,MATCH("RED",W15,FALSE),1)) ->  | C77: =A77 -> 
A78: =IF(ISERROR(INDEX(A16:G16,MATCH("RED",W16,FALSE),1)),"",INDEX(A16:G16,MATCH("RED",W16,FALSE),1)) -> 
A79: =IF(ISERROR(INDEX(A17:G17,MATCH("RED",W17,FALSE),1)),"",INDEX(A17:G17,MATCH("RED",W17,FALSE),1)) -> 
A80: =IF(ISERROR(INDEX(A19:G19,MATCH("RED",W19,FALSE),1)),"",INDEX(A19:G19,MATCH("RED",W19,FALSE),1)) -> 
A81: =IF(ISERROR(INDEX(A20:G20,MATCH("RED",W20,FALSE),1)),"",INDEX(A20:G20,MATCH("RED",W20,FALSE),1)) -> 
A82: =IF(ISERROR(INDEX(A22:G22,MATCH("RED",W22,FALSE),1)),"",INDEX(A22:G22,MATCH("RED",W22,FALSE),1)) -> 
A83: =IF(ISERROR(INDEX(A23:G23,MATCH("RED",W23,FALSE),1)),"",INDEX(A23:G23,MATCH("RED",W23,FALSE),1)) -> 
A84: =IF(ISERROR(INDEX(A24:G24,MATCH("RED",W24,FALSE),1)),"",INDEX(A24:G24,MATCH("RED",W24,FALSE),1)) -> 
A85: =IF(ISERROR(INDEX(A25:G25,MATCH("RED",W25,FALSE),1)),"",INDEX(A25:G25,MATCH("RED",W25,FALSE),1)) -> 
A86: =IF(ISERROR(INDEX(A27:G27,MATCH("RED",W27,FALSE),1)),"",INDEX(A27:G27,MATCH("RED",W27,FALSE),1)) -> 
A87: =IF(ISERROR(INDEX(A28:G28,MATCH("RED",W28,FALSE),1)),"",INDEX(A28:G28,MATCH("RED",W28,FALSE),1)) -> 
A88: =IF(ISERROR(INDEX(A29:G29,MATCH("RED",W29,FALSE),1)),"",INDEX(A29:G29,MATCH("RED",W29,FALSE),1)) -> 
A89: =IF(ISERROR(INDEX(A31:G31,MATCH("RED",W31,FALSE),1)),"",INDEX(A31:G31,MATCH("RED",W31,FALSE),1)) -> 
A90: =IF(ISERROR(INDEX(A32:G32,MATCH("RED",W32,FALSE),1)),"",INDEX(A32:G32,MATCH("RED",W32,FALSE),1)) -> Category A calls resulting in an emergency response arriving within 8 minutes (Red 2) | C90: Category A calls resulting in an emergency response arriving within 8 minutes (Red 2)
A91: =IF(ISERROR(INDEX(A33:G33,MATCH("RED",W33,FALSE),1)),"",INDEX(A33:G33,MATCH("RED",W33,FALSE),1)) -> 
A92: =IF(ISERROR(INDEX(A35:G35,MATCH("RED",W35,FALSE),1)),"",INDEX(A35:G35,MATCH("RED",W35,FALSE),1)) -> 
A93: =IF(ISERROR(INDEX(A37:G37,MATCH("RED",W37,FALSE),1)),"",INDEX(A37:G37,MATCH("RED",W37,FALSE),1)) -> 
A94: =IF(ISERROR(INDEX(A39:G39,MATCH("RED",W39,FALSE),1)),"",INDEX(A39:G39,MATCH("RED",W39,FALSE),1)) -> 

Sheet OUTCOME SECTION
D4: =VLOOKUP('COVER PAGE'!$A$3,Lookup!$A:$C,2,FALSE) -> NHS Rotherham CCG
A7: NHS Outcomes Framework measures which the NHS Commissioning Board and CCGs will use in annual assurance as described in Annex A of Everyone Counts
B8: 2013-14 | C8: 13-14 Q1 | D8: 13-14 Q2 | E8: 13-14 Q3 | F8: 13-14 Q4 | G8: =CUBEVALUE("PROD_CUBE","[Measures].[Period Current MRSA]") -> Mar-14 | H8: =CUBEVALUE("PROD_CUBE","[Measures].[Period Current CDiff]") -> Mar-14 | I8: =CUBEVALUE("PROD_CUBE","[Measures].[Period Current FFT Scores]") -> Apr-14
A9: Indicator | B9: BASELINE 2012-13 | C9: QUARTER 1 PERFORMANCE | D9: QUARTER 2 PERFORMANCE | E9: QUARTER 3 PERFORMANCE | F9: QUARTER 4 PERFORMANCE | G9: END OF YEAR | H9: Unit | I9: Indicator used in quarterly checkpoints | J9: Indicator included in Quality Premium | K9: Comments | P9: 2013-14 | Q9: 13-14 Q1 | R9: 13-14 Q2 | S9: 13-14 Q3 | T9: 13-14 Q4 | V9: 13-14 YTD | W9: 13-14 YTD | X9: 13-14 YTD | Y9: 13-14 YTD | AA9: JUNE | AB9: SEPTEMBER | AC9: DECEMBER | AD9: MARCH
A10: 1. Preventing people from dying prematurely
F11: 2012
A12: Potential years of life lost (PYLL) from causes considered amendable to healthcare *[Baseline 2012 Calendar year] | B12: =IFERROR(VLOOKUP('COVER PAGE'!$A$4&"_"&F11,PYLL!$A:$F,2,FALSE),"") -> 6327.8 | K12: To earn this portion of the quality premium, the potential years of life lost (adjusted for sex and age) from amenable mortality for a CCG population will need to reduce by at least 3.2% between 2013 and 2014. This is based on the 10-year average annual reduction in potential years of life lost from amenable mortality.
A14: 2. Enhancing quality of life for people with long term conditions
A15: Combined measure: Unplanned hospitalisation for chronic ambulatory care sensitive conditions (adults), Unplanned hospitalisation for asthma, diabetes and epilepsy in under 19s, Emergency admissions for acute conditions that should not usually require hospital admission. Emergency admissions for children with LRTI, Emergency readmissions within 30 days of discharge from hospital. | C15: =CUBEVALUE("PROD_CUBE","[Commissioners].[Org Name].["&D4&"]","[Date].[Fiscal Q Hierarchy].[All].["&B8&"].["&C8&"]","[Measures].[Avoidable Emergency Admissions Indirectly Standardised Rate per 100,000]") -> 582.1719275 | D15: =CUBEVALUE("PROD_CUBE","[Commissioners].[Org Name].["&D4&"]","[Date].[Fiscal Q Hierarchy].[All].["&B8&"].["&D8&"]","[Measures].[Avoidable Emergency Admissions Indirectly Standardised Rate per 100,000]") -> 538.4847846 | E15: =CUBEVALUE("PROD_CUBE","[Commissioners].[Org Name].["&D4&"]","[Date].[Fiscal Q Hierarchy].[All].["&B8&"].["&E8&"]","[Measures].[Avoidable Emergency Admissions Indirectly Standardised Rate per 100,000]") -> 666.7832746 | F15: =IFERROR(CUBEVALUE("PROD_CUBE","[Commissioners].[Org Name].["&D4&"]","[Date].[Fiscal Q Hierarchy].[All].["&B8&"].["&F8&"]","[Measures].[Avoidable Emergency Admissions Indirectly Standardised Rate per 100,000]"),"") ->  | H15: Per 100,000 population | K15: To earn this position of the quality premium, there will need t be a reduction or a zero percent change in emergency admissions for these conditions for a CCG population between 2012/13 and 2013/14. NHS England may apply an adjustment for CCGs with the highest baseline levels of emergency admissions.
A20: 3. Helping people to recover from ill health or following injury
A21: Emergency admissions for acute conditions that should not usually require hospital admission | H21: Per 100,000 population
A22: Emergency readmissions within 30 days of discharge from hospital
A23: Total health gain assessed by patients I) Hip replacement, ii) Knee replacement, iii) Groin hernia, iv) Vericose veins | H23: No. of individuals receiving the procedures multiplied by the assessed average risk-adjusted improvement in health status
A24: Emergency admissions for children with Lower Respiratory Tract Infections (LRTI) | H24: Per 100,000 population
A25: 4. Patient Information
A26: Is the CCG on track to be able to deliver the mandate commitment that by 2015 everyone with a long term condition who wants one should have a personalised care plan? | C26: INDICATOR INTRODUCED IN Q3 | D26: INDICATOR INTRODUCED IN Q3 | E26: =IFERROR(VLOOKUP('COVER PAGE'!$A$4&"_"&$B$8&"_"&$AC$9,CCG_SELFCERT_DOMAIN1!$A:$P,16,FALSE),"NO DATA") -> Yes | F26: =IFERROR(VLOOKUP('COVER PAGE'!$A$4&"_"&$B$8&"_"&$AD$9,CCG_SELFCERT_DOMAIN1!$A:$P,16,FALSE),"NO DATA") -> Yes | K26: NOT RATED | L26: =F26 -> Yes
A27: Is the CCG on track to meet the statutory duty to deliver personal health budget to people who receive NHS continuing healthcare from April 2014? | C27: INDICATOR INTRODUCED IN Q3 | D27: INDICATOR INTRODUCED IN Q3 | E27: =IFERROR(VLOOKUP('COVER PAGE'!$A$4&"_"&$B$8&"_"&$AC$9,CCG_SELFCERT_DOMAIN1!$A:$P,15,FALSE),"NO DATA") -> Yes | F27: =IFERROR(VLOOKUP('COVER PAGE'!$A$4&"_"&$B$8&"_"&$AD$9,CCG_SELFCERT_DOMAIN1!$A:$P,15,FALSE),"NO DATA") -> Yes | K27: NOT RATED | L27: =F27 -> Yes
A28: 5. Ensuring that people have a positive experience of care
A29: Patient experience of primary care i) GP Services, ii) GP Out of Hours services
A30: Patient experience of hospital care
A31: 6. Treating and caring for people in a safe environment an protecting them from avoidable harm | P31: YTD | Q31: Q1 | R31: Q2 | S31: Q3 | T31: Q4
A32: Incidence of healthcare associated infection (HCAI) i) MRSA - Includes Post Infection review | B32: 0 | C32: =CUBEVALUE("PROD_CUBE","[Commissioners].[Org Name].["&D4&"]","[Date].[Fiscal Q Hierarchy].[All].["&B8&"].["&C8&"]","[Measures].[Actual Current MRSA Cases]") -> 0 | D32: =CUBEVALUE("PROD_CUBE","[Commissioners].[Org Name].["&D4&"]","[Date].[Fiscal Q Hierarchy].[All].["&B8&"].["&D8&"]","[Measures].[Actual Current MRSA Cases]") -> 0 | E32: =CUBEVALUE("PROD_CUBE","[Commissioners].[Org Name].["&D4&"]","[Date].[Fiscal Q Hierarchy].[All].["&B8&"].["&E8&"]","[Measures].[Actual Current MRSA Cases]") -> 0 | F32: =IFERROR(CUBEVALUE("PROD_CUBE","[Commissioners].[Org Name].["&D4&"]","[Date].[Fiscal Q Hierarchy].[All].["&B8&"].["&F8&"]","[Measures].[Actual Current MRSA Cases]"),"") -> 0 | G32: =IFERROR(CUBEVALUE("PROD_CUBE","[Commissioners].[Org Name].["&D4&"]","[Date].[Short Month Year Label].[By Date].["&TEXT(G8,"mmm-yy")&"]","[Measures].[Actual YTD MRSA Cases]"),"") -> 0 | H32: Number of Cases | I32: Yes | J32: Yes | K32: A CCG will earn this position of the quality premium, if there are no cases of MRSA bacteraemia for the CCG's population. | L32: =IF(AND(F32="NO DATA",B32=0),"NA",IF(F32<=B32,"GREEN",IF(AND(F32>B32,B32=0),"RED",IF(F32>B32,"RED")))) -> GREEN | O32: C.DIFF OBJECTIVE | P32: =SUM(Q32+R32+S32+T32) -> 59 | Q32: =CUBEVALUE("PROD_CUBE","[Commissioners].[Org Name].["&D4&"]","[Date].[Fiscal Q Hierarchy].[All].["&B8&"].["&C8&"]","[Measures].[Plan Current CDiff Cases]") -> 14.75 | R32: =CUBEVALUE("PROD_CUBE","[Commissioners].[Org Name].["&D4&"]","[Date].[Fiscal Q Hierarchy].[All].["&B8&"].["&D8&"]","[Measures].[Plan Current CDiff Cases]") -> 14.75 | S32: =CUBEVALUE("PROD_CUBE","[Commissioners].[Org Name].["&D4&"]","[Date].[Fiscal Q Hierarchy].[All].["&B8&"].["&E8&"]","[Measures].[Plan Current CDiff Cases]") -> 14.75 | T32: =CUBEVALUE("PROD_CUBE","[Commissioners].[Org Name].["&D4&"]","[Date].[Fiscal Q Hierarchy].[All].["&B8&"].["&F8&"]","[Measures].[Plan Current CDiff Cases]") -> 14.75
A33: Incidence of healthcare associated infection (HCAI) ii) C difficile | B33: =P32 -> 59 | C33: =CUBEVALUE("PROD_CUBE","[Commissioners].[Org Name].["&D4&"]","[Date].[Fiscal Q Hierarchy].[All].["&B8&"].["&C8&"]","[Measures].[Actual Current CDiff Cases]") -> 13 | D33: =CUBEVALUE("PROD_CUBE","[Commissioners].[Org Name].["&D4&"]","[Date].[Fiscal Q Hierarchy].[All].["&B8&"].["&D8&"]","[Measures].[Actual Current CDiff Cases]") -> 21 | E33: =CUBEVALUE("PROD_CUBE","[Commissioners].[Org Name].["&D4&"]","[Date].[Fiscal Q Hierarchy].[All].["&B8&"].["&E8&"]","[Measures].[Actual Current CDiff Cases]") -> 21 | F33: =IFERROR(CUBEVALUE("PROD_CUBE","[Commissioners].[Org Name].["&D4&"]","[Date].[Fiscal Q Hierarchy].[All].["&B8&"].["&F8&"]","[Measures].[Actual Current CDiff Cases]"),"") -> 12 | G33: =IFERROR(CUBEVALUE("PROD_CUBE","[Commissioners].[Org Name].["&D4&"]","[Date].[Short Month Year Label].[By Date].["&TEXT(H8,"mmm-yy")&"]","[Measures].[Actual YTD CDiff Cases]"),"") -> 67 | H33: Number of Cases | I33: Yes | J33: Yes | K33: Comparing each quarter to plan, a CCG will earn this position if C. difficile cases are at or below defined thresholds for CCG. | L33: =IF(AND(F33="NO DATA",T32="NO DATA"),"NA",IF(F33<=T32,"GREEN",IF(AND(F33>T32,T32=0),"AMBER",IF(F33>T32,"RED")))) -> GREEN | O33: CUBE VALUE | P33: =IFERROR(CUBEVALUE("PROD_CUBE","[Commissioners].[Org Name].["&D4&"]","[Date].[Short Month Year Label].[By Date].["&TEXT(H8,"mmm-yy")&"]","[Measures].[Plan YTD CDiff Cases]"),"") -> 59
A34: 7. Others
A35: Overall FFT RAG Calculation | D35: =C178 -> GREEN | E35: =D178 -> GREEN | F35: =E178 -> AMBER | K35: Comparison to previous quarter , please note that Data collection starts in Quarter 1 2013-14 | L35: =F35 -> AMBER
A36: Friends and Family Test -An improvement in combined FFT scores for acute inpatient care and A&E services between Q1 2014-15 for acute hospitals that serve a CG population | D36: =IF(C176= "","NO DATA",IF(C176="NO DATA","NO DATA",IF(C176="Yes",1,IF(C176="No",0,)))) -> 1 | E36: =IF(D176= "","NO DATA",IF(D176="NO DATA","NO DATA",IF(D176="Yes",1,IF(D176="No",0,)))) -> 1 | F36: =IF(E176= "","NO DATA",IF(E176="NO DATA","NO DATA",IF(E176="Yes",1,IF(E176="No",0,)))) -> 0 | H36: 0 = NO IMPROVEMENT 1 = IMPROVEMENT This is compared to the previous quarter | K36: To earn this portion of the quality premium, there will need to be: 1) assurance that all relevant local providers of services commissioned by a CCG have delivered the nationally agreed roll-out plan to the national timetable 2) an improvement in average FFT scores for acute inpatient care and A&E services between Q1 2013/14 and Q1 2014/15 for acute hospitals that serve a CCG’s population. | L36: =IF(F36=1,"GREEN",IF(F36=2,"AMBER",IF(F36=0,"RED",IF(F36="No Data","NA")))) -> RED
A37: Are providers (defined in QUALITY SECTION) meeting the 15% response rates on FFT ? | C37: =IF(D96= "","NO DATA",IF(D96="NO DATA","NO DATA",IF(D96="YES",1,IF(D96="No",0,)))) -> 0 | D37: =IF(F96= "","DATA",IF(F96="NO DATA","NO DATA",IF(F96="YES",1,IF(F96="No",0,)))) -> 1 | E37: =IF(H96= "","DATA",IF(H96="NO DATA","NO DATA",IF(H96="YES",1,IF(H96="No",0,)))) -> 1 | F37: =IF(J96="","NO DATA",IF(J96="NO DATA","NO DATA",IF(J96="YES",1,IF(J96="No",0,)))) -> 1 | H37: 1 = YES 0 = NO | I37: Yes | J37: No | K37: "To earn this portion of the quality premium ,there will need to be: 1) assurance that all relevant local providers of services commissioned by a CCG have delivered the nationally agreed roll-out plan to the national timetable 2) an improvement in average FFT scores for acute inpatient care and A&E services between Q1 2013/14 and Q1 2014/15 for acute hospitals that serve a CCG’s | L37: =IF(F37=1,"GREEN",IF(F37=0,"RED",IF(F37="No Data","No Data"))) -> GREEN
A38: Is the CCG progressing as expected in the IAPT trajectory submitted during the planning round? | C38: =C129 -> 1 | D38: =D129 -> 1 | E38: =E129 -> 1 | F38: =F129 -> 0 | H38: 1 = YES 0 = NO FDR = FURTHER DEVELOPMENT REQUIRED | I38: Yes | J38: No | L38: =IF(F38="1","GREEN",IF(F38="0","RED",IF(F38="No Data","NA",IF(F38="FDR","NA")))) -> RED
A39: FFT RESPONSE RATE ORDER BY ACUTE TRUST SELFCERT PROVIDERS
A40: ='QUALITY SECTION'!C10 -> THE ROTHERHAM NHS FOUNDATION TRUST | B40: ='QUALITY SECTION'!C13 -> Acute | C40: =IFERROR(CUBEVALUE("PROD_CUBE","[Providers].[Org Name].["&A40&"]","[Date].[Fiscal Q Hierarchy].[All].["&$B$8&"].["&$C$8&"]","[Measures].[FFT Response Rate]","[Friends And Family Type].[FFT Source].[All types].[Combined A&E and Inpatients]"),"") -> 0.05016402406 | D40: =IFERROR(CUBEVALUE("PROD_CUBE","[Providers].[Org Name].["&A40&"]","[Date].[Fiscal Q Hierarchy].[All].["&$B$8&"].["&$D$8&"]","[Measures].[FFT Response Rate]","[Friends And Family Type].[FFT Source].[All types].[Combined A&E and Inpatients]"),"") -> 0.1577914432 | E40: =IFERROR(CUBEVALUE("PROD_CUBE","[Providers].[Org Name].["&A40&"]","[Date].[Fiscal Q Hierarchy].[All].["&$B$8&"].["&$E$8&"]","[Measures].[FFT Response Rate]","[Friends And Family Type].[FFT Source].[All types].[Combined A&E and Inpatients]"),"") -> 0.1862660326 | F40: =IFERROR(CUBEVALUE("PROD_CUBE","[Providers].[Org Name].["&A40&"]","[Date].[Fiscal Q Hierarchy].[All].["&$B$8&"].["&$F$8&"]","[Measures].[FFT Response Rate]","[Friends And Family Type].[FFT Source].[All types].[Combined A&E and Inpatients]"),"") -> 0.2363386188 | G40: =IFERROR(CUBEVALUE("PROD_CUBE","[Providers].[Org Name].["&A40&"]","[Date].[Fiscal Q Hierarchy].[All].["&$B$8&"]","[Measures].[FFT Response Rate]","[Friends And Family Type].[FFT Source].[All types].[Combined A&E and Inpatients]"),"") -> 0.1581157506
A41: ='QUALITY SECTION'!D10 -> ROTHERHAM DONCASTER AND SOUTH HUMBER NHS FOUNDATION TRUST | B41: ='QUALITY SECTION'!D13 -> MH
A42: ='QUALITY SECTION'!E10 -> No Provider | B42: ='QUALITY SECTION'!E13 -> No Provider
A43: ='QUALITY SECTION'!F10 -> No Provider | B43: ='QUALITY SECTION'!F13 -> No Provider
A44: ='QUALITY SECTION'!G10 -> No Provider | B44: ='QUALITY SECTION'!G13 -> No Provider
A45: ='QUALITY SECTION'!H10 -> No Provider | B45: ='QUALITY SECTION'!H13 -> No Provider
A46: ='QUALITY SECTION'!H10 -> No Provider | B46: ='QUALITY SECTION'!I13 -> No Provider
A47: ='QUALITY SECTION'!J10 -> No Provider | B47: ='QUALITY SECTION'!J13 -> No Provider
A48: ='QUALITY SECTION'!K10 -> No Provider | B48: ='QUALITY SECTION'!K13 -> No Provider
A49: ='QUALITY SECTION'!L10 -> No Provider | B49: ='QUALITY SECTION'!L13 -> No Provider | G49: =IFERROR(CUBEVALUE("PROD_CUBE","[Providers].[Org Name].["&A49&"]","[Date].[Short Month Year Label].[By Date].["&TEXT($I$8,"mmm-yy")&"]","[Measures].[FFT Response Rate]","[Friends And Family Type].[FFT Source].[All types].[Combined A&E and Inpatients]"),"") -> 
A50: FFT SCORES ORDER BY ACUTE TRUST SELFCERT PROVIDERS
A51: ='QUALITY SECTION'!C10 -> THE ROTHERHAM NHS FOUNDATION TRUST | B51: ='QUALITY SECTION'!C13 -> Acute | C51: =IFERROR(CUBEVALUE("PROD_CUBE","[Providers].[Org Name].["&A51&"]","[Date].[Fiscal Q Hierarchy].[All].["&$B$8&"].["&$C$8&"]","[Measures].[FFT Test Score]","[Friends And Family Type].[FFT Source].[All types].[Combined A&E and Inpatients]")*1,"") -> 56.00558659 | D51: =IFERROR(CUBEVALUE("PROD_CUBE","[Providers].[Org Name].["&A51&"]","[Date].[Fiscal Q Hierarchy].[All].["&$B$8&"].["&$D$8&"]","[Measures].[FFT Test Score]","[Friends And Family Type].[FFT Source].[All types].[Combined A&E and Inpatients]")*1,"") -> 71.24265323 | E51: =IFERROR(CUBEVALUE("PROD_CUBE","[Providers].[Org Name].["&A51&"]","[Date].[Fiscal Q Hierarchy].[All].["&$B$8&"].["&$E$8&"]","[Measures].[FFT Test Score]","[Friends And Family Type].[FFT Source].[All types].[Combined A&E and Inpatients]")*1,"") -> 74.93177388 | F51: =IFERROR(CUBEVALUE("PROD_CUBE","[Providers].[Org Name].["&A51&"]","[Date].[Fiscal Q Hierarchy].[All].["&$B$8&"].["&$F$8&"]","[Measures].[FFT Test Score]","[Friends And Family Type].[FFT Source].[All types].[Combined A&E and Inpatients]")*1,"") -> 68.61313869 | G51: =IFERROR(CUBEVALUE("PROD_CUBE","[Providers].[Org Name].["&A51&"]","[Date].[Fiscal Q Hierarchy].[All].["&$B$8&"]","[Measures].[FFT Test Score]","[Friends And Family Type].[FFT Source].[All types].[Combined A&E and Inpatients]")*1,"") -> 70.0704607
A52: ='QUALITY SECTION'!D10 -> ROTHERHAM DONCASTER AND SOUTH HUMBER NHS FOUNDATION TRUST | B52: ='QUALITY SECTION'!D13 -> MH | D52: =IFERROR(CUBEVALUE("PROD_CUBE","[Providers].[Org Name].["&A52&"]","[Date].[Fiscal Q Hierarchy].[All].["&$B$8&"].["&$D$8&"]","[Measures].[FFT Test Score]","[Friends And Family Type].[FFT Source].[All types].[Combined A&E and Inpatients]")*1,"") ->  | F52: =IFERROR(CUBEVALUE("PROD_CUBE","[Providers].[Org Name].["&A52&"]","[Date].[Fiscal Q Hierarchy].[All].["&$B$8&"].["&$F$8&"]","[Measures].[FFT Test Score]","[Friends And Family Type].[FFT Source].[All types].[Combined A&E and Inpatients]")*1,"") ->  | G52: =IFERROR(CUBEVALUE("PROD_CUBE","[Providers].[Org Name].["&A52&"]","[Date].[Fiscal Q Hierarchy].[All].["&$B$8&"]","[Measures].[FFT Test Score]","[Friends And Family Type].[FFT Source].[All types].[Combined A&E and Inpatients]")*1,"") -> 
A53: ='QUALITY SECTION'!E10 -> No Provider | B53: ='QUALITY SECTION'!E13 -> No Provider
A54: ='QUALITY SECTION'!F10 -> No Provider | B54: ='QUALITY SECTION'!F13 -> No Provider
A55: ='QUALITY SECTION'!G10 -> No Provider | B55: ='QUALITY SECTION'!G13 -> No Provider
A56: ='QUALITY SECTION'!H10 -> No Provider | B56: ='QUALITY SECTION'!H13 -> No Provider
A57: ='QUALITY SECTION'!I10 -> No Provider | B57: ='QUALITY SECTION'!I13 -> No Provider | G57: =IFERROR(CUBEVALUE("PROD_CUBE","[Providers].[Org Name].["&A57&"]","[Date].[Short Month Year Label].[By Date].["&TEXT($I$8,"mmm-yy")&"]","[Measures].[FFT Test Score]","[Friends And Family Type].[FFT Source].[All types].[Combined A&E and Inpatients]")*1,"") -> 
A58: ='QUALITY SECTION'!J10 -> No Provider | B58: ='QUALITY SECTION'!J13 -> No Provider | G58: =IFERROR(CUBEVALUE("PROD_CUBE","[Providers].[Org Name].["&A58&"]","[Date].[Fiscal Q Hierarchy].[All].["&$B$8&"]","[Measures].[FFT Test Score]","[Friends And Family Type].[FFT Source].[All types].[Combined A&E and Inpatients]")*1,"") -> 
A59: ='QUALITY SECTION'!K10 -> No Provider | B59: ='QUALITY SECTION'!K13 -> No Provider | G59: =IFERROR(CUBEVALUE("PROD_CUBE","[Providers].[Org Name].["&A59&"]","[Date].[Fiscal Q Hierarchy].[All].["&$B$8&"]","[Measures].[FFT Test Score]","[Friends And Family Type].[FFT Source].[All types].[Combined A&E and Inpatients]")*1,"") -> 
A60: ='QUALITY SECTION'!L10 -> No Provider | B60: ='QUALITY SECTION'!L13 -> No Provider | G60: =IFERROR(CUBEVALUE("PROD_CUBE","[Providers].[Org Name].["&A60&"]","[Date].[Fiscal Q Hierarchy].[All].["&$B$8&"]","[Measures].[FFT Test Score]","[Friends And Family Type].[FFT Source].[All types].[Combined A&E and Inpatients]")*1,"") -> 
A61: Local priorities (Self-Certification) | B61: Are you on track to deliver against this local priority?
A62: LOCAL PRIORITY 1 | B62: Yes/No/FDR | C62: =IFERROR(VLOOKUP('COVER PAGE'!$A$4&"_"&$B$8&"_"&$AA$9,CCG_SELFCERT_DOMAIN1!$A:$P,9,FALSE),"NO DATA IN CUBE FOR Q1") -> Yes | D62: =IFERROR(VLOOKUP('COVER PAGE'!$A$4&"_"&$B$8&"_"&$AB$9,CCG_SELFCERT_DOMAIN1!$A:$P,9,FALSE),"NO DATA IN CUBE FOR Q2") -> Yes | E62: =IFERROR(VLOOKUP('COVER PAGE'!$A$4&"_"&$B$8&"_"&$AC$9,CCG_SELFCERT_DOMAIN1!$A:$P,9,FALSE),"NO DATA") -> Yes | F62: =IFERROR(VLOOKUP('COVER PAGE'!$A$4&"_"&$B$8&"_"&$AD$9,CCG_SELFCERT_DOMAIN1!$A:$P,9,FALSE),"NO DATA") -> Further development required | L62: =F62 -> Further development required
A63: LOCAL PRIORITY 2 | B63: Yes/No/FDR | C63: =IFERROR(VLOOKUP('COVER PAGE'!$A$4&"_"&$B$8&"_"&$AA$9,CCG_SELFCERT_DOMAIN1!$A:$P,10,FALSE),"NO DATA IN CUBE FOR Q1") -> Yes | D63: =IFERROR(VLOOKUP('COVER PAGE'!$A$4&"_"&$B$8&"_"&$AB$9,CCG_SELFCERT_DOMAIN1!$A:$P,10,FALSE),"NO DATA IN CUBE FOR Q2") -> Yes | E63: =IFERROR(VLOOKUP('COVER PAGE'!$A$4&"_"&$B$8&"_"&$AC$9,CCG_SELFCERT_DOMAIN1!$A:$P,10,FALSE),"NO DATA") -> Yes | F63: =IFERROR(VLOOKUP('COVER PAGE'!$A$4&"_"&$B$8&"_"&$AD$9,CCG_SELFCERT_DOMAIN1!$A:$P,10,FALSE),"NO DATA") -> Further development required | L63: =F63 -> Further development required
A64: LOCAL PRIORITY 3 | B64: Yes/No/FDR | C64: =IFERROR(VLOOKUP('COVER PAGE'!$A$4&"_"&$B$8&"_"&$AA$9,CCG_SELFCERT_DOMAIN1!$A:$P,11,FALSE),"NO DATA IN CUBE FOR Q1") -> Yes | D64: =IFERROR(VLOOKUP('COVER PAGE'!$A$4&"_"&$B$8&"_"&$AB$9,CCG_SELFCERT_DOMAIN1!$A:$P,11,FALSE),"NO DATA IN CUBE FOR Q2") -> Yes | E64: =IFERROR(VLOOKUP('COVER PAGE'!$A$4&"_"&$B$8&"_"&$AC$9,CCG_SELFCERT_DOMAIN1!$A:$P,11,FALSE),"NO DATA") -> Yes | F64: =IFERROR(VLOOKUP('COVER PAGE'!$A$4&"_"&$B$8&"_"&$AD$9,CCG_SELFCERT_DOMAIN1!$A:$P,11,FALSE),"NO DATA") -> Yes | L64: =F64 -> Yes
S66: GREEN | T66: AMBER | U66: RED | V66: NA
S67: =SUMPRODUCT(--ISNUMBER(SEARCH($S$66,L32:L33))) -> 2 | T67: =SUMPRODUCT(--ISNUMBER(SEARCH($T$66,L32:L33))) -> 0 | U67: =SUMPRODUCT(--ISNUMBER(SEARCH($U$66,L32:L33))) -> 0 | V67: =SUMPRODUCT(--ISNUMBER(SEARCH($V$66,L32:L33))) -> 0
S69: RED | T69: =U67+T67 -> 0
S70: AMBER-RED | T70: =IF($U$67=1,"1 RED",) -> 0
S71: GREEN | T71: =S67 -> 2
S76: NO DATA | T76: =V67 -> 0
C82: FFT | D82: RATE
C84: Q1 | D84: Q1 | E84: Q2 | F84: Q2 | G84: Q3 | H84: Q3 | I84: Q4 | J84: Q4 | K84: End of year
B85: 39 | C85: =IF($C$40="","",IF($C$40>=15%, "YES",IF($C$40<15%,"NO"))) -> NO | D85: =IF($C$85="","NO DATA",IF($C$85="NO","0",IF($C$85="YES","1",))) -> 0 | E85: =IF($D$40="","",IF($D$40>=15%, "YES",IF($D$40<15%,"NO"))) -> YES | F85: =IF($E$85="","NO DATA",IF($E$85="NO","0",IF($E$85="YES","1",))) -> 1 | G85: =IF($E$40="","",IF($E$40>=15%, "YES",IF($E$40<15%,"NO"))) -> YES | H85: =IF($G$85="","NO DATA",IF($G$85="NO","0",IF($G$85="YES","1",))) -> 1 | I85: =IF($F$40="","",IF($F$40>=20%, "YES",IF($F$40<20%,"NO"))) -> YES | J85: =IF($I$85="","NO DATA",IF($I$85="NO","0",IF($I$85="YES","1",))) -> 1 | K85: =IF($G$40="","",IF($G$40>=20%, "YES",IF($G$40<20%,"NO"))) -> NO
B86: 40 | C86: =IF($C$41="","",IF($C$41>=15%, "YES",IF($C$41<15%,"NO"))) ->  | D86: =IF($C$86="","NO DATA",IF($C$86="NO","0",IF($C$86="YES","1",))) -> NO DATA | E86: =IF($D$41="","",IF($D$41>=15%, "YES",IF($D$41<15%,"NO"))) ->  | F86: =IF($E$86="","NO DATA",IF($E$86="NO","0",IF($E$86="YES","1",))) -> NO DATA | G86: =IF($E$41="","",IF($E$41>=15%, "YES",IF($E$41<15%,"NO"))) ->  | H86: =IF($G$86="","NO DATA",IF($G$86="NO","0",IF($G$86="YES","1",))) -> NO DATA | I86: =IF($F$41="","",IF($F$41>=20%, "YES",IF($F$41<20%,"NO"))) ->  | J86: =IF($I$86="","NO DATA",IF($I$86="NO","0",IF($I$86="YES","1",))) -> NO DATA | K86: =IF($G$41="","",IF($G$41>=20%, "YES",IF($G$41<20%,"NO"))) -> 
B87: 41 | C87: =IF($C$42="","",IF($C$42>=15%, "YES",IF($C$42<15%,"NO"))) ->  | D87: =IF($C$87="","NO DATA",IF($C$87="NO","0",IF($C$87="YES","1",))) -> NO DATA | E87: =IF($D$42="","",IF($D$42>=15%, "YES",IF($D$42<15%,"NO"))) ->  | F87: =IF($E$87="","NO DATA",IF($E$87="NO","0",IF($E$87="YES","1",))) -> NO DATA | G87: =IF($E$42="","",IF($E$42>=15%, "YES",IF($E$42<15%,"NO"))) ->  | H87: =IF($G$87="","NO DATA",IF($G$87="NO","0",IF($G$87="YES","1",))) -> NO DATA | I87: =IF($F$42="","",IF($F$42>=20%, "YES",IF($F$42<20%,"NO"))) ->  | J87: =IF($I$87="","NO DATA",IF($I$87="NO","0",IF($I$87="YES","1",))) -> NO DATA | K87: =IF($G$42="","",IF($G$42>=20%, "YES",IF($G$42<20%,"NO"))) -> 
B88: 42 | C88: =IF($C$43="","",IF($C$43>=15%, "YES",IF($C$43<15%,"NO"))) ->  | D88: =IF($C$88="","NO DATA",IF($C$88="NO","0",IF($C$88="YES","1",))) -> NO DATA | E88: =IF($D$43="","",IF($D$43>=15%, "YES",IF($D$43<15%,"NO"))) ->  | F88: =IF($E$88="","NO DATA",IF($E$88="NO","0",IF($E$88="YES","1",))) -> NO DATA | G88: =IF($E$43="","",IF($E$43>=15%, "YES",IF($E$43<15%,"NO"))) ->  | H88: =IF($G$88="","NO DATA",IF($G$88="NO","0",IF($G$88="YES","1",))) -> NO DATA | I88: =IF($F$43="","",IF($F$43>=20%, "YES",IF($F$43<20%,"NO"))) ->  | J88: =IF($I$88="","NO DATA",IF($I$88="NO","0",IF($I$88="YES","1",))) -> NO DATA | K88: =IF($G$43="","",IF($G$43>=20%, "YES",IF($G$43<20%,"NO"))) -> 
B89: 43 | C89: =IF($C$44="","",IF($C$44>=15%,"YES",IF($C$44<15%,"NO",))) ->  | D89: =IF($C$89="","NO DATA",IF($C$89="NO","0",IF($C$89="YES","1",))) -> NO DATA | E89: =IF($D$44="","",IF($D$44>=15%,"YES",IF($D$44<15%,"NO",))) ->  | F89: =IF($E$89="","NO DATA",IF($E$89="NO","0",IF($E$89="YES","1",))) -> NO DATA | G89: =IF($E$44="","",IF($E$44>=15%,"YES",IF($E$44<15%,"NO",))) ->  | H89: =IF($G$89="","NO DATA",IF($G$89="NO","0",IF($G$89="YES","1",))) -> NO DATA | I89: =IF($F$44="","",IF($F$44>=20%,"YES",IF($F$44<20%,"NO",))) ->  | J89: =IF($I$89="","NO DATA",IF($I$89="NO","0",IF($I$89="YES","1",))) -> NO DATA | K89: =IF($G$44="","",IF($G$44>=20%,"YES",IF($G$44<20%,"NO",))) -> 
B90: 44 | C90: =IF($C$45="","",IF($C$45>=15%,"YES",IF($C$45<15%,"NO",))) ->  | D90: =IF($C$90="","NO DATA",IF($C$90="NO","0",IF($C$90="YES","1",))) -> NO DATA | E90: =IF($D$45="","",IF($D$45>=15%,"YES",IF($D$45<15%,"NO",))) ->  | F90: =IF($E$90="","NO DATA",IF($E$90="NO","0",IF($E$90="YES","1",))) -> NO DATA | G90: =IF($E$45="","",IF($E$45>=15%,"YES",IF($E$45<15%,"NO",))) ->  | H90: =IF($G$90="","NO DATA",IF($G$90="NO","0",IF($G$90="YES","1",))) -> NO DATA | I90: =IF($F$45="","",IF($F$45>=20%,"YES",IF($F$45<20%,"NO",))) ->  | J90: =IF($I$90="","NO DATA",IF($I$90="NO","0",IF($I$90="YES","1",))) -> NO DATA | K90: =IF($G$45="","",IF($G$45>=20%,"YES",IF($G$45<20%,"NO",))) -> 
B91: 45 | C91: =IF($C$46="","",IF($C$46>=15%,"YES",IF($C$46<15%,"NO",))) ->  | D91: =IF($C$91="","NO DATA",IF($C$91="NO","0",IF($C$91="YES","1",))) -> NO DATA | E91: =IF($D$46="","",IF($D$46>=15%,"YES",IF($D$46<15%,"NO",))) ->  | F91: =IF($E$91="","NO DATA",IF($E$91="NO","0",IF($E$91="YES","1",))) -> NO DATA | G91: =IF($E$46="","",IF($E$46>=15%,"YES",IF($E$46<15%,"NO",))) ->  | H91: =IF($G$91="","NO DATA",IF($G$91="NO","0",IF($G$91="YES","1",))) -> NO DATA | I91: =IF($F$46="","",IF($F$46>=20%,"YES",IF($F$46<20%,"NO",))) ->  | J91: =IF($I$91="","NO DATA",IF($I$91="NO","0",IF($I$91="YES","1",))) -> NO DATA | K91: =IF($G$46="","",IF($G$46>=20%,"YES",IF($G$46<20%,"NO",))) -> 
B92: 46 | C92: =IF($C$47="","",IF($C$47>=15%,"YES",IF($C$47<15%,"NO",))) ->  | D92: =IF($C$92="","NO DATA",IF($C$92="NO","0",IF($C$92="YES","1",))) -> NO DATA | E92: =IF($D$47="","",IF($D$47>=15%,"YES",IF($D$47<15%,"NO",))) ->  | F92: =IF($E$92="","NO DATA",IF($E$92="NO","0",IF($E$92="YES","1",))) -> NO DATA | G92: =IF($E$47="","",IF($E$47>=15%,"YES",IF($E$47<15%,"NO",))) ->  | H92: =IF($G$92="","NO DATA",IF($G$92="NO","0",IF($G$92="YES","1",))) -> NO DATA | I92: =IF($F$47="","",IF($F$47>=20%,"YES",IF($F$47<20%,"NO",))) ->  | J92: =IF($I$92="","NO DATA",IF($I$92="NO","0",IF($I$92="YES","1",))) -> NO DATA | K92: =IF($G$47="","",IF($G$47>=20%,"YES",IF($G$47<20%,"NO",))) -> 
B93: 47 | C93: =IF($C$48="","",IF($C$48>=15%,"YES",IF($C$48<15%,"NO",))) ->  | D93: =IF($C$93="","NO DATA",IF($C$93="NO","0",IF($C$93="YES","1",))) -> NO DATA | E93: =IF($D$48="","",IF($D$48>=15%,"YES",IF($D$48<15%,"NO",))) ->  | F93: =IF($E$93="","NO DATA",IF($E$93="NO","0",IF($E$93="YES","1",))) -> NO DATA | G93: =IF($E$48="","",IF($E$48>=15%,"YES",IF($E$48<15%,"NO",))) ->  | H93: =IF($G$93="","NO DATA",IF($G$93="NO","0",IF($G$93="YES","1",))) -> NO DATA | I93: =IF($F$48="","",IF($F$48>=20%,"YES",IF($F$48<20%,"NO",))) ->  | J93: =IF($I$93="","NO DATA",IF($I$93="NO","0",IF($I$93="YES","1",))) -> NO DATA | K93: =IF($G$48="","",IF($G$48>=20%,"YES",IF($G$48<20%,"NO",))) -> 
B94: 48 | C94: =IF($C$49="","",IF($C$49>=15%,"YES",IF($C$4758%,"NO",))) ->  | D94: =IF($C$94="","NO DATA",IF($C$94="NO","0",IF($C$94="YES","1",))) -> NO DATA | E94: =IF($D$49="","",IF($D$49>=15%,"YES",IF($D$4758%,"NO",))) ->  | F94: =IF($E$94="","NO DATA",IF($E$94="NO","0",IF($E$94="YES","1",))) -> NO DATA | G94: =IF($E$49="","",IF($E$49>=15%,"YES",IF($E$4758%,"NO",))) ->  | H94: =IF($G$94="","NO DATA",IF($G$94="NO","0",IF($G$94="YES","1",))) -> NO DATA | I94: =IF($F$49="","",IF($F$49>=20%,"YES",IF($F$49<20%,"NO",))) ->  | J94: =IF($I$94="","NO DATA",IF($I$94="NO","0",IF($I$94="YES","1",))) -> NO DATA | K94: =IF($G$49="","",IF($G$49>=20%,"YES",IF($G$49<20%,"NO",))) -> 
B96: TOTAL | D96: =IF($D$85="0", "No", IF($D$86="0", "No",IF($D$87="0", "No",IF($D$88="0", "No", IF($D$89="0", "No",IF($D$90="0", "No",IF($D$91="0", "No",IF($D$92="0", "No",IF($D$93="0", "No",IF($D$94="0", "No",IF($D$85="1", "Yes", IF($D$86="1", "Yes",IF($D$87="1", "Yes",IF($D$88="1", "Yes", IF($D$89="1", "Yes",IF($D$90="1", "Yes",IF($D$91="1", "Yes",IF($D$92="1", "Yes",IF($D$93="1", "Yes",IF($D$94="1", "Yes",IF($D$85="NO DATA", "NO DATA", IF($D$86="NO DATA", "NO DATA",IF($D$87="NO DATA", "NO DATA",IF($D$88="NO DATA", "NO DATA", IF($D$89="NO DATA", "NO DATA",IF($D$90="NO DATA", "NO DATA",IF($D$91="NO DATA", "NO DATA",IF($D$92="NO DATA", "NO DATA",IF($D$93="NO DATA", "NO DATA",IF($D$94="NO DATA", "NO DATA",)))))))))))))))))))))))))))))) -> No | F96: =IF($F$85="0", "No", IF($F$86="0", "No",IF($F$87="0", "No",IF($F$88="0", "No", IF($F$89="0", "No",IF($F$90="0", "No",IF($F$91="0", "No",IF($F$92="0", "No",IF($F$93="0", "No",IF($F$94="0", "No",IF($F$85="1", "Yes", IF($F$86="1", "Yes",IF($F$87="1", "Yes",IF($F$88="1", "Yes", IF($F$89="1", "Yes",IF($F$90="1", "Yes",IF($F$91="1", "Yes",IF($F$92="1", "Yes",IF($F$93="1", "Yes",IF($F$94="1", "Yes",IF($F$85="NO DATA", "NO DATA", IF($F$86="NO DATA", "NO DATA",IF($F$87="NO DATA", "NO DATA",IF($F$88="NO DATA", "NO DATA", IF($F$89="NO DATA", "NO DATA",IF($F$90="NO DATA", "NO DATA",IF($F$91="NO DATA", "NO DATA",IF($F$92="NO DATA", "NO DATA",IF($F$93="NO DATA", "NO DATA",IF($F$94="NO DATA", "NO DATA",)))))))))))))))))))))))))))))) -> Yes | H96: =IF($H$85="0", "No", IF($H$86="0", "No",IF($H$87="0", "No",IF($H$88="0", "No", IF($H$89="0", "No",IF($H$90="0", "No",IF($H$91="0", "No",IF($H$92="0", "No",IF($H$93="0", "No",IF($H$94="0", "No",IF($H$85="1", "Yes", IF($H$86="1", "Yes",IF($H$87="1", "Yes",IF($H$88="1", "Yes", IF($H$89="1", "Yes",IF($H$90="1", "Yes",IF($H$91="1", "Yes",IF($H$92="1", "Yes",IF($H$93="1", "Yes",IF($H$94="1", "Yes",IF($H$85="NO DATA", "NO DATA", IF($H$86="NO DATA", "NO DATA",IF($H$87="NO DATA", "NO DATA",IF($H$88="NO DATA", "NO DATA", IF($H$89="NO DATA", "NO DATA",IF($H$90="NO DATA", "NO DATA",IF($H$91="NO DATA", "NO DATA",IF($H$92="NO DATA", "NO DATA",IF($H$93="NO DATA", "NO DATA",IF($H$94="NO DATA", "NO DATA",)))))))))))))))))))))))))))))) -> Yes | J96: =IF($J$85="0", "No", IF($J$86="0", "No",IF($J$87="0", "No",IF($J$88="0", "No", IF($J$89="0", "No",IF($J$90="0", "No",IF($J$91="0", "No",IF($J$92="0", "No",IF($J$93="0", "No",IF($J$94="0", "No",IF($J$85="1", "Yes", IF($J$86="1", "Yes",IF($J$87="1", "Yes",IF($J$88="1", "Yes", IF($J$89="1", "Yes",IF($J$90="1", "Yes",IF($J$91="1", "Yes",IF($J$92="1", "Yes",IF($J$93="1", "Yes",IF($J$94="1", "Yes",IF($J$85="NO DATA", "NO DATA", IF($J$86="NO DATA", "NO DATA",IF($J$87="NO DATA", "NO DATA",IF($J$88="NO DATA", "NO DATA", IF($J$89="NO DATA", "NO DATA",IF($J$90="NO DATA", "NO DATA",IF($J$91="NO DATA", "NO DATA",IF($J$92="NO DATA", "NO DATA",IF($J$93="NO DATA", "NO DATA",IF($J$94="NO DATA", "NO DATA",)))))))))))))))))))))))))))))) -> Yes
C106: FFT | D106: RATE
D107: End of Year
B108: End of Year | D108: =IF($K$85="","NO DATA",IF($K$85="NO","0",IF($K$85="YES","1",))) -> 0
D109: =IF($K$86="","NO DATA",IF($K$86="NO","0",IF($K$86="YES","1",))) -> NO DATA
D110: =IF($K$87="","NO DATA",IF($K$87="NO","0",IF($K$87="YES","1",))) -> NO DATA
D111: =IF($K$88="","NO DATA",IF($K$88="NO","0",IF($K$88="YES","1",))) -> NO DATA
D112: =IF($K$89="","NO DATA",IF($K$89="NO","0",IF($K$89="YES","1",))) -> NO DATA
D113: =IF($K$90="","NO DATA",IF($K$90="NO","0",IF($K$90="YES","1",))) -> NO DATA
D114: =IF($K$91="","NO DATA",IF($K$91="NO","0",IF($K$91="YES","1",))) -> NO DATA
D115: =IF($K$92="","NO DATA",IF($K$92="NO","0",IF($K$92="YES","1",))) -> NO DATA | H115: =IF($H$108="0", "No", IF($H$109="0", "No",IF($H$110="0", "No",IF($H$111="0", "No", IF($H$112="0", "No",IF($H$113="0", "No",IF($H$108="1", "Yes", IF($H$109="1", "Yes",IF($H$110="1", "Yes",IF($H$111="1", "Yes", IF($H$112="1", "Yes",IF($H$113="1", "Yes",IF($H$108="NO DATA", "", IF($H$109="NO DATA", "",IF($H$110="", "",IF($H$111="NO DATA", "", IF($H$112="NO DATA", "",IF($H$113="", "",)))))))))))))))))) -> 
D116: =IF($K$93="","NO DATA",IF($K$93="NO","0",IF($K$93="YES","1",))) -> NO DATA
D117: =IF($K$94="","NO DATA",IF($K$94="NO","0",IF($K$94="YES","1",))) -> NO DATA
D119: =IF($D$108="0", "No", IF($D$109="0", "No",IF($D$110="0", "No",IF($D$111="0", "No", IF($D$112="0", "No",IF($D$113="0", "No",IF($D$114="0", "No",IF($D$115="0", "No",IF($D$116="0", "No",IF($D$117="0", "No",IF($D$108="1", "Yes", IF($D$109="1", "Yes",IF($D$110="1", "Yes",IF($D$111="1", "Yes", IF($D$112="1", "Yes",IF($D$113="1", "Yes",IF($D$114="1", "Yes",IF($D$115="1", "Yes",IF($D$116="1", "Yes",IF($D$117="1", "Yes",IF($D$108="NO DATA", "", IF($D$109="NO DATA", "",IF($D$110="NO DATA", "",IF($D$111="NO DATA", "", IF($D$112="NO DATA", "",IF($D$113="NO DATA", "",IF($D$114="NO DATA", "",IF($D$115="NO DATA", "",IF($D$116="NO DATA", "",IF($D$117="NO DATA", "",)))))))))))))))))))))))))))))) -> No
B125: IAPT
C126: Q1 | D126: Q2 | E126: Q3 | F126: Q4 | G126: YTD
C128: =IFERROR(VLOOKUP('COVER PAGE'!$A$4&"_"&$B$8&"_"&$AA$9,CCG_SELFCERT_DOMAIN1!$A:$P,12,FALSE),"NO DATA IN CUBE FOR Q1") -> Yes | D128: =IFERROR(VLOOKUP('COVER PAGE'!$A$4&"_"&$B$8&"_"&$AB$9,CCG_SELFCERT_DOMAIN1!$A:$P,12,FALSE),"NO DATA IN CUBE FOR Q2") -> Yes | E128: =IFERROR(VLOOKUP('COVER PAGE'!$A$4&"_"&$B$8&"_"&$AC$9,CCG_SELFCERT_DOMAIN1!$A:$P,12,FALSE),"NO DATA") -> Yes | F128: =IFERROR(VLOOKUP('COVER PAGE'!$A$4&"_"&$B$8&"_"&$AD$9,CCG_SELFCERT_DOMAIN1!$A:$P,12,FALSE),"NO DATA") -> No
C129: =IF($C$128="Further Development Required","FDR",IF($C$128="Yes","1",IF($C$128="No","0",IF($C$128="Further Develoment Required","FDR",IF($C$128="NO DATA IN CUBE FOR Q1","NO DATA IN CUBE FOR Q1",))))) -> 1 | D129: =IF($D$128="Further Development Required","FDR",IF($D$128="Yes","1",IF($D$128="No","0",IF($D$128="Further Develoment Required","FDR",IF($D$128="NO DATA IN CUBE FOR Q2","NO DATA IN CUBE FOR Q2",))))) -> 1 | E129: =IF($E$128="Further Development Required","FDR",IF($E$128="Yes","1",IF($E$128="No","0",IF($E$128="Further Develoment Required","FDR",IF($E$128="No Data","NO DATA",))))) -> 1 | F129: =IF($F$128="Further Development Required","FDR",IF($F$128="Yes","1",IF($F$128="No","0",IF($F$128="Further Develoment Required","FDR",IF($F$128="No Data","NO DATA",))))) -> 0
B134: FFT SCORES | C134: variance | F134: Q4
B135: Q1 | C135: Q2 | D135: Q3 | E135: Q4 | F135: Improvement btw Q1 AND Q4 | G135: YEAR END
C136: =IFERROR(D51-C51,"NO DATA") -> 15.23706664 | D136: =IFERROR(E51-D51,"NO DATA") -> 3.689120647 | E136: =IFERROR(F51-E51,"NO DATA") -> -6.318635193 | F136: =IFERROR(F51-C51,"NO DATA") -> 12.60755209 | G136: =IFERROR(G51-C51,"NO DATA") -> 14.06487411
C137: =IFERROR(D52-C52,"NO DATA") -> NO DATA | D137: NO DATA | E137: NO DATA | F137: =IFERROR(F52-C52,"NO DATA") -> NO DATA | G137: =IFERROR(G52-C52,"NO DATA") -> NO DATA
C138: NO DATA | D138: NO DATA | E138: =IFERROR(F53-E53,"NO DATA") -> NO DATA | F138: =IFERROR(F53-C53,"NO DATA") -> NO DATA | G138: =IFERROR(G53-C53,"NO DATA") -> NO DATA
C139: NO DATA | D139: NO DATA | E139: NO DATA | F139: NO DATA | G139: NO DATA
C140: NO DATA | D140: NO DATA | E140: NO DATA | F140: NO DATA | G140: NO DATA
C141: NO DATA | D141: NO DATA | E141: =IFERROR(F56-E56,"NO DATA") -> NO DATA | F141: NO DATA | G141: NO DATA
C142: NO DATA | D142: NO DATA | E142: =IFERROR(F57-E57,"NO DATA") -> NO DATA | F142: NO DATA | G142: NO DATA
C143: NO DATA | D143: NO DATA | E143: =IFERROR(F58-E58,"NO DATA") -> NO DATA | F143: NO DATA | G143: NO DATA
C144: NO DATA | D144: NO DATA | E144: NO DATA | F144: NO DATA | G144: NO DATA
C145: NO DATA | D145: =IFERROR(E60-D60,"NO DATA") -> NO DATA | E145: =IFERROR(F60-E60,"NO DATA") -> NO DATA | F145: NO DATA | G145: NO DATA
B147: FFT SCORES | C147: PART 2
F148: Q4
B149: Q1 | C149: Q2 | D149: Q3 | E149: Q4 | F149: Improvement btw Q1 AND Q4 | G149: YEAR END
C150: =IF(C136<0,"NAGATIVE",IF(C136<=100,"POSITIVE",IF(C136="NO DATA","NO DATA"))) -> POSITIVE | D150: =IF(D136<0,"NAGATIVE",IF(D136<=100,"POSITIVE",IF(D136="NO DATA","NO DATA"))) -> POSITIVE | E150: =IF(E136<0,"NAGATIVE",IF(E136<=100,"POSITIVE",IF(E136="NO DATA","NO DATA"))) -> NAGATIVE | F150: =IF(F136<0,"NAGATIVE",IF(F136<=100,"POSITIVE",IF(F136="NO DATA","NO DATA"))) -> POSITIVE | G150: =IF(G136<0,"NAGATIVE",IF(G136<=100,"POSITIVE",IF(G136="NO DATA","NO DATA"))) -> POSITIVE
C151: =IF(C137<0,"NAGATIVE",IF(C137<=100,"POSITIVE",IF(C137="NO DATA","NO DATA"))) -> NO DATA | D151: NO DATA | E151: NO DATA | F151: =IF(F137<0,"NAGATIVE",IF(F137<=100,"POSITIVE",IF(F137="NO DATA","NO DATA"))) -> NO DATA | G151: =IF(G137<0,"NAGATIVE",IF(G137<=100,"POSITIVE",IF(G137="NO DATA","NO DATA"))) -> NO DATA
C152: =IF(C138<0,"NAGATIVE",IF(C138<=100,"POSITIVE",IF(C138="NO DATA","NO DATA"))) -> NO DATA | D152: NO DATA | E152: =IF(E138<0,"NAGATIVE",IF(E138<=100,"POSITIVE",IF(E138="NO DATA","NO DATA"))) -> NO DATA | F152: NO DATA | G152: NO DATA
C153: =IF(C139<0,"NAGATIVE",IF(C139<=100,"POSITIVE",IF(C139="NO DATA","NO DATA"))) -> NO DATA | D153: NO DATA | E153: NO DATA | F153: NO DATA | G153: NO DATA
C154: =IF(C140<0,"NAGATIVE",IF(C140<=100,"POSITIVE",IF(C140="NO DATA","NO DATA"))) -> NO DATA | D154: NO DATA | E154: NO DATA | F154: NO DATA | G154: NO DATA
C155: =IF(C141<0,"NAGATIVE",IF(C141<=100,"POSITIVE",IF(C141="NO DATA","NO DATA"))) -> NO DATA | D155: NO DATA | E155: NO DATA | F155: NO DATA | G155: NO DATA
C156: =IF(C142<0,"NAGATIVE",IF(C142<=100,"POSITIVE",IF(C142="NO DATA","NO DATA"))) -> NO DATA | D156: NO DATA | E156: NO DATA | F156: NO DATA | G156: NO DATA
C157: =IF(C143<0,"NAGATIVE",IF(C143<=100,"POSITIVE",IF(C143="NO DATA","NO DATA"))) -> NO DATA | D157: NO DATA | E157: NO DATA | F157: NO DATA | G157: NO DATA
C158: =IF(C144<0,"NAGATIVE",IF(C144<=100,"POSITIVE",IF(C144="NO DATA","NO DATA"))) -> NO DATA | D158: NO DATA | E158: NO DATA | F158: NO DATA | G158: NO DATA
C159: =IF(C145<0,"NAGATIVE",IF(C145<=100,"POSITIVE",IF(C145="NO DATA","NO DATA"))) -> NO DATA | D159: NO DATA | E159: NO DATA | F159: NO DATA | G159: NO DATA
B162: FFT SCORES | C162: PART 3
F163: Q4
B164: Q1 | C164: Q2 | D164: Q3 | E164: Q4 | F164: Improvement btw Q1 AND Q4 | G164: YEAR END
C165: =IF(C150="POSITIVE","1",IF(C150="NAGATIVE","0",IF(C150="NO DATA","NO DATA"))) -> 1 | D165: =IF(D150="POSITIVE","1",IF(D150="NAGATIVE","0",IF(D150="NO DATA","NO DATA"))) -> 1 | E165: =IF(E150="POSITIVE","1",IF(E150="NAGATIVE","0",IF(E150="NO DATA","NO DATA"))) -> 0 | F165: =IF(F150="POSITIVE","1",IF(F150="NAGATIVE","0",IF(F150="NO DATA","NO DATA"))) -> 1 | G165: =IF(G150="POSITIVE","1",IF(G150="NAGATIVE","0",IF(G150="NO DATA","NO DATA"))) -> 1
C166: =IF(C151="POSITIVE","1",IF(C151="NAGATIVE","0",IF(C151="NO DATA","NO DATA"))) -> NO DATA | D166: NO DATA | E166: NO DATA | F166: =IF(F151="POSITIVE","1",IF(F151="NAGATIVE","0",IF(F151="NO DATA","NO DATA"))) -> NO DATA | G166: =IF(G151="POSITIVE","1",IF(G151="NAGATIVE","0",IF(G151="NO DATA","NO DATA"))) -> NO DATA
C167: =IF(C152="POSITIVE","1",IF(C152="NAGATIVE","0",IF(C152="NO DATA","NO DATA"))) -> NO DATA | D167: NO DATA | E167: NO DATA | F167: NO DATA | G167: =IF(G152="POSITIVE","1",IF(G152="NAGATIVE","0",IF(G152="NO DATA","NO DATA"))) -> NO DATA
C168: =IF(C153="POSITIVE","1",IF(C153="NAGATIVE","0",IF(C153="NO DATA","NO DATA"))) -> NO DATA | D168: NO DATA | E168: NO DATA | F168: NO DATA | G168: NO DATA
C169: =IF(C154="POSITIVE","1",IF(C154="NAGATIVE","0",IF(C154="NO DATA","NO DATA"))) -> NO DATA | D169: NO DATA | E169: NO DATA | F169: NO DATA | G169: NO DATA
C170: =IF(C155="POSITIVE","1",IF(C155="NAGATIVE","0",IF(C155="NO DATA","NO DATA"))) -> NO DATA | D170: NO DATA | E170: NO DATA | F170: NO DATA | G170: NO DATA
C171: =IF(C156="POSITIVE","1",IF(C156="NAGATIVE","0",IF(C156="NO DATA","NO DATA"))) -> NO DATA | D171: NO DATA | E171: NO DATA | F171: NO DATA | G171: NO DATA
C172: =IF(C157="POSITIVE","1",IF(C157="NAGATIVE","0",IF(C157="NO DATA","NO DATA"))) -> NO DATA | D172: NO DATA | E172: NO DATA | F172: NO DATA | G172: NO DATA
C173: =IF(C158="POSITIVE","1",IF(C158="NAGATIVE","0",IF(C158="NO DATA","NO DATA"))) -> NO DATA | D173: NO DATA | E173: NO DATA | F173: NO DATA | G173: NO DATA
C174: =IF(C159="POSITIVE","1",IF(C159="NAGATIVE","0",IF(C159="NO DATA","NO DATA"))) -> NO DATA | D174: =IF(D159="POSITIVE","1",IF(D159="NAGATIVE","0",IF(D159="NO DATA","NO DATA"))) -> NO DATA | E174: =IF(E159="POSITIVE","1",IF(E159="NAGATIVE","0",IF(E159="NO DATA","NO DATA"))) -> NO DATA | F174: NO DATA | G174: NO DATA
C176: =IF($C$165="0", "No", IF($C$166="0", "No",IF($C$167="0", "No",IF($C$168="0", "No", IF($C$169="0", "No",IF($C$170="0", "No",IF($C$171="0", "No",IF($C$172="0", "No",IF($C$173="0", "No",IF($C$174="0", "No",IF($C$165="1", "Yes", IF($C$166="1", "Yes",IF($C$167="1", "Yes",IF($C$168="1", "Yes", IF($C$169="1", "Yes",IF($C$170="1", "Yes",IF($C$171="1", "Yes",IF($C$172="1", "Yes",IF($C$173="1", "Yes",IF($C$174="1", "Yes",IF($C$165="NO DATA", "NO DATA", IF($C$166="NO DATA", "NO DATA",IF($C$167="NO DATA", "NO DATA",IF($C$168="NO DATA", "NO DATA", IF($C$169="NO DATA", "NO DATA",IF($C$170="NO DATA", "NO DATA",IF($C$171="NO DATA", "NO DATA",IF($C$172="NO DATA", "NO DATA",IF($C$173="NO DATA", "NO DATA",IF($C$174="NO DATA", "NO DATA",)))))))))))))))))))))))))))))) -> Yes | D176: =IF($D$165="0", "No", IF($D$166="0", "No",IF($D$167="0", "No",IF($D$168="0", "No", IF($D$169="0", "No",IF($D$170="0", "No",IF($D$171="0", "No",IF($D$172="0", "No",IF($D$173="0", "No",IF($D$174="0", "No",IF($D$165="1", "Yes", IF($D$166="1", "Yes",IF($D$167="1", "Yes",IF($D$168="1", "Yes", IF($D$169="1", "Yes",IF($D$170="1", "Yes",IF($D$171="1", "Yes",IF($D$172="1", "Yes",IF($D$173="1", "Yes",IF($D$174="1", "Yes",IF($D$165="NO DATA", "NO DATA", IF($D$166="NO DATA", "NO DATA",IF($D$167="NO DATA", "NO DATA",IF($D$168="NO DATA", "NO DATA", IF($D$169="NO DATA", "NO DATA",IF($D$170="NO DATA", "NO DATA",IF($D$171="NO DATA", "NO DATA",IF($D$172="NO DATA", "NO DATA",IF($D$173="NO DATA", "NO DATA",IF($D$174="NO DATA", "NO DATA",)))))))))))))))))))))))))))))) -> Yes | E176: =IF($E$165="0", "No", IF($E$166="0", "No",IF($E$167="0", "No",IF($E$168="0", "No", IF($E$169="0", "No",IF($E$170="0", "No",IF($E$171="0", "No",IF($E$172="0", "No",IF($E$173="0", "No",IF($E$174="0", "No",IF($E$165="1", "Yes", IF($E$166="1", "Yes",IF($E$167="1", "Yes",IF($E$168="1", "Yes", IF($E$169="1", "Yes",IF($E$170="1", "Yes",IF($E$171="1", "Yes",IF($E$172="1", "Yes",IF($E$173="1", "Yes",IF($E$174="1", "Yes",IF($E$165="NO DATA", "NO DATA", IF($E$166="NO DATA", "NO DATA",IF($E$167="NO DATA", "NO DATA",IF($E$168="NO DATA", "NO DATA", IF($E$169="NO DATA", "NO DATA",IF($E$170="NO DATA", "NO DATA",IF($E$171="NO DATA", "NO DATA",IF($E$172="NO DATA", "NO DATA",IF($E$173="NO DATA", "NO DATA",IF($E$174="NO DATA", "NO DATA",)))))))))))))))))))))))))))))) -> No | F176: =IF($F$165="0", "No", IF($F$166="0", "No",IF($F$167="0", "No",IF($F$168="0", "No", IF($F$169="0", "No",IF($F$170="0", "No",IF($F$171="0", "No",IF($F$172="0", "No",IF($F$173="0", "No",IF($F$174="0", "No",IF($F$165="1", "Yes", IF($F$166="1", "Yes",IF($F$167="1", "Yes",IF($F$168="1", "Yes", IF($F$169="1", "Yes",IF($F$170="1", "Yes",IF($F$171="1", "Yes",IF($F$172="1", "Yes",IF($F$173="1", "Yes",IF($F$174="1", "Yes",IF($F$165="NO DATA", "NO DATA", IF($F$166="NO DATA", "NO DATA",IF($F$167="NO DATA", "NO DATA",IF($F$168="NO DATA", "NO DATA", IF($F$169="NO DATA", "NO DATA",IF($F$170="NO DATA", "NO DATA",IF($F$171="NO DATA", "NO DATA",IF($F$172="NO DATA", "NO DATA",IF($F$173="NO DATA", "NO DATA",IF($F$174="NO DATA", "NO DATA",)))))))))))))))))))))))))))))) -> Yes | G176: =IF($G$165="0", "No", IF($G$166="0", "No",IF($G$167="0", "No",IF($G$168="0", "No", IF($G$169="0", "No",IF($G$170="0", "No",IF($G$171="0", "No",IF($G$172="0", "No",IF($G$173="0", "No",IF($G$174="0", "No",IF($G$165="1", "Yes", IF($G$166="1", "Yes",IF($G$167="1", "Yes",IF($G$168="1", "Yes", IF($G$169="1", "Yes",IF($G$170="1", "Yes",IF($G$171="1", "Yes",IF($G$172="1", "Yes",IF($G$173="1", "Yes",IF($G$174="1", "Yes",IF($G$165="NO DATA", "NO DATA", IF($G$166="NO DATA", "NO DATA",IF($G$167="NO DATA", "NO DATA",IF($G$168="NO DATA", "NO DATA", IF($G$169="NO DATA", "NO DATA",IF($G$170="NO DATA", "NO DATA",IF($G$171="NO DATA", "NO DATA",IF($G$172="NO DATA", "NO DATA",IF($G$173="NO DATA", "NO DATA",IF($G$174="NO DATA", "NO DATA",)))))))))))))))))))))))))))))) -> Yes
A178: TOTAL RAG | C178: =IF(AND($F$96="NO",$C$176="NO"),"RED",IF(AND($F$96="YES",$C$176="YES"),"GREEN",IF(AND($F$96="NO",$C$176="YES"),"AMBER",IF(AND($F$96="YES",$C$176="NO"),"AMBER",IF(AND($F$96="No Data",$C$176="No Data"),"No Data"))))) -> GREEN | D178: =IF(AND($H$96="NO",$D$176="NO"),"RED",IF(AND($H$96="YES",$D$176="YES"),"GREEN",IF(AND($H$96="NO",$D$176="YES"),"AMBER",IF(AND($H$96="YES",$D$176="NO"),"AMBER",IF(AND($H$96="No Data",$D$176="NO DATA"),"NO DATA"))))) -> GREEN | E178: =IF(AND($J$96="NO",$E$176="NO"),"RED",IF(AND($J$96="YES",$E$176="YES"),"GREEN",IF(AND($J$96="NO",$E$176="YES"),"AMBER",IF(AND($J$96="YES",$E$176="NO"),"AMBER",IF(AND($J$96="NO DATA",$E$176="NO DATA"),"NO DATA"))))) -> AMBER | F178: =IF(AND($J$96="NO",$F$176="NO"),"RED",IF(AND($J$96="YES",$F$176="YES"),"GREEN",IF(AND($J$96="NO",$F$176="YES"),"AMBER",IF(AND($J$96="YES",$F$176="NO"),"AMBER",IF(AND($J$96="NO DATA",$F$176="NO DATA"),"NO DATA"))))) -> GREEN | G178: =IF(AND($D$119="NO",$G$176="NO"),"RED",IF(AND($D$119="YES",$G$176="YES"),"GREEN",IF(AND($D$119="NO",$G$176="YES"),"AMBER",IF(AND($D$119="YES",$G$176="NO"),"AMBER",IF(AND($D$119="NO DATA",$G$176="NO DATA"),"NO DATA"))))) -> AMBER
A205: Indicator | B205: RED | C205: Indicator | D205: AMBER | E205: TOTAL INDICATOR
A206: =IF(ISERROR(INDEX(A11:K11,MATCH("RED",L11,FALSE),1)),"",INDEX(A11:K11,MATCH("RED",L11,FALSE),1)) ->  | C206: =IF(ISERROR(INDEX(A11:K11,MATCH("AMBER",L11,FALSE),1)),"",INDEX(A11:K11,MATCH("AMBER",L11,FALSE),1)) ->  | E206: =A206 -> 
A207: =IF(ISERROR(INDEX(A12:K12,MATCH("RED",L12,FALSE),1)),"",INDEX(A12:K12,MATCH("RED",L12,FALSE),1)) ->  | C207: =IF(ISERROR(INDEX(A12:K12,MATCH("AMBER",L12,FALSE),1)),"",INDEX(A12:K12,MATCH("AMBER",L12,FALSE),1)) ->  | E207: =A207 -> 
A208: =IF(ISERROR(INDEX(#REF!,MATCH("RED",#REF!,FALSE),1)),"",INDEX(#REF!,MATCH("RED",#REF!,FALSE),1)) ->  | C208: =IF(ISERROR(INDEX(#REF!,MATCH("AMBER",#REF!,FALSE),1)),"",INDEX(#REF!,MATCH("AMBER",#REF!,FALSE),1)) -> 
A209: =IF(ISERROR(INDEX(#REF!,MATCH("RED",#REF!,FALSE),1)),"",INDEX(#REF!,MATCH("RED",#REF!,FALSE),1)) ->  | C209: =IF(ISERROR(INDEX(#REF!,MATCH("AMBER",#REF!,FALSE),1)),"",INDEX(#REF!,MATCH("AMBER",#REF!,FALSE),1)) -> 
A210: =IF(ISERROR(INDEX(#REF!,MATCH("RED",#REF!,FALSE),1)),"",INDEX(#REF!,MATCH("RED",#REF!,FALSE),1)) ->  | C210: =IF(ISERROR(INDEX(#REF!,MATCH("AMBER",#REF!,FALSE),1)),"",INDEX(#REF!,MATCH("AMBER",#REF!,FALSE),1)) -> 
A211: =IF(ISERROR(INDEX(A15:K15,MATCH("RED",L15,FALSE),1)),"",INDEX(A15:K15,MATCH("RED",L15,FALSE),1)) ->  | C211: =IF(ISERROR(INDEX(A15:K15,MATCH("AMBER",L15,FALSE),1)),"",INDEX(A15:K15,MATCH("AMBER",L15,FALSE),1)) -> 
A212: =IF(ISERROR(INDEX(A16:K16,MATCH("RED",L16,FALSE),1)),"",INDEX(A16:K16,MATCH("RED",L16,FALSE),1)) ->  | C212: =IF(ISERROR(INDEX(A16:K16,MATCH("AMBER",L16,FALSE),1)),"",INDEX(A16:K16,MATCH("AMBER",L16,FALSE),1)) -> 
A213: =IF(ISERROR(INDEX(A17:K17,MATCH("RED",L17,FALSE),1)),"",INDEX(A17:K17,MATCH("RED",L17,FALSE),1)) ->  | C213: =IF(ISERROR(INDEX(A17:K17,MATCH("AMBER",L17,FALSE),1)),"",INDEX(A17:K17,MATCH("AMBER",L17,FALSE),1)) -> 
A214: =IF(ISERROR(INDEX(A18:K18,MATCH("RED",L18,FALSE),1)),"",INDEX(A18:K18,MATCH("RED",L18,FALSE),1)) ->  | C214: =IF(ISERROR(INDEX(A18:K18,MATCH("AMBER",L18,FALSE),1)),"",INDEX(A18:K18,MATCH("AMBER",L18,FALSE),1)) -> 
A215: =IF(ISERROR(INDEX(A19:K19,MATCH("RED",L19,FALSE),1)),"",INDEX(A19:K19,MATCH("RED",L19,FALSE),1)) ->  | C215: =IF(ISERROR(INDEX(A19:K19,MATCH("AMBER",L19,FALSE),1)),"",INDEX(A19:K19,MATCH("AMBER",L19,FALSE),1)) -> 
A216: =IF(ISERROR(INDEX(A21:K21,MATCH("RED",L21,FALSE),1)),"",INDEX(A21:K21,MATCH("RED",L21,FALSE),1)) ->  | C216: =IF(ISERROR(INDEX(A21:K21,MATCH("AMBER",L21,FALSE),1)),"",INDEX(A21:K21,MATCH("AMBER",L21,FALSE),1)) -> 
A217: =IF(ISERROR(INDEX(A22:K22,MATCH("RED",L22,FALSE),1)),"",INDEX(A22:K22,MATCH("RED",L22,FALSE),1)) ->  | C217: =IF(ISERROR(INDEX(A22:K22,MATCH("AMBER",L22,FALSE),1)),"",INDEX(A22:K22,MATCH("AMBER",L22,FALSE),1)) -> 
A218: =IF(ISERROR(INDEX(A23:K23,MATCH("RED",L23,FALSE),1)),"",INDEX(A23:K23,MATCH("RED",L23,FALSE),1)) ->  | C218: =IF(ISERROR(INDEX(A23:K23,MATCH("AMBER",L23,FALSE),1)),"",INDEX(A23:K23,MATCH("AMBER",L23,FALSE),1)) -> 
A219: =IF(ISERROR(INDEX(A24:K24,MATCH("RED",L24,FALSE),1)),"",INDEX(A24:K24,MATCH("RED",L24,FALSE),1)) ->  | C219: =IF(ISERROR(INDEX(A24:K24,MATCH("AMBER",L24,FALSE),1)),"",INDEX(A24:K24,MATCH("AMBER",L24,FALSE),1)) -> 
A220: =IF(ISERROR(INDEX(A26:K26,MATCH("NO",L26,FALSE),1)),"",INDEX(A26:K26,MATCH("NO",L26,FALSE),1)) ->  | C220: =IF(ISERROR(INDEX(A26:K26,MATCH("NO",L26,FALSE),1)),"",INDEX(A26:K26,MATCH("NO",L26,FALSE),1)) -> 
A221: =IF(ISERROR(INDEX(A27:K27,MATCH("No",L27,FALSE),1)),"",INDEX(A27:K27,MATCH("NO",L27,FALSE),1)) ->  | C221: =IF(ISERROR(INDEX(A27:K27,MATCH("NO",L27,FALSE),1)),"",INDEX(A27:K27,MATCH("NO",L27,FALSE),1)) -> 
A222: =IF(ISERROR(INDEX(A32:K32,MATCH("RED",L32,FALSE),1)),"",INDEX(A32:K32,MATCH("RED",L32,FALSE),1)) ->  | C222: =IF(ISERROR(INDEX(A32:K32,MATCH("AMBER",L32,FALSE),1)),"",INDEX(A32:K32,MATCH("AMBER",L32,FALSE),1)) ->  | E222: =A222 -> 
A223: =IF(ISERROR(INDEX(A33:K33,MATCH("RED",L33,FALSE),1)),"",INDEX(A33:K33,MATCH("RED",L33,FALSE),1)) ->  | C223: =IF(ISERROR(INDEX(A33:K33,MATCH("AMBER",L33,FALSE),1)),"",INDEX(A33:K33,MATCH("AMBER",L33,FALSE),1)) -> 
A224: =IF(ISERROR(INDEX(A35:K35,MATCH("RED",L35,FALSE),1)),"",INDEX(A35:K35,MATCH("RED",L35,FALSE),1)) ->  | C224: =IF(ISERROR(INDEX(A35:K35,MATCH("AMBER",L35,FALSE),1)),"",INDEX(A35:K35,MATCH("AMBER",L35,FALSE),1)) -> Overall FFT RAG Calculation
A225: =IF(ISERROR(INDEX(A36:K36,MATCH("RED",L36,FALSE),1)),"",INDEX(A36:K36,MATCH("RED",L36,FALSE),1)) -> Friends and Family Test -An improvement in combined FFT scores for acute inpatient care and A&E services between Q1 2014-15 for acute hospitals that serve a CG population | C225: =IF(ISERROR(INDEX(A36:K36,MATCH("AMBER",L36,FALSE),1)),"",INDEX(A36:K36,MATCH("AMBER",L36,FALSE),1)) ->  | E225: Friends and Family Test -An improvement in combined FFT scores for acute inpatient care and A&E services between Q1 2014-15 for acute hospitals that serve a CG population
A226: =IF(ISERROR(INDEX(A37:K37,MATCH("RED",L37,FALSE),1)),"",INDEX(A37:K37,MATCH("RED",L37,FALSE),1)) ->  | C226: =IF(ISERROR(INDEX(A37:K37,MATCH("AMBER",L37,FALSE),1)),"",INDEX(A37:K37,MATCH("AMBER",L37,FALSE),1)) -> 
A227: =IF(ISERROR(INDEX(A38:K38,MATCH("RED",L38,FALSE),1)),"",INDEX(A38:K38,MATCH("RED",L38,FALSE),1)) -> Is the CCG progressing as expected in the IAPT trajectory submitted during the planning round? | C227: =IF(ISERROR(INDEX(A38:K38,MATCH("AMBER",L38,FALSE),1)),"",INDEX(A38:K38,MATCH("AMBER",L38,FALSE),1)) ->  | E227: Is the CCG progressing as expected in the IAPT trajectory submitted during the planning round?
A228: =IF(ISERROR(INDEX(A62:F62,MATCH("NO",L62,FALSE),1)),"",INDEX(A62:F62,MATCH("NO",L62,FALSE),1)) -> 
A229: =IF(ISERROR(INDEX(A63:F63,MATCH("NO",L63,FALSE),1)),"",INDEX(A63:F63,MATCH("NO",L63,FALSE),1)) -> 
A230: =IF(ISERROR(INDEX(A64:F64,MATCH("NO",L64,FALSE),1)),"",INDEX(A64:F64,MATCH("NO",L64,FALSE),1)) -> 

Sheet CCG_AF_CONDITIONS_DOMAIN5 (hidden)
A1: ID | B1: Domain 1 | C1: Domain 2 | D1: Domain 3 | E1: Domain 4 | F1: Domain 5 | G1: Domain 6 | H1: Period
A2: 07L_2012-13_March | B2: 0 | C2: 0 | D2: 5 | E2: 1 | F2: 0 | G2: 1 | H2: 2012-13_March
A3: 07M_2012-13_March | B3: 0 | C3: 2 | D3: 4 | E3: 0 | F3: 1 | G3: 2 | H3: 2012-13_March
A4: 07N_2012-13_March | B4: 0 | C4: 0 | D4: 2 | E4: 0 | F4: 1 | G4: 0 | H4: 2012-13_March
A5: 07P_2012-13_March | B5: 0 | C5: 0 | D5: 0 | E5: 0 | F5: 0 | G5: 0 | H5: 2012-13_March
A6: 07Q_2012-13_March | B6: 0 | C6: 0 | D6: 1 | E6: 0 | F6: 0 | G6: 0 | H6: 2012-13_March
A7: 07R_2012-13_March | B7: 0 | C7: 0 | D7: 2 | E7: 2 | F7: 2 | G7: 1 | H7: 2012-13_March
A8: 09A_2012-13_March | B8: 0 | C8: 0 | D8: 0 | E8: 0 | F8: 0 | G8: 0 | H8: 2012-13_March
A9: 07T_2012-13_March | B9: 0 | C9: 0 | D9: 1 | E9: 0 | F9: 1 | G9: 0 | H9: 2012-13_March
A10: 07V_2012-13_March | B10: 0 | C10: 0 | D10: 4 | E10: 3 | F10: 0 | G10: 0 | H10: 2012-13_March
A11: 07W_2012-13_March | B11: 0 | C11: 0 | D11: 0 | E11: 0 | F11: 0 | G11: 0 | H11: 2012-13_March
A12: 07X_2012-13_March | B12: 0 | C12: 0 | D12: 2 | E12: 3 | F12: 1 | G12: 1 | H12: 2012-13_March
A13: 08A_2012-13_March | B13: 0 | C13: 0 | D13: 2 | E13: 0 | F13: 0 | G13: 0 | H13: 2012-13_March
A14: 08C_2012-13_March | B14: 0 | C14: 0 | D14: 0 | E14: 0 | F14: 0 | G14: 0 | H14: 2012-13_March
A15: 08D_2012-13_March | B15: 0 | C15: 0 | D15: 0 | E15: 1 | F15: 1 | G15: 0 | H15: 2012-13_March
A16: 08E_2012-13_March | B16: 0 | C16: 0 | D16: 3 | E16: 2 | F16: 0 | G16: 0 | H16: 2012-13_March
A17: 08F_2012-13_March | B17: 0 | C17: 0 | D17: 4 | E17: 1 | F17: 0 | G17: 1 | H17: 2012-13_March
A18: 08G_2012-13_March | B18: 0 | C18: 0 | D18: 5 | E18: 0 | F18: 0 | G18: 0 | H18: 2012-13_March
A19: 07Y_2012-13_March | B19: 0 | C19: 1 | D19: 2 | E19: 0 | F19: 0 | G19: 0 | H19: 2012-13_March
A20: 08H_2012-13_March | B20: 0 | C20: 0 | D20: 0 | E20: 0 | F20: 1 | G20: 0 | H20: 2012-13_March
A21: 08J_2012-13_March | B21: 0 | C21: 0 | D21: 0 | E21: 0 | F21: 0 | G21: 0 | H21: 2012-13_March
A22: 08K_2012-13_March | B22: 0 | C22: 0 | D22: 0 | E22: 0 | F22: 0 | G22: 0 | H22: 2012-13_March
A23: 08L_2012-13_March | B23: 0 | C23: 0 | D23: 0 | E23: 0 | F23: 0 | G23: 0 | H23: 2012-13_March
A24: 08R_2012-13_March | B24: 0 | C24: 0 | D24: 0 | E24: 1 | F24: 0 | G24: 0 | H24: 2012-13_March
A25: 08M_2012-13_March | B25: 1 | C25: 0 | D25: 2 | E25: 2 | F25: 3 | G25: 0 | H25: 2012-13_March
A26: 08N_2012-13_March | B26: 0 | C26: 0 | D26: 4 | E26: 1 | F26: 0 | G26: 1 | H26: 2012-13_March
A27: 08P_2012-13_March | B27: 0 | C27: 0 | D27: 0 | E27: 0 | F27: 0 | G27: 0 | H27: 2012-13_March
A28: 08Q_2012-13_March | B28: 0 | C28: 0 | D28: 0 | E28: 0 | F28: 0 | G28: 0 | H28: 2012-13_March
A29: 08T_2012-13_March | B29: 0 | C29: 1 | D29: 0 | E29: 1 | F29: 1 | G29: 0 | H29: 2012-13_March
A30: 08V_2012-13_March | B30: 0 | C30: 0 | D30: 3 | E30: 1 | F30: 1 | G30: 1 | H30: 2012-13_March
A31: 08W_2012-13_March | B31: 1 | C31: 4 | D31: 4 | E31: 7 | F31: 1 | G31: 8 | H31: 2012-13_March
A32: 08X_2013-14_March | B32: 0 | C32: 0 | D32: 0 | E32: 0 | F32: 0 | G32: 0 | H32: 2013-14_March
A33: 08Y_2013-14_March | B33: 0 | C33: 1 | D33: 0 | E33: 1 | F33: 0 | G33: 0 | H33: 2013-14_March
A34: 07L_2013-14_June | B34: 0 | C34: 0 | D34: 0 | E34: 0 | F34: 0 | G34: 0 | H34: 2013-14_June
A35: 07M_2013-14_June | B35: 0 | C35: 0 | D35: 2 | E35: 0 | F35: 1 | G35: 1 | H35: 2013-14_June
A36: 07N_2013-14_June | B36: 0 | C36: 0 | D36: 0 | E36: 0 | F36: 0 | G36: 0 | H36: 2013-14_June
A37: 07P_2013-14_June | B37: 0 | C37: 0 | D37: 0 | E37: 0 | F37: 0 | G37: 0 | H37: 2013-14_June
A38: 07Q_2013-14_June | B38: 0 | C38: 0 | D38: 1 | E38: 0 | F38: 0 | G38: 0 | H38: 2013-14_June
A39: 07R_2013-14_June | B39: 0 | C39: 0 | D39: 0 | E39: 1 | F39: 1 | G39: 0 | H39: 2013-14_June
A40: 09A_2013-14_June | B40: 0 | C40: 0 | D40: 0 | E40: 0 | F40: 0 | G40: 0 | H40: 2013-14_June
A41: 07T_2013-14_June | B41: 0 | C41: 0 | D41: 0 | E41: 0 | F41: 0 | G41: 0 | H41: 2013-14_June
A42: 07V_2013-14_June | B42: 0 | C42: 0 | D42: 3 | E42: 1 | F42: 0 | G42: 0 | H42: 2013-14_June
A43: 07W_2013-14_June | B43: 0 | C43: 0 | D43: 0 | E43: 0 | F43: 0 | G43: 0 | H43: 2013-14_June
A44: 07X_2013-14_June | B44: 0 | C44: 0 | D44: 2 | E44: 1 | F44: 1 | G44: 0 | H44: 2013-14_June
A45: 08A_2013-14_June | B45: 0 | C45: 0 | D45: 0 | E45: 0 | F45: 0 | G45: 0 | H45: 2013-14_June
A46: 08C_2013-14_June | B46: 0 | C46: 0 | D46: 0 | E46: 0 | F46: 0 | G46: 0 | H46: 2013-14_June
A47: 08D_2013-14_June | B47: 0 | C47: 0 | D47: 0 | E47: 0 | F47: 1 | G47: 0 | H47: 2013-14_June
A48: 08E_2013-14_June | B48: 0 | C48: 0 | D48: 1 | E48: 0 | F48: 0 | G48: 0 | H48: 2013-14_June
A49: 08F_2013-14_June | B49: 0 | C49: 0 | D49: 3 | E49: 0 | F49: 0 | G49: 0 | H49: 2013-14_June
A50: 08G_2013-14_June | B50: 0 | C50: 0 | D50: 1 | E50: 0 | F50: 0 | G50: 0 | H50: 2013-14_June
A51: 07Y_2013-14_June | B51: 0 | C51: 0 | D51: 0 | E51: 0 | F51: 0 | G51: 0 | H51: 2013-14_June
A52: 08H_2013-14_June | B52: 0 | C52: 0 | D52: 0 | E52: 0 | F52: 1 | G52: 0 | H52: 2013-14_June
A53: 08J_2013-14_June | B53: 0 | C53: 0 | D53: 0 | E53: 0 | F53: 0 | G53: 0 | H53: 2013-14_June
A54: 08K_2013-14_June | B54: 0 | C54: 0 | D54: 0 | E54: 0 | F54: 0 | G54: 0 | H54: 2013-14_June
A55: 08L_2013-14_June | B55: 0 | C55: 0 | D55: 0 | E55: 0 | F55: 0 | G55: 0 | H55: 2013-14_June
A56: 08R_2013-14_June | B56: 0 | C56: 0 | D56: 0 | E56: 0 | F56: 0 | G56: 0 | H56: 2013-14_June
A57: 08M_2013-14_June | B57: 0 | C57: 0 | D57: 0 | E57: 0 | F57: 0 | G57: 0 | H57: 2013-14_June
A58: 08N_2013-14_June | B58: 0 | C58: 0 | D58: 3 | E58: 0 | F58: 0 | G58: 0 | H58: 2013-14_June
A59: 08P_2013-14_June | B59: 0 | C59: 0 | D59: 0 | E59: 0 | F59: 0 | G59: 0 | H59: 2013-14_June
A60: 08Q_2013-14_June | B60: 0 | C60: 0 | D60: 0 | E60: 0 | F60: 0 | G60: 0 | H60: 2013-14_June
A61: 08T_2013-14_June | B61: 0 | C61: 0 | D61: 0 | E61: 0 | F61: 0 | G61: 0 | H61: 2013-14_June
A62: 08V_2013-14_June | B62: 0 | C62: 0 | D62: 0 | E62: 0 | F62: 0 | G62: 0 | H62: 2013-14_June
A63: 08W_2013-14_June | B63: 1 | C63: 4 | D63: 2 | E63: 7 | F63: 0 | G63: 8 | H63: 2013-14_June
A64: 08X_2013-14_June | B64: 0 | C64: 0 | D64: 0 | E64: 0 | F64: 0 | G64: 0 | H64: 2013-14_June
A65: 08Y_2013-14_June | B65: 0 | C65: 0 | D65: 0 | E65: 0 | F65: 0 | G65: 0 | H65: 2013-14_June
A66: 09C_2013-14_June | B66: 0 | C66: 1 | D66: 0 | E66: 1 | F66: 0 | G66: 1 | H66: 2013-14_June
A67: 09D_2013-14_June | B67: 0 | C67: 0 | D67: 0 | E67: 0 | F67: 0 | G67: 1 | H67: 2013-14_June
A68: 09E_2013-14_June | B68: 0 | C68: 0 | D68: 0 | E68: 0 | F68: 0 | G68: 0 | H68: 2013-14_June
A69: 09F_2013-14_June | B69: 0 | C69: 0 | D69: 4 | E69: 0 | F69: 0 | G69: 0 | H69: 2013-14_June
A70: 09G_2013-14_June | B70: 0 | C70: 0 | D70: 4 | E70: 0 | F70: 0 | G70: 0 | H70: 2013-14_June
A71: 09H_2013-14_June | B71: 0 | C71: 0 | D71: 2 | E71: 0 | F71: 0 | G71: 0 | H71: 2013-14_June
A72: 09J_2013-14_June | B72: 0 | C72: 0 | D72: 1 | E72: 0 | F72: 0 | G72: 0 | H72: 2013-14_June
A73: 09L_2013-14_June | B73: 0 | C73: 0 | D73: 2 | E73: 2 | F73: 1 | G73: 0 | H73: 2013-14_June
A74: 09N_2013-14_June | B74: 0 | C74: 0 | D74: 0 | E74: 0 | F74: 0 | G74: 0 | H74: 2013-14_June
A75: 09P_2013-14_June | B75: 0 | C75: 0 | D75: 2 | E75: 0 | F75: 0 | G75: 0 | H75: 2013-14_June
A76: 09W_2013-14_June | B76: 0 | C76: 0 | D76: 0 | E76: 0 | F76: 0 | G76: 0 | H76: 2013-14_June
A77: 09X_2013-14_June | B77: 0 | C77: 0 | D77: 2 | E77: 0 | F77: 0 | G77: 0 | H77: 2013-14_June
A78: 09Y_2013-14_June | B78: 0 | C78: 0 | D78: 0 | E78: 0 | F78: 0 | G78: 0 | H78: 2013-14_June
A79: 10A_2013-14_June | B79: 1 | C79: 1 | D79: 0 | E79: 1 | F79: 0 | G79: 1 | H79: 2013-14_June
A80: 10C_2013-14_June | B80: 0 | C80: 0 | D80: 0 | E80: 0 | F80: 0 | G80: 1 | H80: 2013-14_June
A81: 10D_2013-14_June | B81: 0 | C81: 1 | D81: 0 | E81: 0 | F81: 0 | G81: 0 | H81: 2013-14_June
A82: 10E_2013-14_June | B82: 1 | C82: 0 | D82: 0 | E82: 0 | F82: 0 | G82: 0 | H82: 2013-14_June
A83: 10G_2013-14_June | B83: 0 | C83: 0 | D83: 0 | E83: 0 | F83: 0 | G83: 0 | H83: 2013-14_June
A84: 10H_2013-14_June | B84: 0 | C84: 0 | D84: 0 | E84: 0 | F84: 0 | G84: 0 | H84: 2013-14_June
A85: 10J_2013-14_June | B85: 0 | C85: 0 | D85: 2 | E85: 0 | F85: 0 | G85: 0 | H85: 2013-14_June
A86: 10K_2013-14_June | B86: 1 | C86: 0 | D86: 0 | E86: 0 | F86: 0 | G86: 0 | H86: 2013-14_June
A87: 10L_2013-14_June | B87: 0 | C87: 0 | D87: 0 | E87: 0 | F87: 0 | G87: 0 | H87: 2013-14_June
A88: 10M_2013-14_June | B88: 0 | C88: 0 | D88: 0 | E88: 0 | F88: 0 | G88: 0 | H88: 2013-14_June
A89: 10N_2013-14_June | B89: 0 | C89: 0 | D89: 0 | E89: 0 | F89: 0 | G89: 0 | H89: 2013-14_June
A90: 10Q_2013-14_June | B90: 0 | C90: 0 | D90: 3 | E90: 0 | F90: 0 | G90: 0 | H90: 2013-14_June
A91: 10R_2013-14_June | B91: 0 | C91: 0 | D91: 0 | E91: 0 | F91: 0 | G91: 0 | H91: 2013-14_June
A92: 10T_2013-14_June | B92: 0 | C92: 0 | D92: 0 | E92: 0 | F92: 0 | G92: 0 | H92: 2013-14_June
A93: 10V_2013-14_June | B93: 0 | C93: 0 | D93: 0 | E93: 0 | F93: 0 | G93: 0 | H93: 2013-14_June
A94: 10W_2013-14_June | B94: 0 | C94: 0 | D94: 0 | E94: 0 | F94: 0 | G94: 0 | H94: 2013-14_June
A95: 10X_2013-14_June | B95: 0 | C95: 0 | D95: 0 | E95: 0 | F95: 0 | G95: 0 | H95: 2013-14_June
A96: 10Y_2013-14_June | B96: 0 | C96: 0 | D96: 0 | E96: 0 | F96: 0 | G96: 0 | H96: 2013-14_June
A97: 11A_2013-14_June | B97: 0 | C97: 0 | D97: 0 | E97: 0 | F97: 0 | G97: 0 | H97: 2013-14_June
A98: 11C_2013-14_June | B98: 0 | C98: 0 | D98: 0 | E98: 0 | F98: 0 | G98: 0 | H98: 2013-14_June
A99: 11D_2013-14_June | B99: 0 | C99: 0 | D99: 0 | E99: 0 | F99: 0 | G99: 0 | H99: 2013-14_June
A100: 11E_2013-14_June | B100: 0 | C100: 0 | D100: 0 | E100: 0 | F100: 0 | G100: 0 | H100: 2013-14_June
A101: 11H_2013-14_June | B101: 0 | C101: 0 | D101: 2 | E101: 0 | F101: 0 | G101: 1 | H101: 2013-14_June
A102: 11J_2013-14_June | B102: 0 | C102: 0 | D102: 0 | E102: 0 | F102: 0 | G102: 0 | H102: 2013-14_June
A103: 11M_2013-14_June | B103: 0 | C103: 0 | D103: 0 | E103: 0 | F103: 0 | G103: 0 | H103: 2013-14_June
A104: 11N_2013-14_June | B104: 0 | C104: 0 | D104: 0 | E104: 0 | F104: 0 | G104: 0 | H104: 2013-14_June
A105: 11T_2013-14_June | B105: 0 | C105: 0 | D105: 2 | E105: 2 | F105: 0 | G105: 0 | H105: 2013-14_June
A106: 11X_2013-14_June | B106: 0 | C106: 0 | D106: 0 | E106: 0 | F106: 0 | G106: 0 | H106: 2013-14_June
A107: 12A_2013-14_June | B107: 0 | C107: 0 | D107: 2 | E107: 0 | F107: 0 | G107: 0 | H107: 2013-14_June
A108: 12D_2013-14_June | B108: 0 | C108: 0 | D108: 0 | E108: 0 | F108: 0 | G108: 0 | H108: 2013-14_June
A109: 99H_2013-14_June | B109: 0 | C109: 0 | D109: 2 | E109: 0 | F109: 0 | G109: 0 | H109: 2013-14_June
A110: 99J_2013-14_June | B110: 0 | C110: 0 | D110: 2 | E110: 0 | F110: 0 | G110: 0 | H110: 2013-14_June
A111: 99K_2013-14_June | B111: 0 | C111: 1 | D111: 4 | E111: 0 | F111: 0 | G111: 1 | H111: 2013-14_June
A112: 99M_2013-14_June | B112: 0 | C112: 1 | D112: 0 | E112: 0 | F112: 0 | G112: 1 | H112: 2013-14_June
A113: 99N_2013-14_June | B113: 0 | C113: 0 | D113: 0 | E113: 0 | F113: 0 | G113: 0 | H113: 2013-14_June
A114: 99P_2013-14_June | B114: 0 | C114: 0 | D114: 0 | E114: 0 | F114: 0 | G114: 0 | H114: 2013-14_June
A115: 99Q_2013-14_June | B115: 0 | C115: 0 | D115: 0 | E115: 0 | F115: 0 | G115: 0 | H115: 2013-14_June
A116: 03T_2013-14_June | B116: 0 | C116: 0 | D116: 0 | E116: 0 | F116: 0 | G116: 0 | H116: 2013-14_June
A117: 03V_2013-14_June | B117: 0 | C117: 0 | D117: 0 | E117: 0 | F117: 0 | G117: 0 | H117: 2013-14_June
A118: 03W_2013-14_June | B118: 0 | C118: 0 | D118: 0 | E118: 0 | F118: 0 | G118: 0 | H118: 2013-14_June
A119: 03X_2013-14_June | B119: 0 | C119: 0 | D119: 0 | E119: 0 | F119: 0 | G119: 0 | H119: 2013-14_June
A120: 03Y_2013-14_June | B120: 0 | C120: 0 | D120: 0 | E120: 0 | F120: 0 | G120: 0 | H120: 2013-14_June
A121: 04C_2013-14_June | B121: 0 | C121: 0 | D121: 0 | E121: 0 | F121: 0 | G121: 0 | H121: 2013-14_June
A122: 04D_2013-14_June | B122: 0 | C122: 0 | D122: 0 | E122: 0 | F122: 0 | G122: 0 | H122: 2013-14_June
A123: 04E_2013-14_June | B123: 0 | C123: 0 | D123: 0 | E123: 0 | F123: 0 | G123: 0 | H123: 2013-14_June
A124: 04F_2013-14_June | B124: 0 | C124: 0 | D124: 0 | E124: 0 | F124: 0 | G124: 1 | H124: 2013-14_June
A125: 04G_2013-14_June | B125: 0 | C125: 0 | D125: 0 | E125: 0 | F125: 0 | G125: 0 | H125: 2013-14_June
A126: 04H_2013-14_June | B126: 0 | C126: 0 | D126: 0 | E126: 0 | F126: 0 | G126: 0 | H126: 2013-14_June
A127: 04J_2013-14_June | B127: 0 | C127: 0 | D127: 0 | E127: 0 | F127: 0 | G127: 0 | H127: 2013-14_June
A128: 04K_2013-14_June | B128: 0 | C128: 0 | D128: 0 | E128: 0 | F128: 0 | G128: 0 | H128: 2013-14_June
A129: 04L_2013-14_June | B129: 0 | C129: 0 | D129: 3 | E129: 0 | F129: 0 | G129: 0 | H129: 2013-14_June
A130: 04M_2013-14_June | B130: 0 | C130: 0 | D130: 0 | E130: 0 | F130: 0 | G130: 0 | H130: 2013-14_June
A131: 04N_2013-14_June | B131: 0 | C131: 0 | D131: 0 | E131: 0 | F131: 0 | G131: 0 | H131: 2013-14_June
A132: 04Q_2013-14_June | B132: 0 | C132: 0 | D132: 0 | E132: 0 | F132: 0 | G132: 0 | H132: 2013-14_June
A133: 04R_2013-14_June | B133: 0 | C133: 0 | D133: 0 | E133: 0 | F133: 0 | G133: 0 | H133: 2013-14_June
A134: 04V_2013-14_June | B134: 0 | C134: 0 | D134: 0 | E134: 0 | F134: 0 | G134: 0 | H134: 2013-14_June
A135: 04X_2013-14_June | B135: 0 | C135: 0 | D135: 0 | E135: 0 | F135: 0 | G135: 0 | H135: 2013-14_June
A136: 04Y_2013-14_June | B136: 0 | C136: 0 | D136: 3 | E136: 0 | F136: 0 | G136: 0 | H136: 2013-14_June
A137: 05A_2013-14_June | B137: 0 | C137: 0 | D137: 0 | E137: 1 | F137: 0 | G137: 0 | H137: 2013-14_June
A138: 05C_2013-14_June | B138: 0 | C138: 0 | D138: 0 | E138: 0 | F138: 0 | G138: 0 | H138: 2013-14_June
A139: 05D_2013-14_June | B139: 0 | C139: 0 | D139: 2 | E139: 0 | F139: 0 | G139: 0 | H139: 2013-14_June
A140: 05F_2013-14_June | B140: 0 | C140: 1 | D140: 0 | E140: 3 | F140: 0 | G140: 1 | H140: 2013-14_June
A141: 05G_2013-14_June | B141: 0 | C141: 0 | D141: 0 | E141: 0 | F141: 0 | G141: 0 | H141: 2013-14_June
A142: 05H_2013-14_June | B142: 0 | C142: 0 | D142: 2 | E142: 0 | F142: 0 | G142: 0 | H142: 2013-14_June
A143: 05J_2013-14_June | B143: 0 | C143: 0 | D143: 0 | E143: 0 | F143: 0 | G143: 0 | H143: 2013-14_June
A144: 05L_2013-14_June | B144: 0 | C144: 0 | D144: 0 | E144: 0 | F144: 0 | G144: 0 | H144: 2013-14_June
A145: 05N_2013-14_June | B145: 0 | C145: 0 | D145: 0 | E145: 0 | F145: 0 | G145: 0 | H145: 2013-14_June
A146: 05P_2013-14_June | B146: 0 | C146: 0 | D146: 1 | E146: 0 | F146: 0 | G146: 0 | H146: 2013-14_June
A147: 05Q_2013-14_June | B147: 0 | C147: 0 | D147: 3 | E147: 0 | F147: 0 | G147: 0 | H147: 2013-14_June
A148: 05R_2013-14_June | B148: 0 | C148: 0 | D148: 0 | E148: 0 | F148: 0 | G148: 0 | H148: 2013-14_June
A149: 05T_2013-14_June | B149: 0 | C149: 0 | D149: 0 | E149: 0 | F149: 0 | G149: 0 | H149: 2013-14_June
A150: 05V_2013-14_June | B150: 0 | C150: 0 | D150: 2 | E150: 0 | F150: 0 | G150: 0 | H150: 2013-14_June
A151: 05W_2013-14_June | B151: 0 | C151: 0 | D151: 0 | E151: 0 | F151: 0 | G151: 0 | H151: 2013-14_June
A152: 05X_2013-14_June | B152: 0 | C152: 0 | D152: 0 | E152: 0 | F152: 0 | G152: 0 | H152: 2013-14_June
A153: 05Y_2013-14_June | B153: 0 | C153: 0 | D153: 0 | E153: 0 | F153: 0 | G153: 0 | H153: 2013-14_June
A154: 06A_2013-14_June | B154: 0 | C154: 0 | D154: 1 | E154: 0 | F154: 0 | G154: 0 | H154: 2013-14_June
A155: 06D_2013-14_June | B155: 0 | C155: 0 | D155: 0 | E155: 0 | F155: 0 | G155: 0 | H155: 2013-14_June
A156: 06F_2013-14_June | B156: 0 | C156: 0 | D156: 0 | E156: 0 | F156: 0 | G156: 0 | H156: 2013-14_June
A157: 06H_2013-14_June | B157: 0 | C157: 0 | D157: 2 | E157: 0 | F157: 0 | G157: 0 | H157: 2013-14_June
A158: 06K_2013-14_June | B158: 0 | C158: 0 | D158: 0 | E158: 0 | F158: 0 | G158: 0 | H158: 2013-14_June
A159: 06L_2013-14_June | B159: 0 | C159: 0 | D159: 0 | E159: 0 | F159: 0 | G159: 0 | H159: 2013-14_June
A160: 06M_2013-14_June | B160: 0 | C160: 0 | D160: 0 | E160: 0 | F160: 0 | G160: 0 | H160: 2013-14_June
A161: 06N_2013-14_June | B161: 0 | C161: 0 | D161: 0 | E161: 0 | F161: 0 | G161: 0 | H161: 2013-14_June
A162: 06P_2013-14_June | B162: 0 | C162: 0 | D162: 0 | E162: 0 | F162: 0 | G162: 0 | H162: 2013-14_June
A163: 06Q_2013-14_June | B163: 0 | C163: 0 | D163: 2 | E163: 0 | F163: 0 | G163: 0 | H163: 2013-14_June
A164: 06T_2013-14_June | B164: 0 | C164: 0 | D164: 0 | E164: 0 | F164: 0 | G164: 0 | H164: 2013-14_June
A165: 06V_2013-14_June | B165: 0 | C165: 0 | D165: 0 | E165: 0 | F165: 0 | G165: 0 | H165: 2013-14_June
A166: 06W_2013-14_June | B166: 0 | C166: 0 | D166: 0 | E166: 0 | F166: 0 | G166: 0 | H166: 2013-14_June
A167: 06Y_2013-14_June | B167: 0 | C167: 0 | D167: 0 | E167: 1 | F167: 0 | G167: 0 | H167: 2013-14_June
A168: 07G_2013-14_June | B168: 2 | C168: 5 | D168: 0 | E168: 0 | F168: 1 | G168: 7 | H168: 2013-14_June
A169: 07H_2013-14_June | B169: 0 | C169: 0 | D169: 0 | E169: 0 | F169: 0 | G169: 0 | H169: 2013-14_June
A170: 07J_2013-14_June | B170: 0 | C170: 0 | D170: 0 | E170: 0 | F170: 0 | G170: 0 | H170: 2013-14_June
A171: 07K_2013-14_June | B171: 0 | C171: 0 | D171: 0 | E171: 0 | F171: 0 | G171: 0 | H171: 2013-14_June
A172: 13P_2013-14_June | B172: 0 | C172: 0 | D172: 0 | E172: 0 | F172: 0 | G172: 0 | H172: 2013-14_June
A173: 99D_2013-14_June | B173: 0 | C173: 0 | D173: 0 | E173: 0 | F173: 0 | G173: 0 | H173: 2013-14_June
A174: 99E_2013-14_June | B174: 1 | C174: 2 | D174: 6 | E174: 2 | F174: 2 | G174: 5 | H174: 2013-14_June
A175: 99F_2013-14_June | B175: 0 | C175: 0 | D175: 4 | E175: 1 | F175: 0 | G175: 1 | H175: 2013-14_June
A176: 99G_2013-14_June | B176: 0 | C176: 0 | D176: 0 | E176: 0 | F176: 0 | G176: 0 | H176: 2013-14_June
A177: 00C_2013-14_June | B177: 0 | C177: 0 | D177: 0 | E177: 0 | F177: 0 | G177: 0 | H177: 2013-14_June
A178: 00D_2013-14_June | B178: 0 | C178: 0 | D178: 0 | E178: 0 | F178: 0 | G178: 0 | H178: 2013-14_June
A179: 00F_2013-14_June | B179: 0 | C179: 0 | D179: 0 | E179: 0 | F179: 0 | G179: 0 | H179: 2013-14_June
A180: 00G_2013-14_June | B180: 0 | C180: 0 | D180: 0 | E180: 0 | F180: 0 | G180: 0 | H180: 2013-14_June
A181: 00H_2013-14_June | B181: 0 | C181: 0 | D181: 0 | E181: 0 | F181: 0 | G181: 0 | H181: 2013-14_June
A182: 00J_2013-14_June | B182: 0 | C182: 0 | D182: 0 | E182: 0 | F182: 0 | G182: 0 | H182: 2013-14_June
A183: 00K_2013-14_June | B183: 0 | C183: 0 | D183: 0 | E183: 0 | F183: 0 | G183: 0 | H183: 2013-14_June
A184: 00L_2013-14_June | B184: 0 | C184: 0 | D184: 0 | E184: 0 | F184: 0 | G184: 0 | H184: 2013-14_June
A185: 00M_2013-14_June | B185: 0 | C185: 0 | D185: 0 | E185: 0 | F185: 0 | G185: 0 | H185: 2013-14_June
A186: 00N_2013-14_June | B186: 0 | C186: 0 | D186: 0 | E186: 0 | F186: 0 | G186: 0 | H186: 2013-14_June
A187: 00P_2013-14_June | B187: 0 | C187: 0 | D187: 0 | E187: 0 | F187: 0 | G187: 0 | H187: 2013-14_June
A188: 00Q_2013-14_June | B188: 0 | C188: 0 | D188: 0 | E188: 0 | F188: 0 | G188: 0 | H188: 2013-14_June
A189: 00R_2013-14_June | B189: 0 | C189: 0 | D189: 0 | E189: 0 | F189: 0 | G189: 0 | H189: 2013-14_June
A190: 00T_2013-14_June | B190: 0 | C190: 0 | D190: 2 | E190: 0 | F190: 0 | G190: 0 | H190: 2013-14_June
A191: 00V_2013-14_June | B191: 0 | C191: 0 | D191: 0 | E191: 0 | F191: 0 | G191: 0 | H191: 2013-14_June
A192: 00W_2013-14_June | B192: 0 | C192: 0 | D192: 0 | E192: 0 | F192: 0 | G192: 0 | H192: 2013-14_June
A193: 00X_2013-14_June | B193: 0 | C193: 0 | D193: 0 | E193: 0 | F193: 0 | G193: 0 | H193: 2013-14_June
A194: 00Y_2013-14_June | B194: 0 | C194: 0 | D194: 0 | E194: 0 | F194: 0 | G194: 0 | H194: 2013-14_June
A195: 01A_2013-14_June | B195: 0 | C195: 0 | D195: 0 | E195: 0 | F195: 0 | G195: 0 | H195: 2013-14_June
A196: 01C_2013-14_June | B196: 0 | C196: 0 | D196: 0 | E196: 0 | F196: 0 | G196: 0 | H196: 2013-14_June
A197: 01D_2013-14_June | B197: 0 | C197: 0 | D197: 0 | E197: 0 | F197: 0 | G197: 0 | H197: 2013-14_June
A198: 01E_2013-14_June | B198: 0 | C198: 0 | D198: 0 | E198: 0 | F198: 0 | G198: 0 | H198: 2013-14_June
A199: 01F_2013-14_June | B199: 0 | C199: 0 | D199: 0 | E199: 0 | F199: 0 | G199: 0 | H199: 2013-14_June
A200: 01G_2013-14_June | B200: 0 | C200: 0 | D200: 0 | E200: 0 | F200: 0 | G200: 0 | H200: 2013-14_June
... 210 more rows

Sheet FINANCE SECTION
C3: =VLOOKUP('COVER PAGE'!$A$3,Lookup!$A:$C,2,FALSE) -> NHS Rotherham CCG
P4: June | Q4: September | R4: December | S4: March
A5: 2013-14 | G5: INDIVIDUAL INDICATOR RAG RATING THRESHOLD
A6: INDICATOR | B6: PRIMARY/SUPPORTING INDICATOR | C6: QUARTER 1 PERFORMANCE | D6: QUARTER 2 PERFORMANCE | E6: QUARTER 3 PERFORMANCE | F6: QUARTER 4 PERFORMANCE | G6: GREEN | H6: AMBER-GREEN | I6: AMBER-RED | J6: RED
A7: Underlying recurrent surplus on exit of 2013-14 | B7: Primary | C7: INDICATOR INTRODUCED IN Q2 | D7: =IFERROR(VLOOKUP('COVER PAGE'!$A$4&"_"&$A$5&"_"&$Q$4,FINANCE!$A:$M,13,FALSE),"NO DATA IN CUBE FOR Q2") -> G | E7: =IFERROR(VLOOKUP('COVER PAGE'!$A$4&"_"&$A$5&"_"&$R$4,FINANCE!$A:$M,13,FALSE),"NO DATA") -> G | F7: =IFERROR(VLOOKUP('COVER PAGE'!$A$4&"_"&$A$5&"_"&$S$4,FINANCE!$A:$M,13,FALSE),"NO DATA") -> G | G7: >= 2% | H7: 1% - 1.99% | I7: 0% - 0.99% | J7: < 0%
A8: Plan - Year to date (variance to plan as % of YTD allocation) | B8: Primary | C8: =IFERROR(VLOOKUP('COVER PAGE'!$A$4&"_"&$A$5&"_"&$P$4,FINANCE!$A:$M,12,FALSE),"NO DATA IN CUBE FOR Q1") -> G | D8: =IFERROR(VLOOKUP('COVER PAGE'!$A$4&"_"&$A$5&"_"&$Q$4,FINANCE!$A:$M,12,FALSE),"NO DATA IN CUBE FOR Q2") -> G | E8: =IFERROR(VLOOKUP('COVER PAGE'!$A$4&"_"&$A$5&"_"&$R$4,FINANCE!$A:$M,12,FALSE),"NO DATA") -> G | F8: =IFERROR(VLOOKUP('COVER PAGE'!$A$4&"_"&$A$5&"_"&$S$4,FINANCE!$A:$M,12,FALSE),"NO DATA") -> G | G8: Variance <= 0.1% | H8: 0.1% > variance <= 0.25% | I8: 0.25% > variance < 0.5% | J8: Variance => 0.5%
A9: Plan - full year (variance to plan as % of YTD allocation) | B9: Primary | C9: =IFERROR(VLOOKUP('COVER PAGE'!$A$4&"_"&$A$5&"_"&$P$4,FINANCE!$A:$M,11,FALSE),"NO DATA IN CUBE FOR Q1") -> G | D9: =IFERROR(VLOOKUP('COVER PAGE'!$A$4&"_"&$A$5&"_"&$Q$4,FINANCE!$A:$M,11,FALSE),"NO DATA IN CUBE FOR Q2") -> G | E9: =IFERROR(VLOOKUP('COVER PAGE'!$A$4&"_"&$A$5&"_"&$R$4,FINANCE!$A:$M,11,FALSE),"NO DATA") -> G | F9: =IFERROR(VLOOKUP('COVER PAGE'!$A$4&"_"&$A$5&"_"&$S$4,FINANCE!$A:$M,11,FALSE),"NO DATA") -> G | G9: Variance <= 0.1% | H9: 0.1% > variance <= 0.25% | I9: 0.25% > variance < 0.5% | J9: Variance => 0.5%
A10: Management of 2% NR funds within agreed processes | B10: Supporting | C10: =IFERROR(VLOOKUP('COVER PAGE'!$A$4&"_"&$A$5&"_"&$P$4,FINANCE!$A:$M,10,FALSE),"NO DATA IN CUBE FOR Q1") -> G | D10: =IFERROR(VLOOKUP('COVER PAGE'!$A$4&"_"&$A$5&"_"&$Q$4,FINANCE!$A:$M,10,FALSE),"NO DATA IN CUBE FOR Q2") -> G | E10: =IFERROR(VLOOKUP('COVER PAGE'!$A$4&"_"&$A$5&"_"&$R$4,FINANCE!$A:$M,10,FALSE),"NO DATA") -> G | F10: =IFERROR(VLOOKUP('COVER PAGE'!$A$4&"_"&$A$5&"_"&$S$4,FINANCE!$A:$M,10,FALSE),"NO DATA") -> G | G10: Yes | J10: No
A11: QIPP** - year to date delivery | B11: Primary | C11: =IFERROR(VLOOKUP('COVER PAGE'!$A$4&"_"&$A$5&"_"&$P$4,FINANCE!$A:$M,9,FALSE),"NO DATA IN CUBE FOR Q1") -> G | D11: =IFERROR(VLOOKUP('COVER PAGE'!$A$4&"_"&$A$5&"_"&$Q$4,FINANCE!$A:$M,9,FALSE),"NO DATA IN CUBE FOR Q2") -> G | E11: =IFERROR(VLOOKUP('COVER PAGE'!$A$4&"_"&$A$5&"_"&$R$4,FINANCE!$A:$M,9,FALSE),"NO DATA") -> G | F11: =IFERROR(VLOOKUP('COVER PAGE'!$A$4&"_"&$A$5&"_"&$S$4,FINANCE!$A:$M,9,FALSE),"NO DATA") -> G | G11: >= 95% of plan | H11: >= 80% of plan | I11: >= 50% of plan | J11: < 50% of plan
A12: QIPP** - full year forecast | B12: Primary | C12: =IFERROR(VLOOKUP('COVER PAGE'!$A$4&"_"&$A$5&"_"&$P$4,FINANCE!$A:$M,8,FALSE),"NO DATA IN CUBE FOR Q1") -> G | D12: =IFERROR(VLOOKUP('COVER PAGE'!$A$4&"_"&$A$5&"_"&$Q$4,FINANCE!$A:$M,8,FALSE),"NO DATA IN CUBE FOR Q2") -> G | E12: =IFERROR(VLOOKUP('COVER PAGE'!$A$4&"_"&$A$5&"_"&$R$4,FINANCE!$A:$M,8,FALSE),"NO DATA") -> G | F12: =IFERROR(VLOOKUP('COVER PAGE'!$A$4&"_"&$A$5&"_"&$S$4,FINANCE!$A:$M,8,FALSE),"NO DATA") -> G | G12: >= 95% of plan | H12: >= 80% of plan | I12: >= 50% of plan | J12: < 50% of plan
A13: Activity trends - year to date | B13: Supporting | G13: < 101% of plan | H13: < 102% of plan | I13: < 103% of plan | J13: >= 103% of plan
A14: Activity trends - full year forecast | B14: Supporting | G14: < 101% of plan | H14: < 102% of plan | I14: < 103% of plan | J14: >= 103% of plan
A15: Running costs | B15: Primary | C15: =IFERROR(VLOOKUP('COVER PAGE'!$A$4&"_"&$A$5&"_"&$P$4,FINANCE!$A:$M,5,FALSE),"NO DATA IN CUBE FOR Q1") -> G | D15: =IFERROR(VLOOKUP('COVER PAGE'!$A$4&"_"&$A$5&"_"&$Q$4,FINANCE!$A:$M,5,FALSE),"NO DATA IN CUBE FOR Q2") -> G | E15: =IFERROR(VLOOKUP('COVER PAGE'!$A$4&"_"&$A$5&"_"&$R$4,FINANCE!$A:$M,5,FALSE),"NO DATA") -> G | F15: =IFERROR(VLOOKUP('COVER PAGE'!$A$4&"_"&$A$5&"_"&$S$4,FINANCE!$A:$M,5,FALSE),"NO DATA") -> G | G15: <= RCA | J15: > RCA
A16: Clear Identifications of risks against financial delivery and mitigations | B16: Primary | C16: =IFERROR(VLOOKUP('COVER PAGE'!$A$4&"_"&$A$5&"_"&$P$4,FINANCE!$A:$M,4,FALSE),"NO DATA IN CUBE FOR Q1") -> G | D16: =IFERROR(VLOOKUP('COVER PAGE'!$A$4&"_"&$A$5&"_"&$Q$4,FINANCE!$A:$M,4,FALSE),"NO DATA IN CUBE FOR Q2") -> G | E16: =IFERROR(VLOOKUP('COVER PAGE'!$A$4&"_"&$A$5&"_"&$R$4,FINANCE!$A:$M,4,FALSE),"NO DATA") -> G | F16: =IFERROR(VLOOKUP('COVER PAGE'!$A$4&"_"&$A$5&"_"&$S$4,FINANCE!$A:$M,4,FALSE),"NO DATA") -> 0 | G16: Indicator met in full | H16: Indicator partially met - limited uncovered risk | I16: Indicator partially met - material uncovered risk | J16: Indicator not met
A17: QIPP to include transactional and transformational schemes - Financial Management (Self-Certification)
A18: Assessment of internal and external audit opinions and on the timeliness and quality of returns | B18: Supporting | C18: =IFERROR(VLOOKUP('COVER PAGE'!$A$4&"_"&$A$5&"_"&$P$4,CCG_SELFCERT_DOMAIN1!$A:$P,13,FALSE),"NO DATA IN CUBE FOR Q1") -> G | D18: =IFERROR(VLOOKUP('COVER PAGE'!$A$4&"_"&$A$5&"_"&$Q$4,CCG_SELFCERT_DOMAIN1!$A:$P,13,FALSE),"NO DATA IN CUBE FOR Q1") -> G | E18: =IFERROR(VLOOKUP('COVER PAGE'!$A$4&"_"&$A$5&"_"&$R$4,CCG_SELFCERT_DOMAIN1!$A:$P,13,FALSE),"NO DATA IN CUBE FOR Q1") -> G | F18: =IFERROR(VLOOKUP('COVER PAGE'!$A$4&"_"&$A$5&"_"&$S$4,CCG_SELFCERT_DOMAIN1!$A:$P,13,FALSE),"NO DATA ") -> G | G18: No non-satisfactory audit reports in relation to finance related systems and processes and all finance returns submitted on time and of satisfactory quality. | H18: One or two non-satisfactory audit reports in relation to finance related systems and processes and/or finance returns sometimes submitted late and/or of a poor quality. | I18: A number of non-satisfactory audit reports in relation to finance related systems and processes and/or finance returns often submitted late and/or of a poor quality. | J18: Significant number of non-satisfactory audit reports in relation to finance related systems and processes and/or finance returns consistently submitted late and/or of a poor quality.
A19: Balance sheet indicators including performance against planned Cash Limit and BPPC performance | B19: Supporting | G19: To be defined | H19: To be defined | I19: To be defined | J19: To be defined
A20: Financial plan meets the 2013 surplus planning requirement | B20: Supporting | C20: INDICATOR INTRODUCED IN Q2 | D20: =IFERROR(VLOOKUP('COVER PAGE'!$A$4&"_"&$A$5&"_"&$Q$4,FINANCE!$A:$M,2,FALSE),"NO DATA") -> G | E20: =IFERROR(VLOOKUP('COVER PAGE'!$A$4&"_"&$A$5&"_"&$R$4,FINANCE!$A:$M,2,FALSE),"NO DATA") -> G | F20: =IFERROR(VLOOKUP('COVER PAGE'!$A$4&"_"&$A$5&"_"&$S$4,FINANCE!$A:$M,2,FALSE),"NO DATA") -> G | G20: >=1% surplus but planned | H20: <1% surplus but >=0.5% surplus planned | I20: >=breakeven position but <0.5% surplus planned | J20: Deficit plan

Sheet AUTHORISATION
C5: =VLOOKUP('COVER PAGE'!$A$3,Lookup!$A:$C,2,FALSE) -> NHS Rotherham CCG
F9: December
A10: 2013-14 | B10: QUARTER 3
A11: NO OF CONDITIONS REMAINING | B11: OUTSTANDING CONDITIONS | C11: RED/GREEN | D11: SUPPORT LEVEL
A12: =IFERROR(VLOOKUP($C$5,'Total Conditions'!$B:$C,2,FALSE),"No Outstanding Conditions") -> No Outstanding Conditions | B12: =IFERROR(VLOOKUP($C$5&"_"&A13,'Outstanding Conditions'!$B:$F,3,FALSE),"") ->  | C12: =IFERROR(VLOOKUP($C$5&"_"&A13,'Outstanding Conditions'!$B:$F,4,FALSE),"") ->  | D12: =IFERROR(VLOOKUP($C$5&"_"&A13,'Outstanding Conditions'!$B:$F,5,FALSE),"") -> 
A13: A | B13: =IFERROR(VLOOKUP($C$5&"_"&A14,'Outstanding Conditions'!$B:$F,3,FALSE),"") ->  | C13: =IFERROR(VLOOKUP($C$5&"_"&A14,'Outstanding Conditions'!$B:$F,4,FALSE),"") ->  | D13: =IFERROR(VLOOKUP($C$5&"_"&A14,'Outstanding Conditions'!$B:$F,5,FALSE),"") -> 
A14: B | B14: =IFERROR(VLOOKUP($C$5&"_"&A15,'Outstanding Conditions'!$B:$F,3,FALSE),"") ->  | C14: =IFERROR(VLOOKUP($C$5&"_"&A15,'Outstanding Conditions'!$B:$F,4,FALSE),"") ->  | D14: =IFERROR(VLOOKUP($C$5&"_"&A15,'Outstanding Conditions'!$B:$F,5,FALSE),"") -> 
A15: C | B15: =IFERROR(VLOOKUP($C$5&"_"&A16,'Outstanding Conditions'!$B:$F,3,FALSE),"") ->  | C15: =IFERROR(VLOOKUP($C$5&"_"&A16,'Outstanding Conditions'!$B:$F,4,FALSE),"") ->  | D15: =IFERROR(VLOOKUP($C$5&"_"&A16,'Outstanding Conditions'!$B:$F,5,FALSE),"") -> 
A16: D | B16: =IFERROR(VLOOKUP($C$5&"_"&A17,'Outstanding Conditions'!$B:$F,3,FALSE),"") ->  | C16: =IFERROR(VLOOKUP($C$5&"_"&A17,'Outstanding Conditions'!$B:$F,4,FALSE),"") ->  | D16: =IFERROR(VLOOKUP($C$5&"_"&A17,'Outstanding Conditions'!$B:$F,5,FALSE),"") -> 
A17: E | B17: =IFERROR(VLOOKUP($C$5&"_"&A18,'Outstanding Conditions'!$B:$F,3,FALSE),"") ->  | C17: =IFERROR(VLOOKUP($C$5&"_"&A18,'Outstanding Conditions'!$B:$F,4,FALSE),"") ->  | D17: =IFERROR(VLOOKUP($C$5&"_"&A18,'Outstanding Conditions'!$B:$F,5,FALSE),"") -> 
A18: F | B18: =IFERROR(VLOOKUP($C$5&"_"&A19,'Outstanding Conditions'!$B:$F,3,FALSE),"") ->  | C18: =IFERROR(VLOOKUP($C$5&"_"&A19,'Outstanding Conditions'!$B:$F,4,FALSE),"") ->  | D18: =IFERROR(VLOOKUP($C$5&"_"&A19,'Outstanding Conditions'!$B:$F,5,FALSE),"") -> 
A19: G | B19: =IFERROR(VLOOKUP($C$5&"_"&A20,'Outstanding Conditions'!$B:$F,3,FALSE),"") ->  | C19: =IFERROR(VLOOKUP($C$5&"_"&A20,'Outstanding Conditions'!$B:$F,4,FALSE),"") ->  | D19: =IFERROR(VLOOKUP($C$5&"_"&A20,'Outstanding Conditions'!$B:$F,5,FALSE),"") -> 
A20: H | B20: =IFERROR(VLOOKUP($C$5&"_"&A21,'Outstanding Conditions'!$B:$F,3,FALSE),"") ->  | C20: =IFERROR(VLOOKUP($C$5&"_"&A21,'Outstanding Conditions'!$B:$F,4,FALSE),"") ->  | D20: =IFERROR(VLOOKUP($C$5&"_"&A21,'Outstanding Conditions'!$B:$F,5,FALSE),"") -> 
A21: I
B27: =IF(A12="No Outstanding Conditions", "FULLY AUTHORISED","AUTHORISED WITH CONDITIONS") -> FULLY AUTHORISED

Sheet CCG_AF_FINANCE_DOMAIN4 (hidden)
A1: ID | B1: Surplus Underlying | C1: Surplus YTD | D1: Surplus Year End | E1: NR Funds | F1: QIPP YTD | G1: QIPP Year End | H1: Act YTD | I1: Act End Year | J1: Run Cost | K1: Risk | L1: Balance Sheet | M1: Overall rating | N1: Afq Fin Plan
A2: 02A_2013-14_June | B2: 0 | C2: AG | D2: G | E2: G | F2: AG | G2: G | H2: 0 | I2: 0 | J2: G | K2: G | L2: 0 | M2: AMBER-GREEN | N2: 0
A3: 03H_2013-14_June | B3: 0 | C3: G | D3: G | E3: G | F3: AG | G3: G | H3: 0 | I3: 0 | J3: G | K3: G | L3: 0 | M3: AMBER-GREEN | N3: 0
A4: 11N_2013-14_June | B4: 0 | C4: G | D4: G | E4: G | F4: G | G4: G | H4: 0 | I4: 0 | J4: G | K4: G | L4: 0 | M4: GREEN | N4: 0
A5: 99M_2013-14_June | B5: 0 | C5: G | D5: G | E5: G | F5: AG | G5: G | H5: 0 | I5: 0 | J5: G | K5: G | L5: 0 | M5: AMBER-GREEN | N5: 0
A6: 02R_2013-14_June | B6: 0 | C6: G | D6: G | E6: G | F6: G | G6: G | H6: 0 | I6: 0 | J6: G | K6: G | L6: 0 | M6: GREEN | N6: 0
A7: 06Q_2013-14_June | B7: 0 | C7: AR | D7: G | E7: G | F7: AR | G7: AG | H7: 0 | I7: 0 | J7: G | K7: AR | L7: 0 | M7: AMBER-GREEN | N7: 0
A8: 07H_2013-14_June | B8: 0 | C8: G | D8: G | E8: G | F8: G | G8: G | H8: 0 | I8: 0 | J8: G | K8: AR | L8: 0 | M8: AMBER-GREEN | N8: 0
A9: 99E_2013-14_June | B9: 0 | C9: R | D9: G | E9: G | F9: R | G9: AR | H9: 0 | I9: 0 | J9: G | K9: G | L9: 0 | M9: RED | N9: 0
A10: 99F_2013-14_June | B10: 0 | C10: G | D10: AG | E10: G | F10: G | G10: AG | H10: 0 | I10: 0 | J10: G | K10: G | L10: 0 | M10: AMBER-GREEN | N10: 0
A11: 01T_2013-14_June | B11: 0 | C11: G | D11: G | E11: G | F11: G | G11: G | H11: 0 | I11: 0 | J11: G | K11: G | L11: 0 | M11: GREEN | N11: 0
A12: 05Q_2013-14_June | B12: 0 | C12: AR | D12: G | E12: G | F12: AR | G12: G | H12: 0 | I12: 0 | J12: G | K12: AR | L12: 0 | M12: AMBER-GREEN | N12: 0
A13: 04V_2013-14_June | B13: 0 | C13: G | D13: G | E13: G | F13: G | G13: G | H13: 0 | I13: 0 | J13: G | K13: G | L13: 0 | M13: GREEN | N13: 0
A14: 02T_2013-14_June | B14: 0 | C14: G | D14: G | E14: G | F14: R | G14: G | H14: 0 | I14: 0 | J14: G | K14: G | L14: 0 | M14: AMBER-RED | N14: 0
A15: 10Q_2013-14_June | B15: 0 | C15: AG | D15: G | E15: G | F15: R | G15: G | H15: 0 | I15: 0 | J15: G | K15: R | L15: 0 | M15: RED | N15: 0
A16: 10W_2013-14_June | B16: 0 | C16: G | D16: G | E16: G | F16: G | G16: G | H16: 0 | I16: 0 | J16: G | K16: G | L16: 0 | M16: GREEN | N16: 0
A17: 11D_2013-14_June | B17: 0 | C17: G | D17: G | E17: G | F17: G | G17: G | H17: 0 | I17: 0 | J17: G | K17: G | L17: 0 | M17: GREEN | N17: 0
A18: 12F_2013-14_June | B18: 0 | C18: G | D18: G | E18: G | F18: G | G18: G | H18: 0 | I18: 0 | J18: G | K18: G | L18: 0 | M18: GREEN | N18: 0
A19: 06H_2013-14_June | B19: 0 | C19: AR | D19: G | E19: R | F19: G | G19: G | H19: 0 | I19: 0 | J19: G | K19: AR | L19: 0 | M19: AMBER-GREEN | N19: 0
A20: 06V_2013-14_June | B20: 0 | C20: G | D20: G | E20: G | F20: G | G20: G | H20: 0 | I20: 0 | J20: G | K20: AR | L20: 0 | M20: AMBER-GREEN | N20: 0
A21: 06Y_2013-14_June | B21: 0 | C21: G | D21: G | E21: R | F21: R | G21: G | H21: 0 | I21: 0 | J21: G | K21: AR | L21: 0 | M21: AMBER-RED | N21: 0
A22: 08N_2013-14_June | B22: 0 | C22: R | D22: G | E22: G | F22: G | G22: G | H22: 0 | I22: 0 | J22: G | K22: AG | L22: 0 | M22: AMBER-RED | N22: 0
A23: 08X_2013-14_June | B23: 0 | C23: G | D23: G | E23: G | F23: G | G23: G | H23: 0 | I23: 0 | J23: G | K23: G | L23: 0 | M23: GREEN | N23: 0
A24: 09H_2013-14_June | B24: 0 | C24: G | D24: G | E24: G | F24: G | G24: G | H24: 0 | I24: 0 | J24: G | K24: R | L24: 0 | M24: AMBER-RED | N24: 0
A25: 09P_2013-14_June | B25: 0 | C25: AG | D25: G | E25: G | F25: G | G25: G | H25: 0 | I25: 0 | J25: G | K25: G | L25: 0 | M25: AMBER-GREEN | N25: 0
A26: 07L_2013-14_June | B26: 0 | C26: AR | D26: G | E26: G | F26: G | G26: G | H26: 0 | I26: 0 | J26: G | K26: AG | L26: 0 | M26: AMBER-GREEN | N26: 0
A27: 07X_2013-14_June | B27: 0 | C27: G | D27: G | E27: G | F27: G | G27: AG | H27: 0 | I27: 0 | J27: G | K27: R | L27: 0 | M27: AMBER-RED | N27: 0
A28: 00F_2013-14_June | B28: 0 | C28: G | D28: G | E28: G | F28: G | G28: G | H28: 0 | I28: 0 | J28: G | K28: G | L28: 0 | M28: GREEN | N28: 0
A29: 05J_2013-14_June | B29: 0 | C29: R | D29: R | E29: G | F29: AG | G29: AG | H29: 0 | I29: 0 | J29: G | K29: R | L29: 0 | M29: RED | N29: 0
A30: 01E_2013-14_June | B30: 0 | C30: AG | D30: G | E30: G | F30: AR | G30: G | H30: 0 | I30: 0 | J30: G | K30: AR | L30: 0 | M30: AMBER-GREEN | N30: 0
A31: 00W_2013-14_June | B31: 0 | C31: G | D31: G | E31: G | F31: G | G31: G | H31: 0 | I31: 0 | J31: G | K31: G | L31: 0 | M31: GREEN | N31: 0
A32: 01M_2013-14_June | B32: 0 | C32: G | D32: G | E32: G | F32: G | G32: G | H32: 0 | I32: 0 | J32: G | K32: G | L32: 0 | M32: GREEN | N32: 0
A33: 02H_2013-14_June | B33: 0 | C33: G | D33: G | E33: G | F33: G | G33: G | H33: 0 | I33: 0 | J33: G | K33: G | L33: 0 | M33: GREEN | N33: 0
A34: 99K_2013-14_June | B34: 0 | C34: G | D34: G | E34: G | F34: AR | G34: AR | H34: 0 | I34: 0 | J34: G | K34: R | L34: 0 | M34: AMBER-RED | N34: 0
A35: 99N_2013-14_June | B35: 0 | C35: G | D35: G | E35: G | F35: G | G35: AR | H35: 0 | I35: 0 | J35: G | K35: G | L35: 0 | M35: AMBER-GREEN | N35: 0
A36: 03M_2013-14_June | B36: 0 | C36: G | D36: G | E36: G | F36: AR | G36: AR | H36: 0 | I36: 0 | J36: G | K36: AR | L36: 0 | M36: AMBER-GREEN | N36: 0
A37: 02E_2013-14_June | B37: 0 | C37: AR | D37: AR | E37: G | F37: G | G37: G | H37: 0 | I37: 0 | J37: G | K37: R | L37: 0 | M37: AMBER-RED | N37: 0
A38: 02Y_2013-14_June | B38: 0 | C38: G | D38: G | E38: G | F38: AR | G38: AR | H38: 0 | I38: 0 | J38: G | K38: G | L38: 0 | M38: AMBER-GREEN | N38: 0
A39: 03A_2013-14_June | B39: 0 | C39: G | D39: G | E39: G | F39: G | G39: G | H39: 0 | I39: 0 | J39: G | K39: G | L39: 0 | M39: GREEN | N39: 0
A40: 08K_2013-14_June | B40: 0 | C40: G | D40: G | E40: G | F40: G | G40: G | H40: 0 | I40: 0 | J40: G | K40: AG | L40: 0 | M40: AMBER-GREEN | N40: 0
A41: 08L_2013-14_June | B41: 0 | C41: G | D41: G | E41: G | F41: G | G41: G | H41: 0 | I41: 0 | J41: G | K41: G | L41: 0 | M41: GREEN | N41: 0
A42: 09X_2013-14_June | B42: 0 | C42: AG | D42: G | E42: G | F42: G | G42: G | H42: 0 | I42: 0 | J42: G | K42: R | L42: 0 | M42: AMBER-RED | N42: 0
A43: 10C_2013-14_June | B43: 0 | C43: G | D43: G | E43: G | F43: R | G43: AR | H43: 0 | I43: 0 | J43: G | K43: G | L43: 0 | M43: AMBER-RED | N43: 0
A44: 05D_2013-14_June | B44: 0 | C44: R | D44: G | E44: G | F44: AR | G44: G | H44: 0 | I44: 0 | J44: G | K44: AR | L44: 0 | M44: AMBER-RED | N44: 0
A45: 05X_2013-14_June | B45: 0 | C45: R | D45: G | E45: G | F45: AR | G45: G | H45: 0 | I45: 0 | J45: G | K45: G | L45: 0 | M45: AMBER-RED | N45: 0
A46: 01A_2013-14_June | B46: 0 | C46: G | D46: G | E46: G | F46: AR | G46: AR | H46: 0 | I46: 0 | J46: G | K46: G | L46: 0 | M46: AMBER-GREEN | N46: 0
A47: 01J_2013-14_June | B47: 0 | C47: G | D47: G | E47: G | F47: G | G47: G | H47: 0 | I47: 0 | J47: G | K47: G | L47: 0 | M47: GREEN | N47: 0
A48: 01R_2013-14_June | B48: 0 | C48: G | D48: G | E48: R | F48: G | G48: G | H48: 0 | I48: 0 | J48: G | K48: R | L48: 0 | M48: AMBER-RED | N48: 0
A49: 09W_2013-14_June | B49: 0 | C49: G | D49: G | E49: G | F49: G | G49: AG | H49: 0 | I49: 0 | J49: G | K49: G | L49: 0 | M49: AMBER-GREEN | N49: 0
A50: 00T_2013-14_June | B50: 0 | C50: G | D50: G | E50: G | F50: G | G50: G | H50: 0 | I50: 0 | J50: G | K50: G | L50: 0 | M50: GREEN | N50: 0
A51: 02V_2013-14_June | B51: 0 | C51: G | D51: G | E51: G | F51: G | G51: G | H51: 0 | I51: 0 | J51: G | K51: G | L51: 0 | M51: GREEN | N51: 0
A52: 03C_2013-14_June | B52: 0 | C52: G | D52: G | E52: G | F52: G | G52: G | H52: 0 | I52: 0 | J52: G | K52: G | L52: 0 | M52: GREEN | N52: 0
A53: 99P_2013-14_June | B53: 0 | C53: G | D53: G | E53: G | F53: AR | G53: G | H53: 0 | I53: 0 | J53: G | K53: G | L53: 0 | M53: AMBER-GREEN | N53: 0
A54: 02X_2013-14_June | B54: 0 | C54: G | D54: G | E54: G | F54: G | G54: G | H54: 0 | I54: 0 | J54: G | K54: G | L54: 0 | M54: GREEN | N54: 0
A55: 02N_2013-14_June | B55: 0 | C55: G | D55: G | E55: G | F55: G | G55: G | H55: 0 | I55: 0 | J55: G | K55: G | L55: 0 | M55: GREEN | N55: 0
A56: 07P_2013-14_June | B56: 0 | C56: G | D56: G | E56: G | F56: AR | G56: AG | H56: 0 | I56: 0 | J56: G | K56: G | L56: 0 | M56: AMBER-GREEN | N56: 0
A57: 03R_2013-14_June | B57: 0 | C57: AG | D57: G | E57: G | F57: R | G57: G | H57: 0 | I57: 0 | J57: G | K57: G | L57: 0 | M57: AMBER-RED | N57: 0
A58: 03Y_2013-14_June | B58: 0 | C58: G | D58: G | E58: G | F58: G | G58: G | H58: 0 | I58: 0 | J58: G | K58: G | L58: 0 | M58: GREEN | N58: 0
A59: 04J_2013-14_June | B59: 0 | C59: G | D59: G | E59: G | F59: G | G59: G | H59: 0 | I59: 0 | J59: G | K59: G | L59: 0 | M59: GREEN | N59: 0
A60: 04N_2013-14_June | B60: 0 | C60: G | D60: G | E60: G | F60: G | G60: G | H60: 0 | I60: 0 | J60: G | K60: G | L60: 0 | M60: GREEN | N60: 0
A61: 02Q_2013-14_June | B61: 0 | C61: G | D61: G | E61: G | F61: G | G61: G | H61: 0 | I61: 0 | J61: G | K61: G | L61: 0 | M61: GREEN | N61: 0
A62: 10N_2013-14_June | B62: 0 | C62: G | D62: G | E62: G | F62: G | G62: G | H62: 0 | I62: 0 | J62: G | K62: G | L62: 0 | M62: GREEN | N62: 0
A63: 10T_2013-14_June | B63: 0 | C63: G | D63: G | E63: G | F63: AG | G63: G | H63: 0 | I63: 0 | J63: G | K63: G | L63: 0 | M63: AMBER-GREEN | N63: 0
A64: 11J_2013-14_June | B64: 0 | C64: G | D64: G | E64: G | F64: G | G64: G | H64: 0 | I64: 0 | J64: G | K64: G | L64: 0 | M64: GREEN | N64: 0
A65: 06W_2013-14_June | B65: 0 | C65: G | D65: G | E65: R | F65: AR | G65: G | H65: 0 | I65: 0 | J65: G | K65: AR | L65: 0 | M65: AMBER-GREEN | N65: 0
A66: 08D_2013-14_June | B66: 0 | C66: AR | D66: G | E66: G | F66: G | G66: G | H66: 0 | I66: 0 | J66: G | K66: G | L66: 0 | M66: AMBER-GREEN | N66: 0
A67: 09D_2013-14_June | B67: 0 | C67: G | D67: G | E67: G | F67: AG | G67: AR | H67: 0 | I67: 0 | J67: G | K67: G | L67: 0 | M67: AMBER-GREEN | N67: 0
A68: 09F_2013-14_June | B68: 0 | C68: AG | D68: G | E68: G | F68: AR | G68: AR | H68: 0 | I68: 0 | J68: G | K68: R | L68: 0 | M68: AMBER-RED | N68: 0
A69: 09L_2013-14_June | B69: 0 | C69: G | D69: G | E69: G | F69: R | G69: AR | H69: 0 | I69: 0 | J69: G | K69: R | L69: 0 | M69: RED | N69: 0
A70: 10K_2013-14_June | B70: 0 | C70: G | D70: G | E70: G | F70: G | G70: G | H70: 0 | I70: 0 | J70: G | K70: G | L70: 0 | M70: GREEN | N70: 0
A71: 07N_2013-14_June | B71: 0 | C71: G | D71: G | E71: G | F71: G | G71: G | H71: 0 | I71: 0 | J71: G | K71: G | L71: 0 | M71: GREEN | N71: 0
A72: 00Q_2013-14_June | B72: 0 | C72: G | D72: G | E72: G | F72: AR | G72: G | H72: 0 | I72: 0 | J72: G | K72: AG | L72: 0 | M72: AMBER-GREEN | N72: 0
A73: 07Q_2013-14_June | B73: 0 | C73: G | D73: G | E73: G | F73: G | G73: G | H73: 0 | I73: 0 | J73: G | K73: G | L73: 0 | M73: GREEN | N73: 0
A74: 09J_2013-14_June | B74: 0 | C74: G | D74: G | E74: G | F74: G | G74: G | H74: 0 | I74: 0 | J74: G | K74: G | L74: 0 | M74: GREEN | N74: 0
A75: 10A_2013-14_June | B75: 0 | C75: G | D75: G | E75: G | F75: G | G75: G | H75: 0 | I75: 0 | J75: G | K75: AG | L75: 0 | M75: AMBER-GREEN | N75: 0
A76: 10D_2013-14_June | B76: 0 | C76: G | D76: G | E76: G | F76: G | G76: G | H76: 0 | I76: 0 | J76: G | K76: G | L76: 0 | M76: GREEN | N76: 0
A77: 01N_2013-14_June | B77: 0 | C77: G | D77: G | E77: G | F77: G | G77: G | H77: 0 | I77: 0 | J77: G | K77: G | L77: 0 | M77: GREEN | N77: 0
A78: 01Y_2013-14_June | B78: 0 | C78: G | D78: G | E78: G | F78: G | G78: G | H78: 0 | I78: 0 | J78: G | K78: G | L78: 0 | M78: GREEN | N78: 0
A79: 99A_2013-14_June | B79: 0 | C79: G | D79: G | E79: G | F79: G | G79: G | H79: 0 | I79: 0 | J79: G | K79: G | L79: 0 | M79: GREEN | N79: 0
A80: 99H_2013-14_June | B80: 0 | C80: G | D80: G | E80: G | F80: AR | G80: G | H80: 0 | I80: 0 | J80: G | K80: AG | L80: 0 | M80: AMBER-GREEN | N80: 0
A81: 00L_2013-14_June | B81: 0 | C81: AR | D81: G | E81: G | F81: G | G81: G | H81: 0 | I81: 0 | J81: G | K81: AG | L81: 0 | M81: AMBER-GREEN | N81: 0
A82: 08W_2013-14_June | B82: 0 | C82: AG | D82: G | E82: G | F82: AR | G82: AR | H82: 0 | I82: 0 | J82: G | K82: R | L82: 0 | M82: AMBER-RED | N82: 0
A83: 08E_2013-14_June | B83: 0 | C83: G | D83: G | E83: G | F83: AR | G83: AG | H83: 0 | I83: 0 | J83: G | K83: G | L83: 0 | M83: AMBER-GREEN | N83: 0
A84: 07W_2013-14_June | B84: 0 | C84: G | D84: G | E84: G | F84: AR | G84: AR | H84: 0 | I84: 0 | J84: G | K84: G | L84: 0 | M84: AMBER-GREEN | N84: 0
A85: 03K_2013-14_June | B85: 0 | C85: G | D85: G | E85: G | F85: AR | G85: G | H85: 0 | I85: 0 | J85: G | K85: G | L85: 0 | M85: AMBER-GREEN | N85: 0
A86: 03Q_2013-14_June | B86: 0 | C86: R | D86: R | E86: G | F86: AR | G86: AR | H86: 0 | I86: 0 | J86: G | K86: AR | L86: 0 | M86: RED | N86: 0
A87: 04C_2013-14_June | B87: 0 | C87: G | D87: G | E87: G | F87: G | G87: G | H87: 0 | I87: 0 | J87: G | K87: G | L87: 0 | M87: GREEN | N87: 0
A88: 04M_2013-14_June | B88: 0 | C88: G | D88: G | E88: G | F88: G | G88: G | H88: 0 | I88: 0 | J88: G | K88: G | L88: 0 | M88: GREEN | N88: 0
A89: 02D_2013-14_June | B89: 0 | C89: G | D89: G | E89: G | F89: G | G89: G | H89: 0 | I89: 0 | J89: G | K89: AG | L89: 0 | M89: AMBER-GREEN | N89: 0
A90: 03D_2013-14_June | B90: 0 | C90: G | D90: G | E90: G | F90: G | G90: G | H90: 0 | I90: 0 | J90: G | K90: G | L90: 0 | M90: GREEN | N90: 0
A91: 10M_2013-14_June | B91: 0 | C91: G | D91: G | E91: G | F91: G | G91: G | H91: 0 | I91: 0 | J91: G | K91: G | L91: 0 | M91: GREEN | N91: 0
A92: 10R_2013-14_June | B92: 0 | C92: G | D92: G | E92: G | F92: G | G92: G | H92: 0 | I92: 0 | J92: G | K92: G | L92: 0 | M92: GREEN | N92: 0
A93: 11C_2013-14_June | B93: 0 | C93: AG | D93: G | E93: G | F93: G | G93: AG | H93: 0 | I93: 0 | J93: G | K93: G | L93: 0 | M93: AMBER-GREEN | N93: 0
A94: 11M_2013-14_June | B94: 0 | C94: G | D94: G | E94: G | F94: G | G94: G | H94: 0 | I94: 0 | J94: G | K94: G | L94: 0 | M94: GREEN | N94: 0
A95: 08A_2013-14_June | B95: 0 | C95: G | D95: G | E95: G | F95: G | G95: G | H95: 0 | I95: 0 | J95: G | K95: AR | L95: 0 | M95: AMBER-GREEN | N95: 0
A96: 08M_2013-14_June | B96: 0 | C96: G | D96: G | E96: G | F96: AG | G96: AG | H96: 0 | I96: 0 | J96: G | K96: AG | L96: 0 | M96: AMBER-GREEN | N96: 0
A97: 08Q_2013-14_June | B97: 0 | C97: G | D97: G | E97: G | F97: G | G97: G | H97: 0 | I97: 0 | J97: G | K97: G | L97: 0 | M97: GREEN | N97: 0
A98: 09E_2013-14_June | B98: 0 | C98: G | D98: G | E98: G | F98: G | G98: G | H98: 0 | I98: 0 | J98: G | K98: G | L98: 0 | M98: GREEN | N98: 0
A99: 07V_2013-14_June | B99: 0 | C99: G | D99: G | E99: G | F99: AG | G99: AG | H99: 0 | I99: 0 | J99: G | K99: G | L99: 0 | M99: AMBER-GREEN | N99: 0
A100: 04X_2013-14_June | B100: 0 | C100: G | D100: G | E100: G | F100: G | G100: G | H100: 0 | I100: 0 | J100: G | K100: G | L100: 0 | M100: GREEN | N100: 0
A101: 00K_2013-14_June | B101: 0 | C101: G | D101: G | E101: G | F101: G | G101: G | H101: 0 | I101: 0 | J101: G | K101: G | L101: 0 | M101: GREEN | N101: 0
A102: 05P_2013-14_June | B102: 0 | C102: G | D102: G | E102: G | F102: G | G102: G | H102: 0 | I102: 0 | J102: G | K102: G | L102: 0 | M102: GREEN | N102: 0
A103: 05Y_2013-14_June | B103: 0 | C103: G | D103: G | E103: G | F103: G | G103: G | H103: 0 | I103: 0 | J103: G | K103: G | L103: 0 | M103: GREEN | N103: 0
A104: 01C_2013-14_June | B104: 0 | C104: G | D104: G | E104: R | F104: G | G104: G | H104: 0 | I104: 0 | J104: G | K104: R | L104: 0 | M104: AMBER-RED | N104: 0
A105: 01X_2013-14_June | B105: 0 | C105: G | D105: G | E105: G | F105: G | G105: G | H105: 0 | I105: 0 | J105: G | K105: G | L105: 0 | M105: GREEN | N105: 0
A106: 04D_2013-14_June | B106: 0 | C106: G | D106: G | E106: G | F106: G | G106: G | H106: 0 | I106: 0 | J106: G | K106: G | L106: 0 | M106: GREEN | N106: 0
A107: 08G_2013-14_June | B107: 0 | C107: G | D107: G | E107: G | F107: AR | G107: AG | H107: 0 | I107: 0 | J107: G | K107: G | L107: 0 | M107: AMBER-GREEN | N107: 0
A108: 09N_2013-14_June | B108: 0 | C108: G | D108: G | E108: G | F108: R | G108: AR | H108: 0 | I108: 0 | J108: G | K108: G | L108: 0 | M108: AMBER-RED | N108: 0
A109: 06T_2013-14_June | B109: 0 | C109: G | D109: G | E109: G | F109: G | G109: AG | H109: 0 | I109: 0 | J109: G | K109: AR | L109: 0 | M109: AMBER-GREEN | N109: 0
A110: 07R_2013-14_June | B110: 0 | C110: G | D110: G | E110: G | F110: AR | G110: AR | H110: 0 | I110: 0 | J110: G | K110: G | L110: 0 | M110: AMBER-GREEN | N110: 0
A111: 05C_2013-14_June | B111: 0 | C111: G | D111: G | E111: G | F111: G | G111: G | H111: 0 | I111: 0 | J111: G | K111: G | L111: 0 | M111: GREEN | N111: 0
A112: 03W_2013-14_June | B112: 0 | C112: G | D112: G | E112: G | F112: G | G112: G | H112: 0 | I112: 0 | J112: G | K112: G | L112: 0 | M112: GREEN | N112: 0
A113: 04R_2013-14_June | B113: 0 | C113: AG | D113: AG | E113: G | F113: G | G113: G | H113: 0 | I113: 0 | J113: G | K113: G | L113: 0 | M113: AMBER-GREEN | N113: 0
A114: 03E_2013-14_June | B114: 0 | C114: G | D114: G | E114: G | F114: AG | G114: AG | H114: 0 | I114: 0 | J114: G | K114: AG | L114: 0 | M114: AMBER-GREEN | N114: 0
A115: 06D_2013-14_June | B115: 0 | C115: G | D115: G | E115: G | F115: G | G115: G | H115: 0 | I115: 0 | J115: G | K115: G | L115: 0 | M115: GREEN | N115: 0
A116: 10Y_2013-14_June | B116: 0 | C116: G | D116: G | E116: G | F116: AR | G116: G | H116: 0 | I116: 0 | J116: G | K116: G | L116: 0 | M116: AMBER-GREEN | N116: 0
A117: 11E_2013-14_June | B117: 0 | C117: G | D117: G | E117: G | F117: G | G117: G | H117: 0 | I117: 0 | J117: G | K117: G | L117: 0 | M117: GREEN | N117: 0
A118: 06N_2013-14_June | B118: 0 | C118: G | D118: G | E118: G | F118: AG | G118: G | H118: 0 | I118: 0 | J118: G | K118: AG | L118: 0 | M118: AMBER-GREEN | N118: 0
A119: 07J_2013-14_June | B119: 0 | C119: G | D119: G | E119: G | F119: AR | G119: G | H119: 0 | I119: 0 | J119: G | K119: AR | L119: 0 | M119: AMBER-GREEN | N119: 0
A120: 08J_2013-14_June | B120: 0 | C120: G | D120: G | E120: G | F120: G | G120: G | H120: 0 | I120: 0 | J120: G | K120: G | L120: 0 | M120: GREEN | N120: 0
A121: 08R_2013-14_June | B121: 0 | C121: G | D121: G | E121: G | F121: AG | G121: G | H121: 0 | I121: 0 | J121: G | K121: G | L121: 0 | M121: AMBER-GREEN | N121: 0
A122: 07T_2013-14_June | B122: 0 | C122: R | D122: G | E122: G | F122: AR | G122: AG | H122: 0 | I122: 0 | J122: G | K122: G | L122: 0 | M122: AMBER-RED | N122: 0
A123: 00P_2013-14_June | B123: 0 | C123: G | D123: G | E123: G | F123: G | G123: G | H123: 0 | I123: 0 | J123: G | K123: G | L123: 0 | M123: GREEN | N123: 0
A124: 05G_2013-14_June | B124: 0 | C124: R | D124: G | E124: G | F124: G | G124: G | H124: 0 | I124: 0 | J124: G | K124: G | L124: 0 | M124: AMBER-RED | N124: 0
A125: 05H_2013-14_June | B125: 0 | C125: G | D125: G | E125: G | F125: AR | G125: G | H125: 0 | I125: 0 | J125: G | K125: AR | L125: 0 | M125: AMBER-GREEN | N125: 0
A126: 05N_2013-14_June | B126: 0 | C126: G | D126: G | E126: G | F126: G | G126: G | H126: 0 | I126: 0 | J126: G | K126: AR | L126: 0 | M126: AMBER-GREEN | N126: 0
A127: 05T_2013-14_June | B127: 0 | C127: R | D127: R | E127: G | F127: AG | G127: AG | H127: 0 | I127: 0 | J127: G | K127: G | L127: 0 | M127: RED | N127: 0
A128: 01F_2013-14_June | B128: 0 | C128: G | D128: G | E128: G | F128: G | G128: G | H128: 0 | I128: 0 | J128: G | K128: G | L128: 0 | M128: GREEN | N128: 0
A129: 09C_2013-14_June | B129: 0 | C129: G | D129: G | E129: G | F129: G | G129: G | H129: 0 | I129: 0 | J129: G | K129: AG | L129: 0 | M129: AMBER-GREEN | N129: 0
A130: 00Y_2013-14_June | B130: 0 | C130: G | D130: G | E130: G | F130: AR | G130: G | H130: 0 | I130: 0 | J130: G | K130: G | L130: 0 | M130: AMBER-GREEN | N130: 0
A131: 01G_2013-14_June | B131: 0 | C131: G | D131: G | E131: G | F131: G | G131: G | H131: 0 | I131: 0 | J131: G | K131: G | L131: 0 | M131: GREEN | N131: 0
A132: 99Q_2013-14_June | B132: 0 | C132: G | D132: G | E132: G | F132: G | G132: G | H132: 0 | I132: 0 | J132: G | K132: G | L132: 0 | M132: GREEN | N132: 0
A133: 01W_2013-14_June | B133: 0 | C133: G | D133: G | E133: G | F133: AR | G133: G | H133: 0 | I133: 0 | J133: G | K133: G | L133: 0 | M133: AMBER-GREEN | N133: 0
A134: 99C_2013-14_June | B134: 0 | C134: G | D134: G | E134: G | F134: G | G134: G | H134: 0 | I134: 0 | J134: G | K134: AG | L134: 0 | M134: AMBER-GREEN | N134: 0
A135: 05F_2013-14_June | B135: 0 | C135: R | D135: G | E135: G | F135: G | G135: G | H135: 0 | I135: 0 | J135: G | K135: G | L135: 0 | M135: AMBER-RED | N135: 0
A136: 03L_2013-14_June | B136: 0 | C136: G | D136: G | E136: G | F136: G | G136: G | H136: 0 | I136: 0 | J136: G | K136: G | L136: 0 | M136: GREEN | N136: 0
A137: 03J_2013-14_June | B137: 0 | C137: G | D137: G | E137: G | F137: G | G137: G | H137: 0 | I137: 0 | J137: G | K137: G | L137: 0 | M137: GREEN | N137: 0
A138: 03V_2013-14_June | B138: 0 | C138: G | D138: G | E138: G | F138: G | G138: G | H138: 0 | I138: 0 | J138: G | K138: AG | L138: 0 | M138: AMBER-GREEN | N138: 0
A139: 13P_2013-14_June | B139: 0 | C139: G | D139: G | E139: G | F139: AR | G139: AR | H139: 0 | I139: 0 | J139: G | K139: G | L139: 0 | M139: AMBER-GREEN | N139: 0
A140: 02F_2013-14_June | B140: 0 | C140: G | D140: G | E140: G | F140: G | G140: G | H140: 0 | I140: 0 | J140: G | K140: G | L140: 0 | M140: GREEN | N140: 0
A141: 03F_2013-14_June | B141: 0 | C141: G | D141: G | E141: G | F141: G | G141: G | H141: 0 | I141: 0 | J141: G | K141: G | L141: 0 | M141: GREEN | N141: 0
A142: 10X_2013-14_June | B142: 0 | C142: G | D142: G | E142: G | F142: AG | G142: G | H142: 0 | I142: 0 | J142: G | K142: G | L142: 0 | M142: AMBER-GREEN | N142: 0
A143: 11X_2013-14_June | B143: 0 | C143: G | D143: G | E143: G | F143: G | G143: G | H143: 0 | I143: 0 | J143: G | K143: G | L143: 0 | M143: GREEN | N143: 0
A144: 06M_2013-14_June | B144: 0 | C144: G | D144: G | E144: G | F144: AG | G144: G | H144: 0 | I144: 0 | J144: G | K144: G | L144: 0 | M144: AMBER-GREEN | N144: 0
A145: 08C_2013-14_June | B145: 0 | C145: G | D145: G | E145: G | F145: G | G145: AG | H145: 0 | I145: 0 | J145: G | K145: G | L145: 0 | M145: AMBER-GREEN | N145: 0
A146: 08F_2013-14_June | B146: 0 | C146: R | D146: G | E146: G | F146: G | G146: G | H146: 0 | I146: 0 | J146: G | K146: AG | L146: 0 | M146: AMBER-RED | N146: 0
A147: 08H_2013-14_June | B147: 0 | C147: G | D147: G | E147: G | F147: AG | G147: AG | H147: 0 | I147: 0 | J147: G | K147: G | L147: 0 | M147: AMBER-GREEN | N147: 0
A148: 08T_2013-14_June | B148: 0 | C148: G | D148: G | E148: G | F148: AG | G148: AR | H148: 0 | I148: 0 | J148: G | K148: G | L148: 0 | M148: AMBER-GREEN | N148: 0
A149: 10G_2013-14_June | B149: 0 | C149: G | D149: G | E149: G | F149: R | G149: AR | H149: 0 | I149: 0 | J149: G | K149: G | L149: 0 | M149: AMBER-RED | N149: 0
A150: 10L_2013-14_June | B150: 0 | C150: G | D150: G | E150: G | F150: G | G150: G | H150: 0 | I150: 0 | J150: G | K150: G | L150: 0 | M150: GREEN | N150: 0
A151: 07Y_2013-14_June | B151: 0 | C151: G | D151: G | E151: G | F151: AR | G151: AG | H151: 0 | I151: 0 | J151: G | K151: AR | L151: 0 | M151: AMBER-GREEN | N151: 0
A152: 00J_2013-14_June | B152: 0 | C152: G | D152: G | E152: G | F152: G | G152: G | H152: 0 | I152: 0 | J152: G | K152: G | L152: 0 | M152: GREEN | N152: 0
A153: 01V_2013-14_June | B153: 0 | C153: G | D153: G | E153: G | F153: G | G153: G | H153: 0 | I153: 0 | J153: G | K153: G | L153: 0 | M153: GREEN | N153: 0
A154: 00V_2013-14_June | B154: 0 | C154: G | D154: G | E154: G | F154: G | G154: G | H154: 0 | I154: 0 | J154: G | K154: AR | L154: 0 | M154: AMBER-GREEN | N154: 0
A155: 01K_2013-14_June | B155: 0 | C155: G | D155: G | E155: G | F155: AR | G155: AR | H155: 0 | I155: 0 | J155: G | K155: AG | L155: 0 | M155: AMBER-GREEN | N155: 0
A156: 99D_2013-14_June | B156: 0 | C156: G | D156: G | E156: G | F156: R | G156: G | H156: 0 | I156: 0 | J156: G | K156: G | L156: 0 | M156: AMBER-RED | N156: 0
A157: 01D_2013-14_June | B157: 0 | C157: G | D157: G | E157: G | F157: AG | G157: G | H157: 0 | I157: 0 | J157: G | K157: G | L157: 0 | M157: AMBER-GREEN | N157: 0
A158: 08Y_2013-14_June | B158: 0 | C158: R | D158: G | E158: G | F158: AG | G158: AG | H158: 0 | I158: 0 | J158: G | K158: G | L158: 0 | M158: AMBER-RED | N158: 0
A159: 02M_2013-14_June | B159: 0 | C159: G | D159: G | E159: G | F159: AR | G159: G | H159: 0 | I159: 0 | J159: G | K159: AG | L159: 0 | M159: AMBER-GREEN | N159: 0
A160: 01H_2013-14_June | B160: 0 | C160: G | D160: G | E160: G | F160: G | G160: G | H160: 0 | I160: 0 | J160: G | K160: AG | L160: 0 | M160: AMBER-GREEN | N160: 0
A161: 99J_2013-14_June | B161: 0 | C161: G | D161: G | E161: G | F161: G | G161: G | H161: 0 | I161: 0 | J161: G | K161: AG | L161: 0 | M161: AMBER-GREEN | N161: 0
A162: 04H_2013-14_June | B162: 0 | C162: G | D162: G | E162: G | F162: G | G162: G | H162: 0 | I162: 0 | J162: G | K162: G | L162: 0 | M162: GREEN | N162: 0
A163: 03N_2013-14_June | B163: 0 | C163: G | D163: G | E163: G | F163: G | G163: G | H163: 0 | I163: 0 | J163: G | K163: G | L163: 0 | M163: GREEN | N163: 0
A164: 03X_2013-14_June | B164: 0 | C164: G | D164: G | E164: G | F164: G | G164: G | H164: 0 | I164: 0 | J164: G | K164: G | L164: 0 | M164: GREEN | N164: 0
A165: 06A_2013-14_June | B165: 0 | C165: G | D165: G | E165: G | F165: G | G165: G | H165: 0 | I165: 0 | J165: G | K165: G | L165: 0 | M165: GREEN | N165: 0
A166: 11A_2013-14_June | B166: 0 | C166: G | D166: G | E166: G | F166: G | G166: G | H166: 0 | I166: 0 | J166: G | K166: G | L166: 0 | M166: GREEN | N166: 0
A167: 11T_2013-14_June | B167: 0 | C167: G | D167: G | E167: G | F167: G | G167: G | H167: 0 | I167: 0 | J167: G | K167: R | L167: 0 | M167: AMBER-RED | N167: 0
A168: 12A_2013-14_June | B168: 0 | C168: G | D168: G | E168: G | F168: AR | G168: AG | H168: 0 | I168: 0 | J168: G | K168: R | L168: 0 | M168: AMBER-RED | N168: 0
A169: 12D_2013-14_June | B169: 0 | C169: R | D169: G | E169: G | F169: AR | G169: G | H169: 0 | I169: 0 | J169: G | K169: AR | L169: 0 | M169: AMBER-RED | N169: 0
A170: 06K_2013-14_June | B170: 0 | C170: G | D170: G | E170: G | F170: G | G170: G | H170: 0 | I170: 0 | J170: G | K170: AG | L170: 0 | M170: AMBER-GREEN | N170: 0
A171: 06P_2013-14_June | B171: 0 | C171: R | D171: G | E171: G | F171: AR | G171: AR | H171: 0 | I171: 0 | J171: G | K171: AR | L171: 0 | M171: AMBER-RED | N171: 0
A172: 08V_2013-14_June | B172: 0 | C172: G | D172: G | E172: G | F172: G | G172: G | H172: 0 | I172: 0 | J172: G | K172: G | L172: 0 | M172: GREEN | N172: 0
A173: 09A_2013-14_June | B173: 0 | C173: R | D173: G | E173: G | F173: AG | G173: AG | H173: 0 | I173: 0 | J173: G | K173: G | L173: 0 | M173: AMBER-RED | N173: 0
A174: 09G_2013-14_June | B174: 0 | C174: G | D174: G | E174: G | F174: AG | G174: G | H174: 0 | I174: 0 | J174: G | K174: R | L174: 0 | M174: AMBER-RED | N174: 0
A175: 10H_2013-14_June | B175: 0 | C175: G | D175: G | E175: G | F175: AR | G175: G | H175: 0 | I175: 0 | J175: G | K175: G | L175: 0 | M175: AMBER-GREEN | N175: 0
A176: 07M_2013-14_June | B176: 0 | C176: G | D176: G | E176: G | F176: G | G176: G | H176: 0 | I176: 0 | J176: G | K176: G | L176: 0 | M176: GREEN | N176: 0
A177: 00C_2013-14_June | B177: 0 | C177: G | D177: G | E177: G | F177: G | G177: G | H177: 0 | I177: 0 | J177: G | K177: G | L177: 0 | M177: GREEN | N177: 0
A178: 00H_2013-14_June | B178: 0 | C178: G | D178: G | E178: G | F178: G | G178: G | H178: 0 | I178: 0 | J178: G | K178: G | L178: 0 | M178: GREEN | N178: 0
A179: 00M_2013-14_June | B179: 0 | C179: G | D179: G | E179: G | F179: G | G179: G | H179: 0 | I179: 0 | J179: G | K179: G | L179: 0 | M179: GREEN | N179: 0
A180: 00N_2013-14_June | B180: 0 | C180: G | D180: G | E180: G | F180: G | G180: G | H180: 0 | I180: 0 | J180: G | K180: AR | L180: 0 | M180: AMBER-GREEN | N180: 0
A181: 05A_2013-14_June | B181: 0 | C181: R | D181: R | E181: G | F181: AG | G181: G | H181: 0 | I181: 0 | J181: G | K181: AG | L181: 0 | M181: RED | N181: 0
A182: 05W_2013-14_June | B182: 0 | C182: R | D182: G | E182: G | F182: G | G182: G | H182: 0 | I182: 0 | J182: G | K182: G | L182: 0 | M182: AMBER-RED | N182: 0
A183: 10E_2013-14_June | B183: 0 | C183: G | D183: G | E183: G | F183: G | G183: G | H183: 0 | I183: 0 | J183: G | K183: AG | L183: 0 | M183: AMBER-GREEN | N183: 0
A184: 00R_2013-14_June | B184: 0 | C184: G | D184: G | E184: G | F184: G | G184: G | H184: 0 | I184: 0 | J184: G | K184: G | L184: 0 | M184: GREEN | N184: 0
A185: 04Q_2013-14_June | B185: 0 | C185: G | D185: G | E185: G | F185: G | G185: G | H185: 0 | I185: 0 | J185: G | K185: G | L185: 0 | M185: GREEN | N185: 0
A186: 05L_2013-14_June | B186: 0 | C186: AR | D186: G | E186: G | F186: G | G186: G | H186: 0 | I186: 0 | J186: G | K186: AR | L186: 0 | M186: AMBER-GREEN | N186: 0
A187: 02W_2013-14_June | B187: 0 | C187: G | D187: G | E187: G | F187: G | G187: G | H187: 0 | I187: 0 | J187: G | K187: G | L187: 0 | M187: GREEN | N187: 0
A188: 04L_2013-14_June | B188: 0 | C188: G | D188: G | E188: G | F188: G | G188: G | H188: 0 | I188: 0 | J188: G | K188: G | L188: 0 | M188: GREEN | N188: 0
A189: 07K_2013-14_June | B189: 0 | C189: G | D189: G | E189: R | F189: G | G189: G | H189: 0 | I189: 0 | J189: G | K189: AG | L189: 0 | M189: AMBER-GREEN | N189: 0
A190: 07G_2013-14_June | B190: 0 | C190: R | D190: G | E190: G | F190: R | G190: AR | H190: 0 | I190: 0 | J190: G | K190: G | L190: 0 | M190: RED | N190: 0
A191: 99G_2013-14_June | B191: 0 | C191: R | D191: G | E191: G | F191: AR | G191: AG | H191: 0 | I191: 0 | J191: G | K191: G | L191: 0 | M191: AMBER-RED | N191: 0
A192: 03G_2013-14_June | B192: 0 | C192: G | D192: G | E192: G | F192: G | G192: G | H192: 0 | I192: 0 | J192: G | K192: G | L192: 0 | M192: GREEN | N192: 0
A193: 04K_2013-14_June | B193: 0 | C193: G | D193: G | E193: G | F193: G | G193: G | H193: 0 | I193: 0 | J193: G | K193: G | L193: 0 | M193: GREEN | N193: 0
A194: 04E_2013-14_June | B194: 0 | C194: G | D194: G | E194: G | F194: AG | G194: G | H194: 0 | I194: 0 | J194: G | K194: G | L194: 0 | M194: AMBER-GREEN | N194: 0
A195: 03T_2013-14_June | B195: 0 | C195: G | D195: G | E195: G | F195: R | G195: G | H195: 0 | I195: 0 | J195: G | K195: G | L195: 0 | M195: AMBER-RED | N195: 0
A196: 04F_2013-14_June | B196: 0 | C196: R | D196: G | E196: G | F196: AR | G196: G | H196: 0 | I196: 0 | J196: G | K196: AG | L196: 0 | M196: AMBER-RED | N196: 0
A197: 04G_2013-14_June | B197: 0 | C197: G | D197: G | E197: G | F197: AG | G197: AR | H197: 0 | I197: 0 | J197: G | K197: AG | L197: 0 | M197: AMBER-GREEN | N197: 0
A198: 02G_2013-14_June | B198: 0 | C198: G | D198: G | E198: G | F198: AG | G198: G | H198: 0 | I198: 0 | J198: G | K198: AG | L198: 0 | M198: AMBER-GREEN | N198: 0
A199: 02P_2013-14_June | B199: 0 | C199: G | D199: G | E199: G | F199: G | G199: G | H199: 0 | I199: 0 | J199: G | K199: G | L199: 0 | M199: GREEN | N199: 0
A200: 10V_2013-14_June | B200: 0 | C200: G | D200: G | E200: G | F200: G | G200: G | H200: 0 | I200: 0 | J200: G | K200: G | L200: 0 | M200: GREEN | N200: 0
... 434 more rows

Sheet CCG_PROV_SELFCERT_DOMAIN1 (hidden)
A1: CCG Code | B1: ID | C1: Provider Code | D1: Scq Prov Name | E1: Prov Percent | F1: CCG Lead | G1: CQC | H1: Monitor | I1: TDA | J1: F&F Feedback | K1: Negative | L1: MRSA | M1: CDiff | N1: MSA | O1: SUI | P1: Never Event | Q1: F&F rate | R1: Year | S1: Period
A2: 00C | B2: 2013-14_June_00C_PROV1 | C2: RXP | D2: COUNTY DURHAM AND DARLINGTON NHS FOUNDATION TRUST | E2: 19 | F2: Associate | G2: No | H2: No | I2: No | J2: No | K2: No | L2: No | M2: No | N2: No | O2: Yes – Action plan in place | P2: No | Q2: No | R2: 2013-14 | S2: June
A3: 00C | B3: 2013-14_June_00C_PROV2 | C3: RTR | D3: SOUTH TEES HOSPITALS NHS FOUNDATION TRUST | E3: 5 | F3: Associate | G3: No | H3: Yes – Action plan in place | I3: No | J3: No | K3: No | L3: No | M3: Yes – Action plan in place | N3: No | O3: Yes – Action plan in place | P3: Yes – Action plan in place | Q3: No | R3: 2013-14 | S3: June
A4: 00C | B4: 2013-14_June_00C_PROV3 | C4: RX3 | D4: TEES, ESK AND WEAR VALLEYS NHS FOUNDATION TRUST | E4: 8 | F4: Associate | G4: Yes – Action plan in place | H4: Yes – Action plan in place | I4: No | J4: No | K4: No | L4: No | M4: No | N4: No | O4: Yes – Action plan in place | P4: No | Q4: Further development required | R4: 2013-14 | S4: June
A5: 00C | B5: 2013-14_June_00C_PROV4 | C5: RX6 | D5: NORTH EAST AMBULANCE SERVICE NHS FOUNDATION TRUST | E5: 5 | F5: Associate | G5: No | H5: No | I5: No | J5: No | K5: No | L5: No | M5: No | N5: No | O5: Yes – Action plan in place | P5: No | Q5: Further development required | R5: 2013-14 | S5: June
A6: 00D | B6: 2013-14_June_00D_PROV1 | C6: RXP | D6: COUNTY DURHAM AND DARLINGTON NHS FOUNDATION TRUST | E6: 41 | F6: Lead | G6: No | H6: No | I6: No | J6: No | K6: No | L6: No | M6: No | N6: No | O6: Yes – Action plan in place | P6: No | Q6: No | R6: 2013-14 | S6: June
A7: 00D | B7: 2013-14_June_00D_PROV2 | C7: RVW | D7: NORTH TEES AND HARTLEPOOL NHS FOUNDATION TRUST | E7: 19 | F7: Lead | G7: No | H7: No | I7: No | J7: No | K7: No | L7: No | M7: No | N7: No | O7: Yes – Action plan in place | P7: No | Q7: No | R7: 2013-14 | S7: June
A8: 00D | B8: 2013-14_June_00D_PROV3 | C8: RLN | D8: CITY HOSPITALS SUNDERLAND NHS FOUNDATION TRUST | E8: 10 | F8: Lead | G8: No | H8: No | I8: No | J8: No | K8: No | L8: Yes – Action plan in place | M8: Yes – Action plan in place | N8: No | O8: Yes – Action plan in place | P8: Yes – Action plan in place | Q8: No | R8: 2013-14 | S8: June
A9: 00D | B9: 2013-14_June_00D_PROV4 | C9: RX6 | D9: NORTH EAST AMBULANCE SERVICE NHS FOUNDATION TRUST | E9: 14 | F9: Associate | G9: No | H9: No | I9: No | J9: No | K9: No | L9: No | M9: No | N9: No | O9: Yes – Action plan in place | P9: No | Q9: Further development required | R9: 2013-14 | S9: June
A10: 00D | B10: 2013-14_June_00D_PROV5 | C10: RX3 | D10: TEES, ESK AND WEAR VALLEYS NHS FOUNDATION TRUST | E10: 27 | F10: Associate | G10: Yes – Action plan in place | H10: Yes – Action plan in place | I10: No | J10: No | K10: No | L10: No | M10: No | N10: No | O10: Yes – Action plan in place | P10: No | Q10: Further development required | R10: 2013-14 | S10: June
A11: 00F | B11: 2013-14_June_00F_PROV1 | C11: RR7 | D11: GATESHEAD HEALTH NHS FOUNDATION TRUST | E11: 0 | F11: 0 | G11: No | H11: No | I11: No | J11: No | K11: No | L11: No | M11: No | N11: No | O11: Yes – Action plan in place | P11: No | Q11: No | R11: 2013-14 | S11: June
A12: 00F | B12: 2013-14_June_00F_PROV2 | C12: RTD | D12: THE NEWCASTLE UPON TYNE HOSPITALS NHS FOUNDATION TRUST | E12: 0 | F12: 0 | G12: No | H12: No | I12: No | J12: No | K12: No | L12: Yes – Action plan in place | M12: Yes – Action plan in place | N12: No | O12: Yes – Action plan in place | P12: Yes – Action plan in place | Q12: No | R12: 2013-14 | S12: June
A13: 00F | B13: 2013-14_June_00F_PROV3 | C13: RE9 | D13: SOUTH TYNESIDE NHS FOUNDATION TRUST | E13: 0 | F13: 0 | G13: No | H13: No | I13: No | J13: No | K13: No | L13: Yes – Action plan in place | M13: Yes – Action plan in place | N13: No | O13: Yes – Action plan in place | P13: No | Q13: No | R13: 2013-14 | S13: June
A14: 00F | B14: 2013-14_June_00F_PROV4 | C14: RX4 | D14: NORTHUMBERLAND, TYNE AND WEAR NHS FOUNDATION TRUST | E14: 0 | F14: 0 | G14: No | H14: No | I14: No | J14: No | K14: No | L14: No | M14: No | N14: No | O14: Yes – Action plan in place | P14: No | Q14: No | R14: 2013-14 | S14: June
A15: 00F | B15: 2013-14_June_00F_PROV5 | C15: RX6 | D15: NORTH EAST AMBULANCE SERVICE NHS FOUNDATION TRUST | E15: 0 | F15: 0 | G15: No | H15: No | I15: No | J15: No | K15: No | L15: No | M15: No | N15: No | O15: Yes – Action plan in place | P15: No | Q15: No | R15: 2013-14 | S15: June
A16: 00G | B16: 2013-14_June_00G_PROV1 | C16: RTD | D16: THE NEWCASTLE UPON TYNE HOSPITALS NHS FOUNDATION TRUST | E16: 0 | F16: 0 | G16: No | H16: No | I16: No | J16: No | K16: No | L16: Yes – Action plan in place | M16: Yes – Action plan in place | N16: No | O16: Yes – Action plan in place | P16: Yes – Action plan in place | Q16: No | R16: 2013-14 | S16: June
A17: 00G | B17: 2013-14_June_00G_PROV2 | C17: RTF | D17: NORTHUMBRIA HEALTHCARE NHS FOUNDATION TRUST | E17: 0 | F17: 0 | G17: No | H17: No | I17: No | J17: No | K17: Yes – Action plan in place | L17: Yes – Action plan in place | M17: No | N17: No | O17: Yes – Action plan in place | P17: No | Q17: Further development required | R17: 2013-14 | S17: June
A18: 00G | B18: 2013-14_June_00G_PROV3 | C18: RX4 | D18: NORTHUMBERLAND, TYNE AND WEAR NHS FOUNDATION TRUST | E18: 0 | F18: 0 | G18: No | H18: No | I18: No | J18: No | K18: No | L18: No | M18: No | N18: No | O18: Yes – Action plan in place | P18: No | Q18: No | R18: 2013-14 | S18: June
A19: 00G | B19: 2013-14_June_00G_PROV4 | C19: RX6 | D19: NORTH EAST AMBULANCE SERVICE NHS FOUNDATION TRUST | E19: 0 | F19: 0 | G19: No | H19: No | I19: No | J19: No | K19: No | L19: No | M19: No | N19: No | O19: Yes – Action plan in place | P19: No | Q19: No | R19: 2013-14 | S19: June
A20: 00H | B20: 2013-14_June_00H_PROV1 | C20: RTD | D20: THE NEWCASTLE UPON TYNE HOSPITALS NHS FOUNDATION TRUST | E20: 0 | F20: 0 | G20: No | H20: No | I20: No | J20: No | K20: No | L20: Yes – Action plan in place | M20: Yes – Action plan in place | N20: No | O20: Yes – Action plan in place | P20: Yes – Action plan in place | Q20: No | R20: 2013-14 | S20: June
A21: 00H | B21: 2013-14_June_00H_PROV2 | C21: RTF | D21: NORTHUMBRIA HEALTHCARE NHS FOUNDATION TRUST | E21: 0 | F21: 0 | G21: No | H21: No | I21: No | J21: No | K21: Yes – Action plan in place | L21: Yes – Action plan in place | M21: No | N21: No | O21: Yes – Action plan in place | P21: No | Q21: No | R21: 2013-14 | S21: June
A22: 00H | B22: 2013-14_June_00H_PROV3 | C22: RX4 | D22: NORTHUMBERLAND, TYNE AND WEAR NHS FOUNDATION TRUST | E22: 0 | F22: 0 | G22: No | H22: No | I22: No | J22: No | K22: No | L22: No | M22: No | N22: No | O22: Yes – Action plan in place | P22: No | Q22: No | R22: 2013-14 | S22: June
A23: 00H | B23: 2013-14_June_00H_PROV4 | C23: RX6 | D23: NORTH EAST AMBULANCE SERVICE NHS FOUNDATION TRUST | E23: 0 | F23: 0 | G23: No | H23: No | I23: No | J23: No | K23: No | L23: No | M23: No | N23: No | O23: Yes – Action plan in place | P23: No | Q23: No | R23: 2013-14 | S23: June
A24: 00J | B24: 2013-14_June_00J_PROV1 | C24: RXP | D24: COUNTY DURHAM AND DARLINGTON NHS FOUNDATION TRUST | E24: 40 | F24: Associate | G24: No | H24: No | I24: No | J24: No | K24: No | L24: No | M24: No | N24: No | O24: Yes – Action plan in place | P24: No | Q24: No | R24: 2013-14 | S24: June
A25: 00J | B25: 2013-14_June_00J_PROV2 | C25: RLN | D25: CITY HOSPITALS SUNDERLAND NHS FOUNDATION TRUST | E25: 5 | F25: Associate | G25: No | H25: No | I25: No | J25: No | K25: No | L25: Yes – Action plan in place | M25: Yes – Action plan in place | N25: No | O25: Yes – Action plan in place | P25: Yes – Action plan in place | Q25: No | R25: 2013-14 | S25: June
A26: 00J | B26: 2013-14_June_00J_PROV3 | C26: RX3 | D26: TEES, ESK AND WEAR VALLEYS NHS FOUNDATION TRUST | E26: 21 | F26: Lead | G26: Yes – Action plan in place | H26: Yes – Action plan in place | I26: No | J26: No | K26: No | L26: No | M26: No | N26: No | O26: Yes – Action plan in place | P26: No | Q26: Further development required | R26: 2013-14 | S26: June
A27: 00J | B27: 2013-14_June_00J_PROV4 | C27: RX6 | D27: NORTH EAST AMBULANCE SERVICE NHS FOUNDATION TRUST | E27: 10 | F27: Associate | G27: No | H27: No | I27: No | J27: No | K27: No | L27: No | M27: No | N27: No | O27: Yes – Action plan in place | P27: No | Q27: Further development required | R27: 2013-14 | S27: June
A28: 00K | B28: 2013-14_June_00K_PROV1 | C28: RVW | D28: NORTH TEES AND HARTLEPOOL NHS FOUNDATION TRUST | E28: 80 | F28: Lead | G28: No | H28: No | I28: No | J28: No | K28: No | L28: No | M28: No | N28: No | O28: Yes – Action plan in place | P28: No | Q28: No | R28: 2013-14 | S28: June
A29: 00K | B29: 2013-14_June_00K_PROV2 | C29: RTR | D29: SOUTH TEES HOSPITALS NHS FOUNDATION TRUST | E29: 13 | F29: Associate | G29: No | H29: Yes – Action plan in place | I29: No | J29: No | K29: No | L29: No | M29: Yes – Action plan in place | N29: No | O29: Yes – Action plan in place | P29: Yes – Action plan in place | Q29: No | R29: 2013-14 | S29: June
A30: 00K | B30: 2013-14_June_00K_PROV3 | C30: RX3 | D30: TEES, ESK AND WEAR VALLEYS NHS FOUNDATION TRUST | E30: 19 | F30: Associate | G30: Yes – Action plan in place | H30: Yes – Action plan in place | I30: No | J30: No | K30: No | L30: No | M30: No | N30: No | O30: Yes – Action plan in place | P30: No | Q30: Further development required | R30: 2013-14 | S30: June
A31: 00K | B31: 2013-14_June_00K_PROV4 | C31: RX6 | D31: NORTH EAST AMBULANCE SERVICE NHS FOUNDATION TRUST | E31: 11 | F31: Associate | G31: No | H31: No | I31: No | J31: No | K31: No | L31: No | M31: No | N31: No | O31: Yes – Action plan in place | P31: No | Q31: Further development required | R31: 2013-14 | S31: June
A32: 00L | B32: 2013-14_June_00L_PROV1 | C32: RR7 | D32: GATESHEAD HEALTH NHS FOUNDATION TRUST | E32: 0 | F32: Associate | G32: No | H32: No | I32: No | J32: No | K32: No | L32: No | M32: No | N32: No | O32: Yes – Action plan in place | P32: No | Q32: No | R32: 2013-14 | S32: June
A33: 00L | B33: 2013-14_June_00L_PROV2 | C33: RTF | D33: NORTHUMBRIA HEALTHCARE NHS FOUNDATION TRUST | E33: 46 | F33: Lead | G33: No | H33: No | I33: No | J33: No | K33: Yes – Action plan in place | L33: Yes – Action plan in place | M33: No | N33: No | O33: Yes – Action plan in place | P33: No | Q33: No | R33: 2013-14 | S33: June
A34: 00L | B34: 2013-14_June_00L_PROV3 | C34: RTD | D34: THE NEWCASTLE UPON TYNE HOSPITALS NHS FOUNDATION TRUST | E34: 14 | F34: Associate | G34: No | H34: No | I34: No | J34: No | K34: No | L34: Yes – Action plan in place | M34: Yes – Action plan in place | N34: No | O34: Yes – Action plan in place | P34: Yes – Action plan in place | Q34: No | R34: 2013-14 | S34: June
A35: 00L | B35: 2013-14_June_00L_PROV4 | C35: RX4 | D35: NORTHUMBERLAND, TYNE AND WEAR NHS FOUNDATION TRUST | E35: 11 | F35: Associate | G35: No | H35: No | I35: No | J35: No | K35: No | L35: No | M35: No | N35: No | O35: Yes – Action plan in place | P35: No | Q35: No | R35: 2013-14 | S35: June
A36: 00L | B36: 2013-14_June_00L_PROV5 | C36: RX6 | D36: NORTH EAST AMBULANCE SERVICE NHS FOUNDATION TRUST | E36: 0 | F36: Associate | G36: No | H36: No | I36: No | J36: No | K36: No | L36: No | M36: No | N36: No | O36: Yes – Action plan in place | P36: No | Q36: No | R36: 2013-14 | S36: June
A37: 00M | B37: 2013-14_June_00M_PROV1 | C37: RTR | D37: SOUTH TEES HOSPITALS NHS FOUNDATION TRUST | E37: 80 | F37: Lead | G37: No | H37: Yes – Action plan in place | I37: No | J37: No | K37: No | L37: No | M37: Yes – Action plan in place | N37: No | O37: Yes – Action plan in place | P37: Yes – Action plan in place | Q37: No | R37: 2013-14 | S37: June
A38: 00M | B38: 2013-14_June_00M_PROV2 | C38: RVW | D38: NORTH TEES AND HARTLEPOOL NHS FOUNDATION TRUST | E38: 5 | F38: Associate | G38: No | H38: No | I38: No | J38: No | K38: No | L38: No | M38: No | N38: No | O38: Yes – Action plan in place | P38: No | Q38: No | R38: 2013-14 | S38: June
A39: 00M | B39: 2013-14_June_00M_PROV3 | C39: RX3 | D39: TEES, ESK AND WEAR VALLEYS NHS FOUNDATION TRUST | E39: 19 | F39: Associate | G39: Yes – Action plan in place | H39: Yes – Action plan in place | I39: No | J39: No | K39: No | L39: No | M39: No | N39: No | O39: Yes – Action plan in place | P39: No | Q39: Further development required | R39: 2013-14 | S39: June
A40: 00M | B40: 2013-14_June_00M_PROV4 | C40: RX6 | D40: NORTH EAST AMBULANCE SERVICE NHS FOUNDATION TRUST | E40: 11 | F40: Associate | G40: No | H40: No | I40: No | J40: No | K40: No | L40: No | M40: No | N40: No | O40: Yes – Action plan in place | P40: No | Q40: Further development required | R40: 2013-14 | S40: June
A41: 00N | B41: 2013-14_June_00N_PROV1 | C41: RE9 | D41: SOUTH TYNESIDE NHS FOUNDATION TRUST | E41: 82 | F41: Lead | G41: No | H41: No | I41: No | J41: No | K41: No | L41: Yes – Action plan in place | M41: Yes – Action plan in place | N41: No | O41: Yes – Action plan in place | P41: No | Q41: No | R41: 2013-14 | S41: June
A42: 00N | B42: 2013-14_June_00N_PROV2 | C42: RLN | D42: CITY HOSPITALS SUNDERLAND NHS FOUNDATION TRUST | E42: 28 | F42: Associate | G42: No | H42: No | I42: No | J42: No | K42: No | L42: Yes – Action plan in place | M42: Yes – Action plan in place | N42: No | O42: Yes – Action plan in place | P42: Yes – Action plan in place | Q42: No | R42: 2013-14 | S42: June
A43: 00N | B43: 2013-14_June_00N_PROV3 | C43: RX4 | D43: NORTHUMBERLAND, TYNE AND WEAR NHS FOUNDATION TRUST | E43: 14 | F43: Associate | G43: No | H43: No | I43: No | J43: No | K43: No | L43: No | M43: No | N43: No | O43: Yes – Action plan in place | P43: No | Q43: No | R43: 2013-14 | S43: June
A44: 00N | B44: 2013-14_June_00N_PROV4 | C44: RX6 | D44: NORTH EAST AMBULANCE SERVICE NHS FOUNDATION TRUST | E44: 7 | F44: Associate | G44: No | H44: No | I44: No | J44: No | K44: No | L44: No | M44: No | N44: No | O44: Yes – Action plan in place | P44: No | Q44: No | R44: 2013-14 | S44: June
A45: 00P | B45: 2013-14_June_00P_PROV1 | C45: RLN | D45: CITY HOSPITALS SUNDERLAND NHS FOUNDATION TRUST | E45: 60 | F45: Lead | G45: No | H45: No | I45: No | J45: No | K45: No | L45: Yes – Action plan in place | M45: Yes – Action plan in place | N45: No | O45: Yes – Action plan in place | P45: Yes – Action plan in place | Q45: No | R45: 2013-14 | S45: June
A46: 00P | B46: 2013-14_June_00P_PROV2 | C46: RE9 | D46: SOUTH TYNESIDE NHS FOUNDATION TRUST | E46: 14 | F46: Associate | G46: No | H46: No | I46: No | J46: No | K46: No | L46: Yes – Action plan in place | M46: Yes – Action plan in place | N46: No | O46: Yes – Action plan in place | P46: No | Q46: No | R46: 2013-14 | S46: June
A47: 00P | B47: 2013-14_June_00P_PROV3 | C47: RR7 | D47: GATESHEAD HEALTH NHS FOUNDATION TRUST | E47: 9 | F47: Associate | G47: No | H47: No | I47: No | J47: No | K47: No | L47: No | M47: No | N47: No | O47: Yes – Action plan in place | P47: No | Q47: No | R47: 2013-14 | S47: June
A48: 00P | B48: 2013-14_June_00P_PROV4 | C48: RX4 | D48: NORTHUMBERLAND, TYNE AND WEAR NHS FOUNDATION TRUST | E48: 17 | F48: Lead | G48: No | H48: No | I48: No | J48: No | K48: No | L48: No | M48: No | N48: No | O48: Yes – Action plan in place | P48: No | Q48: No | R48: 2013-14 | S48: June
A49: 00P | B49: 2013-14_June_00P_PROV5 | C49: RX6 | D49: NORTH EAST AMBULANCE SERVICE NHS FOUNDATION TRUST | E49: 12 | F49: Lead | G49: No | H49: No | I49: No | J49: No | K49: No | L49: No | M49: No | N49: No | O49: Yes – Action plan in place | P49: No | Q49: No | R49: 2013-14 | S49: June
A50: 00Q | B50: 2013-14_June_00Q_PROV1 | C50: RXR | D50: EAST LANCASHIRE HOSPITALS NHS TRUST | E50: 25 | F50: Associate | G50: No | H50: No | I50: Yes – Action plan in place | J50: Yes – Action plan in place | K50: Yes – Action plan in place | L50: Yes – Action plan in place | M50: No | N50: No | O50: Yes – Action plan in place | P50: No | Q50: Yes | R50: 2013-14 | S50: June
A51: 00Q | B51: 2013-14_June_00Q_PROV2 | C51: RW5 | D51: LANCASHIRE CARE NHS FOUNDATION TRUST | E51: 11 | F51: Lead | G51: No | H51: No | I51: No | J51: No | K51: No | L51: No | M51: No | N51: No | O51: Yes – Action plan in place | P51: No | Q51: Further development required | R51: 2013-14 | S51: June
A52: 00R | B52: 2013-14_June_00R_PROV1 | C52: RXL | D52: BLACKPOOL TEACHING HOSPITALS NHS FOUNDATION TRUST | E52: 30 | F52: Lead | G52: No | H52: No | I52: No | J52: No | K52: Yes – Action plan in place | L52: No | M52: No | N52: No | O52: Yes – Action plan in place | P52: No | Q52: No | R52: 2013-14 | S52: June
A53: 00T | B53: 2013-14_June_00T_PROV1 | C53: RMC | D53: BOLTON NHS FOUNDATION TRUST | E53: 81 | F53: Lead | G53: No | H53: Yes – Action plan in place | I53: No | J53: No | K53: No | L53: No | M53: Yes – Action plan in place | N53: Yes – Action plan in place | O53: Yes – Action plan in place | P53: No | Q53: No | R53: 2013-14 | S53: June
A54: 00V | B54: 2013-14_June_00V_PROV1 | C54: RW6 | D54: PENNINE ACUTE HOSPITALS NHS TRUST | E54: 15 | F54: Lead | G54: No | H54: No | I54: No | J54: No | K54: No | L54: Yes – Action plan in place | M54: Yes – Action plan in place | N54: No | O54: Yes – Action plan in place | P54: No | Q54: No | R54: 2013-14 | S54: June
A55: 00V | B55: 2013-14_June_00V_PROV2 | C55: RT2 | D55: PENNINE CARE NHS FOUNDATION TRUST | E55: 16 | F55: Associate | G55: No | H55: No | I55: No | J55: No | K55: No | L55: No | M55: No | N55: No | O55: Yes – Action plan in place | P55: No | Q55: Further development required | R55: 2013-14 | S55: June
A56: 00W | B56: 2013-14_June_00W_PROV1 | C56: RW3 | D56: CENTRAL MANCHESTER UNIVERSITY HOSPITALS NHS FOUNDATION TRUST | E56: 17 | F56: Lead | G56: No | H56: No | I56: No | J56: No | K56: Yes – Action plan in place | L56: Yes – Action plan in place | M56: No | N56: No | O56: Yes – Action plan in place | P56: Yes – Action plan in place | Q56: No | R56: 2013-14 | S56: June
A57: 00W | B57: 2013-14_June_00W_PROV2 | C57: RM2 | D57: UNIVERSITY HOSPITAL OF SOUTH MANCHESTER NHS FOUNDATION TRUST | E57: 5 | F57: Associate | G57: No | H57: No | I57: No | J57: No | K57: No | L57: No | M57: No | N57: No | O57: Yes – Action plan in place | P57: No | Q57: No | R57: 2013-14 | S57: June
A58: 00W | B58: 2013-14_June_00W_PROV3 | C58: TAE | D58: MANCHESTER MENTAL HEALTH AND SOCIAL CARE TRUST | E58: 5 | F58: Associate | G58: No | H58: No | I58: No | J58: No | K58: No | L58: No | M58: No | N58: No | O58: Yes – Action plan in place | P58: No | Q58: Further development required | R58: 2013-14 | S58: June
A59: 00X | B59: 2013-14_June_00X_PROV1 | C59: RXN | D59: LANCASHIRE TEACHING HOSPITALS NHS FOUNDATION TRUST | E59: 23 | F59: Associate | G59: No | H59: Yes – Action plan in place | I59: No | J59: No | K59: No | L59: No | M59: Yes – Action plan in place | N59: No | O59: Yes – Action plan in place | P59: No | Q59: No | R59: 2013-14 | S59: June
A60: 00X | B60: 2013-14_June_00X_PROV2 | C60: RW5 | D60: LANCASHIRE CARE NHS FOUNDATION TRUST | E60: 10 | F60: Lead | G60: No | H60: No | I60: No | J60: No | K60: No | L60: No | M60: No | N60: No | O60: Yes – Action plan in place | P60: No | Q60: Further development required | R60: 2013-14 | S60: June
A61: 00Y | B61: 2013-14_June_00Y_PROV1 | C61: RW6 | D61: PENNINE ACUTE HOSPITALS NHS TRUST | E61: 23 | F61: Associate | G61: No | H61: No | I61: No | J61: No | K61: Yes – Action plan in place | L61: Yes – Action plan in place | M61: Yes – Action plan in place | N61: No | O61: Yes – Action plan in place | P61: No | Q61: Yes | R61: 2013-14 | S61: June
A62: 00Y | B62: 2013-14_June_00Y_PROV2 | C62: RMP | D62: TAMESIDE HOSPITAL NHS FOUNDATION TRUST | E62: 5 | F62: Associate | G62: Yes – Action plan in place | H62: Yes – Action plan in place | I62: No | J62: No | K62: Yes – Action plan in place | L62: Yes – Action plan in place | M62: Yes – Action plan in place | N62: No | O62: Yes – Action plan in place | P62: No | Q62: Yes | R62: 2013-14 | S62: June
A63: 00Y | B63: 2013-14_June_00Y_PROV3 | C63: RT2 | D63: PENNINE CARE NHS FOUNDATION TRUST | E63: 20 | F63: Lead | G63: No | H63: No | I63: No | J63: No | K63: No | L63: No | M63: No | N63: No | O63: Yes – Action plan in place | P63: No | Q63: No | R63: 2013-14 | S63: June
A64: 00Y | B64: 2013-14_June_00Y_PROV4 | C64: RT2 | D64: PENNINE CARE NHS FOUNDATION TRUST | E64: 14 | F64: Associate | G64: No | H64: No | I64: No | J64: No | K64: No | L64: No | M64: No | N64: No | O64: Yes – Action plan in place | P64: No | Q64: No | R64: 2013-14 | S64: June
A65: 01A | B65: 2013-14_June_01A_PROV1 | C65: RXR | D65: EAST LANCASHIRE HOSPITALS NHS TRUST | E65: 63 | F65: Lead | G65: No | H65: No | I65: Yes – Action plan in place | J65: Yes – Action plan in place | K65: Yes – Action plan in place | L65: Yes – Action plan in place | M65: No | N65: No | O65: Yes – Action plan in place | P65: No | Q65: Further development required | R65: 2013-14 | S65: June
A66: 01A | B66: 2013-14_June_01A_PROV2 | C66: RCF | D66: AIREDALE NHS FOUNDATION TRUST | E66: 10 | F66: Associate | G66: No | H66: No | I66: No | J66: No | K66: No | L66: No | M66: Yes – Action plan in place | N66: No | O66: Yes – Action plan in place | P66: No | Q66: Further development required | R66: 2013-14 | S66: June
A67: 01A | B67: 2013-14_June_01A_PROV3 | C67: RW5 | D67: LANCASHIRE CARE NHS FOUNDATION TRUST | E67: 16 | F67: Associate | G67: No | H67: No | I67: No | J67: No | K67: No | L67: No | M67: No | N67: No | O67: Yes – Action plan in place | P67: No | Q67: Yes | R67: 2013-14 | S67: June
A68: 01C | B68: 2013-14_June_01C_PROV1 | C68: RJN | D68: EAST CHESHIRE NHS TRUST | E68: 0 | F68: Lead | G68: No | H68: No | I68: No | J68: No | K68: No | L68: No | M68: No | N68: No | O68: Yes – Action plan in place | P68: No | Q68: No | R68: 2013-14 | S68: June
A69: 01C | B69: 2013-14_June_01C_PROV2 | C69: RWJ | D69: STOCKPORT NHS FOUNDATION TRUST | E69: 0 | F69: Associate | G69: No | H69: Yes – Action plan in place | I69: No | J69: No | K69: No | L69: No | M69: Yes – Action plan in place | N69: No | O69: Yes – Action plan in place | P69: Yes – Action plan in place | Q69: No | R69: 2013-14 | S69: June
A70: 01C | B70: 2013-14_June_01C_PROV3 | C70: RXA | D70: CHESHIRE AND WIRRAL PARTNERSHIP NHS FOUNDATION TRUST | E70: 0 | F70: Associate | G70: Yes – Action plan in place | H70: No | I70: No | J70: No | K70: No | L70: No | M70: No | N70: No | O70: Yes – Action plan in place | P70: No | Q70: No | R70: 2013-14 | S70: June
A71: 01D | B71: 2013-14_June_01D_PROV1 | C71: RW6 | D71: PENNINE ACUTE HOSPITALS NHS TRUST | E71: 23 | F71: Associate | G71: No | H71: No | I71: No | J71: No | K71: No | L71: Yes – Action plan in place | M71: Yes – Action plan in place | N71: No | O71: Yes – Action plan in place | P71: No | Q71: No | R71: 2013-14 | S71: June
A72: 01D | B72: 2013-14_June_01D_PROV2 | C72: RT2 | D72: PENNINE CARE NHS FOUNDATION TRUST | E72: 17 | F72: Lead | G72: No | H72: No | I72: No | J72: No | K72: No | L72: No | M72: No | N72: No | O72: Yes – Action plan in place | P72: No | Q72: Further development required | R72: 2013-14 | S72: June
A73: 01E | B73: 2013-14_June_01E_PROV1 | C73: RXN | D73: LANCASHIRE TEACHING HOSPITALS NHS FOUNDATION TRUST | E73: 26 | F73: Lead | G73: No | H73: Yes – Action plan in place | I73: No | J73: No | K73: No | L73: No | M73: Yes – Action plan in place | N73: No | O73: Yes – Action plan in place | P73: No | Q73: No | R73: 2013-14 | S73: June
A74: 01E | B74: 2013-14_June_01E_PROV2 | C74: RW5 | D74: LANCASHIRE CARE NHS FOUNDATION TRUST | E74: 12 | F74: Associate | G74: No | H74: No | I74: No | J74: No | K74: No | L74: No | M74: No | N74: No | O74: Yes – Action plan in place | P74: No | Q74: Further development required | R74: 2013-14 | S74: June
A75: 01F | B75: 2013-14_June_01F_PROV1 | C75: RWW | D75: WARRINGTON AND HALTON HOSPITALS NHS FOUNDATION TRUST | E75: 0 | F75: Associate | G75: No | H75: No | I75: No | J75: No | K75: No | L75: Yes – Action plan in place | M75: Yes – Action plan in place | N75: No | O75: Yes – Action plan in place | P75: No | Q75: Further development required | R75: 2013-14 | S75: June
A76: 01F | B76: 2013-14_June_01F_PROV2 | C76: RBN | D76: ST HELENS AND KNOWSLEY HOSPITALS NHS TRUST | E76: 0 | F76: Associate | G76: No | H76: No | I76: Yes – Action plan in place | J76: Yes – Action plan in place | K76: No | L76: Yes – Action plan in place | M76: No | N76: No | O76: Yes – Action plan in place | P76: Yes – Action plan in place | Q76: No | R76: 2013-14 | S76: June
A77: 01F | B77: 2013-14_June_01F_PROV3 | C77: RY2 | D77: BRIDGEWATER COMMUNITY HEALTHCARE NHS TRUST | E77: 0 | F77: Lead | G77: No | H77: No | I77: No | J77: No | K77: No | L77: No | M77: No | N77: No | O77: Yes – Action plan in place | P77: No | Q77: Further development required | R77: 2013-14 | S77: June
A78: 01F | B78: 2013-14_June_01F_PROV4 | C78: RTV | D78: 5 BOROUGHS PARTNERSHIP NHS FOUNDATION TRUST | E78: 0 | F78: Associate | G78: No | H78: No | I78: No | J78: No | K78: No | L78: No | M78: No | N78: No | O78: Yes – Action plan in place | P78: No | Q78: No | R78: 2013-14 | S78: June
A79: 01G | B79: 2013-14_June_01G_PROV1 | C79: RM3 | D79: SALFORD ROYAL NHS FOUNDATION TRUST | E79: 38 | F79: Lead | G79: No | H79: No | I79: No | J79: No | K79: No | L79: No | M79: No | N79: No | O79: Yes – Action plan in place | P79: Yes – Action plan in place | Q79: No | R79: 2013-14 | S79: June
A80: 01G | B80: 2013-14_June_01G_PROV2 | C80: RW3 | D80: CENTRAL MANCHESTER UNIVERSITY HOSPITALS NHS FOUNDATION TRUST | E80: 5 | F80: Associate | G80: No | H80: No | I80: No | J80: No | K80: Yes – Action plan in place | L80: Yes – Action plan in place | M80: No | N80: No | O80: Yes – Action plan in place | P80: Yes – Action plan in place | Q80: No | R80: 2013-14 | S80: June
A81: 01G | B81: 2013-14_June_01G_PROV3 | C81: RXV | D81: GREATER MANCHESTER WEST MENTAL HEALTH NHS FOUNDATION TRUST | E81: 9 | F81: Lead | G81: No | H81: No | I81: No | J81: No | K81: No | L81: No | M81: No | N81: No | O81: Yes – Action plan in place | P81: No | Q81: Further development required | R81: 2013-14 | S81: June
A82: 01H | B82: 2013-14_June_01H_PROV1 | C82: RNL | D82: NORTH CUMBRIA UNIVERSITY HOSPITALS NHS TRUST | E82: 0 | F82: Lead | G82: Yes – Action plan in place | H82: No | I82: Yes – Action plan in place | J82: Yes – Action plan in place | K82: Yes – Action plan in place | L82: No | M82: No | N82: Yes – Action plan in place | O82: Yes – Action plan in place | P82: Yes – Action plan in place | Q82: No | R82: 2013-14 | S82: June
A83: 01H | B83: 2013-14_June_01H_PROV2 | C83: RTX | D83: UNIVERSITY HOSPITALS OF MORECAMBE BAY NHS FOUNDATION TRUST | E83: 0 | F83: Lead | G83: Yes – Action plan in place | H83: Yes – Action plan in place | I83: No | J83: Yes – Action plan in place | K83: No | L83: No | M83: Yes – Action plan in place | N83: No | O83: Yes – Action plan in place | P83: No | Q83: No | R83: 2013-14 | S83: June
A84: 01H | B84: 2013-14_June_01H_PROV3 | C84: RNN | D84: CUMBRIA PARTNERSHIP NHS FOUNDATION TRUST | E84: 0 | F84: Lead | G84: No | H84: No | I84: No | J84: No | K84: No | L84: No | M84: No | N84: No | O84: Yes – Action plan in place | P84: No | Q84: No | R84: 2013-14 | S84: June
A85: 01J | B85: 2013-14_June_01J_PROV1 | C85: RBN | D85: ST HELENS AND KNOWSLEY HOSPITALS NHS TRUST | E85: 25 | F85: Associate | G85: No | H85: No | I85: Yes – Action plan in place | J85: Yes – Action plan in place | K85: No | L85: Yes – Action plan in place | M85: No | N85: No | O85: Yes – Action plan in place | P85: Yes – Action plan in place | Q85: No | R85: 2013-14 | S85: June
A86: 01J | B86: 2013-14_June_01J_PROV2 | C86: REM | D86: AINTREE UNIVERSITY HOSPITAL NHS FOUNDATION TRUST | E86: 13 | F86: Associate | G86: No | H86: Yes – Action plan in place | I86: No | J86: No | K86: Yes – Action plan in place | L86: Yes – Action plan in place | M86: Yes – Action plan in place | N86: Yes – Action plan in place | O86: Yes – Action plan in place | P86: No | Q86: No | R86: 2013-14 | S86: June
A87: 01J | B87: 2013-14_June_01J_PROV3 | C87: REP | D87: LIVERPOOL WOMEN'S NHS FOUNDATION TRUST | E87: 11 | F87: Associate | G87: No | H87: No | I87: No | J87: No | K87: No | L87: No | M87: No | N87: No | O87: No | P87: Yes – Action plan in place | Q87: No | R87: 2013-14 | S87: June
A88: 01J | B88: 2013-14_June_01J_PROV4 | C88: RTV | D88: 5 BOROUGHS PARTNERSHIP NHS FOUNDATION TRUST | E88: 22 | F88: Lead | G88: No | H88: No | I88: No | J88: No | K88: No | L88: No | M88: No | N88: No | O88: Yes – Action plan in place | P88: No | Q88: Yes | R88: 2013-14 | S88: June
A89: 01K | B89: 2013-14_June_01K_PROV1 | C89: RTX | D89: UNIVERSITY HOSPITALS OF MORECAMBE BAY NHS FOUNDATION TRUST | E89: 40 | F89: Lead | G89: No | H89: Yes – Action plan in place | I89: No | J89: Yes – Action plan in place | K89: No | L89: No | M89: Yes – Action plan in place | N89: No | O89: Yes – Action plan in place | P89: No | Q89: No | R89: 2013-14 | S89: June
A90: 01K | B90: 2013-14_June_01K_PROV2 | C90: RXL | D90: BLACKPOOL TEACHING HOSPITALS NHS FOUNDATION TRUST | E90: 6 | F90: Associate | G90: No | H90: No | I90: No | J90: No | K90: Yes – Action plan in place | L90: No | M90: No | N90: No | O90: Yes – Action plan in place | P90: No | Q90: No | R90: 2013-14 | S90: June
A91: 01K | B91: 2013-14_June_01K_PROV3 | C91: RW5 | D91: LANCASHIRE CARE NHS FOUNDATION TRUST | E91: 8 | F91: Associate | G91: No | H91: No | I91: No | J91: No | K91: No | L91: No | M91: No | N91: No | O91: Yes – Action plan in place | P91: No | Q91: Yes | R91: 2013-14 | S91: June
A92: 01M | B92: 2013-14_June_01M_PROV1 | C92: RW6 | D92: PENNINE ACUTE HOSPITALS NHS TRUST | E92: 15 | F92: Associate | G92: No | H92: No | I92: No | J92: No | K92: No | L92: Yes – Action plan in place | M92: Yes – Action plan in place | N92: No | O92: Yes – Action plan in place | P92: No | Q92: No | R92: 2013-14 | S92: June
A93: 01M | B93: 2013-14_June_01M_PROV2 | C93: RW3 | D93: CENTRAL MANCHESTER UNIVERSITY HOSPITALS NHS FOUNDATION TRUST | E93: 5 | F93: Associate | G93: No | H93: No | I93: No | J93: No | K93: Yes – Action plan in place | L93: Yes – Action plan in place | M93: No | N93: No | O93: Yes – Action plan in place | P93: Yes – Action plan in place | Q93: No | R93: 2013-14 | S93: June
A94: 01M | B94: 2013-14_June_01M_PROV3 | C94: TAE | D94: MANCHESTER MENTAL HEALTH AND SOCIAL CARE TRUST | E94: 30 | F94: Lead | G94: No | H94: No | I94: No | J94: No | K94: No | L94: No | M94: No | N94: No | O94: Yes – Action plan in place | P94: No | Q94: Further development required | R94: 2013-14 | S94: June
A95: 01N | B95: 2013-14_June_01N_PROV1 | C95: RM2 | D95: UNIVERSITY HOSPITAL OF SOUTH MANCHESTER NHS FOUNDATION TRUST | E95: 25 | F95: Lead | G95: No | H95: No | I95: No | J95: No | K95: No | L95: No | M95: No | N95: No | O95: Yes – Action plan in place | P95: No | Q95: No | R95: 2013-14 | S95: June
A96: 01N | B96: 2013-14_June_01N_PROV2 | C96: RW3 | D96: CENTRAL MANCHESTER UNIVERSITY HOSPITALS NHS FOUNDATION TRUST | E96: 5 | F96: Associate | G96: No | H96: No | I96: No | J96: No | K96: Yes – Action plan in place | L96: Yes – Action plan in place | M96: No | N96: No | O96: Yes – Action plan in place | P96: Yes – Action plan in place | Q96: No | R96: 2013-14 | S96: June
A97: 01N | B97: 2013-14_June_01N_PROV3 | C97: TAE | D97: MANCHESTER MENTAL HEALTH AND SOCIAL CARE TRUST | E97: 5 | F97: Associate | G97: No | H97: No | I97: No | J97: No | K97: No | L97: No | M97: No | N97: No | O97: Yes – Action plan in place | P97: No | Q97: Further development required | R97: 2013-14 | S97: June
A98: 01R | B98: 2013-14_June_01R_PROV1 | C98: RBT | D98: MID CHESHIRE HOSPITALS NHS FOUNDATION TRUST | E98: 57 | F98: Lead | G98: Yes – Action plan in place | H98: No | I98: No | J98: No | K98: Yes – Action plan in place | L98: No | M98: No | N98: Yes – Action plan in place | O98: Yes – Action plan in place | P98: Yes – Action plan in place | Q98: No | R98: 2013-14 | S98: June
A99: 01R | B99: 2013-14_June_01R_PROV2 | C99: RJN | D99: EAST CHESHIRE NHS TRUST | E99: 9 | F99: Associate | G99: No | H99: No | I99: No | J99: No | K99: No | L99: No | M99: No | N99: No | O99: Yes – Action plan in place | P99: Yes – Action plan in place | Q99: No | R99: 2013-14 | S99: June
A100: 01R | B100: 2013-14_June_01R_PROV3 | C100: RXA | D100: CHESHIRE AND WIRRAL PARTNERSHIP NHS FOUNDATION TRUST | E100: 8 | F100: Associate | G100: Yes – Action plan in place | H100: No | I100: No | J100: No | K100: No | L100: No | M100: No | N100: No | O100: Yes – Action plan in place | P100: No | Q100: No | R100: 2013-14 | S100: June
A101: 01T | B101: 2013-14_June_01T_PROV1 | C101: REM | D101: AINTREE UNIVERSITY HOSPITAL NHS FOUNDATION TRUST | E101: 32 | F101: Lead | G101: No | H101: Yes – Action plan in place | I101: No | J101: No | K101: Yes – Action plan in place | L101: Yes – Action plan in place | M101: Yes – Action plan in place | N101: Yes – Action plan in place | O101: Yes – Action plan in place | P101: No | Q101: No | R101: 2013-14 | S101: June
A102: 01T | B102: 2013-14_June_01T_PROV2 | C102: RBS | D102: ALDER HEY CHILDREN'S NHS FOUNDATION TRUST | E102: 6 | F102: Associate | G102: No | H102: No | I102: No | J102: No | K102: No | L102: No | M102: No | N102: No | O102: No | P102: No | Q102: Further development required | R102: 2013-14 | S102: June
A103: 01T | B103: 2013-14_June_01T_PROV3 | C103: REP | D103: LIVERPOOL WOMEN'S NHS FOUNDATION TRUST | E103: 16 | F103: Associate | G103: No | H103: No | I103: No | J103: No | K103: No | L103: No | M103: No | N103: No | O103: No | P103: Yes – Action plan in place | Q103: No | R103: 2013-14 | S103: June
A104: 01T | B104: 2013-14_June_01T_PROV4 | C104: RW4 | D104: MERSEY CARE NHS TRUST | E104: 8 | F104: Associate | G104: No | H104: No | I104: No | J104: No | K104: No | L104: No | M104: No | N104: No | O104: Yes – Action plan in place | P104: No | Q104: Further development required | R104: 2013-14 | S104: June
A105: 01T | B105: 2013-14_June_01T_PROV5 | C105: RY1 | D105: LIVERPOOL COMMUNITY HEALTH NHS TRUST | E105: 11 | F105: Associate | G105: No | H105: No | I105: No | J105: No | K105: No | L105: No | M105: No | N105: No | O105: Yes – Action plan in place | P105: No | Q105: Further development required | R105: 2013-14 | S105: June
A106: 01V | B106: 2013-14_June_01V_PROV1 | C106: RVY | D106: SOUTHPORT AND ORMSKIRK HOSPITAL NHS TRUST | E106: 44 | F106: Lead | G106: No | H106: No | I106: No | J106: Yes – Action plan in place | K106: No | L106: No | M106: No | N106: No | O106: No | P106: No | Q106: No | R106: 2013-14 | S106: June
A107: 01V | B107: 2013-14_June_01V_PROV2 | C107: RW4 | D107: MERSEY CARE NHS TRUST | E107: 6 | F107: Associate | G107: No | H107: No | I107: No | J107: No | K107: No | L107: No | M107: No | N107: No | O107: Yes – Action plan in place | P107: No | Q107: No | R107: 2013-14 | S107: June
A108: 01V | B108: 2013-14_June_01V_PROV3 | C108: RY1 | D108: LIVERPOOL COMMUNITY HEALTH NHS TRUST | E108: 8 | F108: Associate | G108: No | H108: No | I108: No | J108: No | K108: No | L108: No | M108: No | N108: No | O108: Yes – Action plan in place | P108: No | Q108: No | R108: 2013-14 | S108: June
A109: 01W | B109: 2013-14_June_01W_PROV1 | C109: RWJ | D109: STOCKPORT NHS FOUNDATION TRUST | E109: 75 | F109: Lead | G109: No | H109: Yes – Action plan in place | I109: No | J109: Yes – Action plan in place | K109: No | L109: No | M109: Yes – Action plan in place | N109: No | O109: Yes – Action plan in place | P109: Yes – Action plan in place | Q109: No | R109: 2013-14 | S109: June
A110: 01W | B110: 2013-14_June_01W_PROV2 | C110: RM2 | D110: UNIVERSITY HOSPITAL OF SOUTH MANCHESTER NHS FOUNDATION TRUST | E110: 9 | F110: Associate | G110: No | H110: No | I110: No | J110: No | K110: No | L110: No | M110: No | N110: No | O110: Yes – Action plan in place | P110: No | Q110: No | R110: 2013-14 | S110: June
A111: 01W | B111: 2013-14_June_01W_PROV3 | C111: RW3 | D111: CENTRAL MANCHESTER UNIVERSITY HOSPITALS NHS FOUNDATION TRUST | E111: 6 | F111: Associate | G111: No | H111: No | I111: No | J111: No | K111: Yes – Action plan in place | L111: Yes – Action plan in place | M111: No | N111: No | O111: Yes – Action plan in place | P111: Yes – Action plan in place | Q111: No | R111: 2013-14 | S111: June
A112: 01W | B112: 2013-14_June_01W_PROV4 | C112: RT2 | D112: PENNINE CARE NHS FOUNDATION TRUST | E112: 25 | F112: Associate | G112: No | H112: No | I112: No | J112: No | K112: No | L112: No | M112: No | N112: No | O112: Yes – Action plan in place | P112: No | Q112: Further development required | R112: 2013-14 | S112: June
A113: 01X | B113: 2013-14_June_01X_PROV1 | C113: RBN | D113: ST HELENS AND KNOWSLEY HOSPITALS NHS TRUST | E113: 0 | F113: Lead | G113: No | H113: No | I113: Yes – Action plan in place | J113: Yes – Action plan in place | K113: No | L113: Yes – Action plan in place | M113: No | N113: No | O113: Yes – Action plan in place | P113: Yes – Action plan in place | Q113: No | R113: 2013-14 | S113: June
A114: 01X | B114: 2013-14_June_01X_PROV2 | C114: RWW | D114: WARRINGTON AND HALTON HOSPITALS NHS FOUNDATION TRUST | E114: 0 | F114: Associate | G114: no | H114: no | I114: no | J114: no | K114: no | L114: Yes – Action plan in place | M114: no | N114: no | O114: Yes – Action plan in place | P114: No | Q114: No | R114: 2013-14 | S114: June
A115: 01X | B115: 2013-14_June_01X_PROV3 | C115: RY2 | D115: BRIDGEWATER COMMUNITY HEALTHCARE NHS TRUST | E115: 0 | F115: Associate | G115: no | H115: no | I115: no | J115: no | K115: no | L115: no | M115: no | N115: no | O115: Yes – Action plan in place | P115: no | Q115: No | R115: 2013-14 | S115: June
A116: 01X | B116: 2013-14_June_01X_PROV4 | C116: RTV | D116: 5 BOROUGHS PARTNERSHIP NHS FOUNDATION TRUST | E116: 0 | F116: Associate | G116: no | H116: no | I116: no | J116: no | K116: no | L116: no | M116: no | N116: no | O116: Yes – Action plan in place | P116: no | Q116: No | R116: 2013-14 | S116: June
A117: 01Y | B117: 2013-14_June_01Y_PROV1 | C117: RMP | D117: TAMESIDE HOSPITAL NHS FOUNDATION TRUST | E117: 88 | F117: Lead | G117: Yes – Action plan in place | H117: Yes – Action plan in place | I117: No | J117: No | K117: Yes – Action plan in place | L117: Yes – Action plan in place | M117: Yes – Action plan in place | N117: No | O117: Yes – Action plan in place | P117: No | Q117: No | R117: 2013-14 | S117: June
A118: 01Y | B118: 2013-14_June_01Y_PROV2 | C118: RWJ | D118: STOCKPORT NHS FOUNDATION TRUST | E118: 12 | F118: Associate | G118: No | H118: Yes – Action plan in place | I118: No | J118: Yes – Action plan in place | K118: No | L118: No | M118: Yes – Action plan in place | N118: No | O118: Yes – Action plan in place | P118: Yes – Action plan in place | Q118: No | R118: 2013-14 | S118: June
A119: 01Y | B119: 2013-14_June_01Y_PROV3 | C119: RT2 | D119: PENNINE CARE NHS FOUNDATION TRUST | E119: 21 | F119: Associate | G119: No | H119: No | I119: No | J119: No | K119: No | L119: No | M119: No | N119: No | O119: Yes – Action plan in place | P119: No | Q119: Further development required | R119: 2013-14 | S119: June
A120: 02A | B120: 2013-14_June_02A_PROV1 | C120: RW3 | D120: CENTRAL MANCHESTER UNIVERSITY HOSPITALS NHS FOUNDATION TRUST | E120: 11 | F120: Associate | G120: No | H120: No | I120: No | J120: No | K120: Yes – Action plan in place | L120: Yes – Action plan in place | M120: No | N120: No | O120: Yes – Action plan in place | P120: Yes – Action plan in place | Q120: No | R120: 2013-14 | S120: June
A121: 02A | B121: 2013-14_June_02A_PROV2 | C121: RM2 | D121: UNIVERSITY HOSPITAL OF SOUTH MANCHESTER NHS FOUNDATION TRUST | E121: 17 | F121: Associate | G121: No | H121: No | I121: No | J121: No | K121: No | L121: No | M121: No | N121: No | O121: Yes – Action plan in place | P121: No | Q121: No | R121: 2013-14 | S121: June
A122: 02D | B122: 2013-14_June_02D_PROV1 | C122: RBT | D122: MID CHESHIRE HOSPITALS NHS FOUNDATION TRUST | E122: 30 | F122: Associate | G122: Yes – Action plan in place | H122: No | I122: No | J122: No | K122: Yes – Action plan in place | L122: No | M122: No | N122: Yes – Action plan in place | O122: Yes – Action plan in place | P122: Yes – Action plan in place | Q122: No | R122: 2013-14 | S122: June
A123: 02D | B123: 2013-14_June_02D_PROV2 | C123: RJN | D123: EAST CHESHIRE NHS TRUST | E123: 5 | F123: Associate | G123: No | H123: No | I123: No | J123: No | K123: No | L123: No | M123: No | N123: No | O123: Yes – Action plan in place | P123: Yes – Action plan in place | Q123: No | R123: 2013-14 | S123: June
A124: 02D | B124: 2013-14_June_02D_PROV3 | C124: RXA | D124: CHESHIRE AND WIRRAL PARTNERSHIP NHS FOUNDATION TRUST | E124: 5 | F124: Lead | G124: Yes – Action plan in place | H124: No | I124: No | J124: No | K124: No | L124: No | M124: No | N124: No | O124: Yes – Action plan in place | P124: No | Q124: No | R124: 2013-14 | S124: June
A125: 02E | B125: 2013-14_June_02E_PROV1 | C125: RWW | D125: WARRINGTON AND HALTON HOSPITALS NHS FOUNDATION TRUST | E125: 57 | F125: Lead | G125: No | H125: No | I125: No | J125: No | K125: No | L125: Yes – Action plan in place | M125: Yes – Action plan in place | N125: No | O125: Yes – Action plan in place | P125: No | Q125: No | R125: 2013-14 | S125: June
A126: 02E | B126: 2013-14_June_02E_PROV2 | C126: RY2 | D126: BRIDGEWATER COMMUNITY HEALTHCARE NHS TRUST | E126: 11 | F126: Lead | G126: No | H126: No | I126: No | J126: No | K126: No | L126: No | M126: No | N126: No | O126: Yes – Action plan in place | P126: No | Q126: Further development required | R126: 2013-14 | S126: June
A127: 02E | B127: 2013-14_June_02E_PROV3 | C127: RTV | D127: 5 BOROUGHS PARTNERSHIP NHS FOUNDATION TRUST | E127: 11 | F127: Associate | G127: No | H127: No | I127: No | J127: No | K127: No | L127: No | M127: No | N127: No | O127: Yes – Action plan in place | P127: No | Q127: Further development required | R127: 2013-14 | S127: June
A128: 02F | B128: 2013-14_June_02F_PROV1 | C128: RJR | D128: COUNTESS OF CHESTER HOSPITAL NHS FOUNDATION TRUST | E128: 68 | F128: Lead | G128: No | H128: No | I128: No | J128: No | K128: No | L128: No | M128: Yes – Action plan in place | N128: No | O128: Yes – Action plan in place | P128: No | Q128: No | R128: 2013-14 | S128: June
A129: 02F | B129: 2013-14_June_02F_PROV2 | C129: RBL | D129: WIRRAL UNIVERSITY TEACHING HOSPITAL NHS FOUNDATION TRUST | E129: 7 | F129: Associate | G129: No | H129: No | I129: No | J129: No | K129: No | L129: No | M129: Yes – Action plan in place | N129: No | O129: Yes – Action plan in place | P129: Yes – Action plan in place | Q129: No | R129: 2013-14 | S129: June
A130: 02F | B130: 2013-14_June_02F_PROV3 | C130: RXA | D130: CHESHIRE AND WIRRAL PARTNERSHIP NHS FOUNDATION TRUST | E130: 25 | F130: Associate | G130: No | H130: No | I130: No | J130: No | K130: No | L130: Yes – Action plan in place | M130: Yes – Action plan in place | N130: No | O130: Yes – Action plan in place | P130: Yes – Action plan in place | Q130: No | R130: 2013-14 | S130: June
A131: 02G | B131: 2013-14_June_02G_PROV1 | C131: RVY | D131: SOUTHPORT AND ORMSKIRK HOSPITAL NHS TRUST | E131: 32 | F131: Associate | G131: No | H131: No | I131: No | J131: Yes – Action plan in place | K131: No | L131: No | M131: No | N131: No | O131: Yes – Action plan in place | P131: No | Q131: Further development required | R131: 2013-14 | S131: June
A132: 02H | B132: 2013-14_June_02H_PROV1 | C132: RRF | D132: WRIGHTINGTON, WIGAN AND LEIGH NHS FOUNDATION TRUST | E132: 74 | F132: Lead | G132: Yes – Action plan in place | H132: No | I132: No | J132: No | K132: No | L132: Yes – Action plan in place | M132: Yes – Action plan in place | N132: No | O132: Yes – Action plan in place | P132: No | Q132: No | R132: 2013-14 | S132: June
A133: 02H | B133: 2013-14_June_02H_PROV2 | C133: RMC | D133: BOLTON NHS FOUNDATION TRUST | E133: 7 | F133: Associate | G133: No | H133: Yes – Action plan in place | I133: No | J133: No | K133: No | L133: No | M133: Yes – Action plan in place | N133: Yes – Action plan in place | O133: Yes – Action plan in place | P133: No | Q133: No | R133: 2013-14 | S133: June
A134: 02H | B134: 2013-14_June_02H_PROV3 | C134: RM3 | D134: SALFORD ROYAL NHS FOUNDATION TRUST | E134: 5 | F134: Associate | G134: No | H134: No | I134: No | J134: No | K134: No | L134: No | M134: No | N134: No | O134: Yes – Action plan in place | P134: Yes – Action plan in place | Q134: Further development required | R134: 2013-14 | S134: June
A135: 02M | B135: 2013-14_June_02M_PROV1 | C135: RXL | D135: BLACKPOOL TEACHING HOSPITALS NHS FOUNDATION TRUST | E135: 27 | F135: Associate | G135: No | H135: No | I135: No | J135: No | K135: Yes – Action plan in place | L135: No | M135: No | N135: No | O135: Yes – Action plan in place | P135: No | Q135: No | R135: 2013-14 | S135: June
A136: 02M | B136: 2013-14_June_02M_PROV2 | C136: RW5 | D136: LANCASHIRE CARE NHS FOUNDATION TRUST | E136: 5 | F136: Associate | G136: No | H136: No | I136: No | J136: No | K136: No | L136: No | M136: No | N136: No | O136: Yes – Action plan in place | P136: No | Q136: Further development required | R136: 2013-14 | S136: June
A137: 02N | B137: 2013-14_June_02N_PROV1 | C137: RCF | D137: AIREDALE NHS FOUNDATION TRUST | E137: 65 | F137: Lead | G137: No | H137: No | I137: No | J137: No | K137: No | L137: No | M137: Yes – Action plan in place | N137: No | O137: Yes – Action plan in place | P137: No | Q137: Yes | R137: 2013-14 | S137: June
A138: 02N | B138: 2013-14_June_02N_PROV2 | C138: TAD | D138: BRADFORD DISTRICT CARE TRUST | E138: 22 | F138: Associate | G138: No | H138: No | I138: No | J138: No | K138: No | L138: No | M138: No | N138: No | O138: Yes – Action plan in place | P138: No | Q138: No | R138: 2013-14 | S138: June
A139: 02P | B139: 2013-14_June_02P_PROV1 | C139: RFF | D139: BARNSLEY HOSPITAL NHS FOUNDATION TRUST | E139: 75 | F139: Lead | G139: No | H139: No | I139: No | J139: No | K139: Yes – Action plan in place | L139: No | M139: No | N139: No | O139: Yes – Action plan in place | P139: No | Q139: Yes | R139: 2013-14 | S139: June
A140: 02P | B140: 2013-14_June_02P_PROV2 | C140: RXG | D140: SOUTH WEST YORKSHIRE PARTNERSHIP NHS FOUNDATION TRUST | E140: 40 | F140: Lead | G140: No | H140: No | I140: No | J140: No | K140: No | L140: No | M140: No | N140: No | O140: Yes – Action plan in place | P140: No | Q140: No | R140: 2013-14 | S140: June
A141: 02Q | B141: 2013-14_June_02Q_PROV1 | C141: RP5 | D141: DONCASTER AND BASSETLAW HOSPITALS NHS FOUNDATION TRUST | E141: 18 | F141: Associate | G141: No | H141: Yes – Action plan in place | I141: No | J141: No | K141: No | L141: No | M141: No | N141: No | O141: Yes – Action plan in place | P141: No | Q141: Further development required | R141: 2013-14 | S141: June
A142: 02Q | B142: 2013-14_June_02Q_PROV2 | C142: RHA | D142: NOTTINGHAMSHIRE HEALTHCARE NHS TRUST | E142: 5 | F142: Associate | G142: No | H142: No | I142: No | J142: No | K142: No | L142: No | M142: No | N142: No | O142: No | P142: No | Q142: Further development required | R142: 2013-14 | S142: June
A143: 02R | B143: 2013-14_June_02R_PROV1 | C143: RAE | D143: BRADFORD TEACHING HOSPITALS NHS FOUNDATION TRUST | E143: 56 | F143: Lead | G143: No | H143: No | I143: No | J143: No | K143: No | L143: Yes – Action plan in place | M143: No | N143: No | O143: Yes – Action plan in place | P143: Yes – Action plan in place | Q143: No | R143: 2013-14 | S143: June
A144: 02R | B144: 2013-14_June_02R_PROV2 | C144: TAD | D144: BRADFORD DISTRICT CARE TRUST | E144: 53 | F144: Lead | G144: No | H144: No | I144: No | J144: No | K144: No | L144: No | M144: No | N144: No | O144: Yes – Action plan in place | P144: No | Q144: No | R144: 2013-14 | S144: June
A145: 02R | B145: 2013-14_June_02R_PROV3 | C145: RCF | D145: AIREDALE NHS FOUNDATION TRUST | E145: 13 | F145: Associate | G145: No | H145: No | I145: No | J145: No | K145: No | L145: No | M145: Yes – Action plan in place | N145: No | O145: Yes – Action plan in place | P145: No | Q145: Yes | R145: 2013-14 | S145: June
A146: 02R | B146: 2013-14_June_02R_PROV4 | C146: RX8 | D146: YORKSHIRE AMBULANCE SERVICE NHS TRUST | E146: 7 | F146: Associate | G146: No | H146: No | I146: No | J146: No | K146: No | L146: No | M146: No | N146: No | O146: Yes – Action plan in place | P146: No | Q146: No | R146: 2013-14 | S146: June
A147: 02T | B147: 2013-14_June_02T_PROV1 | C147: RWY | D147: CALDERDALE AND HUDDERSFIELD NHS FOUNDATION TRUST | E147: 37 | F147: Associate | G147: Yes – Action plan in place | H147: Yes – Action plan in place | I147: No | J147: No | K147: No | L147: Yes – Action plan in place | M147: No | N147: Yes – Action plan in place | O147: Yes – Action plan in place | P147: No | Q147: Yes | R147: 2013-14 | S147: June
A148: 02T | B148: 2013-14_June_02T_PROV2 | C148: RXG | D148: SOUTH WEST YORKSHIRE PARTNERSHIP NHS FOUNDATION TRUST | E148: 8 | F148: Lead | G148: No | H148: No | I148: No | J148: No | K148: No | L148: No | M148: No | N148: No | O148: Yes – Action plan in place | P148: No | Q148: No | R148: 2013-14 | S148: June
A149: 02V | B149: 2013-14_June_02V_PROV1 | C149: RR8 | D149: LEEDS TEACHING HOSPITALS NHS TRUST | E149: 10 | F149: Associate | G149: No | H149: No | I149: No | J149: No | K149: No | L149: Yes – Action plan in place | M149: Yes – Action plan in place | N149: No | O149: Yes – Action plan in place | P149: Yes – Action plan in place | Q149: Yes | R149: 2013-14 | S149: June
A150: 02V | B150: 2013-14_June_02V_PROV2 | C150: RCD | D150: HARROGATE AND DISTRICT NHS FOUNDATION TRUST | E150: 8 | F150: Associate | G150: No | H150: No | I150: No | J150: No | K150: No | L150: No | M150: No | N150: No | O150: Yes – Action plan in place | P150: Yes – Action plan in place | Q150: Further development required | R150: 2013-14 | S150: June
A151: 02V | B151: 2013-14_June_02V_PROV3 | C151: RGD | D151: LEEDS AND YORK PARTNERSHIP NHS FOUNDATION TRUST | E151: 13 | F151: Lead | G151: No | H151: No | I151: No | J151: No | K151: No | L151: No | M151: No | N151: No | O151: Yes – Action plan in place | P151: No | Q151: No | R151: 2013-14 | S151: June
A152: 02V | B152: 2013-14_June_02V_PROV4 | C152: RY6 | D152: LEEDS COMMUNITY HEALTHCARE NHS TRUST | E152: 24 | F152: Associate | G152: No | H152: No | I152: No | J152: No | K152: No | L152: No | M152: No | N152: No | O152: Yes – Action plan in place | P152: No | Q152: No | R152: 2013-14 | S152: June
A153: 02W | B153: 2013-14_June_02W_PROV1 | C153: RAE | D153: BRADFORD TEACHING HOSPITALS NHS FOUNDATION TRUST | E153: 18 | F153: Associate | G153: No | H153: No | I153: No | J153: No | K153: No | L153: Yes – Action plan in place | M153: No | N153: No | O153: Yes – Action plan in place | P153: Yes – Action plan in place | Q153: No | R153: 2013-14 | S153: June
A154: 02W | B154: 2013-14_June_02W_PROV2 | C154: TAD | D154: BRADFORD DISTRICT CARE TRUST | E154: 16 | F154: Associate | G154: No | H154: No | I154: No | J154: No | K154: No | L154: No | M154: No | N154: No | O154: Yes – Action plan in place | P154: No | Q154: No | R154: 2013-14 | S154: June
A155: 02X | B155: 2013-14_June_02X_PROV1 | C155: RP5 | D155: DONCASTER AND BASSETLAW HOSPITALS NHS FOUNDATION TRUST | E155: 0 | F155: Lead | G155: No | H155: Yes – Action plan in place | I155: No | J155: No | K155: Yes – Action plan in place | L155: Yes – Action plan in place | M155: No | N155: No | O155: Yes – Action plan in place | P155: No | Q155: No | R155: 2013-14 | S155: June
A156: 02X | B156: 2013-14_June_02X_PROV2 | C156: RHQ | D156: SHEFFIELD TEACHING HOSPITALS NHS FOUNDATION TRUST | E156: 0 | F156: Associate | G156: 0 | H156: 0 | I156: 0 | J156: 0 | K156: 0 | L156: 0 | M156: 0 | N156: 0 | O156: 0 | P156: 0 | Q156: 0 | R156: 2013-14 | S156: June
A157: 02X | B157: 2013-14_June_02X_PROV3 | C157: RFR | D157: THE ROTHERHAM NHS FOUNDATION TRUST | E157: 0 | F157: Associate | G157: 0 | H157: 0 | I157: 0 | J157: 0 | K157: 0 | L157: 0 | M157: 0 | N157: 0 | O157: 0 | P157: 0 | Q157: 0 | R157: 2013-14 | S157: June
A158: 02X | B158: 2013-14_June_02X_PROV4 | C158: RCU | D158: SHEFFIELD CHILDREN'S NHS FOUNDATION TRUST | E158: 0 | F158: Associate | G158: 0 | H158: 0 | I158: 0 | J158: 0 | K158: 0 | L158: 0 | M158: 0 | N158: 0 | O158: 0 | P158: 0 | Q158: 0 | R158: 2013-14 | S158: June
A159: 02X | B159: 2013-14_June_02X_PROV5 | C159: RXE | D159: ROTHERHAM, DONCASTER AND SOUTH HUMBER NHS FOUNDATION TRUST | E159: 0 | F159: Lead | G159: No | H159: No | I159: No | J159: No | K159: No | L159: No | M159: No | N159: No | O159: Yes – No action plan in place | P159: No | Q159: 0 | R159: 2013-14 | S159: June
A160: 02Y | B160: 2013-14_June_02Y_PROV1 | C160: RWA | D160: HULL AND EAST YORKSHIRE HOSPITALS NHS TRUST | E160: 27 | F160: Associate | G160: No | H160: No | I160: No | J160: Yes – Action plan in place | K160: No | L160: Yes – Action plan in place | M160: Yes – Action plan in place | N160: No | O160: No | P160: No | Q160: No | R160: 2013-14 | S160: June
A161: 02Y | B161: 2013-14_June_02Y_PROV2 | C161: RJL | D161: NORTHERN LINCOLNSHIRE AND GOOLE HOSPITALS NHS FOUNDATION TRUST | E161: 7 | F161: Associate | G161: No | H161: Yes – Action plan in place | I161: No | J161: Yes – Action plan in place | K161: Yes – Action plan in place | L161: Yes – Action plan in place | M161: No | N161: No | O161: Yes – Action plan in place | P161: Yes – Action plan in place | Q161: No | R161: 2013-14 | S161: June
A162: 02Y | B162: 2013-14_June_02Y_PROV3 | C162: RCB | D162: YORK TEACHING HOSPITAL NHS FOUNDATION TRUST | E162: 9 | F162: Lead | G162: No | H162: No | I162: No | J162: No | K162: No | L162: No | M162: No | N162: No | O162: No | P162: No | Q162: No | R162: 2013-14 | S162: June
A163: 02Y | B163: 2013-14_June_02Y_PROV4 | C163: RV9 | D163: HUMBER NHS FOUNDATION TRUST | E163: 56 | F163: Lead | G163: No | H163: No | I163: No | J163: No | K163: No | L163: No | M163: No | N163: No | O163: No | P163: No | Q163: No | R163: 2013-14 | S163: June
A164: 02Y | B164: 2013-14_June_02Y_PROV5 | C164: RX8 | D164: YORKSHIRE AMBULANCE SERVICE NHS TRUST | E164: 7 | F164: Lead | G164: No | H164: No | I164: No | J164: No | K164: No | L164: No | M164: No | N164: No | O164: No | P164: No | Q164: No | R164: 2013-14 | S164: June
A165: 03A | B165: 2013-14_June_03A_PROV1 | C165: RWY | D165: CALDERDALE AND HUDDERSFIELD NHS FOUNDATION TRUST | E165: 41 | F165: Lead | G165: Yes – Action plan in place | H165: Yes – Action plan in place | I165: No | J165: No | K165: No | L165: Yes – Action plan in place | M165: No | N165: Yes – Action plan in place | O165: Yes – Action plan in place | P165: No | Q165: Yes | R165: 2013-14 | S165: June
A166: 03A | B166: 2013-14_June_03A_PROV2 | C166: RXG | D166: SOUTH WEST YORKSHIRE PARTNERSHIP NHS FOUNDATION TRUST | E166: 10 | F166: Associate | G166: No | H166: No | I166: No | J166: No | K166: No | L166: No | M166: No | N166: No | O166: Yes – Action plan in place | P166: No | Q166: No | R166: 2013-14 | S166: June
A167: 03C | B167: 2013-14_June_03C_PROV1 | C167: RR8 | D167: LEEDS TEACHING HOSPITALS NHS TRUST | E167: 17 | F167: Lead | G167: No | H167: No | I167: No | J167: No | K167: No | L167: Yes – Action plan in place | M167: Yes – Action plan in place | N167: No | O167: Yes – Action plan in place | P167: Yes – Action plan in place | Q167: Yes | R167: 2013-14 | S167: June
A168: 03C | B168: 2013-14_June_03C_PROV2 | C168: RGD | D168: LEEDS AND YORK PARTNERSHIP NHS FOUNDATION TRUST | E168: 21 | F168: Associate | G168: No | H168: No | I168: No | J168: No | K168: No | L168: No | M168: No | N168: No | O168: Yes – Action plan in place | P168: No | Q168: No | R168: 2013-14 | S168: June
A169: 03C | B169: 2013-14_June_03C_PROV3 | C169: RY6 | D169: LEEDS COMMUNITY HEALTHCARE NHS TRUST | E169: 40 | F169: Associate | G169: No | H169: No | I169: No | J169: No | K169: No | L169: No | M169: No | N169: No | O169: Yes – Action plan in place | P169: No | Q169: No | R169: 2013-14 | S169: June
A170: 03C | B170: 2013-14_June_03C_PROV4 | C170: RX8 | D170: YORKSHIRE AMBULANCE SERVICE NHS TRUST | E170: 6 | F170: Associate | G170: No | H170: No | I170: No | J170: No | K170: No | L170: No | M170: No | N170: No | O170: Yes – Action plan in place | P170: No | Q170: No | R170: 2013-14 | S170: June
A171: 03D | B171: 2013-14_June_03D_PROV1 | C171: RTR | D171: SOUTH TEES HOSPITALS NHS FOUNDATION TRUST | E171: 13 | F171: Lead | G171: No | H171: No | I171: No | J171: No | K171: No | L171: Yes – Action plan in place | M171: Yes – Action plan in place | N171: No | O171: Yes – Action plan in place | P171: No | Q171: No | R171: 2013-14 | S171: June
A172: 03E | B172: 2013-14_June_03E_PROV1 | C172: RCD | D172: HARROGATE AND DISTRICT NHS FOUNDATION TRUST | E172: 61 | F172: Lead | G172: No | H172: No | I172: No | J172: No | K172: No | L172: No | M172: No | N172: No | O172: Yes – Action plan in place | P172: Yes – Action plan in place | Q172: Yes | R172: 2013-14 | S172: June
A173: 03F | B173: 2013-14_June_03F_PROV1 | C173: RWA | D173: HULL AND EAST YORKSHIRE HOSPITALS NHS TRUST | E173: 51 | F173: Lead | G173: No | H173: No | I173: No | J173: Yes – Action plan in place | K173: No | L173: Yes – Action plan in place | M173: Yes – Action plan in place | N173: No | O173: No | P173: No | Q173: No | R173: 2013-14 | S173: June
A174: 03F | B174: 2013-14_June_03F_PROV2 | C174: RV9 | D174: HUMBER NHS FOUNDATION TRUST | E174: 37 | F174: Associate | G174: No | H174: No | I174: No | J174: No | K174: No | L174: No | M174: No | N174: No | O174: No | P174: No | Q174: No | R174: 2013-14 | S174: June
A175: 03F | B175: 2013-14_June_03F_PROV3 | C175: RX8 | D175: YORKSHIRE AMBULANCE SERVICE NHS TRUST | E175: 0 | F175: Associate | G175: No | H175: No | I175: No | J175: No | K175: No | L175: No | M175: No | N175: No | O175: No | P175: No | Q175: No | R175: 2013-14 | S175: June
A176: 03G | B176: 2013-14_June_03G_PROV1 | C176: RR8 | D176: LEEDS TEACHING HOSPITALS NHS TRUST | E176: 15 | F176: Associate | G176: No | H176: No | I176: No | J176: No | K176: No | L176: Yes – Action plan in place | M176: Yes – Action plan in place | N176: No | O176: Yes – Action plan in place | P176: Yes – Action plan in place | Q176: Yes | R176: 2013-14 | S176: June
A177: 03G | B177: 2013-14_June_03G_PROV2 | C177: RY6 | D177: LEEDS COMMUNITY HEALTHCARE NHS TRUST | E177: 24 | F177: Lead | G177: No | H177: No | I177: No | J177: No | K177: No | L177: No | M177: No | N177: No | O177: Yes – Action plan in place | P177: No | Q177: No | R177: 2013-14 | S177: June
A178: 03G | B178: 2013-14_June_03G_PROV3 | C178: RGD | D178: LEEDS AND YORK PARTNERSHIP NHS FOUNDATION TRUST | E178: 20 | F178: Associate | G178: No | H178: No | I178: No | J178: No | K178: No | L178: No | M178: No | N178: No | O178: Yes – Action plan in place | P178: No | Q178: No | R178: 2013-14 | S178: June
A179: 03G | B179: 2013-14_June_03G_PROV4 | C179: RX8 | D179: YORKSHIRE AMBULANCE SERVICE NHS TRUST | E179: 6 | F179: Associate | G179: No | H179: No | I179: No | J179: No | K179: No | L179: No | M179: No | N179: No | O179: Yes – Action plan in place | P179: No | Q179: No | R179: 2013-14 | S179: June
A180: 03H | B180: 2013-14_June_03H_PROV1 | C180: RJL | D180: NORTHERN LINCOLNSHIRE AND GOOLE HOSPITALS NHS FOUNDATION TRUST | E180: 32 | F180: Lead | G180: No | H180: Yes – Action plan in place | I180: No | J180: Yes – Action plan in place | K180: Yes – Action plan in place | L180: Yes – Action plan in place | M180: No | N180: No | O180: Yes – Action plan in place | P180: Yes – Action plan in place | Q180: No | R180: 2013-14 | S180: June
A181: 03J | B181: 2013-14_June_03J_PROV1 | C181: RXF | D181: MID YORKSHIRE HOSPITALS NHS TRUST | E181: 21 | F181: Associate | G181: Yes – Action plan in place | H181: No | I181: No | J181: Yes – Action plan in place | K181: No | L181: Yes – Action plan in place | M181: No | N181: No | O181: Yes – Action plan in place | P181: No | Q181: Yes | R181: 2013-14 | S181: June
A182: 03J | B182: 2013-14_June_03J_PROV2 | C182: RXG | D182: SOUTH WEST YORKSHIRE PARTNERSHIP NHS FOUNDATION TRUST | E182: 8 | F182: Associate | G182: No | H182: No | I182: No | J182: No | K182: No | L182: No | M182: No | N182: No | O182: Yes – Action plan in place | P182: No | Q182: No | R182: 2013-14 | S182: June
A183: 03K | B183: 2013-14_June_03K_PROV1 | C183: RJL | D183: NORTHERN LINCOLNSHIRE AND GOOLE HOSPITALS NHS FOUNDATION TRUST | E183: 35 | F183: Associate | G183: No | H183: Yes – No action plan in place | I183: No | J183: Yes – Action plan in place | K183: Yes – Action plan in place | L183: Yes – Action plan in place | M183: No | N183: No | O183: Yes – Action plan in place | P183: Yes – Action plan in place | Q183: No | R183: 2013-14 | S183: June
A184: 03K | B184: 2013-14_June_03K_PROV2 | C184: RXE | D184: ROTHERHAM, DONCASTER AND SOUTH HUMBER NHS FOUNDATION TRUST | E184: 9 | F184: Lead | G184: No | H184: No | I184: No | J184: No | K184: No | L184: No | M184: No | N184: No | O184: Yes – Action plan in place | P184: No | Q184: Yes | R184: 2013-14 | S184: June
A185: 03L | B185: 2013-14_June_03L_PROV1 | C185: RFR | D185: THE ROTHERHAM NHS FOUNDATION TRUST | E185: 67 | F185: Lead | G185: No | H185: Yes – Action plan in place | I185: No | J185: Yes – Action plan in place | K185: No | L185: No | M185: No | N185: No | O185: Yes – Action plan in place | P185: No | Q185: No | R185: 2013-14 | S185: June
A186: 03L | B186: 2013-14_June_03L_PROV2 | C186: RXE | D186: ROTHERHAM, DONCASTER AND SOUTH HUMBER NHS FOUNDATION TRUST | E186: 17 | F186: Lead | G186: No | H186: No | I186: No | J186: No | K186: No | L186: No | M186: No | N186: No | O186: Yes – Action plan in place | P186: No | Q186: No | R186: 2013-14 | S186: June
A187: 03M | B187: 2013-14_June_03M_PROV1 | C187: RCB | D187: YORK TEACHING HOSPITAL NHS FOUNDATION TRUST | E187: 19 | F187: Associate | G187: No | H187: No | I187: No | J187: Yes – Action plan in place | K187: Yes – Action plan in place | L187: No | M187: Yes – Action plan in place | N187: No | O187: Yes – No action plan in place | P187: No | Q187: No | R187: 2013-14 | S187: June
A188: 03M | B188: 2013-14_June_03M_PROV2 | C188: RX3 | D188: TEES, ESK AND WEAR VALLEYS NHS FOUNDATION TRUST | E188: 5 | F188: Lead | G188: No | H188: No | I188: No | J188: No | K188: No | L188: No | M188: No | N188: No | O188: Yes – No action plan in place | P188: No | Q188: No | R188: 2013-14 | S188: June
